Workbook

Sheet TO Ziff.5 (hidden)
C1: Teilungsordnungen auf dem Prüfstand: unzulässige Transferverluste bei interner Teilung
B2: =COUNT(B6:B332) -> 321 | C2: BGH v. 25.02.2015 - XII ZB 364/14; BGH v. 19.08.2015 - XII ZB 443/14; OLG Brandbg. v. 02.09.2020 - 9 UF 86/20; OLG Celle v. 05.04.2019 - 21 UF 202/18; OLG FfM v. 09.04.2020 - 4 UF 46/19; OLG FfM v. 17.09.2019 - 4 UF 273/17; OLG FfM v. 17.09.2019 - 4 UF 273/17; OLG FfM v. 17.09.2019 - 4 UF 273/17; OLG FfM v. 22.08.2019 - 4 UF 86/17; OLG FfM v. 22.08.2019 - 4 UF 86/17; OLG Hamm v. 20.06.2018 - 7 UF 213/17; OLG Hamm v. 20.06.2018 - 7 UF 213/17; OLG Ka v. 20.04.2021 - 5 UF 112/20; OLG Köln v. 02.10.2018 - 25 UF 34/18; OLG Nürnberg v. 18.12.2018 - 11 UF 815/18; OLG Schleswig v. 08.06.2020 - 15 UF 188/19; OLG Karlsruhe v. 16.10.2022 16 UF 109/22; OLG FfM v. 5.5.5022 - 4 UF 43/19. | K2: =+K5/$B$2 -> 35% | L2: =+L5/$B$2 -> 64% | M2: =+M5/$B$2 -> 26% | N2: =+N5/$B$2 -> 48% | O2: Hamburger Pensionskasse, Benutzername: versorg , Passwort: pension
C3: =TEXT(#REF!+F3,0) ->  | D3: Anzahl "Ja" | E3: Anzahl "Nein" | F3: =COUNTIF(F7:F325,"Ja") -> 110 | K3: =SUM(K6:K425) -> 111 | L3: =SUM(L6:L425)/2 -> 205 | M3: =SUM(M6:M425)/2 -> 126 | N3: =SUM(N6:N425)/4 -> 155
A4: Zur Auswahl auf Pfeil klicken | C4: Name der Versicherung | D4: Datum | E4: Fundstelle | F4: Tarifwechsel? | G4: Bemerkung | I4: Bemerkung2 | J4: Rechtsprechung | K4: Tarifwechsel | L4: doppelter Kostenabzug | M4: AusglWert-Abweichung | N4: Dynamik-Teilhabe zwi EzE und RK anordnen | O4: Internet | P4: umfassende Prüfung
A5: =+C5 -> Bitte suchen Sie aus der Liste die Versicherung aus | C5: Bitte suchen Sie aus der Liste die Versicherung aus | K5: =SUM(K6:K332) -> 111 | L5: =SUM(L6:L332)/2 -> 205 | M5: =SUM(M6:M332)/3 -> 84 | N5: =SUM(N6:N332)/4 -> 155 | S5: =SUM(S7:S19) -> 12
A6: =C6&IF(D6=0,""," v. "&TEXT(D6,"TT.MM.JJJ")) -> Accenture v. 01.01.2015 | B6: =ROW() -> 6 | C6: Accenture | D6: 2015-01-01 | E6: 5. | F6: =IF(K6=1,"Ja","") ->  | G6: =IF(SUM(K6:N6)=0,"","TO ermöglicht: "&IF(K6>0,"Tarifwechel; ","")&IF(L6>0,"doppelten Kostenabzug; ","")&IF(M6>0," Abweichungen vom gerichtl. festgelegten Ausgleichswert; ","")&IF(N6>0," Verzinsung zwischen EzE und RK geltend machen","")) -> TO ermöglicht: doppelten Kostenabzug; Abweichungen vom gerichtl. festgelegten Ausgleichswert; Verzinsung zwischen EzE und RK geltend machen | L6: 2 | M6: 3 | N6: 4 | P6: =SUM(K6:N6) -> 9 | S6: =_xlfn.CONCAT(A6:A406) -> Accenture v. 01.01.2015ACE European Group Limiteted v. 01.09.2009Adler Modemaerkte Versorgungswerk e.V. v. 01.01.2019allfrisch Unterstuetzungskasse e.V v. 28.12.2017Allianz KBV Harmonisierung BPV v. 07.01.2010Allianz Klinik-Rente v. 01.12.2012Allianz Lebensversicherung AG (Klinik-Rente) v. 01.12.2012Allianz Lebensversicherung AG v. 01.12.2012Allianz Lebensversicherung AG v. 01.12.2018Allianz Lebensversicherung AG v. 01.12.2020Allianz Lebensversicherung AG v. 21.07.2021Allianz Lebensversicherungs AG v. 01.09.2009Allianz Lebensversicherungs-AG v. 01.07.2010Allianz LV v. 01.02.2010Allianz-Pensions-Management e.V. v. 21.12.2009Allianz Pensionskasse v. 01.12.2020Alte Leipziger Lebensversicherung auf Gegenseitigkeit v. 01.04.2010Alz Chemie v. 05.11.2011Ärzteversorgung Hessen (LÄK) v. Datum unbekanntAthora AG Pensionskasse & Lebensversicherung v. 11.09.2019Athora Lebensversicherung AG v. 11.09.2019AXA Leben v. 01.06.2020AXA Leben v. 01.05.2020AXA Leben v. 01.08.2020AXA Überbetriebliche Unterstützungskasse e.V. v. 01.01.2018Baden-Badener Pensionskasse v. 30.11.2009Baloise Lebensversicherung AG Deutschland v. 01.10.2009BASF Pensionskasse VVaG v. 01.07.2019BASF SE v. 01.07.2019Bayerischer Rundfunk Tarifvertrag v. 01.12.2009Bayern-Versicherung LV AG v. 12.12.2020Bayern-Versicherung LV AG v. 22.10.2022BKK Mobil Oil v. 01.09.2009BKK VBU 2012 kongruent TO v. 01.11.2012BKK VBU 2012 partiell TO v. 01.11.2012BKK VBU kongruent v. 01.11.2012BKK VBU partiell v. 01.11.2012Bochumer Verband - Arbeitgeberfinanzierte Versorg. v. 01.09.2009Bochumer Verband - Entgeldumwandlung v. 01.09.2009Boehringer Ingelheim KG v. 01.07.2021Boge Elastmetall Unterstützungskasse e.V. v. 01.01.2018Bombardier_TransportationTO v. 01.09.2009BP Europa SE v. 01.09.2009BVV, Banken Versicherungs Verein v. 01.07.2016C & A Services GmbH & Co. OHG v. 01.02.2017Carl Zeiss AG v. 27.10.2016Continental COOP eG Gesamr Versorgungsrichtlinie v. 01.09.2009COOP Schleswig Holstein Rentenzuschusskasse v. 01.01.2019Cosmos Direkt v. 01.01.2010CSM Deutschland GmbH v. 01.07.2021DAG Stiftung Ruhegehaltskasse v. 10.12.2015Daimler Brand & IP Management GmbH & Co.KG v. 01.04.2021Daimler Truck AG v. 01.04.2021Daimler Vorsorge Kapital Teilungsordnung v. 01.04.2021DAK Hamburg v. 01.01.2022DAK Hamburg v. 10.07.2013Damovo Deutschland GmbH & Co. KG v. 24.08.2009Debeka Lebensversicherungsverein a.G. v. 01.08.2020Debeka Lebensversicherungsverein a.G. AltZertG-Verträge v. 01.01.2017Debeka ZVK VaG Tarif ZVD 7 v. 79-2021Decadia GmbH v. 16.09.2016Degussa Pensionskasse Marl Troisdorf v. 01.07.2016Degussa Pensionskasse Riester-Tarif v. 01.06.2016Degussa Pensionskasse v. 01.06.2016Degussa UK Leistungsplan RUK v. 01.07.2018Degussa UK Leistungsplan RUK vor 2018Deka-BonusRenteDeka-ZukunftsPlanDeka-Zukunftsplan und BonusRente v. 01.01.2019Delta Lloyd LebensversicherungDelta Lloyd PensionskasseDeutsche Ärzteversicherung AG v. 01.05.2020Deutsche Bank v. 01.04.2016Deutsche Bank v. 01.07.2021Deutsche Fertighaus Holding UK DFH v. 01.09.2009Deutsche Flugsicherung v. 09.12.2016Deutsche See v. 01.09.2009Deutsche Telekom AG v. 01.07.2022Deutsche Telekom KBV bAV AT v. 19.03.2021Deutsche Telekom TV Kapitalkontenplan v. 01.02.2022Deutsche Welle Tarifvertrag v. 06.12.2009Deutscher Pensionsfonds AG v. 01.01.2013Deutscher Pensionsfonds AG v. 06.12.2020Deutschlandradio Tarifvertrag v. 10.12.2009DFS Deutsche Flugsicherung v. 09.12.2016Diamalt v. 01.07.2021DINEA_Gastronomie_GmbH v. 01.07.2012Diversey GmbH & Co. OHG v. 01.01.2010DWS Investment GmbH Basisrentenverträge AltZertG v. 01.11.2018DWS Investment v. 01.06.2022EDEKA Handelsgesellschaft Nordbayern-Sachsen-Thüringen mbH v. 01.09.2009EDEKA Nordbayern-Schsen-Thüringen GmbH v. 01.09.2009EDEKA Rhein-Ruhr R11 R12 v. 01.09.2018EDEKA Süd v. 01.09.2009EDEKA Südwest v. 01.09.2009EDEKA Zentrale Handel und Produktion GmbH v. 01.07.2016Edelweiss GmbH & Co KG (EVO I und II) v. 01.07.2011Edelweiss GmbH & Co KG (EVO) v. 22.12.2012Edelweiss GmbH & Co KG (UVO) v. 01.09.2009EKN Betriebs AG & Co. oHG: Direktzusagen v. 01.04.2017ERGO Unterstützungskasse v. 01.03.2010ERGO v. 16.01.2020ERGO v. 25.02.2020ERGO Pensionsfonds AG v. 18.08.2021ERGO Lebensversicherung AG v. 12.01.2012Ernest & Young v. 12.04.2010Ernest & Young v. 22.07.2016Essener Verband v. 10.11.2009Essener Verband Leistungsordnung "A" v. 01.01.2012Esso Deutschland GmbH v. 09.02.2010Evonik v. 04.12.2009Evonik v. 15.05.2015ExxonMobil Central Europe Holding GmbH v. 09.02.2010ExxonMobil Gas Marketing Deuschland GmbH v. 09.02.2010ExxonMobil Pensions-Verwaltungsgesellschaft mbH v. 09.02.2010ExxonMobil Production Deutschland GmbH v. 09.02.2010EY Ernest & Young GmbH v. 22.07.2016Familienfürsorge UK v. 01.01.2011Feuersozietät Berlin Brandenburg AG v. 01.09.2009FOVERUKA v. 13.12.2016Frankfurt Münchener Lebensversicherung AG v. 15.7.2017?Freies Versorgungswerk e.V. v. 01.02.2012Fresenius v. 01.03.2017GALERIA Logisitik GmbH v. 01.07.2012GALERIA Personalservice GmbH TO v. 01.07.2012Generali Lebensversicherung AG v. 01.12.2009Generali Pensionsfonds AG v. 07.07.2016Generali v. 01.07.2020Geno Pensionskasse VVaG, Karlsruhe v. 31.12.2020GlaxoSmithKline GmbH & Co KG v. 01.09.2009Gothaer Lebensversicherung AG v. 19.02.2010Gothaer Pensionskasse AG v. 10.01.2013Gothaer Pensionskasse AG v. 19.02.2010Hamburger Lebensversicherung AGHamburger Pensionskasse v. 01.08.2011Hamburger Pensionskasse v. 29.04.2021Hamburger Pensionsunterstützungskasse e.V. v. 01.01.2018Hamburger Pensionsunterstützungskasse e.V. v. 01.06.2010Hamburger Unterstützungskasse HUK Nr. 1 v. 01.09.2009Hamburger Unterstützungskasse HUK Nr. 2 v. 01.01.2018Hamburger Unterstützungskasse HUK v. 01.06.2015Hamburger Wasserwerke GmbH v. 01.09.2009Hannoversche Lebensversicherung AG v. 01.02.2022HDI Lebensversicherung AG v. 02.01.2020HDI Lebensversicherung AG v. 14.01.2013HDI Lebensversicherung AG v. ohne DatumHDI Pensionskasse v. 01.04.2015HDI Pensionskasse v. 14.01.2013Heidelberger Leben v. 01.01.2014Heidelberger Cement AG, Heidelberg v. 23.03.2013Helvetia schweizerische Lebensversicherungs-AG v. 01.04.2019Hewlett Packard GmbH Böblingen v. 18.12.2009Hoechst Pensionskasse v. 01.01.2022Homann Feinkost GmbH v. 01.09.2009HUK-Coburg v. 01.01.2015HypoVereinsbank HVB v. 05.10.2016HypoVereinsbank Unicredit Group v. 05.10.2016IBM v. 01.09.2009IGLO GmbH v. 01.09.2009Imperial Logistics v. 14.02.2022Ineos Phenol v. 25.09.2009InterRisk Lebensversicherungs AG Vienna Insurance Group v. 02.08.2012KKH - Teilungsregeln für den Versorgungsausgleich v. 26.05.2011Kölner Pensionskasse v. 01.01.2016Kordoba TO KAVP TMA FHL v. 14.12.2010LandesBank Berlin v. 22.03.2010Landesbank Berlin v. 17.09.2021Landesbank BW (Kapitalkontenplan 2005) TO v. 02.05.2015Lebensversicherung von 1871 a.G. München v. 01.09.2009LPV Lebensversicherung AG PBV-Bestandssegment, Bestandssystem Köln v. 01.09.2023LPV Lebensversicherung AG PBV-Bestandssegment v. 01.09.2023Lufthansa Group TO v. 28.06.2018Lufthansa Group Versorgungskasse Kabine e.V. v. 01.01.2012LVM Lebens- und Rentenversicherungen (privat) v. 01.10.2009LVM Lebensversicherungs-AG v. 01.07.2017LVM Pensionsfonds v. 01.09.2009LVM Pensionsplan V v. 01.01.2010LVM Unterstützungskasse v. 01.03.2010LVM Unterstützungskasse v. 01.09.2009LVM Versicherung (Direktversicherung) v. 01.10.2009LVM Versicherung v. 01.07.2017MAN (KBV BAV MEV) v. 01.09.2009MAN (KBV BAV MEV) v. 04.04.2011MAN (KBV BAV MEV) v. 15.03.2011Marktkauf Gruppen-Unterstützungskasse e.V. v. 01.01.2018Mecklenburgische LV AG v. 01.06.2013MEDA Pharma GmbH v. 02.11.2009Mercedes Benz AG v. 01.04.2021Metall-Rente v. 01.09.2009METRO Cash Carry_Deutschland v. 01.07.2012METRO_AG_ASKO v. 01.09.2009METRO_AG_EPP_FPP v. 01.07.2012Mitteldeutscher Rundfunk Tarifvertrag v. 02.12.2009Mobil Oil BKK v. 01.01.2019Nestlé PK Tarif Baustein L v. 22.09.2010Nestlé PK Tarif Vorsorgekonto v. 21.09.2010Netto Direktzusagen v. 05.01.2019Netto_Direktzusagen v. 01.05.2019Neue Bayerische Beamten Lebensversicherung AG v. 01.01.2013Neue Leben v. 01.08.2018Neue Leben v. 07.10.2012Norddeutscher Rundfunk Tarifvertrag v. 07.12.2009Nordostdeutsche Energiewirtschaft Unterstützungskasse v. 30.03.2020Nordsee GmbH v. 01.09.2009Nürnberger Lebensversicherung AG v. 01.01.2022Nürnberger Pensionskasse AG v. 01.01.2022Nürnberger Pensionskasse AG v. 01.05.2010Nürnberger überbetriebliche Versorgungskasse e.V. v. 01.01.2022Nürnberger überbetriebliche Versorgungskasse e.V. v. 06.12.2018Nürnberger überbetriebliche Versorgungskasse e.V. v. 18.12.2009ÖBAV Unterstützungskasse e.V. v. 01.05.2018Opel Direktversicherung Hannoversche v. 01.01.2010Opel GmbH v. 16.08.20181PB Lebensversicherung AG v. 01.03.2010PB Lebensversicherung AG v. 01.10.2019PB Lebensversicherung v. 01.03.2010PB Pensionsfonds AG v. 01.01.2010PB Pensionsfonds v. 01.04.2015Pensionskasse der Deutschen Wirtschaft v. 29.09.2016Pensionskasse des SchornsteinfegerhandwerksPensionsSicherungsVerein PSV v. 03.05.2017Philip Morris GmbH v. 30.10.1919Presse-Versorgung (Allianz) v. 01.12.2012Pro bAV Pensionskasse AG v. 27.08.2018probAV v. 06.08.2018Provinzial Düsseldorf v. 20.04.2021Provinzial Lebensversicherungen v. 03.05.2010Provinzial LV Hannover v. 01.05.2016Provinzial LV v. 01.01.2017Provinzial NordWest LV v. 01.01.2017Provinzial v. 01.01.2022Proxalto Lebensversicherung v. 01.07.2022Proxalto Lebensversicherung v. 05.04.2019PSVAG (Pensions Sicherungs Verein) v. 03.05.2017R+V ebensversicherung AGR+V ebensversicherung AG v. 01.03.2020Radio Bremen Tarifvertrag v. 03.12.2009Real Unterstützungskasse v. 01.01.2018real_Group_Holding_GmbH v. 01.07.2012real_SB_Warenhaus_GmbH v. 01.07.2012REWE Unterstützungskasse e.V. v. 01.01.2018REWE Unterstützungskasse e.V. v. 01.01.2018Roche Diagnostics GmbH v. 27.09.2011Rosenheimer Unterstützungskasse v. 01.05.2022Rundfunk Berlin-Brandenburg Tarifvertrag v. 08.12.2009Saarländischer Rundfunk Tarifvertrag v. 04.12.2009Secunda Unterstützungskasse für den Mittelstand v. 01.01.2010SelbstHilfe PK Caritas v. 01.01.2014Sera-Zusage v. 01.07.2021Signal Iduna a.G. v. 01.05.2022Signal Iduna AG v. 01.05.2022Signal Iduna Pensionskass AG v. 01.05.2022Signal Iduna v. 01.01.2010Sparkassen Pensionskasse AG v. 01.05.2021Sparkassen Pensionskasse AG v. 11.04.2016Sparkassen-Versicherung private AV v. 01.06.2017Standard Life v. 30.06.2011Südwestrundfunk Tarifvertrag v. 09.12.2009SutorBank v. 01.05.2022Swiss Life AG v. 01.11.2013Swiss Life AG v. 16.12.2014SwissLife Pensionskasse v. 23.09.2014SwissLife Unterstützungskasse v. 02.11.2010Targo Lebensversicherung AG v. 01.09.2013TestUlmer Spatz v. 01.07.2021UMU-Unterstützungskasse mittelständischer Unternehmen e.V. v. 01.12.2013Unilever v. 01.06.2016Union Investment Privatfonds GmbH v. 01.01.2021Unterstützungskasse der nordostdeutschen Energiewirtschaft e.V. v. 30.03.2020VdVA Unterstützungskasse v. 01.01.2022Vereinigte Postversicherung VVaG v. 11.07.2022Vereinigte Postversicherung VVaG für Direktversicherungen v. 11.07.2022Versorgungsanstalt der Deutschen Bundespost v. 05.10.2010Versorgungsanstalt der KaminkehrergesellenVersorgungswerk der Wohnungswirtschaft (VDW) v. 01.01.2018Vertreterversorgungswerk der Allianz Beratungs- und Vertreibs AG v. 13.12.2010Victoria LV AG v. 16.01.2020Vodafone v. 01.04.2019VolkswohlBundVPV Allgemeine Versicherungs AG v. 11.07.2022VPV Allgemeine Versicherungs AG für Direktversicherungen v. 11.07.2022VPV Lebensversicherungs AG v. 11.07.2022VPV Lebensversicherungs AG für Direktversicherungen v. 11.07.2022VRK Lebensversicherung v. 01.01.2015VW v. 01.12.2017WDR TO v. 01.03.2022Westdeutscher Rundfunk Tarifvertrag v. 05.12.2009Württembergische Lebensversicherung AG v. 01.07.2020Wüstenrot & Württembergische DC Pensionszusagen durch Gehaltsumwandlung v. ohne DatumWüstenrot & Württembergische Pensionskasse v. ohne DatumWüstenrot & Württembergische Pensionszusage LHB v. ohne DatumWWK v. 01.08.2014ZF Friedrichshafen ZF-Rente v. 02.11.2010ZF-MP Altersversorgung e.V. beitragsorientierte Versorgungezusage v. 01.06.2011Zurich v. 01.02.2013Zurich Deutsche Herold Unterstützungskasse v. 19.05.2016Zurich Deutscher Herold v. 01.01.2015Zurich Deutscher Herold v. 19.05.2016Zweite real SB Warenhaus GmbH v. 01.07.2012
A7: ACE European Group Limiteted v. 01.09.2009 | B7: =ROW() -> 7 | C7: ACE European Group Limiteted | D7: 2009-09-01 | E7: § 4 | P7: 0 | S7: =IFERROR(SEARCH(MID(+Fallerfassung!D27,1,5),S$6),1) -> 1
A8: Adler Modemaerkte Versorgungswerk e.V. v. 01.01.2019 | B8: =ROW() -> 8 | C8: Adler Modemaerkte Versorgungswerk e.V. | D8: 2019-01-01 | E8: 5.3. | G8: TO ermöglicht: doppelten Kostenabzug; | L8: 2 | O8: Unterlagen für Familiengerichte zur Berechnung des Versorgungsausgleichs (hpv-versorgungsausgleich.de) | P8: 2 | S8: =IFERROR(SEARCH(MID(+Fallerfassung!D28,1,5),S$6),1) -> 1
A9: allfrisch Unterstuetzungskasse e.V v. 28.12.2017 | B9: =ROW() -> 9 | C9: allfrisch Unterstuetzungskasse e.V | D9: 2017-12-28 | E9: Ziff. 5.3 | G9: TO ermöglicht: doppelten Kostenabzug; | L9: 2 | O9: Unterlagen für Familiengerichte zur Berechnung des Versorgungsausgleichs (hpv-versorgungsausgleich.de) | P9: 2 | S9: =IFERROR(SEARCH(MID(+Fallerfassung!D29,1,5),S$6),1) -> 1
A10: Allianz KBV Harmonisierung BPV v. 07.01.2010 | B10: =ROW() -> 10 | C10: Allianz KBV Harmonisierung BPV | D10: 2010-01-07 | P10: 0 | S10: =IFERROR(SEARCH(MID(+Fallerfassung!D30,1,5),S$6),1) -> 1
A11: Allianz Klinik-Rente v. 01.12.2012 | B11: =ROW() -> 11 | C11: Allianz Klinik-Rente | D11: 2012-12-01 | E11: Ziff. 5 a) | G11: TO ermöglicht: doppelten Kostenabzug; | J11: 1 | L11: 2 | O11: Unterlagen für Familiengerichte zur Berechnung des Versorgungsausgleichs (hpv-versorgungsausgleich.de) | P11: 2 | S11: =IFERROR(SEARCH(MID(+Fallerfassung!D31,1,5),S$6),1) -> 1
A12: Allianz Lebensversicherung AG (Klinik-Rente) v. 01.12.2012 | B12: =ROW() -> 12 | C12: Allianz Lebensversicherung AG (Klinik-Rente) | D12: 2012-12-01 | E12: Ziff. 5 gg) | F12: Ja | G12: TO ermöglicht: Tarifwechel; doppelten Kostenabzug; | K12: 1 | L12: 2 | O12: TO-KR-KLAS_2012-12-01_abgestimmt.doc (allianz.de) | P12: 3 | S12: =IFERROR(SEARCH(MID(+Fallerfassung!D32,1,5),S$6),1) -> 1
A13: Allianz Lebensversicherung AG v. 01.12.2012 | B13: =ROW() -> 13 | C13: Allianz Lebensversicherung AG | D13: 2012-12-01 | E13: 5 c) aa) | F13: Ja | G13: TO ermöglicht: Tarifwechel; doppelten Kostenabzug; Abweichungen vom gerichtl. festgelegten Ausgleichswert; Verzinsung zwischen EzE und RK geltend machen | J13: OLG FfM - 4 UF 86/17 - | K13: 1 | L13: 2 | M13: 3 | N13: 4 | P13: 10 | S13: =IFERROR(SEARCH(MID(+Fallerfassung!D33,1,5),S$6),1) -> 1
A14: Allianz Lebensversicherung AG v. 01.12.2018 | C14: Allianz Lebensversicherung AG | D14: 2018-12-01 | E14: 5 b) | F14: Ja | G14: TO ermöglicht: Tarifwechel; doppelten Kostenabzug; Verzinsung zwischen EzE und RK geltend machen | K14: 1 | L14: 2 | N14: 4
A15: Allianz Lebensversicherung AG v. 01.12.2020 | B15: =ROW() -> 15 | C15: Allianz Lebensversicherung AG | D15: 2020-12-01 | E15: 4.3. | G15: TO ermöglicht: doppelten Kostenabzug; Abweichungen vom gerichtl. festgelegten Ausgleichswert; Verzinsung zwischen EzE und RK geltend machen | L15: 2 | M15: 3 | N15: 4 | P15: 9 | S15: =IFERROR(SEARCH(MID(+Fallerfassung!D34,1,5),S$6),1) -> 1
A16: Allianz Lebensversicherung AG v. 21.07.2021 | B16: =ROW() -> 16 | C16: Allianz Lebensversicherung AG | D16: 2021-07-21 | G16: TO ermöglicht: doppelten Kostenabzug; | L16: 2 | P16: 2 | S16: =IFERROR(SEARCH(MID(+Fallerfassung!D35,1,5),S$6),1) -> 1
A17: Allianz Lebensversicherungs AG v. 01.09.2009 | B17: =ROW() -> 17 | C17: Allianz Lebensversicherungs AG | D17: 2009-09-01 | E17: 5. | F17: Ja | G17: TO ermöglicht: Tarifwechel; doppelten Kostenabzug; Abweichungen vom gerichtl. festgelegten Ausgleichswert; Verzinsung zwischen EzE und RK geltend machen | I17: Navh Ziff. 5.c)dd) wird der AusglWert bei bestehendem "gleichartigen" Vertrag diesem gutgeschrieben | K17: 1 | L17: 2 | M17: 3 | N17: 4 | P17: 10 | S17: =IFERROR(SEARCH(MID(+Fallerfassung!D36,1,5),S$6),1) -> 1
A18: Allianz Lebensversicherungs-AG v. 01.07.2010 | B18: =ROW() -> 18 | C18: Allianz Lebensversicherungs-AG | D18: 2010-07-01 | E18: 5 | F18: Ja | G18: TO ermöglicht: Tarifwechel; doppelten Kostenabzug; Abweichungen vom gerichtl. festgelegten Ausgleichswert; | K18: 1 | L18: 2 | M18: 3 | S18: =IFERROR(SEARCH(MID(+Fallerfassung!D37,1,5),S$6),1) -> 1
A19: Allianz LV v. 01.02.2010 | B19: =ROW() -> 19 | C19: Allianz LV | D19: 2010-02-01 | E19: 5 | F19: Ja | G19: TO ermöglicht: Tarifwechel; doppelten Kostenabzug; Abweichungen vom gerichtl. festgelegten Ausgleichswert; Verzinsung zwischen EzE und RK geltend machen | I19: Zusammenfassung mehrerer AusglW der ausglpfl Person zu einer Neuversicherung der ausglber P möglich (5.c)dd)) | K19: 1 | L19: 2 | M19: 3 | N19: 4 | P19: =SUM(K19:N19) -> 10 | S19: =IFERROR(SEARCH(MID(+Fallerfassung!D38,1,5),S$6),1) -> 1
A20: Allianz-Pensions-Management e.V. v. 21.12.2009 | B20: =ROW() -> 20 | C20: Allianz-Pensions-Management e.V. | D20: 2009-12-21 | E20: § 4 | G20: TO ermöglicht: doppelten Kostenabzug; Abweichungen vom gerichtl. festgelegten Ausgleichswert; Verzinsung zwischen EzE und RK geltend machen | I20: Der Zeitpunkt der Begründung des Anrechts z.G. d. ausglber. Person bleibt unklar, weswegen Verzinsung klarstellend geltend zu machen ist. | L20: 2 | M20: 3 | N20: 4 | P20: 9
A21: Allianz Pensionskasse v. 01.12.2020 | B21: =ROW() -> 21 | C21: Allianz Pensionskasse | D21: 2020-12-01 | E21: Ziff. 4 | G21: TO ermöglicht: Abweichungen vom gerichtl. festgelegten Ausgleichswert; Verzinsung zwischen EzE und RK geltend machen | I21: Nach Ziff. 2.2 wird der Ausgleichswert bei lfd. Renten gem. BGH XII ZB 447/13 bestimmt. Das Gericht muss das bewerten u. kontrollieren. | M21: 3 | N21: 4
A22: Alte Leipziger Lebensversicherung auf Gegenseitigkeit v. 01.04.2010 | B22: =ROW() -> 22 | C22: Alte Leipziger Lebensversicherung auf Gegenseitigkeit | D22: 2010-04-01 | E22: Nr. 5 3.SpStrich | F22: Ja | G22: TO ermöglicht: Tarifwechel; doppelten Kostenabzug; Verzinsung zwischen EzE und RK geltend machen | K22: 1 | L22: 2 | N22: 4 | P22: 7
A23: Alz Chemie v. 05.11.2011 | B23: =ROW() -> 23 | C23: Alz Chemie | D23: 2011-11-05 | E23: § 7 | P23: 0
A24: Ärzteversorgung Hessen (LÄK) v. Datum unbekannt | B24: =ROW() -> 24 | C24: Ärzteversorgung Hessen (LÄK) | D24: Datum unbekannt | P24: 0
A25: Athora AG Pensionskasse & Lebensversicherung v. 11.09.2019 | B25: =ROW() -> 25 | C25: Athora AG Pensionskasse & Lebensversicherung | D25: 2019-09-11 | E25: Ziff. 2 Abs. 1 S. 2 | G25: TO ermöglicht: doppelten Kostenabzug; Verzinsung zwischen EzE und RK geltend machen | L25: 2 | N25: 4 | P25: 6
A26: Athora Lebensversicherung AG v. 11.09.2019 | B26: =ROW() -> 26 | C26: Athora Lebensversicherung AG | D26: 2019-09-11 | E26: Ziff. 2 Abs. 1 S. 2 | F26: Ja | G26: TO ermöglicht: Tarifwechel; | K26: 1 | P26: 1
A27: AXA Leben v. 01.06.2020 | B27: =ROW() -> 27 | C27: AXA Leben | D27: 2020-06-01 | E27: Ziff. 5 | F27: Ja | G27: TO ermöglicht: Tarifwechel; doppelten Kostenabzug; Abweichungen vom gerichtl. festgelegten Ausgleichswert; Verzinsung zwischen EzE und RK geltend machen | K27: 1 | L27: 2 | M27: 3 | N27: 4
A28: AXA Leben v. 01.05.2020 | B28: =ROW() -> 28 | C28: AXA Leben | D28: 2020-05-01 | E28: Ziff. 5 | F28: Ja | G28: TO ermöglicht: Tarifwechel; doppelten Kostenabzug; Verzinsung zwischen EzE und RK geltend machen | K28: 1 | L28: 2 | N28: 4
A29: AXA Leben v. 01.08.2020 | B29: =ROW() -> 29 | C29: AXA Leben | D29: 2020-08-01 | E29: Ziff. 5 3. SpStrich | F29: =IF(K29=1,"Ja","") -> Ja | G29: TO ermöglicht: Tarifwechel; | J29: OLG Schleswig FamRZ 2014, 1113; OLG Stuttgart, Beschluss vom 31.10.2014 - 15 UF 113/14 | K29: 1 | P29: =SUM(K29:N29) -> 1
A30: AXA Überbetriebliche Unterstützungskasse e.V. v. 01.01.2018 | B30: =ROW() -> 30 | C30: AXA Überbetriebliche Unterstützungskasse e.V. | D30: 2018-01-01 | F30: Ja | G30: TO ermöglicht: Tarifwechel; doppelten Kostenabzug; Abweichungen vom gerichtl. festgelegten Ausgleichswert; Verzinsung zwischen EzE und RK geltend machen | K30: 1 | L30: 2 | M30: 3 | N30: 4 | P30: 10
A31: Baden-Badener Pensionskasse v. 30.11.2009 | B31: =ROW() -> 31 | C31: Baden-Badener Pensionskasse | D31: 2009-11-30 | P31: 0
A32: Baloise Lebensversicherung AG Deutschland v. 01.10.2009 | B32: =ROW() -> 32 | C32: Baloise Lebensversicherung AG Deutschland | D32: 2009-10-01 | E32: 6 | F32: Ja | G32: TO ermöglicht: Tarifwechel; doppelten Kostenabzug; Abweichungen vom gerichtl. festgelegten Ausgleichswert; Verzinsung zwischen EzE und RK geltend machen | K32: 1 | L32: 2 | M32: 3 | N32: 4 | P32: 10
A33: BASF Pensionskasse VVaG v. 01.07.2019 | B33: =ROW() -> 33 | C33: BASF Pensionskasse VVaG | D33: 2019-07-01 | E33: §32a | P33: 0
A34: BASF SE v. 01.07.2019 | B34: =ROW() -> 34 | C34: BASF SE | D34: 2019-07-01 | E34: § 18 | P34: 0
A35: Bayerischer Rundfunk Tarifvertrag v. 01.12.2009 | B35: =ROW() -> 35 | C35: Bayerischer Rundfunk Tarifvertrag | D35: 2009-12-01 | P35: 0
A36: Bayern-Versicherung LV AG v. 12.12.2020 | B36: =ROW() -> 36 | C36: Bayern-Versicherung LV AG | D36: 2020-12-12 | F36: Ja | G36: TO ermöglicht: Tarifwechel; doppelten Kostenabzug; Abweichungen vom gerichtl. festgelegten Ausgleichswert; | K36: 1 | L36: 2 | M36: 3 | P36: 6
A37: =C37&IF(D37=0,""," v. "&TEXT(D37,"TT.MM.JJJ")) -> Bayern-Versicherung LV AG v. 22.10.2022 | B37: =ROW() -> 37 | C37: Bayern-Versicherung LV AG | D37: 2022-10-22 | E37: IV | F37: Ja | G37: TO ermöglicht: Tarifwechel; doppelten Kostenabzug; Verzinsung zwischen EzE und RK geltend machen | K37: 1 | L37: 2 | N37: 4
A38: BKK Mobil Oil v. 01.09.2009 | B38: =ROW() -> 38 | C38: BKK Mobil Oil | D38: 2009-09-01 | E38: 5.3. | G38: TO ermöglicht: doppelten Kostenabzug; | L38: 2 | O38: Unterlagen für Familiengerichte zur Berechnung des Versorgungsausgleichs (hpv-versorgungsausgleich.de) | P38: 2
A39: BKK VBU 2012 kongruent TO v. 01.11.2012 | B39: =ROW() -> 39 | C39: BKK VBU 2012 kongruent TO | D39: 2012-11-01 | E39: Ziff. 5.3. | G39: TO ermöglicht: doppelten Kostenabzug; | L39: 2 | O39: Unterlagen für Familiengerichte zur Berechnung des Versorgungsausgleichs (hpv-versorgungsausgleich.de) | P39: 2
A40: BKK VBU 2012 partiell TO v. 01.11.2012 | B40: =ROW() -> 40 | C40: BKK VBU 2012 partiell TO | D40: 2012-11-01 | E40: Ziff. 5.3. | G40: TO ermöglicht: doppelten Kostenabzug; | L40: 2 | O40: Unterlagen für Familiengerichte zur Berechnung des Versorgungsausgleichs (hpv-versorgungsausgleich.de) | P40: 2
A41: BKK VBU kongruent v. 01.11.2012 | B41: =ROW() -> 41 | C41: BKK VBU kongruent | D41: 2012-11-01 | E41: 5,3. | G41: TO ermöglicht: doppelten Kostenabzug; | L41: 2 | O41: Unterlagen für Familiengerichte zur Berechnung des Versorgungsausgleichs (hpv-versorgungsausgleich.de) | P41: 2
A42: BKK VBU partiell v. 01.11.2012 | B42: =ROW() -> 42 | C42: BKK VBU partiell | D42: 2012-11-01 | E42: 5.4. | G42: TO ermöglicht: doppelten Kostenabzug; | L42: 2 | O42: Unterlagen für Familiengerichte zur Berechnung des Versorgungsausgleichs (hpv-versorgungsausgleich.de) | P42: 2
A43: Bochumer Verband - Arbeitgeberfinanzierte Versorg. v. 01.09.2009 | B43: =ROW() -> 43 | C43: Bochumer Verband - Arbeitgeberfinanzierte Versorg. | D43: 2009-09-01 | E43: § 25 | G43: TO ermöglicht: doppelten Kostenabzug; Abweichungen vom gerichtl. festgelegten Ausgleichswert; | L43: 2 | M43: 3 | P43: 5
A44: Bochumer Verband - Entgeldumwandlung v. 01.09.2009 | B44: =ROW() -> 44 | C44: Bochumer Verband - Entgeldumwandlung | D44: 2009-09-01 | E44: § 25 | G44: TO ermöglicht: doppelten Kostenabzug; Abweichungen vom gerichtl. festgelegten Ausgleichswert; | L44: 2 | M44: 3 | P44: 5
A45: Boehringer Ingelheim KG v. 01.07.2021 | B45: =ROW() -> 45 | C45: Boehringer Ingelheim KG | D45: 2021-07-01 | E45: 5.3. | G45: TO ermöglicht: doppelten Kostenabzug; | L45: 2 | P45: 2
A46: Boge Elastmetall Unterstützungskasse e.V. v. 01.01.2018 | B46: =ROW() -> 46 | C46: Boge Elastmetall Unterstützungskasse e.V. | D46: 2018-01-01 | E46: 5.3. | G46: TO ermöglicht: doppelten Kostenabzug; | L46: 2 | O46: Unterlagen für Familiengerichte zur Berechnung des Versorgungsausgleichs (hpv-versorgungsausgleich.de) | P46: 2
A47: Bombardier_TransportationTO v. 01.09.2009 | B47: =ROW() -> 47 | C47: Bombardier_TransportationTO | D47: 2009-09-01 | E47: Ziff. 5.3. | G47: TO ermöglicht: doppelten Kostenabzug; | L47: 2 | O47: Unterlagen für Familiengerichte zur Berechnung des Versorgungsausgleichs (hpv-versorgungsausgleich.de) | P47: 2
A48: BP Europa SE v. 01.09.2009 | B48: =ROW() -> 48 | C48: BP Europa SE | D48: 2009-09-01 | E48: Ziff. 5.3. | G48: TO ermöglicht: doppelten Kostenabzug; | I48: Bei Invalidität der ausglber. Person im Zeitpunkt der Begründung des Anrechts wird Invaliditätsrente gewährt (Ziff. 5.2.) | L48: 2 | P48: 2
A49: BVV, Banken Versicherungs Verein v. 01.07.2016 | B49: =ROW() -> 49 | C49: BVV, Banken Versicherungs Verein | D49: 2016-07-01 | E49: Ziff. 7 | G49: TO ermöglicht: doppelten Kostenabzug; Verzinsung zwischen EzE und RK geltend machen | I49: =+J49 -> OLG FfM 4 UF 49/17 | J49: OLG FfM 4 UF 49/17 | L49: 2 | N49: 4 | O49: Unterlagen für Familiengerichte zur Berechnung des Versorgungsausgleichs (hpv-versorgungsausgleich.de) | P49: 6
A50: C & A Services GmbH & Co. OHG v. 01.02.2017 | B50: =ROW() -> 50 | C50: C & A Services GmbH & Co. OHG | D50: 2017-02-01 | E50: § 3 Ziff. 4, 6 | G50: TO ermöglicht: Verzinsung zwischen EzE und RK geltend machen | N50: 4 | P50: 4
A51: Carl Zeiss AG v. 27.10.2016 | B51: =ROW() -> 51 | C51: Carl Zeiss AG | D51: 2016-10-27 | E51: § 7 | I51: Die TO folgt der familiengerichtlichen Tenorierung in § 7. Allenfalls ist die Teilhabe zwischen EzE und RK an der Wertentwicklung des Anrechts zu prüfen.
A52: Continental | B52: =ROW() -> 52 | C52: Continental | F52: Ja | G52: TO ermöglicht: Tarifwechel; | K52: 1 | P52: 1
A53: COOP eG Gesamr Versorgungsrichtlinie v. 01.09.2009 | B53: =ROW() -> 53 | C53: COOP eG Gesamr Versorgungsrichtlinie | D53: 2009-09-01 | E53: 5.3. | G53: TO ermöglicht: doppelten Kostenabzug; | L53: 2 | O53: Unterlagen für Familiengerichte zur Berechnung des Versorgungsausgleichs (hpv-versorgungsausgleich.de) | P53: 2
A54: COOP Schleswig Holstein Rentenzuschusskasse v. 01.01.2019 | B54: =ROW() -> 54 | C54: COOP Schleswig Holstein Rentenzuschusskasse | D54: 2019-01-01 | E54: 5.3. | G54: TO ermöglicht: doppelten Kostenabzug; | L54: 2 | O54: Unterlagen für Familiengerichte zur Berechnung des Versorgungsausgleichs (hpv-versorgungsausgleich.de) | P54: 2
A55: Cosmos Direkt v. 01.01.2010 | B55: =ROW() -> 55 | C55: Cosmos Direkt | D55: 2010-01-01 | E55: 5.3.SpStrich | F55: Ja | G55: TO ermöglicht: Tarifwechel; doppelten Kostenabzug; Abweichungen vom gerichtl. festgelegten Ausgleichswert; Verzinsung zwischen EzE und RK geltend machen | K55: 1 | L55: 2 | M55: 3 | N55: 4 | P55: 10
A56: CSM Deutschland GmbH v. 01.07.2021 | B56: =ROW() -> 56 | C56: CSM Deutschland GmbH | D56: 2021-07-01 | E56: 5.3. | G56: TO ermöglicht: doppelten Kostenabzug; | L56: 2 | O56: Unterlagen für Familiengerichte zur Berechnung des Versorgungsausgleichs (hpv-versorgungsausgleich.de) | P56: 2
A57: DAG Stiftung Ruhegehaltskasse v. 10.12.2015 | B57: =ROW() -> 57 | C57: DAG Stiftung Ruhegehaltskasse | D57: 2015-12-10 | E57: § 5 | G57: TO ermöglicht: doppelten Kostenabzug; | L57: 2 | O57: Teilungsordnung. Inhaltsverzeichnis. Vorwort. 1 Anwendungsbereich. 2 Form des Versorgungsausgleichs. 3 Bestimmung des Ausgleichswertes - PDF Kostenfreier Download (docplayer.org) | P57: 2
A58: Daimler Brand & IP Management GmbH & Co.KG v. 01.04.2021 | B58: =ROW() -> 58 | C58: Daimler Brand & IP Management GmbH & Co.KG | D58: 2021-04-01 | E58: 3.1. | G58: TO ermöglicht: doppelten Kostenabzug; Verzinsung zwischen EzE und RK geltend machen | I58: Einstellung der Leistung ab Kenntnis d. Scheidungsverf. unzulässig (Ziff. 3.1.) | L58: 2 | N58: 4 | P58: 6
A59: Daimler Truck AG v. 01.04.2021 | B59: =ROW() -> 59 | C59: Daimler Truck AG | D59: 2021-04-01 | E59: 3.1. | G59: TO ermöglicht: doppelten Kostenabzug; Verzinsung zwischen EzE und RK geltend machen | I59: Einstellung der Leistung ab Kenntnis d. Scheidungsverf. unzulässig (Ziff. 3.1.) | L59: 2 | N59: 4 | P59: 6
A60: Daimler Vorsorge Kapital Teilungsordnung v. 01.04.2021 | B60: =ROW() -> 60 | C60: Daimler Vorsorge Kapital Teilungsordnung | D60: 2021-04-01 | E60: 3.1. | G60: TO ermöglicht: doppelten Kostenabzug; Verzinsung zwischen EzE und RK geltend machen | I60: Einstellung der Leistung ab Kenntnis d. Scheidungsverf. unzulässig (Ziff. 3.1.) | L60: 2 | N60: 4 | P60: 6
A61: DAK Hamburg v. 01.01.2022 | B61: =ROW() -> 61 | C61: DAK Hamburg | D61: 2022-01-01 | E61: § 4 | G61: TO ermöglicht: Abweichungen vom gerichtl. festgelegten Ausgleichswert; Verzinsung zwischen EzE und RK geltend machen | M61: 3 | N61: 4 | P61: 7
A62: DAK Hamburg v. 10.07.2013 | B62: =ROW() -> 62 | C62: DAK Hamburg | D62: 2013-07-10 | E62: 5. | G62: TO ermöglicht: doppelten Kostenabzug; Abweichungen vom gerichtl. festgelegten Ausgleichswert; Verzinsung zwischen EzE und RK geltend machen | I62: TO sieht in Ziff. 9. ausdrücklich eigenmächtige Änderungen des Ausgleichswerts gegenüber dem tenorierten Ausgleichswert vor | L62: 2 | M62: 3 | N62: 4 | P62: 9
A63: Damovo Deutschland GmbH & Co. KG v. 24.08.2009 | B63: =ROW() -> 63 | C63: Damovo Deutschland GmbH & Co. KG | D63: 2009-08-24 | G63: TO ermöglicht: doppelten Kostenabzug; | L63: 2 | P63: 2
A64: Debeka Lebensversicherungsverein a.G. v. 01.08.2020 | B64: =ROW() -> 64 | C64: Debeka Lebensversicherungsverein a.G. | D64: 2020-08-01 | E64: 5.3. SpStrich | F64: Ja | G64: TO ermöglicht: Tarifwechel; doppelten Kostenabzug; Abweichungen vom gerichtl. festgelegten Ausgleichswert; Verzinsung zwischen EzE und RK geltend machen | K64: 1 | L64: 2 | M64: 3 | N64: 4 | P64: 10
A65: Debeka Lebensversicherungsverein a.G. AltZertG-Verträge v. 01.01.2017 | B65: =ROW() -> 65 | C65: Debeka Lebensversicherungsverein a.G. AltZertG-Verträge | D65: 2017-01-01 | E65: 5. 3.SpStrich | F65: Ja | G65: TO ermöglicht: Tarifwechel; doppelten Kostenabzug; Abweichungen vom gerichtl. festgelegten Ausgleichswert; Verzinsung zwischen EzE und RK geltend machen | K65: 1 | L65: 2 | M65: 3 | N65: 4 | P65: 10
A66: Debeka ZVK VaG Tarif ZVD 7 v. 79-2021 | B66: =ROW() -> 66 | C66: Debeka ZVK VaG Tarif ZVD 7 | D66: 79-2021 | E66: Ziff 5 | N66: 4
A67: Decadia GmbH v. 16.09.2016 | B67: =ROW() -> 67 | C67: Decadia GmbH | D67: 2016-09-16 | E67: 5 | P67: 0
A68: Degussa Pensionskasse Marl Troisdorf v. 01.07.2016 | B68: =ROW() -> 68 | C68: Degussa Pensionskasse Marl Troisdorf | D68: 2016-07-01 | E68: § 30 | G68: TO ermöglicht: Verzinsung zwischen EzE und RK geltend machen | N68: 4 | P68: 4
A69: Degussa Pensionskasse Riester-Tarif v. 01.06.2016 | B69: =ROW() -> 69 | C69: Degussa Pensionskasse Riester-Tarif | D69: 2016-06-01 | E69: § 9 Ziff 5 | G69: TO ermöglicht: Verzinsung zwischen EzE und RK geltend machen | N69: 4 | P69: 4
A70: Degussa Pensionskasse v. 01.06.2016 | B70: =ROW() -> 70 | C70: Degussa Pensionskasse | D70: 2016-06-01 | E70: § 12 Ziff. 5 | G70: TO ermöglicht: Verzinsung zwischen EzE und RK geltend machen | N70: 4 | P70: 4
A71: Degussa UK Leistungsplan RUK v. 01.07.2018 | B71: =ROW() -> 71 | C71: Degussa UK Leistungsplan RUK | D71: 2018-07-01 | E71: § 7 Abs. 5 | G71: TO ermöglicht: Verzinsung zwischen EzE und RK geltend machen | N71: 4 | P71: 4
A72: Degussa UK Leistungsplan RUK vor 2018 | B72: =ROW() -> 72 | C72: Degussa UK Leistungsplan RUK vor 2018 | E72: § 7 Abs. 5 | G72: TO ermöglicht: Verzinsung zwischen EzE und RK geltend machen | N72: 4 | P72: 4
A73: Deka-BonusRente | B73: =ROW() -> 73 | C73: Deka-BonusRente | E73: Ziff. 5 | F73: Ja | G73: TO ermöglicht: Tarifwechel; doppelten Kostenabzug; Verzinsung zwischen EzE und RK geltend machen | K73: 1 | L73: 2 | N73: 4 | O73: Seite 1 von 4 Teilungsordnung der Dekabank für ... (yumpu.com) | P73: 7
A74: Deka-ZukunftsPlan | B74: =ROW() -> 74 | C74: Deka-ZukunftsPlan | E74: Ziff. 5 | F74: Ja | G74: TO ermöglicht: Tarifwechel; doppelten Kostenabzug; Verzinsung zwischen EzE und RK geltend machen | K74: 1 | L74: 2 | N74: 4 | O74: Seite 1 von 4 Teilungsordnung der Dekabank für ... (yumpu.com) | P74: 7
A75: Deka-Zukunftsplan und BonusRente v. 01.01.2019 | B75: =ROW() -> 75 | C75: Deka-Zukunftsplan und BonusRente | D75: 2019-01-01 | E75: Ziff. 5 | F75: Ja | G75: TO ermöglicht: Tarifwechel; doppelten Kostenabzug; Verzinsung zwischen EzE und RK geltend machen | I75: Die TO fordert unzulässigerweise den Neuabschluss eines Vertrages bei gleichzeitiger freier Auswahl des Produktes d.d. ausglber. Person. Ziff. 7 sieht die Befolgung anderweitiger gerichtlicher Anordnungen vor. | K75: 1 | L75: 2 | N75: 4 | P75: 7
A76: Delta Lloyd Lebensversicherung | B76: =ROW() -> 76 | C76: Delta Lloyd Lebensversicherung | E76: 5.1. Abs.3 | F76: =IF(K76=1,"Ja","") -> Ja | G76: TO ermöglicht: Tarifwechel; | K76: 1 | O76: Tätigkeitsplan für die Teilung von Lebensversicherungen auf Grundlage des Gesetzes zur Strukturreform des Versorgungsausgleichs (Teilungsordnung) - PDF Kostenfreier Download (docplayer.org) | P76: 1
A77: =C77&IF(D77=0,""," v. "&TEXT(D77,"TT.MM.JJJ")) -> Delta Lloyd Pensionskasse | B77: =ROW() -> 77 | C77: Delta Lloyd Pensionskasse | E77: 5.1. Abs.3 | F77: =IF(K77=1,"Ja","") -> Ja | G77: =IF(SUM(K77:N77)=0,"","TO ermöglicht: "&IF(K77>0,"Tarifwechel; ","")&IF(L77>0,"doppelten Kostenabzug; ","")&IF(M77>0," Abweichungen vom gerichtl. festgelegten Ausgleichswert; ","")&IF(N77>0," Verzinsung zwischen EzE und RK geltend machen","")) -> TO ermöglicht: Tarifwechel; | K77: 1 | O77: Tätigkeitsplan für die Teilung von Lebensversicherungen auf Grundlage des Gesetzes zur Strukturreform des Versorgungsausgleichs (Teilungsordnung) - PDF Kostenfreier Download (docplayer.org) | P77: 1
A78: Deutsche Ärzteversicherung AG v. 01.05.2020 | B78: =ROW() -> 78 | C78: Deutsche Ärzteversicherung AG | D78: 2020-05-01 | E78: 5 | F78: Ja | G78: TO ermöglicht: Tarifwechel; doppelten Kostenabzug; Verzinsung zwischen EzE und RK geltend machen | K78: 1 | L78: 2 | N78: 4 | P78: 7
A79: Deutsche Bank v. 01.04.2016 | B79: =ROW() -> 79 | C79: Deutsche Bank | D79: 2016-04-01 | E79: Ziff. 5.2.2.1. | F79: =IF(K79=1,"Ja","") ->  | P79: 0
A80: Deutsche Bank v. 01.07.2021 | B80: =ROW() -> 80 | C80: Deutsche Bank | D80: 2021-07-01 | G80: TO ermöglicht: doppelten Kostenabzug; | L80: 2 | P80: 2
A81: Deutsche Fertighaus Holding UK DFH v. 01.09.2009 | B81: =ROW() -> 81 | C81: Deutsche Fertighaus Holding UK DFH | D81: 2009-09-01 | E81: 5.3. | G81: TO ermöglicht: doppelten Kostenabzug; | L81: 2 | O81: Unterlagen für Familiengerichte zur Berechnung des Versorgungsausgleichs (hpv-versorgungsausgleich.de) | P81: 2
A82: Deutsche Flugsicherung v. 09.12.2016 | B82: =ROW() -> 82 | C82: Deutsche Flugsicherung | D82: 2016-12-09 | E82: 6. | G82: TO ermöglicht: Abweichungen vom gerichtl. festgelegten Ausgleichswert; | M82: 3 | P82: 3
A83: Deutsche See v. 01.09.2009 | B83: =ROW() -> 83 | C83: Deutsche See | D83: 2009-09-01 | E83: 5.3. | G83: TO ermöglicht: doppelten Kostenabzug; | L83: 2 | O83: Unterlagen für Familiengerichte zur Berechnung des Versorgungsausgleichs (hpv-versorgungsausgleich.de) | P83: 2
A84: Deutsche Telekom AG v. 01.07.2022 | B84: =ROW() -> 84 | C84: Deutsche Telekom AG | D84: 2022-07-01 | G84: TO ermöglicht: doppelten Kostenabzug; Abweichungen vom gerichtl. festgelegten Ausgleichswert; | L84: 2 | M84: 3 | P84: 5
A85: Deutsche Telekom KBV bAV AT v. 19.03.2021 | B85: =ROW() -> 85 | C85: Deutsche Telekom KBV bAV AT | D85: 2021-03-19 | G85: TO ermöglicht: doppelten Kostenabzug; Verzinsung zwischen EzE und RK geltend machen | L85: 2 | N85: 4 | P85: 6
A86: Deutsche Telekom TV Kapitalkontenplan v. 01.02.2022 | B86: =ROW() -> 86 | C86: Deutsche Telekom TV Kapitalkontenplan | D86: 2022-02-01 | I86: BilMoG-7 Zins bis ezE 31.12.2015 danach BilMoG-10 / HR-, IR-Rente Anwartsschaftsdyn. 1% daher sVA möglich; Verzinsung d. AusglWerts bei ext.Teilung beantragen! Nach Ziff. 5.2.2.1 doppelter Kostenabzug möglich | P86: 0
A87: Deutsche Welle Tarifvertrag v. 06.12.2009 | B87: =ROW() -> 87 | C87: Deutsche Welle Tarifvertrag | D87: 2009-12-06 | P87: 0
A88: Deutscher Pensionsfonds AG v. 01.01.2013 | B88: =ROW() -> 88 | C88: Deutscher Pensionsfonds AG | D88: 2013-01-01 | F88: Ja | G88: TO ermöglicht: Tarifwechel; Verzinsung zwischen EzE und RK geltend machen | K88: 1 | N88: 4 | P88: 5
A89: Deutscher Pensionsfonds AG v. 06.12.2020 | B89: =ROW() -> 89 | C89: Deutscher Pensionsfonds AG | D89: 2020-12-06 | E89: 5.2, 5.3 und 5.4 | G89: TO ermöglicht: doppelten Kostenabzug; Abweichungen vom gerichtl. festgelegten Ausgleichswert; Verzinsung zwischen EzE und RK geltend machen | I89: TO sieht in Ziff. 7 ausdrücklich das Primat der familiengerichtlichen Entscheidung vor. Der Zeitpunkt der Begründung der Versorgung ist nicht definiert. | L89: 2 | M89: 3 | N89: 4 | O89: Unverbindliches Muster einer (deutscher-pensionsfonds.com) | P89: 9
A90: Deutschlandradio Tarifvertrag v. 10.12.2009 | B90: =ROW() -> 90 | C90: Deutschlandradio Tarifvertrag | D90: 2009-12-10 | P90: 0
A91: DFS Deutsche Flugsicherung v. 09.12.2016 | B91: =ROW() -> 91 | C91: DFS Deutsche Flugsicherung | D91: 2016-12-09 | E91: 10.3 | G91: TO ermöglicht: Abweichungen vom gerichtl. festgelegten Ausgleichswert; | M91: 3 | P91: 3
A92: Diamalt v. 01.07.2021 | B92: =ROW() -> 92 | C92: Diamalt | D92: 2021-07-01 | E92: 5.3. | G92: TO ermöglicht: doppelten Kostenabzug; | L92: 2 | P92: 2
A93: DINEA_Gastronomie_GmbH v. 01.07.2012 | B93: =ROW() -> 93 | C93: DINEA_Gastronomie_GmbH | D93: 2012-07-01 | E93: § 5.3. | G93: TO ermöglicht: doppelten Kostenabzug; | L93: 2 | O93: Unterlagen für Familiengerichte zur Berechnung des Versorgungsausgleichs (hpv-versorgungsausgleich.de) | P93: 2
A94: Diversey GmbH & Co. OHG v. 01.01.2010 | B94: =ROW() -> 94 | C94: Diversey GmbH & Co. OHG | D94: 2010-01-01 | E94: 5.3. | G94: TO ermöglicht: doppelten Kostenabzug; | L94: 2 | O94: Unterlagen für Familiengerichte zur Berechnung des Versorgungsausgleichs (hpv-versorgungsausgleich.de) | P94: 2
A95: DWS Investment GmbH Basisrentenverträge AltZertG v. 01.11.2018 | B95: =ROW() -> 95 | C95: DWS Investment GmbH Basisrentenverträge AltZertG | D95: 2018-11-01 | E95: 5 | F95: Ja | G95: TO ermöglicht: Tarifwechel; Abweichungen vom gerichtl. festgelegten Ausgleichswert; Verzinsung zwischen EzE und RK geltend machen | I95: Die TO begründet Mitwirkungspflichten der ausglber. Person an einem neuen Vertrag zu aktuellen Bedingungen! | K95: 1 | M95: 3 | N95: 4 | P95: 8
A96: DWS Investment v. 01.06.2022 | B96: =ROW() -> 96 | C96: DWS Investment | D96: 2022-06-01 | E96: 5. Abs. 1 | F96: Ja | G96: TO ermöglicht: Tarifwechel; | K96: 1 | O96: https://www.dws.de/de-DE/AssetDownload/Index/?filename=Teilungsordnung DWS Investment GmbH 2022 06.pdf&assetGuid=52ca4b21-2d03-4c79-9442-da45c9531d53&source=DWS | P96: 1
A97: EDEKA Handelsgesellschaft Nordbayern-Sachsen-Thüringen mbH v. 01.09.2009 | B97: =ROW() -> 97 | C97: EDEKA Handelsgesellschaft Nordbayern-Sachsen-Thüringen mbH | D97: 2009-09-01 | G97: TO ermöglicht: doppelten Kostenabzug; | L97: 2 | O97: Unterlagen für Familiengerichte zur Berechnung des Versorgungsausgleichs (hpv-versorgungsausgleich.de) | P97: =SUM(K97:N97) -> 2
A98: EDEKA Nordbayern-Schsen-Thüringen GmbH v. 01.09.2009 | B98: =ROW() -> 98 | C98: EDEKA Nordbayern-Schsen-Thüringen GmbH | D98: 2009-09-01 | E98: 5.3. | G98: TO ermöglicht: doppelten Kostenabzug; | L98: 2 | P98: 2
A99: EDEKA Rhein-Ruhr R11 R12 v. 01.09.2018 | B99: =ROW() -> 99 | C99: EDEKA Rhein-Ruhr R11 R12 | D99: 2018-09-01 | E99: 5.3. | G99: TO ermöglicht: doppelten Kostenabzug; | L99: 2 | O99: Unterlagen für Familiengerichte zur Berechnung des Versorgungsausgleichs (hpv-versorgungsausgleich.de) | P99: 2
A100: EDEKA Süd v. 01.09.2009 | B100: =ROW() -> 100 | C100: EDEKA Süd | D100: 2009-09-01 | E100: 5.3. | G100: TO ermöglicht: doppelten Kostenabzug; | L100: 2 | O100: Unterlagen für Familiengerichte zur Berechnung des Versorgungsausgleichs (hpv-versorgungsausgleich.de) | P100: 2
A101: EDEKA Südwest v. 01.09.2009 | B101: =ROW() -> 101 | C101: EDEKA Südwest | D101: 2009-09-01 | E101: 5.3. | G101: TO ermöglicht: doppelten Kostenabzug; | L101: 2 | O101: Unterlagen für Familiengerichte zur Berechnung des Versorgungsausgleichs (hpv-versorgungsausgleich.de) | P101: 2
A102: EDEKA Zentrale Handel und Produktion GmbH v. 01.07.2016 | B102: =ROW() -> 102 | C102: EDEKA Zentrale Handel und Produktion GmbH | D102: 2016-07-01 | E102: 5.3. | G102: TO ermöglicht: doppelten Kostenabzug; | L102: 2 | O102: Unterlagen für Familiengerichte zur Berechnung des Versorgungsausgleichs (hpv-versorgungsausgleich.de) | P102: 2
A103: Edelweiss GmbH & Co KG (EVO I und II) v. 01.07.2011 | B103: =ROW() -> 103 | C103: Edelweiss GmbH & Co KG (EVO I und II) | D103: 2011-07-01 | E103: 5 | G103: TO ermöglicht: doppelten Kostenabzug; | L103: 2 | P103: 2
A104: Edelweiss GmbH & Co KG (EVO) v. 22.12.2012 | B104: =ROW() -> 104 | C104: Edelweiss GmbH & Co KG (EVO) | D104: 2012-12-22 | E104: 5.3. | G104: TO ermöglicht: doppelten Kostenabzug; | L104: 2 | O104: Unterlagen für Familiengerichte zur Berechnung des Versorgungsausgleichs (hpv-versorgungsausgleich.de) | P104: 2
A105: Edelweiss GmbH & Co KG (UVO) v. 01.09.2009 | B105: =ROW() -> 105 | C105: Edelweiss GmbH & Co KG (UVO) | D105: 2009-09-01 | E105: 5.3. | G105: TO ermöglicht: doppelten Kostenabzug; | L105: 2 | O105: Unterlagen für Familiengerichte zur Berechnung des Versorgungsausgleichs (hpv-versorgungsausgleich.de) | P105: 2
A106: EKN Betriebs AG & Co. oHG: Direktzusagen v. 01.04.2017 | B106: =ROW() -> 106 | C106: EKN Betriebs AG & Co. oHG: Direktzusagen | D106: 2017-04-01 | E106: 5. | O106: Unterlagen für Familiengerichte zur Berechnung des Versorgungsausgleichs (hpv-versorgungsausgleich.de) | P106: 0
A107: ERGO Unterstützungskasse v. 01.03.2010 | B107: =ROW() -> 107 | C107: ERGO Unterstützungskasse | D107: 2010-03-01 | E107: 5 | G107: TO ermöglicht: doppelten Kostenabzug; | I107: TO sieht in § 7 ausdrücklich das Primat der familiengerichtlichen Entscheidung vor. Der Zeitpunkt der Begründung der Versorgung ist nicht definiert. | L107: 2 | P107: 2
A108: ERGO v. 16.01.2020 | B108: =ROW() -> 108 | C108: ERGO | D108: 2020-01-16 | E108: Ziff. 5 | F108: Ja | G108: TO ermöglicht: Tarifwechel; | K108: 1 | P108: 1
A109: ERGO v. 25.02.2020 | B109: =ROW() -> 109 | C109: ERGO | D109: 2020-02-25 | G109: TO ermöglicht: doppelten Kostenabzug; Abweichungen vom gerichtl. festgelegten Ausgleichswert; Verzinsung zwischen EzE und RK geltend machen | L109: 2 | M109: 3 | N109: 4 | P109: 9
A110: ERGO Pensionsfonds AG v. 18.08.2021 | B110: =ROW() -> 110 | C110: ERGO Pensionsfonds AG | D110: 2021-08-18 | E110: § 5 | F110: Ja | G110: TO ermöglicht: Tarifwechel; doppelten Kostenabzug; Verzinsung zwischen EzE und RK geltend machen | I110: Nach § 3 Ziff. 6 ist die Verzinsung des AusglW zwischen EzE und RK ausdrücklich vom Gerichtanzuordnen. | K110: 1 | L110: 2 | N110: 4
A111: =C111&IF(D111=0,""," v. "&TEXT(D111,"TT.MM.JJJ")) -> ERGO Lebensversicherung AG v. 12.01.2012 | B111: =ROW() -> 111 | C111: ERGO Lebensversicherung AG | D111: 2012-01-12 | F111: Ja | G111: TO ermöglicht: Tarifwechel; doppelten Kostenabzug; Verzinsung zwischen EzE und RK geltend machen | K111: 1 | L111: 2 | N111: 4
A112: Ernest & Young v. 12.04.2010 | B112: =ROW() -> 112 | C112: Ernest & Young | D112: 2010-04-12 | E112: § 6 (1) und (3) | G112: TO ermöglicht: doppelten Kostenabzug; Abweichungen vom gerichtl. festgelegten Ausgleichswert; Verzinsung zwischen EzE und RK geltend machen | L112: 2 | M112: 3 | N112: 4 | P112: 9
A113: Ernest & Young v. 22.07.2016 | B113: =ROW() -> 113 | C113: Ernest & Young | D113: 2016-07-22 | E113: § 5 | G113: TO ermöglicht: doppelten Kostenabzug; Verzinsung zwischen EzE und RK geltend machen | L113: 2 | N113: 4 | P113: 6
A114: Essener Verband v. 10.11.2009 | B114: =ROW() -> 114 | C114: Essener Verband | D114: 2009-11-10 | E114: Ziff. 7 | G114: TO ermöglicht: Verzinsung zwischen EzE und RK geltend machen | N114: 4 | P114: 4
A115: Essener Verband Leistungsordnung "A" v. 01.01.2012 | B115: =ROW() -> 115 | C115: Essener Verband Leistungsordnung "A" | D115: 2012-01-01 | E115: 7. | G115: TO ermöglicht: doppelten Kostenabzug; Abweichungen vom gerichtl. festgelegten Ausgleichswert; Verzinsung zwischen EzE und RK geltend machen | L115: 2 | M115: 3 | N115: 4 | P115: 9
A116: Esso Deutschland GmbH v. 09.02.2010 | B116: =ROW() -> 116 | C116: Esso Deutschland GmbH | D116: 2010-02-09 | E116: § 6 | G116: TO ermöglicht: doppelten Kostenabzug; Abweichungen vom gerichtl. festgelegten Ausgleichswert; | I116: Vorzeitige Inanspruchnahme mit rel. hohen Abschlag von 0,5% pro Monat vorzeitiger Inanspruchnahme | L116: 2 | M116: 3 | P116: 5
A117: Evonik v. 04.12.2009 | B117: =ROW() -> 117 | C117: Evonik | D117: 2009-12-04 | E117: § 11 | G117: TO ermöglicht: Verzinsung zwischen EzE und RK geltend machen | N117: 4 | P117: 4
A118: Evonik v. 15.05.2015 | B118: =ROW() -> 118 | C118: Evonik | D118: 2015-05-15 | E118: § 11 | P118: 0
A119: ExxonMobil Central Europe Holding GmbH v. 09.02.2010 | B119: =ROW() -> 119 | C119: ExxonMobil Central Europe Holding GmbH | D119: 2010-02-09 | E119: § 6 | G119: TO ermöglicht: doppelten Kostenabzug; Abweichungen vom gerichtl. festgelegten Ausgleichswert; | I119: Vorzeitige Inanspruchnahme mit rel. hohen Abschlag von 0,5% pro Monat vorzeitiger Inanspruchnahme | L119: 2 | M119: 3 | P119: 5
A120: ExxonMobil Gas Marketing Deuschland GmbH v. 09.02.2010 | B120: =ROW() -> 120 | C120: ExxonMobil Gas Marketing Deuschland GmbH | D120: 2010-02-09 | E120: § 6 | G120: TO ermöglicht: doppelten Kostenabzug; Abweichungen vom gerichtl. festgelegten Ausgleichswert; | I120: Vorzeitige Inanspruchnahme mit rel. hohen Abschlag von 0,5% pro Monat vorzeitiger Inanspruchnahme | L120: 2 | M120: 3 | P120: 5
A121: ExxonMobil Pensions-Verwaltungsgesellschaft mbH v. 09.02.2010 | B121: =ROW() -> 121 | C121: ExxonMobil Pensions-Verwaltungsgesellschaft mbH | D121: 2010-02-09 | E121: § 6 | G121: TO ermöglicht: doppelten Kostenabzug; Abweichungen vom gerichtl. festgelegten Ausgleichswert; | I121: Vorzeitige Inanspruchnahme mit rel. hohen Abschlag von 0,5% pro Monat vorzeitiger Inanspruchnahme | L121: 2 | M121: 3 | P121: 5
A122: ExxonMobil Production Deutschland GmbH v. 09.02.2010 | B122: =ROW() -> 122 | C122: ExxonMobil Production Deutschland GmbH | D122: 2010-02-09 | E122: § 6 | G122: TO ermöglicht: doppelten Kostenabzug; Abweichungen vom gerichtl. festgelegten Ausgleichswert; | I122: Vorzeitige Inanspruchnahme mit rel. hohen Abschlag von 0,5% pro Monat vorzeitiger Inanspruchnahme | L122: 2 | M122: 3 | P122: 5
A123: EY Ernest & Young GmbH v. 22.07.2016 | B123: =ROW() -> 123 | C123: EY Ernest & Young GmbH | D123: 2016-07-22 | E123: § 6 Abs. 3 | G123: TO ermöglicht: doppelten Kostenabzug; Verzinsung zwischen EzE und RK geltend machen | L123: 2 | N123: 4 | P123: 6
A124: Familienfürsorge UK v. 01.01.2011 | B124: =ROW() -> 124 | C124: Familienfürsorge UK | D124: 2011-01-01 | E124: 5.2.3.1. | G124: TO ermöglicht: doppelten Kostenabzug; Abweichungen vom gerichtl. festgelegten Ausgleichswert; Verzinsung zwischen EzE und RK geltend machen | L124: 2 | M124: 3 | N124: 4 | P124: 9
A125: Feuersozietät Berlin Brandenburg AG v. 01.09.2009 | B125: =ROW() -> 125 | C125: Feuersozietät Berlin Brandenburg AG | D125: 2009-09-01 | E125: IV. | F125: Ja | G125: TO ermöglicht: Tarifwechel; | K125: 1 | P125: 1
A126: FOVERUKA v. 13.12.2016 | B126: =ROW() -> 126 | C126: FOVERUKA | D126: 2016-12-13 | G126: TO ermöglicht: doppelten Kostenabzug; | L126: 2 | P126: 2
A127: Frankfurt Münchener Lebensversicherung AG v. 15.7.2017? | B127: =ROW() -> 127 | C127: Frankfurt Münchener Lebensversicherung AG | D127: 15.7.2017? | E127: Ziff. 5 | F127: =IF(K127=1,"Ja","") -> Ja | G127: =IF(SUM(K127:N127)=0,"","TO ermöglicht: "&IF(K127>0,"Tarifwechel; ","")&IF(L127>0,"doppelten Kostenabzug; ","")&IF(M127>0," Abweichungen vom gerichtl. festgelegten Ausgleichswert; ","")&IF(N127>0," Verzinsung zwischen EzE und RK geltend machen","")) -> TO ermöglicht: Tarifwechel; doppelten Kostenabzug; Verzinsung zwischen EzE und RK geltend machen | K127: 1 | L127: 2 | N127: 4
A128: Freies Versorgungswerk e.V. v. 01.02.2012 | B128: =ROW() -> 128 | C128: Freies Versorgungswerk e.V. | D128: 2012-02-01 | E128: § 4 Abs. 4 i.V.m. § 3 Abs. 4 | O128: TO FVW LZ01012012.doc (allianz.de) | P128: 0
A129: Fresenius v. 01.03.2017 | B129: =ROW() -> 129 | C129: Fresenius | D129: 2017-03-01 | P129: 0
A130: GALERIA Logisitik GmbH v. 01.07.2012 | B130: =ROW() -> 130 | C130: GALERIA Logisitik GmbH | D130: 2012-07-01 | E130: 5.3. | G130: TO ermöglicht: doppelten Kostenabzug; | L130: 2 | O130: Unterlagen für Familiengerichte zur Berechnung des Versorgungsausgleichs (hpv-versorgungsausgleich.de) | P130: 2
A131: GALERIA Personalservice GmbH TO v. 01.07.2012 | B131: =ROW() -> 131 | C131: GALERIA Personalservice GmbH TO | D131: 2012-07-01 | G131: TO ermöglicht: doppelten Kostenabzug; | L131: 2 | P131: 2
A132: Generali Lebensversicherung AG v. 01.12.2009 | B132: =ROW() -> 132 | C132: Generali Lebensversicherung AG | D132: 2009-12-01 | F132: Ja | G132: TO ermöglicht: Tarifwechel; doppelten Kostenabzug; Abweichungen vom gerichtl. festgelegten Ausgleichswert; Verzinsung zwischen EzE und RK geltend machen | J132: AG Heidelberg 35 F 154/17 | K132: 1 | L132: 2 | M132: 3 | N132: 4 | P132: 10
A133: =C133&IF(D133=0,""," v. "&TEXT(D133,"TT.MM.JJJ")) -> Generali Pensionsfonds AG v. 07.07.2016 | B133: =ROW() -> 133 | C133: Generali Pensionsfonds AG | D133: 2016-07-07 | E133: § 5 | G133: TO ermöglicht: doppelten Kostenabzug; Verzinsung zwischen EzE und RK geltend machen | L133: 2 | N133: 4
A134: Generali v. 01.07.2020 | B134: =ROW() -> 134 | C134: Generali | D134: 2020-07-01 | E134: 5. 3.Spstrich | F134: Ja | G134: TO ermöglicht: Tarifwechel; doppelten Kostenabzug; Abweichungen vom gerichtl. festgelegten Ausgleichswert; Verzinsung zwischen EzE und RK geltend machen | K134: 1 | L134: 2 | M134: 3 | N134: 4 | P134: 10
A135: Geno Pensionskasse VVaG, Karlsruhe v. 31.12.2020 | B135: =ROW() -> 135 | C135: Geno Pensionskasse VVaG, Karlsruhe | D135: 2020-12-31 | G135: TO ermöglicht: doppelten Kostenabzug; | L135: 2 | P135: 2
A136: GlaxoSmithKline GmbH & Co KG v. 01.09.2009 | B136: =ROW() -> 136 | C136: GlaxoSmithKline GmbH & Co KG | D136: 2009-09-01 | E136: 4. | G136: TO ermöglicht: doppelten Kostenabzug; Verzinsung zwischen EzE und RK geltend machen | L136: 2 | N136: 4 | P136: 6
A137: Gothaer Lebensversicherung AG v. 19.02.2010 | B137: =ROW() -> 137 | C137: Gothaer Lebensversicherung AG | D137: 2010-02-19 | E137: Ziff. 5., 4. Spstrich | F137: Ja | G137: TO ermöglicht: Tarifwechel; doppelten Kostenabzug; Abweichungen vom gerichtl. festgelegten Ausgleichswert; Verzinsung zwischen EzE und RK geltend machen | K137: 1 | L137: 2 | M137: 3 | N137: 4 | P137: 10
A138: Gothaer Pensionskasse AG v. 10.01.2013 | B138: =ROW() -> 138 | C138: Gothaer Pensionskasse AG | D138: 2013-01-10 | E138: 5 | F138: Ja | G138: TO ermöglicht: Tarifwechel; doppelten Kostenabzug; Abweichungen vom gerichtl. festgelegten Ausgleichswert; Verzinsung zwischen EzE und RK geltend machen | K138: 1 | L138: 2 | M138: 3 | N138: 4 | P138: 10
A139: Gothaer Pensionskasse AG v. 19.02.2010 | B139: =ROW() -> 139 | C139: Gothaer Pensionskasse AG | D139: 2010-02-19 | E139: 3. | G139: TO ermöglicht: Abweichungen vom gerichtl. festgelegten Ausgleichswert; Verzinsung zwischen EzE und RK geltend machen | M139: 3 | N139: 4 | P139: 7
A140: Hamburger Lebensversicherung AG | B140: =ROW() -> 140 | C140: Hamburger Lebensversicherung AG | E140: 5.1. Abs.3 | F140: Ja | G140: TO ermöglicht: Tarifwechel; | K140: 1 | O140: Tätigkeitsplan für die Teilung von Lebensversicherungen auf Grundlage des Gesetzes zur Strukturreform des Versorgungsausgleichs (Teilungsordnung) - PDF Kostenfreier Download (docplayer.org) | P140: 1
A141: Hamburger Pensionskasse v. 01.08.2011 | B141: =ROW() -> 141 | C141: Hamburger Pensionskasse | D141: 2011-08-01 | E141: § 12 Nr. 12 | F141: Ja | G141: TO ermöglicht: Tarifwechel; doppelten Kostenabzug; Abweichungen vom gerichtl. festgelegten Ausgleichswert; Verzinsung zwischen EzE und RK geltend machen | K141: 1 | L141: 2 | M141: 3 | N141: 4 | P141: 10
A142: Hamburger Pensionskasse v. 29.04.2021 | B142: =ROW() -> 142 | C142: Hamburger Pensionskasse | D142: 2021-04-29 | E142: § 25 | G142: TO ermöglicht: doppelten Kostenabzug; | L142: 2 | O142: AVB-F (hpv-versorgungsausgleich.de) | P142: 2
A143: Hamburger Pensionsunterstützungskasse e.V. v. 01.01.2018 | B143: =ROW() -> 143 | C143: Hamburger Pensionsunterstützungskasse e.V. | D143: 2018-01-01 | E143: 5.3. | G143: TO ermöglicht: doppelten Kostenabzug; | L143: 2 | O143: Unterlagen für Familiengerichte zur Berechnung des Versorgungsausgleichs (hpv-versorgungsausgleich.de) | P143: 2
A144: Hamburger Pensionsunterstützungskasse e.V. v. 01.06.2010 | B144: =ROW() -> 144 | C144: Hamburger Pensionsunterstützungskasse e.V. | D144: 2010-06-01 | E144: 5.3. | G144: TO ermöglicht: doppelten Kostenabzug; | J144: OLG Ka 16 UF 109/22 | L144: 2 | O144: Unterlagen für Familiengerichte zur Berechnung des Versorgungsausgleichs (hpv-versorgungsausgleich.de) | P144: 2
A145: =C145&IF(D145=0,""," v. "&TEXT(D145,"TT.MM.JJJ")) -> Hamburger Unterstützungskasse HUK Nr. 1 v. 01.09.2009 | B145: =ROW() -> 145 | C145: Hamburger Unterstützungskasse HUK Nr. 1 | D145: 2009-09-01 | E145: 5.3. | G145: =IF(SUM(K145:N145)=0,"","TO ermöglicht: "&IF(K145>0,"Tarifwechel; ","")&IF(L145>0,"doppelten Kostenabzug; ","")&IF(M145>0," Abweichungen vom gerichtl. festgelegten Ausgleichswert; ","")&IF(N145>0," Verzinsung zwischen EzE und RK geltend machen","")) -> TO ermöglicht: doppelten Kostenabzug; | L145: 2 | O145: Unterlagen für Familiengerichte zur Berechnung des Versorgungsausgleichs (hpv-versorgungsausgleich.de) | P145: 2
A146: Hamburger Unterstützungskasse HUK Nr. 2 v. 01.01.2018 | B146: =ROW() -> 146 | C146: Hamburger Unterstützungskasse HUK Nr. 2 | D146: 2018-01-01 | E146: 5.3 | G146: TO ermöglicht: doppelten Kostenabzug; | L146: 2 | O146: Unterlagen für Familiengerichte zur Berechnung des Versorgungsausgleichs (hpv-versorgungsausgleich.de) | P146: 2
A147: Hamburger Unterstützungskasse HUK v. 01.06.2015 | B147: =ROW() -> 147 | C147: Hamburger Unterstützungskasse HUK | D147: 2015-06-01 | E147: 5.3. | F147: =IF(K147=1,"Ja","") ->  | G147: TO ermöglicht: doppelten Kostenabzug; | L147: 2 | O147: Unterlagen für Familiengerichte zur Berechnung des Versorgungsausgleichs (hpv-versorgungsausgleich.de) | P147: 2
A148: Hamburger Wasserwerke GmbH v. 01.09.2009 | B148: =ROW() -> 148 | C148: Hamburger Wasserwerke GmbH | D148: 2009-09-01 | E148: § 6 | G148: TO ermöglicht: doppelten Kostenabzug; | L148: 2 | P148: 2
A149: Hannoversche Lebensversicherung AG v. 01.02.2022 | B149: =ROW() -> 149 | C149: Hannoversche Lebensversicherung AG | D149: 2022-02-01 | E149: 5. | G149: TO ermöglicht: doppelten Kostenabzug; Abweichungen vom gerichtl. festgelegten Ausgleichswert; Verzinsung zwischen EzE und RK geltend machen | L149: 2 | M149: 3 | N149: 4 | P149: 9
A150: HDI Lebensversicherung AG v. 02.01.2020 | B150: =ROW() -> 150 | C150: HDI Lebensversicherung AG | D150: 2020-01-02 | E150: 5. 5. SpStrich | F150: Ja | G150: TO ermöglicht: Tarifwechel; doppelten Kostenabzug; Abweichungen vom gerichtl. festgelegten Ausgleichswert; Verzinsung zwischen EzE und RK geltend machen | K150: 1 | L150: 2 | M150: 3 | N150: 4 | O150: Telungsordnung_HLV_2020.pdf (hdi.de) | P150: 10
A151: HDI Lebensversicherung AG v. 14.01.2013 | B151: =ROW() -> 151 | C151: HDI Lebensversicherung AG | D151: 2013-01-14 | E151: 5. 5. SpStrich | F151: Ja | G151: TO ermöglicht: Tarifwechel; doppelten Kostenabzug; Abweichungen vom gerichtl. festgelegten Ausgleichswert; Verzinsung zwischen EzE und RK geltend machen | K151: 1 | L151: 2 | M151: 3 | N151: 4 | O151: Teilungsordnung_HDI-Lebensversicherung_AG.pdf | P151: 10
A152: HDI Lebensversicherung AG v. ohne Datum | B152: =ROW() -> 152 | C152: HDI Lebensversicherung AG | D152: ohne Datum | E152: 5. 3. SpStrich | F152: Ja | G152: TO ermöglicht: Tarifwechel; doppelten Kostenabzug; Abweichungen vom gerichtl. festgelegten Ausgleichswert; Verzinsung zwischen EzE und RK geltend machen | I152: Die TO verwendet den Begriff"Ausgleichsversicherung", der in Ziff.5. Abs. 1 als die zu begründende Versicherung der ausglber. Person definiert wird | K152: 1 | L152: 2 | M152: 3 | N152: 4 | P152: 10
A153: HDI Pensionskasse v. 01.04.2015 | B153: =ROW() -> 153 | C153: HDI Pensionskasse | D153: 2015-04-01 | E153: 5. 3. SpStrich | F153: Ja | G153: TO ermöglicht: Tarifwechel; | K153: 1 | O153: HDI Pensionskasse AG PBPK-Bestandssegment - PDF Free Download (docplayer.org) | P153: 1
A154: HDI Pensionskasse v. 14.01.2013 | B154: =ROW() -> 154 | C154: HDI Pensionskasse | D154: 2013-01-14 | E154: 5. 3. SpStrich | F154: Ja | G154: TO ermöglicht: Tarifwechel; doppelten Kostenabzug; | K154: 1 | L154: 2 | O154: HDI Pensionskasse AG PBPK-Bestandssegment - PDF Free Download (docplayer.org) | P154: 3
A155: Heidelberger Leben v. 01.01.2014 | B155: =ROW() -> 155 | C155: Heidelberger Leben | D155: 2014-01-01 | E155: 5.3.SpStrich | F155: Ja | G155: TO ermöglicht: Tarifwechel; doppelten Kostenabzug; Abweichungen vom gerichtl. festgelegten Ausgleichswert; Verzinsung zwischen EzE und RK geltend machen | K155: 1 | L155: 2 | M155: 3 | N155: 4 | P155: 10
A156: Heidelberger Cement AG, Heidelberg v. 23.03.2013 | B156: =ROW() -> 156 | C156: Heidelberger Cement AG, Heidelberg | D156: 2013-03-23 | E156: 5 | I156: TO ist bezüglich der Haupt-Kritikpunkte nicht zu beanstanden.
A157: Helvetia schweizerische Lebensversicherungs-AG v. 01.04.2019 | B157: =ROW() -> 157 | C157: Helvetia schweizerische Lebensversicherungs-AG | D157: 2019-04-01 | E157: 5 | F157: Ja | G157: TO ermöglicht: Tarifwechel; doppelten Kostenabzug; | K157: 1 | L157: 2 | P157: 3
A158: Hewlett Packard GmbH Böblingen v. 18.12.2009 | B158: =ROW() -> 158 | C158: Hewlett Packard GmbH Böblingen | D158: 2009-12-18 | E158: Ziff. 5 | G158: TO ermöglicht: doppelten Kostenabzug; Abweichungen vom gerichtl. festgelegten Ausgleichswert; | L158: 2 | M158: 3 | P158: 5
A159: Hoechst Pensionskasse v. 01.01.2022 | B159: =ROW() -> 159 | C159: Hoechst Pensionskasse | D159: 2022-01-01 | I159: Axhtung! Nach § 18 Abs. 3 der TO wird der VA taggenau umgesetzt, weswegen es bei Unterhaltszahlungen zu überzahlungen kommen kann. | P159: 0
A160: Homann Feinkost GmbH v. 01.09.2009 | B160: =ROW() -> 160 | C160: Homann Feinkost GmbH | D160: 2009-09-01 | E160: 5.3. | G160: TO ermöglicht: Verzinsung zwischen EzE und RK geltend machen | N160: 4 | O160: Unterlagen für Familiengerichte zur Berechnung des Versorgungsausgleichs (hpv-versorgungsausgleich.de) | P160: 4
A161: HUK-Coburg v. 01.01.2015 | B161: =ROW() -> 161 | C161: HUK-Coburg | D161: 2015-01-01 | E161: Ziff. 5 3. SpStrich | F161: Ja | G161: TO ermöglicht: Tarifwechel; doppelten Kostenabzug; Abweichungen vom gerichtl. festgelegten Ausgleichswert; Verzinsung zwischen EzE und RK geltend machen | K161: 1 | L161: 2 | M161: 3 | N161: 4 | O161: Unterlagen für Familiengerichte zur Berechnung des Versorgungsausgleichs (hpv-versorgungsausgleich.de) | P161: 10
A162: HypoVereinsbank HVB v. 05.10.2016 | B162: =ROW() -> 162 | C162: HypoVereinsbank HVB | D162: 2016-10-05 | E162: 4.3.1. | G162: TO ermöglicht: doppelten Kostenabzug; Verzinsung zwischen EzE und RK geltend machen | I162: Bewertungszeitpunkt EzE - Umrechnungszeitpunkt RK = Ausgleichswert muss verzinst werden! | L162: 2 | N162: 4 | P162: 6
A163: HypoVereinsbank Unicredit Group v. 05.10.2016 | B163: =ROW() -> 163 | C163: HypoVereinsbank Unicredit Group | D163: 2016-10-05 | E163: 4.3.3. | G163: TO ermöglicht: doppelten Kostenabzug; Abweichungen vom gerichtl. festgelegten Ausgleichswert; Verzinsung zwischen EzE und RK geltend machen | L163: 2 | M163: 3 | N163: 4 | P163: 9
A164: IBM v. 01.09.2009 | B164: =ROW() -> 164 | C164: IBM | D164: 2009-09-01 | E164: 5.2. | G164: TO ermöglicht: doppelten Kostenabzug; | L164: 2 | P164: 2
A165: IGLO GmbH v. 01.09.2009 | B165: =ROW() -> 165 | C165: IGLO GmbH | D165: 2009-09-01 | E165: 5.3. | G165: TO ermöglicht: doppelten Kostenabzug; | L165: 2 | O165: Unterlagen für Familiengerichte zur Berechnung des Versorgungsausgleichs (hpv-versorgungsausgleich.de) | P165: 2
A166: Imperial Logistics v. 14.02.2022 | B166: =ROW() -> 166 | C166: Imperial Logistics | D166: 2022-02-14 | E166: § 6. Ziff. 4 | G166: TO ermöglicht: doppelten Kostenabzug; Verzinsung zwischen EzE und RK geltend machen | L166: 2 | N166: 4 | P166: =SUM(K166:N166) -> 6
A167: Ineos Phenol v. 25.09.2009 | B167: =ROW() -> 167 | C167: Ineos Phenol | D167: 2009-09-25 | I167: Die Versorgungs- und Teilungsordnung sieht Rentenhalbteilung vor und einen pauschalierten Zuschlag von 10% für Verzicht auf IR und HR. | P167: 0
A168: InterRisk Lebensversicherungs AG Vienna Insurance Group v. 02.08.2012 | B168: =ROW() -> 168 | C168: InterRisk Lebensversicherungs AG Vienna Insurance Group | D168: 2012-08-02 | E168: Ziff. 5 | F168: Ja | G168: TO ermöglicht: Tarifwechel; doppelten Kostenabzug; Abweichungen vom gerichtl. festgelegten Ausgleichswert; Verzinsung zwischen EzE und RK geltend machen | I168: TO sieht in Ziff. 6 die Befolgung einer abweichenden Tenorierung des FamG vor. | K168: 1 | L168: 2 | M168: 3 | N168: 4
A169: KKH - Teilungsregeln für den Versorgungsausgleich v. 26.05.2011 | B169: =ROW() -> 169 | C169: KKH - Teilungsregeln für den Versorgungsausgleich | D169: 2011-05-26 | E169: 5.2.1. | G169: TO ermöglicht: doppelten Kostenabzug; Verzinsung zwischen EzE und RK geltend machen | L169: 2 | N169: 4 | O169: Unterlagen für Familiengerichte zur Berechnung des Versorgungsausgleichs (hpv-versorgungsausgleich.de) | P169: 6
A170: Kölner Pensionskasse v. 01.01.2016 | B170: =ROW() -> 170 | C170: Kölner Pensionskasse | D170: 2016-01-01 | F170: Ja | G170: TO ermöglicht: Tarifwechel; doppelten Kostenabzug; Abweichungen vom gerichtl. festgelegten Ausgleichswert; Verzinsung zwischen EzE und RK geltend machen | K170: 1 | L170: 2 | M170: 3 | N170: 4 | P170: 10
A171: Kordoba TO KAVP TMA FHL v. 14.12.2010 | B171: =ROW() -> 171 | C171: Kordoba TO KAVP TMA FHL | D171: 2010-12-14 | G171: TO ermöglicht: doppelten Kostenabzug; Verzinsung zwischen EzE und RK geltend machen | L171: 2 | N171: 4 | P171: 6
A172: LandesBank Berlin v. 22.03.2010 | B172: =ROW() -> 172 | C172: LandesBank Berlin | D172: 2010-03-22 | G172: TO ermöglicht: doppelten Kostenabzug; Verzinsung zwischen EzE und RK geltend machen | L172: 2 | N172: 4 | P172: 6
A173: Landesbank Berlin v. 17.09.2021 | B173: =ROW() -> 173 | C173: Landesbank Berlin | D173: 2021-09-17 | E173: Ziff. 6 | G173: TO ermöglicht: doppelten Kostenabzug; Verzinsung zwischen EzE und RK geltend machen | I173: Nach Ziff. 6 der TO (letzter Absatz) wird die Versorgung z.G. der ausglber. Person "ab dem Tag der Bekanntgabe der Entscheidung des FamG über den Versorgungsausgleich" begründet. | L173: 2 | N173: 4 | P173: 6
A174: Landesbank BW (Kapitalkontenplan 2005) TO v. 02.05.2015 | B174: =ROW() -> 174 | C174: Landesbank BW (Kapitalkontenplan 2005) TO | D174: 2015-05-02 | E174: 5 | G174: TO ermöglicht: doppelten Kostenabzug; | L174: 2 | P174: 2
A175: Lebensversicherung von 1871 a.G. München v. 01.09.2009 | B175: =ROW() -> 175 | C175: Lebensversicherung von 1871 a.G. München | D175: 2009-09-01 | E175: 5. Abs. 3 3.SpStrich | F175: Ja | G175: TO ermöglicht: Tarifwechel; doppelten Kostenabzug; Abweichungen vom gerichtl. festgelegten Ausgleichswert; Verzinsung zwischen EzE und RK geltend machen | K175: 1 | L175: 2 | M175: 3 | N175: 4 | P175: 10
A176: LPV Lebensversicherung AG PBV-Bestandssegment, Bestandssystem Köln v. 01.09.2023 | B176: =ROW() -> 176 | C176: LPV Lebensversicherung AG PBV-Bestandssegment, Bestandssystem Köln | D176: 2023-09-01 | E176: Ziff. 5 | G176: TO ermöglicht: Verzinsung zwischen EzE und RK geltend machen | N176: 4
A177: LPV Lebensversicherung AG PBV-Bestandssegment v. 01.09.2023 | B177: =ROW() -> 177 | C177: LPV Lebensversicherung AG PBV-Bestandssegment | D177: 2023-09-01 | E177: 5. Abs. 3 5.SpStr | F177: Ja | G177: TO ermöglicht: Tarifwechel; Verzinsung zwischen EzE und RK geltend machen | K177: 1 | N177: 4
A178: Lufthansa Group TO v. 28.06.2018 | B178: =ROW() -> 178 | C178: Lufthansa Group TO | D178: 2018-06-28 | E178: § 8 | G178: TO ermöglicht: doppelten Kostenabzug; Abweichungen vom gerichtl. festgelegten Ausgleichswert; Verzinsung zwischen EzE und RK geltend machen | L178: 2 | M178: 3 | N178: 4 | P178: 9
A179: Lufthansa Group Versorgungskasse Kabine e.V. v. 01.01.2012 | B179: =ROW() -> 179 | C179: Lufthansa Group Versorgungskasse Kabine e.V. | D179: 2012-01-01 | E179: 5 | F179: Ja | G179: TO ermöglicht: Tarifwechel; doppelten Kostenabzug; Verzinsung zwischen EzE und RK geltend machen | K179: 1 | L179: 2 | N179: 4 | P179: 7
A180: LVM Lebens- und Rentenversicherungen (privat) v. 01.10.2009 | B180: =ROW() -> 180 | C180: LVM Lebens- und Rentenversicherungen (privat) | D180: 2009-10-01 | E180: Ziff. 5.3) | F180: Ja | G180: TO ermöglicht: Tarifwechel; doppelten Kostenabzug; Verzinsung zwischen EzE und RK geltend machen | K180: 1 | L180: 2 | N180: 4 | P180: 7
A181: LVM Lebensversicherungs-AG v. 01.07.2017 | B181: =ROW() -> 181 | C181: LVM Lebensversicherungs-AG | D181: 2017-07-01 | E181: 5 | G181: TO ermöglicht: doppelten Kostenabzug; Abweichungen vom gerichtl. festgelegten Ausgleichswert; Verzinsung zwischen EzE und RK geltend machen | L181: 2 | M181: 3 | N181: 4 | P181: 9
A182: LVM Pensionsfonds v. 01.09.2009 | B182: =ROW() -> 182 | C182: LVM Pensionsfonds | D182: 2009-09-01 | E182: Ziff. 5)c) | F182: Ja | G182: TO ermöglicht: Tarifwechel; doppelten Kostenabzug; Verzinsung zwischen EzE und RK geltend machen | K182: 1 | L182: 2 | N182: 4 | P182: 7
A183: LVM Pensionsplan V v. 01.01.2010 | B183: =ROW() -> 183 | C183: LVM Pensionsplan V | D183: 2010-01-01 | E183: Ziff. 5 Abs. 3 a.E. | F183: Ja | G183: TO ermöglicht: Tarifwechel; doppelten Kostenabzug; Verzinsung zwischen EzE und RK geltend machen | K183: 1 | L183: 2 | N183: 4 | P183: 7
A184: LVM Unterstützungskasse v. 01.03.2010 | B184: =ROW() -> 184 | C184: LVM Unterstützungskasse | D184: 2010-03-01 | E184: Ziff. 5.c) | F184: Ja | G184: TO ermöglicht: Tarifwechel; doppelten Kostenabzug; Verzinsung zwischen EzE und RK geltend machen | K184: 1 | L184: 2 | N184: 4 | P184: 7
A185: LVM Unterstützungskasse v. 01.09.2009 | B185: =ROW() -> 185 | C185: LVM Unterstützungskasse | D185: 2009-09-01 | F185: Ja | G185: TO ermöglicht: Tarifwechel; doppelten Kostenabzug; Verzinsung zwischen EzE und RK geltend machen | K185: 1 | L185: 2 | N185: 4 | P185: 7
A186: LVM Versicherung (Direktversicherung) v. 01.10.2009 | B186: =ROW() -> 186 | C186: LVM Versicherung (Direktversicherung) | D186: 2009-10-01 | E186: Ziff. 5.3) | F186: Ja | G186: TO ermöglicht: Tarifwechel; doppelten Kostenabzug; Verzinsung zwischen EzE und RK geltend machen | K186: 1 | L186: 2 | N186: 4 | P186: 7
A187: LVM Versicherung v. 01.07.2017 | B187: =ROW() -> 187 | C187: LVM Versicherung | D187: 2017-07-01 | E187: Ziff. 5.3) | G187: TO ermöglicht: doppelten Kostenabzug; Verzinsung zwischen EzE und RK geltend machen | L187: 2 | N187: 4 | O187: 081-teilungsordnung-lebensversicherung-rentenversicherung-l272.pdf (lvm.de) | P187: 6
A188: MAN (KBV BAV MEV) v. 01.09.2009 | B188: =ROW() -> 188 | C188: MAN (KBV BAV MEV) | D188: 2009-09-01 | E188: Ziff. 5 | G188: TO ermöglicht: Verzinsung zwischen EzE und RK geltend machen | N188: 4 | P188: 4
A189: MAN (KBV BAV MEV) v. 04.04.2011 | B189: =ROW() -> 189 | C189: MAN (KBV BAV MEV) | D189: 2011-04-04 | E189: Ziff. 5. | G189: TO ermöglicht: Verzinsung zwischen EzE und RK geltend machen | I189: Die TO ist für die verschiedenen BR-Klassen unübersichtlich. Es wird empfohlen, den Versorgungsträger zu einer Mitteilung der aus dem AusglWert resultierenden Versorgung für die auglpfl. Person zu veranlassen | N189: 4 | P189: 4
A190: MAN (KBV BAV MEV) v. 15.03.2011 | B190: =ROW() -> 190 | C190: MAN (KBV BAV MEV) | D190: 2011-03-15 | E190: Ziff. 5. | G190: TO ermöglicht: Verzinsung zwischen EzE und RK geltend machen | I190: Die TO ist für die verschiedenen BR-Klassen unübersichtlich. Es wird empfohlen, den Versorgungsträger zu einer Mitteilung der aus dem AusglWert resultierenden Versorgung für die auglpfl. Person zu veranlassen | N190: 4 | P190: 4
A191: Marktkauf Gruppen-Unterstützungskasse e.V. v. 01.01.2018 | B191: =ROW() -> 191 | C191: Marktkauf Gruppen-Unterstützungskasse e.V. | D191: 2018-01-01 | E191: 5.3. | G191: TO ermöglicht: doppelten Kostenabzug; | L191: 2 | P191: 2
A192: Mecklenburgische LV AG v. 01.06.2013 | B192: =ROW() -> 192 | C192: Mecklenburgische LV AG | D192: 2013-06-01 | E192: Ziff. 5 | G192: TO ermöglicht: doppelten Kostenabzug; | I192: TO sieht für Riester-Versorgungen einen Wechsel zu de "aktuellen Rechnungsgrundlagen vor! Der Begründungszeitpunkt ist in der TO nicht definiert, daher vorsorglich auf Wertentwicklungsteilhabe hinweisen. | L192: 2
A193: MEDA Pharma GmbH v. 02.11.2009 | B193: =ROW() -> 193 | C193: MEDA Pharma GmbH | D193: 2009-11-02 | E193: § 11 | G193: TO ermöglicht: doppelten Kostenabzug; | L193: 2 | P193: 2
A194: Mercedes Benz AG v. 01.04.2021 | B194: =ROW() -> 194 | C194: Mercedes Benz AG | D194: 2021-04-01 | E194: 3.1. | G194: TO ermöglicht: doppelten Kostenabzug; | L194: 2 | P194: 2
A195: Metall-Rente v. 01.09.2009 | B195: =ROW() -> 195 | C195: Metall-Rente | D195: 2009-09-01 | E195: 5.c)aa) | F195: Ja | G195: TO ermöglicht: Tarifwechel; doppelten Kostenabzug; | K195: 1 | L195: 2 | O195: https://docplayer.org/7825648-Ordnung-fuer-die-teilung-von-lebensversicherungen-aufgrund-des-gesetzes-ueber-den-versorgungsausgleich-teilungsordnung-in-der-fassung-vom-01-09.html | P195: 3
A196: METRO Cash Carry_Deutschland v. 01.07.2012 | B196: =ROW() -> 196 | C196: METRO Cash Carry_Deutschland | D196: 2012-07-01 | E196: 5.3. | O196: Unterlagen für Familiengerichte zur Berechnung des Versorgungsausgleichs (hpv-versorgungsausgleich.de) | P196: 0
A197: METRO_AG_ASKO v. 01.09.2009 | B197: =ROW() -> 197 | C197: METRO_AG_ASKO | D197: 2009-09-01 | E197: 5.3. | O197: Unterlagen für Familiengerichte zur Berechnung des Versorgungsausgleichs (hpv-versorgungsausgleich.de) | P197: 0
A198: METRO_AG_EPP_FPP v. 01.07.2012 | B198: =ROW() -> 198 | C198: METRO_AG_EPP_FPP | D198: 2012-07-01 | E198: 5.3. | O198: Unterlagen für Familiengerichte zur Berechnung des Versorgungsausgleichs (hpv-versorgungsausgleich.de) | P198: 0
A199: Mitteldeutscher Rundfunk Tarifvertrag v. 02.12.2009 | B199: =ROW() -> 199 | C199: Mitteldeutscher Rundfunk Tarifvertrag | D199: 2009-12-02 | P199: 0
A200: Mobil Oil BKK v. 01.01.2019 | B200: =ROW() -> 200 | C200: Mobil Oil BKK | D200: 2019-01-01 | P200: 0
... 206 more rows

Sheet VPI & Zins (hidden)
A1: VPI | B1: https://www.destatis.de/DE/Themen/Wirtschaft/Preise/Verbraucherpreisindex/Publikationen/_publikationen-verbraucherpreisindex.html?nn=206104 | O1: Inflationsberechnung Deutschland
B2: VPI | E2: Zinsvergleich | O2: von/bis - Datum | P2: 1980-12-31 | Q2: 2022-12-31 | R2: Ø pro Jahr
B3: 1958-07-01 | C3: 22.396 | E3: ab | F3: Höchstrech-nungszins | G3: BilMoG-7 | H3: SV_Abzug | K3: Basiszins | O3: Jahresinflation | P3: =VLOOKUP(P2,VPI,2) -> 49.675 | Q3: =VLOOKUP(Q2,VPI,2) -> 120.6 | R3: =_xlfn.RRI(YEARFRAC(P2,Q2,3),P3,Q3) -> 2.13%
B4: 1958-08-01 | C4: 22.227 | E4: 1923-01-01 | F4: 4% | G4: =VLOOKUP(E4,BilmoGZins,16) ->  | H4: Datum | I4: SV-Abzug | K4: ab | L4: Basiszins | M4: 5%> Basiszins | O4: 1958-07-01 | P4: =VLOOKUP(O4,VPI,2) -> 22.40
B5: 1958-09-01 | C5: 22.227 | E5: 1942-01-01 | F5: 3% | H5: 2003-01-01 | I5: =2.2%+15.5% -> 17.7% | K5: 2011-01-01 | L5: 0.12% | M5: 5.12% | O5: 1959-07-01 | P5: 22.56
B6: 1958-10-01 | C6: 22.227 | E6: 1986-07-01 | F6: 3.50% | H6: 2013-07-01 | I6: =0.155+0.0205+0.0025 -> 17.8% | K6: 2011-07-01 | L6: 0.37% | M6: 5.37% | O6: 1960-07-01 | P6: 22.90 | S6: Inflationserwartung
B7: 1958-11-01 | C7: 22.396 | E7: 1994-07-01 | F7: 4% | H7: 2015-01-01 | I7: =0.146+0.0235+0.0025+0.009 -> 18.1% | K7: 2012-01-01 | L7: 0.12% | M7: 5.12% | O7: 1961-07-01 | P7: 23.49
B8: 1958-12-01 | C8: 22.480 | E8: 2000-07-01 | F8: 3.25% | H8: 2016-03-01 | I8: =0.146+0.009+0.0235+0.0025 -> 18.1% | K8: 2012-07-01 | L8: 0.12% | M8: 5.12% | O8: 1962-07-01 | P8: 24.25 | S8: Inflationsannahme | V8: =V9/U9-1 -> 3.77% | W8: =W9/V9-1 -> 7.54% | X8: =VLOOKUP(X10,$O$4:$Q$765,3) -> 6.20% | Y8: =VLOOKUP(Y10,$O$4:$Q$765,3) -> 5.00% | Z8: 4.00% | AA8: 3.00% | AB8: 2.50% | AC8: 2.20% | AD8: 2.00% | AE8: 2.00% | AF8: 2.00% | AG8: 2.00% | AH8: 2.00% | AI8: 2.00% | AJ8: 2.00% | AK8: 2.00%
B9: 1959-01-01 | C9: 22.564 | E9: 2004-01-01 | F9: 2.75% | H9: 2017-01-01 | I9: =0.146+0.009+0.0255+0.0025 -> 18.3% | K9: 2013-01-01 | L9: -0.13% | M9: 4.87% | O9: 1963-07-01 | P9: 24.75 | S9: VPI | T9: 102.50 | U9: =VLOOKUP(U10,$O$4:$P$765,2) -> 106.10 | V9: =VLOOKUP(V10,$O$4:$P$765,2) -> 110.10 | W9: 118.40 | X9: 125.74 | Y9: 132.03 | Z9: 137.31 | AA9: 141.43 | AB9: 144.96 | AC9: 148.15 | AD9: 151.12 | AE9: 154.14 | AF9: 157.22 | AG9: 160.37 | AH9: 163.57 | AI9: 166.84 | AJ9: 170.18 | AK9: 173.59
B10: 1959-02-01 | C10: 22.648 | E10: 2007-01-01 | F10: 2.25% | H10: 2019-01-01 | I10: =0.146+0.009+0.0305+0.0025 -> 18.8% | K10: 2013-07-01 | L10: -0.38% | M10: 4.62% | O10: 1964-07-01 | P10: 25.43 | S10: bis von | T10: 2017-07-01 | U10: 2020-07-01 | V10: 2021-07-01 | W10: 2022-07-01 | X10: 2023-07-01 | Y10: 2024-07-01 | Z10: 2025-07-01 | AA10: 2026-07-01 | AB10: 2027-07-01 | AC10: 2028-07-01 | AD10: 2029-07-01 | AE10: 2030-07-01 | AF10: 2031-07-01 | AG10: 2032-07-01 | AH10: 2033-07-01 | AI10: 2034-07-01 | AJ10: 2035-07-01 | AK10: 2036-07-01
B11: 1959-03-01 | C11: 22.564 | E11: 2009-09-01 | F11: 2.25% | G11: =VLOOKUP(E11,BilmoGZins,16)/100 -> 5.3% | H11: 2003-01-01 | I11: 17.7% | K11: 2014-01-01 | L11: -0.63% | M11: 4.37% | O11: 1965-07-01 | P11: 26.44 | R11: =VLOOKUP(S11,$O$4:$P$765,2) -> 106.10 | S11: 2020-07-01 | V11: =_xlfn.RRI(YEARFRAC($S11,V$10,3),$R11,V$9) -> 3.77% | W11: 5.64% | X11: 5.82% | Y11: 5.61% | Z11: 5.29% | AA11: 4.90% | AB11: 4.56% | AC11: 4.26% | AD11: 4.01% | AE11: 3.80% | AF11: 3.64% | AG11: 3.50% | AH11: 3.38% | AI11: 3.28% | AJ11: 3.20% | AK11: 3.12%
B12: 1959-04-01 | C12: 22.480 | E12: 2012-01-01 | F12: 1.75% | G12: 5.1% | H12: 2013-07-01 | I12: 17.8% | K12: 2014-07-01 | L12: -0.73% | M12: 4.27% | O12: 1966-07-01 | P12: 27.28 | R12: 110.10 | S12: 2021-07-01 | W12: =_xlfn.RRI(YEARFRAC($S12,W$10,3),$R12,W$9) -> 7.54% | X12: 6.87% | Y12: 6.24% | Z12: 5.67% | AA12: 5.13% | AB12: 4.69% | AC12: 4.33% | AD12: 4.03% | AE12: 3.81% | AF12: 3.62% | AG12: 3.48% | AH12: 3.35% | AI12: 3.25% | AJ12: 3.16% | AK12: 3.08%
B13: 1959-05-01 | C13: 22.480 | E13: 2015-01-01 | F13: 1.25% | G13: 4.5% | H13: 2015-01-01 | I13: 18.1% | K13: 2014-07-29 | L13: -0.73% | M13: 4.27% | O13: 1967-07-01 | P13: 27.78 | R13: 118.40 | S13: 2022-07-01 | X13: =_xlfn.RRI(YEARFRAC($S13,X$10,3),$R13,X$9) -> 6.20% | Y13: 5.59% | Z13: 5.06% | AA13: 4.54% | AB13: 4.13% | AC13: 3.80% | AD13: 3.54% | AE13: 3.35% | AF13: 3.20% | AG13: 3.08% | AH13: 2.98% | AI13: 2.90% | AJ13: 2.83% | AK13: 2.77%
B14: 1959-06-01 | C14: 22.480 | E14: 2017-01-01 | F14: 0.90% | G14: 3.2% | H14: 2016-03-01 | I14: 18.1% | K14: 2015-01-01 | L14: -0.83% | M14: 4.17% | O14: 1968-07-01 | P14: 28.12 | R14: 125.74 | S14: 2023-07-01 | Y14: =_xlfn.RRI(YEARFRAC($S14,Y$10,3),$R14,Y$9) -> 4.99% | Z14: 4.49% | AA14: 3.99% | AB14: 3.62% | AC14: 3.33% | AD14: 3.11% | AE14: 2.95% | AF14: 2.83% | AG14: 2.74% | AH14: 2.66% | AI14: 2.60% | AJ14: 2.55% | AK14: 2.51%
B15: 1959-07-01 | C15: 22.564 | E15: 2019-01-01 | F15: 0.90% | G15: 2.3% | H15: 2017-01-01 | I15: 18.3% | K15: 2015-07-01 | L15: -0.83% | M15: 4.17% | O15: 1969-07-01 | P15: 28.71 | R15: 132.03 | S15: 2024-07-01 | Z15: =_xlfn.RRI(YEARFRAC($S15,Z$10,3),$R15,Z$9) -> 4.00% | AA15: 3.50% | AB15: 3.16% | AC15: 2.92% | AD15: 2.74% | AE15: 2.61% | AF15: 2.53% | AG15: 2.46% | AH15: 2.41% | AI15: 2.37% | AJ15: 2.33% | AK15: 2.31%
B16: 1959-08-01 | C16: 22.648 | E16: 2022-01-01 | F16: 0.25% | G16: 1.4% | H16: 2019-01-01 | I16: 18.8% | K16: 2016-01-01 | L16: -0.83% | M16: 4.17% | O16: 1970-07-01 | P16: 29.72 | R16: 137.31 | S16: 2025-07-01 | AA16: =_xlfn.RRI(YEARFRAC($S16,AA$10,3),$R16,AA$9) -> 3.00% | AB16: 2.75% | AC16: 2.56% | AD16: 2.42% | AE16: 2.34% | AF16: 2.28% | AG16: 2.24% | AH16: 2.21% | AI16: 2.19% | AJ16: 2.17% | AK16: 2.15%
B17: 1959-09-01 | C17: 22.732 | H17: 2020-01-01 | I17: 18.8% | K17: 2016-07-01 | L17: -0.88% | M17: 4.12% | O17: 1971-07-01 | P17: 31.32 | R17: 141.43 | S17: 2026-07-01 | AB17: =_xlfn.RRI(YEARFRAC($S17,AB$10,3),$R17,AB$9) -> 2.50% | AC17: 2.35% | AD17: 2.23% | AE17: 2.17% | AF17: 2.14% | AG17: 2.11% | AH17: 2.10% | AI17: 2.09% | AJ17: 2.08% | AK17: 2.07%
B18: 1959-10-01 | C18: 22.732 | H18: 2021-01-01 | I18: 18.8% | K18: 2017-01-01 | L18: -0.88% | M18: 4.12% | O18: 1972-07-01 | P18: 33.00 | R18: 144.96 | S18: 2027-07-01 | AC18: =_xlfn.RRI(YEARFRAC($S18,AC$10,3),$R18,AC$9) -> 2.19% | AD18: 2.10% | AE18: 2.06% | AF18: 2.05% | AG18: 2.04% | AH18: 2.03% | AI18: 2.03% | AJ18: 2.02% | AK18: 2.02%
B19: 1959-11-01 | C19: 22.985 | H19: 2022-01-01 | I19: 18.8% | K19: 2017-07-01 | L19: -0.88% | M19: 4.12% | O19: 1973-07-01 | P19: 35.36 | R19: 148.15 | S19: 2028-07-01 | AD19: =_xlfn.RRI(YEARFRAC($S19,AD$10,3),$R19,AD$9) -> 2.00% | AE19: 2.00% | AF19: 2.00% | AG19: 2.00% | AH19: 2.00% | AI19: 2.00% | AJ19: 2.00% | AK19: 2.00%
B20: 1959-12-01 | C20: 22.901 | K20: 2018-01-01 | L20: -0.88% | M20: 4.12% | O20: 1974-07-01 | P20: 37.80 | R20: 151.12 | S20: 2029-07-01 | AE20: =_xlfn.RRI(YEARFRAC($S20,AE$10,3),$R20,AE$9) -> 2.00% | AF20: 2.00% | AG20: 2.00% | AH20: 2.00% | AI20: 2.00% | AJ20: 2.00% | AK20: 2.00%
B21: 1960-01-01 | C21: 22.985 | K21: 2018-07-01 | L21: -0.88% | M21: 4.12% | O21: 1975-07-01 | P21: 40.16 | R21: 154.14 | S21: 2030-07-01 | AF21: =_xlfn.RRI(YEARFRAC($S21,AF$10,3),$R21,AF$9) -> 2.00% | AG21: 2.00% | AH21: 2.00% | AI21: 2.00% | AJ21: 2.00% | AK21: 2.00%
B22: 1960-02-01 | C22: 23.069 | K22: 2019-01-01 | L22: -0.88% | M22: 4.12% | O22: 1976-07-01 | P22: 41.68 | R22: 157.22 | S22: 2031-07-01 | AG22: =_xlfn.RRI(YEARFRAC($S22,AG$10,3),$R22,AG$9) -> 1.99% | AH22: =_xlfn.RRI(YEARFRAC($S22,AH$10,3),$R22,AH$9) -> 2.00% | AI22: =_xlfn.RRI(YEARFRAC($S22,AI$10,3),$R22,AI$9) -> 2.00% | AJ22: =_xlfn.RRI(YEARFRAC($S22,AJ$10,3),$R22,AJ$9) -> 2.00% | AK22: =_xlfn.RRI(YEARFRAC($S22,AK$10,3),$R22,AK$9) -> 2.00%
B23: 1960-03-01 | C23: 22.985 | K23: 2023-01-01 | L23: 1.62% | M23: =5%+L23 -> 6.62% | O23: 1977-07-01 | P23: 43.28 | R23: 160.37 | S23: 2032-07-01 | AH23: =_xlfn.RRI(YEARFRAC($S23,AH$10,3),$R23,AH$9) -> 2.00% | AI23: =_xlfn.RRI(YEARFRAC($S23,AI$10,3),$R23,AI$9) -> 2.00% | AJ23: =_xlfn.RRI(YEARFRAC($S23,AJ$10,3),$R23,AJ$9) -> 2.00% | AK23: =_xlfn.RRI(YEARFRAC($S23,AK$10,3),$R23,AK$9) -> 2.00%
B24: 1960-04-01 | C24: 22.985 | O24: 1978-07-01 | P24: 44.46 | R24: 163.57 | S24: 2033-07-01 | AI24: =_xlfn.RRI(YEARFRAC($S24,AI$10,3),$R24,AI$9) -> 2.00% | AJ24: =_xlfn.RRI(YEARFRAC($S24,AJ$10,3),$R24,AJ$9) -> 2.00% | AK24: =_xlfn.RRI(YEARFRAC($S24,AK$10,3),$R24,AK$9) -> 2.00%
B25: 1960-05-01 | C25: 22.985 | O25: 1979-07-01 | P25: 46.48 | R25: 166.84 | S25: 2034-07-01 | AJ25: =_xlfn.RRI(YEARFRAC($S25,AJ$10,3),$R25,AJ$9) -> 2.00% | AK25: =_xlfn.RRI(YEARFRAC($S25,AK$10,3),$R25,AK$9) -> 2.00%
B26: 1960-06-01 | C26: 22.817 | O26: 1980-07-01 | P26: 48.83 | R26: 170.18 | S26: 2035-07-01 | AK26: =_xlfn.RRI(YEARFRAC($S26,AK$10,3),$R26,AK$9) -> 1.99%
B27: 1960-07-01 | C27: 22.901 | O27: 1981-07-01 | P27: 52.03 | R27: 173.59 | S27: 2036-07-01
B28: 1960-08-01 | C28: 22.817 | O28: 1982-07-01 | P28: 54.81 | R28: =AK9 -> 173.59
B29: 1960-09-01 | C29: 22.901 | O29: 1983-07-01 | P29: 56.33
B30: 1960-10-01 | C30: 22.985 | O30: 1984-07-01 | P30: 57.59
B31: 1960-11-01 | C31: 23.153 | O31: 1985-07-01 | P31: 58.77
B32: 1960-12-01 | C32: 23.153 | O32: 1986-07-01 | P32: 58.60 | Q32: =PV(5.5%,2,,200000) -> -179,690.48 €
B33: 1961-01-01 | C33: 23.322 | O33: 1987-07-01 | P33: 58.94
B34: 1961-02-01 | C34: 23.490 | O34: 1988-07-01 | P34: 59.61
B35: 1961-03-01 | C35: 23.406 | O35: 1989-07-01 | P35: 61.29
B36: 1961-04-01 | C36: 23.406 | O36: 1990-07-01 | P36: =VLOOKUP(O36,VPI,2) -> 62.73
B37: 1961-05-01 | C37: 23.406 | O37: 1991-07-01 | P37: 65.85
B38: 1961-06-01 | C38: 23.406 | O38: 1992-07-01 | P38: 69.12
B39: 1961-07-01 | C39: 23.490 | O39: 1993-07-01 | P39: 72.29
B40: 1961-08-01 | C40: 23.490 | O40: 1994-07-01 | P40: 74.06
B41: 1961-09-01 | C41: 23.574 | O41: 1995-07-01 | P41: 75.27
B42: 1961-10-01 | C42: 23.574 | O42: 1996-07-01 | P42: 76.30
B43: 1961-11-01 | C43: 23.743 | O43: 1997-07-01 | P43: 78.07
B44: 1961-12-01 | C44: 23.827 | O44: 1998-07-01 | P44: 78.73
B45: 1962-01-01 | C45: 23.995 | O45: 1999-07-01 | P45: 79.19
B46: 1962-02-01 | C46: 24.164 | O46: 2000-07-01 | P46: 80.22
B47: 1962-03-01 | C47: 24.164 | O47: 2001-07-01 | P47: 81.90
B48: 1962-04-01 | C48: 24.248 | O48: 2002-07-01 | P48: 82.83
B49: 1962-05-01 | C49: 24.164 | O49: 2003-07-01 | P49: 83.67
B50: 1962-06-01 | C50: 24.164 | O50: 2004-07-01 | P50: 85.16
B51: 1962-07-01 | C51: 24.248 | O51: 2005-07-01 | P51: 86.47
B52: 1962-08-01 | C52: 24.080 | O52: 2006-07-01 | P52: 88.05
B53: 1962-09-01 | C53: 24.164 | O53: 2007-07-01 | P53: 89.83
B54: 1962-10-01 | C54: 24.164 | O54: 2008-07-01 | P54: 92.81
B55: 1962-11-01 | C55: 24.332 | O55: 2009-07-01 | P55: 92.34
B56: 1962-12-01 | C56: 24.416 | O56: 2010-07-01 | P56: 93.37
B57: 1963-01-01 | C57: 24.669 | O57: 2011-07-01 | P57: 95.33
B58: 1963-02-01 | C58: 25.006 | O58: 2012-07-01 | P58: 97.10
B59: 1963-03-01 | C59: 24.922 | O59: 2013-07-01 | P59: 98.97
B60: 1963-04-01 | C60: 25.006 | O60: 2014-07-01 | P60: 99.81
B61: 1963-05-01 | C61: 24.922 | O61: 2015-07-01 | P61: 100.60
B62: 1963-06-01 | C62: 24.753 | O62: 2016-07-01 | P62: 101.10
B63: 1963-07-01 | C63: 24.753 | O63: 2017-07-01 | P63: 102.50
B64: 1963-08-01 | C64: 24.753 | O64: 2018-07-01 | P64: 104.40
B65: 1963-09-01 | C65: 24.922 | O65: 2019-07-01 | P65: 106.20
B66: 1963-10-01 | C66: 24.922 | O66: 2020-07-01 | P66: 106.10
B67: 1963-11-01 | C67: 25.090 | O67: 2021-07-01 | P67: 110.10
B68: 1963-12-01 | C68: 25.258 | O68: 2022-07-01 | P68: =VLOOKUP(O68,VPI,2) -> 118.40
B69: 1964-01-01 | C69: 25.427 | O69: 2023-07-01 | P69: =P68*(1+Q69) -> 125.74 | Q69: 6.20%
B70: 1964-02-01 | C70: 25.511 | O70: 2024-07-01 | P70: =P69*(1+Q70) -> 132.03 | Q70: 5.00%
B71: 1964-03-01 | C71: 25.427 | O71: 2025-07-01 | P71: 137.31 | Q71: 4.00%
B72: 1964-04-01 | C72: 25.427 | O72: 2026-07-01 | P72: 141.43 | Q72: 3.00%
B73: 1964-05-01 | C73: 25.427 | O73: 2027-07-01 | P73: 144.96 | Q73: 2.50%
B74: 1964-06-01 | C74: 25.342 | O74: 2028-07-01 | P74: 148.15 | Q74: 2.20%
B75: 1964-07-01 | C75: 25.427 | O75: 2029-07-01 | P75: 151.12 | Q75: 2.00%
B76: 1964-08-01 | C76: 25.427 | O76: 2030-07-01 | P76: 154.14 | Q76: 2.00%
B77: 1964-09-01 | C77: 25.511 | O77: 2031-07-01 | P77: 157.22 | Q77: 2.00%
B78: 1964-10-01 | C78: 25.511 | O78: 2032-07-01 | P78: 160.37 | Q78: 2.00%
B79: 1964-11-01 | C79: 25.679 | O79: 2033-07-01 | P79: 163.57 | Q79: 2.00%
B80: 1964-12-01 | C80: 25.763 | O80: 2034-07-01 | P80: 166.84 | Q80: 2.00% | R80: =_xlfn.RRI(14,P67,P80) -> 0.03013611009
B81: 1965-01-01 | C81: 25.932 | O81: 2035-07-01 | P81: 170.18 | Q81: 2.00%
B82: 1965-02-01 | C82: 26.016 | O82: 2036-07-01 | P82: 173.59 | Q82: 2.00%
B83: 1965-03-01 | C83: 25.932 | O83: 2037-07-01 | P83: 177.06 | Q83: 2.00%
B84: 1965-04-01 | C84: 26.100 | O84: 2038-07-01 | P84: 177.06
B85: 1965-05-01 | C85: 26.184 | O85: 2039-07-01 | P85: 177.06
B86: 1965-06-01 | C86: 26.269 | O86: 2040-07-01 | P86: 177.06
B87: 1965-07-01 | C87: 26.437 | S87: 2023-01-26
B88: 1965-08-01 | C88: 26.353 | S88: 2023-12-23 | T88: =+S88-S87 -> 331.00 | U88: =+DATE(YEAR(S88),1,DAY(S87)+T88/2) -> 2023-07-10
B89: 1965-09-01 | C89: 26.437
B90: 1965-10-01 | C90: 26.521
B91: 1965-11-01 | C91: 26.690
B92: 1965-12-01 | C92: 26.774
B93: 1966-01-01 | C93: 26.942
B94: 1966-02-01 | C94: 27.111
B95: 1966-03-01 | C95: 27.026
B96: 1966-04-01 | C96: 27.279
B97: 1966-05-01 | C97: 27.279
B98: 1966-06-01 | C98: 27.195
B99: 1966-07-01 | C99: 27.279
B100: 1966-08-01 | C100: 27.279
B101: 1966-09-01 | C101: 27.279
B102: 1966-10-01 | C102: 27.363
B103: 1966-11-01 | C103: 27.532
B104: 1966-12-01 | C104: 27.532
B105: 1967-01-01 | C105: 27.616
B106: 1967-02-01 | C106: 27.700
B107: 1967-03-01 | C107: 27.700
B108: 1967-04-01 | C108: 27.700
B109: 1967-05-01 | C109: 27.700
B110: 1967-06-01 | C110: 27.700
B111: 1967-07-01 | C111: 27.784
B112: 1967-08-01 | C112: 27.700
B113: 1967-09-01 | C113: 27.700
B114: 1967-10-01 | C114: 27.700
B115: 1967-11-01 | C115: 27.784
B116: 1967-12-01 | C116: 27.700
B117: 1968-01-01 | C117: 28.121
B118: 1968-02-01 | C118: 28.205
B119: 1968-03-01 | C119: 28.121
B120: 1968-04-01 | C120: 28.121
B121: 1968-05-01 | C121: 28.121
B122: 1968-06-01 | C122: 28.121
B123: 1968-07-01 | C123: 28.121
B124: 1968-08-01 | C124: 28.121
B125: 1968-09-01 | C125: 28.121
B126: 1968-10-01 | C126: 28.121
B127: 1968-11-01 | C127: 28.289
B128: 1968-12-01 | C128: 28.289
B129: 1969-01-01 | C129: 28.542
B130: 1969-02-01 | C130: 28.710
B131: 1969-03-01 | C131: 28.626
B132: 1969-04-01 | C132: 28.626
B133: 1969-05-01 | C133: 28.626
B134: 1969-06-01 | C134: 28.710
B135: 1969-07-01 | C135: 28.710
B136: 1969-08-01 | C136: 28.626
B137: 1969-09-01 | C137: 28.710
B138: 1969-10-01 | C138: 28.710
B139: 1969-11-01 | C139: 28.879
B140: 1969-12-01 | C140: 28.879
B141: 1970-01-01 | C141: 29.300
B142: 1970-02-01 | C142: 29.468
B143: 1970-03-01 | C143: 29.468
B144: 1970-04-01 | C144: 29.552
B145: 1970-05-01 | C145: 29.552
B146: 1970-06-01 | C146: 29.636
B147: 1970-07-01 | C147: 29.721
B148: 1970-08-01 | C148: 29.721
B149: 1970-09-01 | C149: 29.721
B150: 1970-10-01 | C150: 29.805
B151: 1970-11-01 | C151: 29.973
B152: 1970-12-01 | C152: 30.057
B153: 1971-01-01 | C153: 30.478
B154: 1971-02-01 | C154: 30.815
B155: 1971-03-01 | C155: 30.899
B156: 1971-04-01 | C156: 31.068
B157: 1971-05-01 | C157: 31.068
B158: 1971-06-01 | C158: 31.152
B159: 1971-07-01 | C159: 31.320
B160: 1971-08-01 | C160: 31.320
B161: 1971-09-01 | C161: 31.489
B162: 1971-10-01 | C162: 31.573
B163: 1971-11-01 | C163: 31.741
B164: 1971-12-01 | C164: 31.741
B165: 1972-01-01 | C165: 32.162
B166: 1972-02-01 | C166: 32.415
B167: 1972-03-01 | C167: 32.415
B168: 1972-04-01 | C168: 32.583
B169: 1972-05-01 | C169: 32.583
B170: 1972-06-01 | C170: 32.752
B171: 1972-07-01 | C171: 33.004
B172: 1972-08-01 | C172: 33.004
B173: 1972-09-01 | C173: 33.425
B174: 1972-10-01 | C174: 33.509
B175: 1972-11-01 | C175: 33.678
B176: 1972-12-01 | C176: 33.762
B177: 1973-01-01 | C177: 34.183
B178: 1973-02-01 | C178: 34.520
B179: 1973-03-01 | C179: 34.604
B180: 1973-04-01 | C180: 34.856
B181: 1973-05-01 | C181: 35.025
B182: 1973-06-01 | C182: 35.193
B183: 1973-07-01 | C183: 35.362
B184: 1973-08-01 | C184: 35.362
B185: 1973-09-01 | C185: 35.446
B186: 1973-10-01 | C186: 35.698
B187: 1973-11-01 | C187: 36.204
B188: 1973-12-01 | C188: 36.372
B189: 1974-01-01 | C189: 36.709
B190: 1974-02-01 | C190: 37.130
B191: 1974-03-01 | C191: 37.130
B192: 1974-04-01 | C192: 37.298
B193: 1974-05-01 | C193: 37.551
B194: 1974-06-01 | C194: 37.635
B195: 1974-07-01 | C195: 37.803
B196: 1974-08-01 | C196: 37.887
B197: 1974-09-01 | C197: 38.056
B198: 1974-10-01 | C198: 38.224
B199: 1974-11-01 | C199: 38.561
B200: 1974-12-01 | C200: 38.561
... 612 more rows

Sheet BilMoG-7 (hidden)
A3: =MAX(A9:A300) -> 2024-02-29
A4: https://www.bundesbank.de/dynamic/action/de/startseite/suche/747716/allgemeine-suche?query=Abzinsungszinss%C3%A4tze
A6: =MAX(A9:B372) -> 2024-02-29 | B6: % p.a. | L6: % p.a. | P6: =COUNTIF(P9:P140,0) -> 0 | V6: % p.a. | AF6: % p.a. | AP6: % p.a.
B7: Abzinsungszinssatz gemäß §253 Abs. 2 HGB bei einer Restlaufzeit von .... Jahr(en) | L7: Abzinsungszinssatz gemäß §253 Abs. 2 HGB bei einer Restlaufzeit von .... Jahren | V7: Abzinsungszinssatz gemäß §253 Abs. 2 HGB bei einer Restlaufzeit von .... Jahren | AF7: Abzinsungszinssatz gemäß §253 Abs. 2 HGB bei einer Restlaufzeit von .... Jahren | AP7: Abzinsungszinssatz gemäß §253 Abs. 2 HGB bei einer Restlaufzeit von .... Jahren
B8: 1 | C8: 2 | D8: 3 | E8: 4 | F8: 5 | G8: 6 | H8: 7 | I8: 8 | J8: 9 | K8: 10 | L8: 11 | M8: 12 | N8: 13 | O8: 14 | P8: 15 | Q8: 16 | R8: 17 | S8: 18 | T8: 19 | U8: 20 | V8: 21 | W8: 22 | X8: 23 | Y8: 24 | Z8: 25 | AA8: 26 | AB8: 27 | AC8: 28 | AD8: 29 | AE8: 30 | AF8: 31 | AG8: 32 | AH8: 33 | AI8: 34 | AJ8: 35 | AK8: 36 | AL8: 37 | AM8: 38 | AN8: 39 | AO8: 40 | AP8: 41 | AQ8: 42 | AR8: 43 | AS8: 44 | AT8: 45 | AU8: 46 | AV8: 47 | AW8: 48 | AX8: 49 | AY8: 50
A9: 2008-12-31 | B9: 3.93 | C9: 4.07 | D9: 4.23 | E9: 4.38 | F9: 4.5 | G9: 4.62 | H9: 4.72 | I9: 4.82 | J9: 4.91 | K9: 4.98 | L9: 5.05 | M9: 5.11 | N9: 5.16 | O9: 5.21 | P9: 5.25 | Q9: 5.28 | R9: 5.31 | S9: 5.34 | T9: 5.36 | U9: 5.38 | V9: 5.39 | W9: 5.39 | X9: 5.4 | Y9: 5.4 | Z9: 5.41 | AA9: 5.4 | AB9: 5.4 | AC9: 5.39 | AD9: 5.39 | AE9: 5.38 | AF9: 5.37 | AG9: 5.37 | AH9: 5.36 | AI9: 5.35 | AJ9: 5.34 | AK9: 5.33 | AL9: 5.33 | AM9: 5.32 | AN9: 5.32 | AO9: 5.31 | AP9: 5.3 | AQ9: 5.29 | AR9: 5.28 | AS9: 5.27 | AT9: 5.26 | AU9: 5.26 | AV9: 5.25 | AW9: 5.24 | AX9: 5.23 | AY9: 5.23 | AZ9: 2.75% | BA9: =+AZ9*100 -> 2.75
A10: 2009-01-31 | B10: 3.94 | C10: 4.08 | D10: 4.24 | E10: 4.4 | F10: 4.51 | G10: 4.62 | H10: 4.73 | I10: 4.83 | J10: 4.91 | K10: 4.99 | L10: 5.06 | M10: 5.12 | N10: 5.17 | O10: 5.22 | P10: 5.26 | Q10: 5.29 | R10: 5.32 | S10: 5.35 | T10: 5.37 | U10: 5.39 | V10: 5.4 | W10: 5.4 | X10: 5.41 | Y10: 5.41 | Z10: 5.42 | AA10: 5.41 | AB10: 5.4 | AC10: 5.4 | AD10: 5.39 | AE10: 5.39 | AF10: 5.38 | AG10: 5.37 | AH10: 5.36 | AI10: 5.35 | AJ10: 5.35 | AK10: 5.34 | AL10: 5.33 | AM10: 5.32 | AN10: 5.32 | AO10: 5.31 | AP10: 5.3 | AQ10: 5.29 | AR10: 5.28 | AS10: 5.27 | AT10: 5.27 | AU10: 5.26 | AV10: 5.25 | AW10: 5.24 | AX10: 5.24 | AY10: 5.23 | AZ10: 2.75% | BA10: =+AZ10*100 -> 2.75
A11: 2009-02-28 | B11: 3.94 | C11: 4.08 | D11: 4.24 | E11: 4.41 | F11: 4.51 | G11: 4.63 | H11: 4.74 | I11: 4.83 | J11: 4.92 | K11: 5 | L11: 5.07 | M11: 5.13 | N11: 5.18 | O11: 5.23 | P11: 5.27 | Q11: 5.3 | R11: 5.33 | S11: 5.36 | T11: 5.38 | U11: 5.4 | V11: 5.4 | W11: 5.41 | X11: 5.41 | Y11: 5.42 | Z11: 5.42 | AA11: 5.42 | AB11: 5.41 | AC11: 5.4 | AD11: 5.4 | AE11: 5.39 | AF11: 5.38 | AG11: 5.37 | AH11: 5.36 | AI11: 5.35 | AJ11: 5.35 | AK11: 5.34 | AL11: 5.33 | AM11: 5.32 | AN11: 5.32 | AO11: 5.31 | AP11: 5.3 | AQ11: 5.29 | AR11: 5.28 | AS11: 5.27 | AT11: 5.26 | AU11: 5.26 | AV11: 5.25 | AW11: 5.24 | AX11: 5.23 | AY11: 5.23 | AZ11: 2.75% | BA11: 2.75
A12: 2009-03-31 | B12: 3.95 | C12: 4.08 | D12: 4.24 | E12: 4.41 | F12: 4.51 | G12: 4.63 | H12: 4.74 | I12: 4.84 | J12: 4.93 | K12: 5.01 | L12: 5.08 | M12: 5.13 | N12: 5.19 | O12: 5.24 | P12: 5.28 | Q12: 5.31 | R12: 5.34 | S12: 5.37 | T12: 5.39 | U12: 5.41 | V12: 5.41 | W12: 5.42 | X12: 5.42 | Y12: 5.43 | Z12: 5.43 | AA12: 5.42 | AB12: 5.42 | AC12: 5.41 | AD12: 5.4 | AE12: 5.4 | AF12: 5.39 | AG12: 5.38 | AH12: 5.37 | AI12: 5.36 | AJ12: 5.35 | AK12: 5.34 | AL12: 5.34 | AM12: 5.33 | AN12: 5.32 | AO12: 5.32 | AP12: 5.31 | AQ12: 5.3 | AR12: 5.29 | AS12: 5.28 | AT12: 5.27 | AU12: 5.26 | AV12: 5.25 | AW12: 5.25 | AX12: 5.24 | AY12: 5.23 | AZ12: 2.75% | BA12: 2.75
A13: 2009-04-30 | B13: 3.95 | C13: 4.08 | D13: 4.24 | E13: 4.41 | F13: 4.51 | G13: 4.63 | H13: 4.74 | I13: 4.84 | J13: 4.93 | K13: 5.01 | L13: 5.08 | M13: 5.14 | N13: 5.2 | O13: 5.24 | P13: 5.29 | Q13: 5.32 | R13: 5.35 | S13: 5.37 | T13: 5.39 | U13: 5.41 | V13: 5.42 | W13: 5.42 | X13: 5.43 | Y13: 5.43 | Z13: 5.43 | AA13: 5.43 | AB13: 5.42 | AC13: 5.41 | AD13: 5.41 | AE13: 5.4 | AF13: 5.39 | AG13: 5.38 | AH13: 5.37 | AI13: 5.36 | AJ13: 5.35 | AK13: 5.35 | AL13: 5.34 | AM13: 5.33 | AN13: 5.32 | AO13: 5.32 | AP13: 5.31 | AQ13: 5.3 | AR13: 5.29 | AS13: 5.28 | AT13: 5.27 | AU13: 5.26 | AV13: 5.26 | AW13: 5.25 | AX13: 5.24 | AY13: 5.23 | AZ13: 2.75% | BA13: 2.75
A14: 2009-05-31 | B14: 3.93 | C14: 4.07 | D14: 4.23 | E14: 4.4 | F14: 4.51 | G14: 4.63 | H14: 4.74 | I14: 4.84 | J14: 4.93 | K14: 5.01 | L14: 5.08 | M14: 5.14 | N14: 5.2 | O14: 5.25 | P14: 5.29 | Q14: 5.32 | R14: 5.35 | S14: 5.37 | T14: 5.4 | U14: 5.42 | V14: 5.42 | W14: 5.42 | X14: 5.43 | Y14: 5.43 | Z14: 5.43 | AA14: 5.43 | AB14: 5.42 | AC14: 5.41 | AD14: 5.41 | AE14: 5.4 | AF14: 5.39 | AG14: 5.38 | AH14: 5.37 | AI14: 5.36 | AJ14: 5.35 | AK14: 5.34 | AL14: 5.34 | AM14: 5.33 | AN14: 5.32 | AO14: 5.31 | AP14: 5.3 | AQ14: 5.29 | AR14: 5.29 | AS14: 5.28 | AT14: 5.27 | AU14: 5.26 | AV14: 5.25 | AW14: 5.24 | AX14: 5.24 | AY14: 5.23 | AZ14: 2.75% | BA14: 2.75
A15: 2009-06-30 | B15: 3.92 | C15: 4.05 | D15: 4.22 | E15: 4.39 | F15: 4.5 | G15: 4.62 | H15: 4.73 | I15: 4.83 | J15: 4.92 | K15: 5 | L15: 5.08 | M15: 5.14 | N15: 5.19 | O15: 5.24 | P15: 5.29 | Q15: 5.32 | R15: 5.35 | S15: 5.37 | T15: 5.4 | U15: 5.42 | V15: 5.42 | W15: 5.42 | X15: 5.43 | Y15: 5.43 | Z15: 5.43 | AA15: 5.43 | AB15: 5.42 | AC15: 5.41 | AD15: 5.4 | AE15: 5.4 | AF15: 5.39 | AG15: 5.38 | AH15: 5.37 | AI15: 5.36 | AJ15: 5.35 | AK15: 5.34 | AL15: 5.33 | AM15: 5.33 | AN15: 5.32 | AO15: 5.31 | AP15: 5.3 | AQ15: 5.29 | AR15: 5.28 | AS15: 5.27 | AT15: 5.27 | AU15: 5.26 | AV15: 5.25 | AW15: 5.24 | AX15: 5.23 | AY15: 5.23 | AZ15: 2.75% | BA15: 2.75
A16: 2009-07-31 | B16: 3.9 | C16: 4.04 | D16: 4.2 | E16: 4.38 | F16: 4.49 | G16: 4.61 | H16: 4.72 | I16: 4.82 | J16: 4.91 | K16: 4.99 | L16: 5.07 | M16: 5.13 | N16: 5.19 | O16: 5.24 | P16: 5.28 | Q16: 5.31 | R16: 5.34 | S16: 5.37 | T16: 5.39 | U16: 5.41 | V16: 5.41 | W16: 5.42 | X16: 5.42 | Y16: 5.42 | Z16: 5.43 | AA16: 5.42 | AB16: 5.41 | AC16: 5.4 | AD16: 5.4 | AE16: 5.39 | AF16: 5.38 | AG16: 5.37 | AH16: 5.36 | AI16: 5.35 | AJ16: 5.34 | AK16: 5.33 | AL16: 5.32 | AM16: 5.32 | AN16: 5.31 | AO16: 5.3 | AP16: 5.29 | AQ16: 5.28 | AR16: 5.27 | AS16: 5.26 | AT16: 5.26 | AU16: 5.25 | AV16: 5.24 | AW16: 5.23 | AX16: 5.22 | AY16: 5.22 | AZ16: 2.75% | BA16: 2.75
A17: 2009-08-31 | B17: 3.88 | C17: 4.02 | D17: 4.19 | E17: 4.35 | F17: 4.48 | G17: 4.6 | H17: 4.72 | I17: 4.82 | J17: 4.91 | K17: 4.99 | L17: 5.06 | M17: 5.12 | N17: 5.18 | O17: 5.23 | P17: 5.28 | Q17: 5.31 | R17: 5.34 | S17: 5.36 | T17: 5.39 | U17: 5.41 | V17: 5.41 | W17: 5.41 | X17: 5.42 | Y17: 5.42 | Z17: 5.42 | AA17: 5.41 | AB17: 5.41 | AC17: 5.4 | AD17: 5.39 | AE17: 5.39 | AF17: 5.38 | AG17: 5.36 | AH17: 5.35 | AI17: 5.34 | AJ17: 5.34 | AK17: 5.33 | AL17: 5.32 | AM17: 5.31 | AN17: 5.3 | AO17: 5.3 | AP17: 5.29 | AQ17: 5.28 | AR17: 5.27 | AS17: 5.26 | AT17: 5.25 | AU17: 5.24 | AV17: 5.23 | AW17: 5.23 | AX17: 5.22 | AY17: 5.21 | AZ17: 2.75% | BA17: 2.75
A18: 2009-09-30 | B18: 3.87 | C18: 4.01 | D18: 4.18 | E18: 4.34 | F18: 4.47 | G18: 4.6 | H18: 4.71 | I18: 4.81 | J18: 4.9 | K18: 4.98 | L18: 5.06 | M18: 5.12 | N18: 5.18 | O18: 5.23 | P18: 5.27 | Q18: 5.3 | R18: 5.33 | S18: 5.36 | T18: 5.38 | U18: 5.4 | V18: 5.41 | W18: 5.41 | X18: 5.41 | Y18: 5.41 | Z18: 5.42 | AA18: 5.41 | AB18: 5.4 | AC18: 5.39 | AD18: 5.39 | AE18: 5.38 | AF18: 5.37 | AG18: 5.36 | AH18: 5.35 | AI18: 5.34 | AJ18: 5.33 | AK18: 5.32 | AL18: 5.31 | AM18: 5.3 | AN18: 5.3 | AO18: 5.29 | AP18: 5.28 | AQ18: 5.27 | AR18: 5.26 | AS18: 5.25 | AT18: 5.24 | AU18: 5.23 | AV18: 5.23 | AW18: 5.22 | AX18: 5.21 | AY18: 5.2 | AZ18: 2.75% | BA18: 2.75
A19: 2009-10-31 | B19: 3.85 | C19: 4 | D19: 4.17 | E19: 4.33 | F19: 4.46 | G19: 4.58 | H19: 4.7 | I19: 4.8 | J19: 4.89 | K19: 4.97 | L19: 5.04 | M19: 5.11 | N19: 5.17 | O19: 5.22 | P19: 5.26 | Q19: 5.29 | R19: 5.32 | S19: 5.35 | T19: 5.37 | U19: 5.39 | V19: 5.39 | W19: 5.4 | X19: 5.4 | Y19: 5.4 | Z19: 5.4 | AA19: 5.4 | AB19: 5.39 | AC19: 5.38 | AD19: 5.37 | AE19: 5.37 | AF19: 5.36 | AG19: 5.34 | AH19: 5.33 | AI19: 5.32 | AJ19: 5.31 | AK19: 5.31 | AL19: 5.3 | AM19: 5.29 | AN19: 5.28 | AO19: 5.27 | AP19: 5.26 | AQ19: 5.25 | AR19: 5.25 | AS19: 5.24 | AT19: 5.23 | AU19: 5.22 | AV19: 5.21 | AW19: 5.2 | AX19: 5.2 | AY19: 5.19 | AZ19: 2.75% | BA19: 2.75
A20: 2009-11-30 | B20: 3.83 | C20: 3.98 | D20: 4.16 | E20: 4.31 | F20: 4.45 | G20: 4.57 | H20: 4.69 | I20: 4.79 | J20: 4.88 | K20: 4.96 | L20: 5.03 | M20: 5.1 | N20: 5.16 | O20: 5.21 | P20: 5.25 | Q20: 5.28 | R20: 5.31 | S20: 5.34 | T20: 5.36 | U20: 5.38 | V20: 5.38 | W20: 5.39 | X20: 5.39 | Y20: 5.39 | Z20: 5.39 | AA20: 5.38 | AB20: 5.38 | AC20: 5.37 | AD20: 5.36 | AE20: 5.36 | AF20: 5.34 | AG20: 5.33 | AH20: 5.32 | AI20: 5.31 | AJ20: 5.3 | AK20: 5.29 | AL20: 5.28 | AM20: 5.28 | AN20: 5.27 | AO20: 5.26 | AP20: 5.25 | AQ20: 5.24 | AR20: 5.23 | AS20: 5.22 | AT20: 5.21 | AU20: 5.21 | AV20: 5.2 | AW20: 5.19 | AX20: 5.18 | AY20: 5.18 | AZ20: 2.75% | BA20: 2.75
A21: 2009-12-31 | B21: 3.82 | C21: 3.97 | D21: 4.15 | E21: 4.31 | F21: 4.44 | G21: 4.57 | H21: 4.68 | I21: 4.78 | J21: 4.87 | K21: 4.95 | L21: 5.03 | M21: 5.09 | N21: 5.15 | O21: 5.2 | P21: 5.25 | Q21: 5.28 | R21: 5.31 | S21: 5.33 | T21: 5.36 | U21: 5.38 | V21: 5.38 | W21: 5.38 | X21: 5.38 | Y21: 5.38 | Z21: 5.39 | AA21: 5.38 | AB21: 5.37 | AC21: 5.36 | AD21: 5.35 | AE21: 5.35 | AF21: 5.33 | AG21: 5.32 | AH21: 5.31 | AI21: 5.3 | AJ21: 5.29 | AK21: 5.28 | AL21: 5.27 | AM21: 5.27 | AN21: 5.26 | AO21: 5.25 | AP21: 5.24 | AQ21: 5.23 | AR21: 5.22 | AS21: 5.21 | AT21: 5.2 | AU21: 5.2 | AV21: 5.19 | AW21: 5.18 | AX21: 5.17 | AY21: 5.17 | AZ21: 2.75% | BA21: 2.75
A22: 2010-01-31 | B22: 3.81 | C22: 3.96 | D22: 4.14 | E22: 4.3 | F22: 4.44 | G22: 4.56 | H22: 4.67 | I22: 4.78 | J22: 4.87 | K22: 4.95 | L22: 5.02 | M22: 5.09 | N22: 5.15 | O22: 5.2 | P22: 5.24 | Q22: 5.27 | R22: 5.3 | S22: 5.33 | T22: 5.35 | U22: 5.37 | V22: 5.37 | W22: 5.37 | X22: 5.38 | Y22: 5.38 | Z22: 5.38 | AA22: 5.37 | AB22: 5.36 | AC22: 5.35 | AD22: 5.35 | AE22: 5.34 | AF22: 5.33 | AG22: 5.31 | AH22: 5.3 | AI22: 5.29 | AJ22: 5.28 | AK22: 5.27 | AL22: 5.27 | AM22: 5.26 | AN22: 5.25 | AO22: 5.24 | AP22: 5.23 | AQ22: 5.22 | AR22: 5.21 | AS22: 5.2 | AT22: 5.2 | AU22: 5.19 | AV22: 5.18 | AW22: 5.17 | AX22: 5.17 | AY22: 5.16 | AZ22: 2.75% | BA22: 2.75
A23: 2010-02-28 | B23: 3.8 | C23: 3.96 | D23: 4.14 | E23: 4.29 | F23: 4.43 | G23: 4.56 | H23: 4.67 | I23: 4.77 | J23: 4.86 | K23: 4.94 | L23: 5.02 | M23: 5.08 | N23: 5.14 | O23: 5.19 | P23: 5.24 | Q23: 5.27 | R23: 5.3 | S23: 5.32 | T23: 5.34 | U23: 5.36 | V23: 5.36 | W23: 5.37 | X23: 5.37 | Y23: 5.37 | Z23: 5.37 | AA23: 5.36 | AB23: 5.35 | AC23: 5.34 | AD23: 5.33 | AE23: 5.33 | AF23: 5.31 | AG23: 5.3 | AH23: 5.29 | AI23: 5.28 | AJ23: 5.27 | AK23: 5.26 | AL23: 5.25 | AM23: 5.24 | AN23: 5.24 | AO23: 5.23 | AP23: 5.22 | AQ23: 5.21 | AR23: 5.2 | AS23: 5.19 | AT23: 5.18 | AU23: 5.18 | AV23: 5.17 | AW23: 5.16 | AX23: 5.15 | AY23: 5.15 | AZ23: 2.75% | BA23: 2.75
A24: 2010-03-31 | B24: 3.78 | C24: 3.95 | D24: 4.13 | E24: 4.29 | F24: 4.42 | G24: 4.55 | H24: 4.66 | I24: 4.76 | J24: 4.85 | K24: 4.94 | L24: 5.01 | M24: 5.07 | N24: 5.13 | O24: 5.18 | P24: 5.23 | Q24: 5.26 | R24: 5.29 | S24: 5.31 | T24: 5.33 | U24: 5.35 | V24: 5.36 | W24: 5.36 | X24: 5.36 | Y24: 5.36 | Z24: 5.36 | AA24: 5.35 | AB24: 5.34 | AC24: 5.33 | AD24: 5.32 | AE24: 5.32 | AF24: 5.3 | AG24: 5.29 | AH24: 5.28 | AI24: 5.27 | AJ24: 5.26 | AK24: 5.25 | AL24: 5.24 | AM24: 5.23 | AN24: 5.22 | AO24: 5.22 | AP24: 5.21 | AQ24: 5.2 | AR24: 5.19 | AS24: 5.18 | AT24: 5.17 | AU24: 5.16 | AV24: 5.16 | AW24: 5.15 | AX24: 5.14 | AY24: 5.13 | AZ24: 2.75% | BA24: 2.75
A25: 2010-04-30 | B25: 3.77 | C25: 3.94 | D25: 4.12 | E25: 4.28 | F25: 4.42 | G25: 4.54 | H25: 4.65 | I25: 4.76 | J25: 4.85 | K25: 4.93 | L25: 5 | M25: 5.07 | N25: 5.13 | O25: 5.18 | P25: 5.22 | Q25: 5.25 | R25: 5.28 | S25: 5.3 | T25: 5.33 | U25: 5.34 | V25: 5.35 | W25: 5.35 | X25: 5.35 | Y25: 5.35 | Z25: 5.35 | AA25: 5.34 | AB25: 5.33 | AC25: 5.32 | AD25: 5.31 | AE25: 5.3 | AF25: 5.29 | AG25: 5.28 | AH25: 5.27 | AI25: 5.25 | AJ25: 5.24 | AK25: 5.23 | AL25: 5.23 | AM25: 5.22 | AN25: 5.21 | AO25: 5.2 | AP25: 5.19 | AQ25: 5.18 | AR25: 5.17 | AS25: 5.16 | AT25: 5.16 | AU25: 5.15 | AV25: 5.14 | AW25: 5.13 | AX25: 5.13 | AY25: 5.12 | AZ25: 2.75% | BA25: 2.75
A26: 2010-05-31 | B26: 3.77 | C26: 3.94 | D26: 4.12 | E26: 4.28 | F26: 4.41 | G26: 4.54 | H26: 4.65 | I26: 4.75 | J26: 4.84 | K26: 4.92 | L26: 5 | M26: 5.06 | N26: 5.12 | O26: 5.17 | P26: 5.22 | Q26: 5.25 | R26: 5.27 | S26: 5.3 | T26: 5.32 | U26: 5.34 | V26: 5.34 | W26: 5.34 | X26: 5.34 | Y26: 5.34 | Z26: 5.34 | AA26: 5.33 | AB26: 5.32 | AC26: 5.31 | AD26: 5.3 | AE26: 5.29 | AF26: 5.28 | AG26: 5.26 | AH26: 5.25 | AI26: 5.24 | AJ26: 5.23 | AK26: 5.22 | AL26: 5.21 | AM26: 5.2 | AN26: 5.19 | AO26: 5.19 | AP26: 5.18 | AQ26: 5.17 | AR26: 5.16 | AS26: 5.15 | AT26: 5.14 | AU26: 5.13 | AV26: 5.13 | AW26: 5.12 | AX26: 5.11 | AY26: 5.11 | AZ26: 2.75% | BA26: 2.75
A27: 2010-06-30 | B27: 3.77 | C27: 3.93 | D27: 4.11 | E27: 4.27 | F27: 4.41 | G27: 4.54 | H27: 4.65 | I27: 4.75 | J27: 4.84 | K27: 4.92 | L27: 5 | M27: 5.06 | N27: 5.12 | O27: 5.17 | P27: 5.21 | Q27: 5.24 | R27: 5.27 | S27: 5.29 | T27: 5.31 | U27: 5.33 | V27: 5.33 | W27: 5.33 | X27: 5.33 | Y27: 5.33 | Z27: 5.33 | AA27: 5.32 | AB27: 5.31 | AC27: 5.3 | AD27: 5.29 | AE27: 5.28 | AF27: 5.26 | AG27: 5.25 | AH27: 5.24 | AI27: 5.23 | AJ27: 5.22 | AK27: 5.21 | AL27: 5.2 | AM27: 5.19 | AN27: 5.18 | AO27: 5.17 | AP27: 5.16 | AQ27: 5.15 | AR27: 5.14 | AS27: 5.13 | AT27: 5.13 | AU27: 5.12 | AV27: 5.11 | AW27: 5.1 | AX27: 5.1 | AY27: 5.09 | AZ27: 2.75% | BA27: 2.75
A28: 2010-07-31 | B28: 3.77 | C28: 3.93 | D28: 4.11 | E28: 4.26 | F28: 4.4 | G28: 4.53 | H28: 4.64 | I28: 4.74 | J28: 4.83 | K28: 4.91 | L28: 4.99 | M28: 5.05 | N28: 5.11 | O28: 5.16 | P28: 5.2 | Q28: 5.23 | R28: 5.26 | S28: 5.28 | T28: 5.3 | U28: 5.32 | V28: 5.32 | W28: 5.32 | X28: 5.32 | Y28: 5.32 | Z28: 5.31 | AA28: 5.3 | AB28: 5.29 | AC28: 5.28 | AD28: 5.27 | AE28: 5.26 | AF28: 5.25 | AG28: 5.23 | AH28: 5.22 | AI28: 5.21 | AJ28: 5.2 | AK28: 5.19 | AL28: 5.18 | AM28: 5.17 | AN28: 5.16 | AO28: 5.15 | AP28: 5.14 | AQ28: 5.13 | AR28: 5.12 | AS28: 5.12 | AT28: 5.11 | AU28: 5.1 | AV28: 5.09 | AW28: 5.09 | AX28: 5.08 | AY28: 5.07 | AZ28: 2.75% | BA28: 2.75
A29: 2010-08-31 | B29: 3.76 | C29: 3.92 | D29: 4.1 | E29: 4.25 | F29: 4.39 | G29: 4.51 | H29: 4.62 | I29: 4.73 | J29: 4.82 | K29: 4.9 | L29: 4.97 | M29: 5.03 | N29: 5.09 | O29: 5.14 | P29: 5.19 | Q29: 5.22 | R29: 5.24 | S29: 5.26 | T29: 5.28 | U29: 5.3 | V29: 5.3 | W29: 5.3 | X29: 5.3 | Y29: 5.3 | Z29: 5.29 | AA29: 5.28 | AB29: 5.27 | AC29: 5.26 | AD29: 5.25 | AE29: 5.24 | AF29: 5.23 | AG29: 5.21 | AH29: 5.2 | AI29: 5.19 | AJ29: 5.18 | AK29: 5.17 | AL29: 5.16 | AM29: 5.15 | AN29: 5.14 | AO29: 5.13 | AP29: 5.12 | AQ29: 5.11 | AR29: 5.1 | AS29: 5.09 | AT29: 5.08 | AU29: 5.08 | AV29: 5.07 | AW29: 5.06 | AX29: 5.05 | AY29: 5.05 | AZ29: 2.75% | BA29: 2.75
A30: 2010-09-30 | B30: 3.76 | C30: 3.91 | D30: 4.09 | E30: 4.24 | F30: 4.38 | G30: 4.5 | H30: 4.61 | I30: 4.72 | J30: 4.81 | K30: 4.89 | L30: 4.96 | M30: 5.02 | N30: 5.08 | O30: 5.13 | P30: 5.17 | Q30: 5.2 | R30: 5.23 | S30: 5.25 | T30: 5.27 | U30: 5.29 | V30: 5.28 | W30: 5.28 | X30: 5.28 | Y30: 5.28 | Z30: 5.28 | AA30: 5.26 | AB30: 5.25 | AC30: 5.24 | AD30: 5.23 | AE30: 5.22 | AF30: 5.2 | AG30: 5.19 | AH30: 5.18 | AI30: 5.17 | AJ30: 5.15 | AK30: 5.14 | AL30: 5.13 | AM30: 5.12 | AN30: 5.11 | AO30: 5.1 | AP30: 5.09 | AQ30: 5.08 | AR30: 5.08 | AS30: 5.07 | AT30: 5.06 | AU30: 5.05 | AV30: 5.04 | AW30: 5.04 | AX30: 5.03 | AY30: 5.02 | AZ30: 2.75% | BA30: 2.75
A31: 2010-10-31 | B31: 3.75 | C31: 3.91 | D31: 4.08 | E31: 4.23 | F31: 4.37 | G31: 4.49 | H31: 4.6 | I31: 4.7 | J31: 4.79 | K31: 4.87 | L31: 4.95 | M31: 5.01 | N31: 5.07 | O31: 5.12 | P31: 5.16 | Q31: 5.19 | R31: 5.21 | S31: 5.23 | T31: 5.25 | U31: 5.27 | V31: 5.27 | W31: 5.27 | X31: 5.26 | Y31: 5.26 | Z31: 5.26 | AA31: 5.24 | AB31: 5.23 | AC31: 5.22 | AD31: 5.21 | AE31: 5.2 | AF31: 5.18 | AG31: 5.17 | AH31: 5.16 | AI31: 5.14 | AJ31: 5.13 | AK31: 5.12 | AL31: 5.11 | AM31: 5.1 | AN31: 5.09 | AO31: 5.08 | AP31: 5.07 | AQ31: 5.06 | AR31: 5.05 | AS31: 5.04 | AT31: 5.04 | AU31: 5.03 | AV31: 5.02 | AW31: 5.01 | AX31: 5.01 | AY31: 5 | AZ31: 2.75% | BA31: 2.75
A32: 2010-11-30 | B32: 3.75 | C32: 3.9 | D32: 4.07 | E32: 4.22 | F32: 4.36 | G32: 4.48 | H32: 4.6 | I32: 4.7 | J32: 4.79 | K32: 4.87 | L32: 4.94 | M32: 5 | N32: 5.06 | O32: 5.11 | P32: 5.15 | Q32: 5.18 | R32: 5.21 | S32: 5.23 | T32: 5.25 | U32: 5.26 | V32: 5.26 | W32: 5.25 | X32: 5.25 | Y32: 5.25 | Z32: 5.25 | AA32: 5.23 | AB32: 5.22 | AC32: 5.21 | AD32: 5.19 | AE32: 5.18 | AF32: 5.17 | AG32: 5.15 | AH32: 5.14 | AI32: 5.13 | AJ32: 5.11 | AK32: 5.1 | AL32: 5.09 | AM32: 5.08 | AN32: 5.07 | AO32: 5.06 | AP32: 5.05 | AQ32: 5.04 | AR32: 5.03 | AS32: 5.03 | AT32: 5.02 | AU32: 5.01 | AV32: 5 | AW32: 4.99 | AX32: 4.99 | AY32: 4.98 | AZ32: 2.75% | BA32: 2.75
A33: 2010-12-31 | B33: 3.75 | C33: 3.9 | D33: 4.07 | E33: 4.22 | F33: 4.36 | G33: 4.48 | H33: 4.59 | I33: 4.69 | J33: 4.78 | K33: 4.86 | L33: 4.94 | M33: 5 | N33: 5.06 | O33: 5.11 | P33: 5.15 | Q33: 5.18 | R33: 5.2 | S33: 5.22 | T33: 5.24 | U33: 5.26 | V33: 5.25 | W33: 5.25 | X33: 5.24 | Y33: 5.24 | Z33: 5.24 | AA33: 5.22 | AB33: 5.21 | AC33: 5.2 | AD33: 5.18 | AE33: 5.17 | AF33: 5.16 | AG33: 5.14 | AH33: 5.13 | AI33: 5.11 | AJ33: 5.1 | AK33: 5.09 | AL33: 5.08 | AM33: 5.07 | AN33: 5.06 | AO33: 5.05 | AP33: 5.04 | AQ33: 5.03 | AR33: 5.02 | AS33: 5.01 | AT33: 5 | AU33: 5 | AV33: 4.99 | AW33: 4.98 | AX33: 4.97 | AY33: 4.97 | AZ33: 2.75% | BA33: 2.75
A34: 2011-01-31 | B34: 3.75 | C34: 3.9 | D34: 4.07 | E34: 4.22 | F34: 4.35 | G34: 4.48 | H34: 4.59 | I34: 4.69 | J34: 4.78 | K34: 4.86 | L34: 4.94 | M34: 5 | N34: 5.06 | O34: 5.11 | P34: 5.15 | Q34: 5.17 | R34: 5.2 | S34: 5.22 | T34: 5.24 | U34: 5.25 | V34: 5.25 | W34: 5.24 | X34: 5.24 | Y34: 5.23 | Z34: 5.23 | AA34: 5.21 | AB34: 5.2 | AC34: 5.19 | AD34: 5.17 | AE34: 5.16 | AF34: 5.15 | AG34: 5.13 | AH34: 5.12 | AI34: 5.1 | AJ34: 5.09 | AK34: 5.08 | AL34: 5.07 | AM34: 5.06 | AN34: 5.05 | AO34: 5.04 | AP34: 5.03 | AQ34: 5.02 | AR34: 5.01 | AS34: 5 | AT34: 4.99 | AU34: 4.98 | AV34: 4.97 | AW34: 4.97 | AX34: 4.96 | AY34: 4.95 | AZ34: 2.75% | BA34: 2.75
A35: 2011-02-28 | B35: 3.75 | C35: 3.9 | D35: 4.07 | E35: 4.22 | F35: 4.36 | G35: 4.48 | H35: 4.59 | I35: 4.69 | J35: 4.78 | K35: 4.86 | L35: 4.93 | M35: 5 | N35: 5.05 | O35: 5.1 | P35: 5.14 | Q35: 5.17 | R35: 5.19 | S35: 5.21 | T35: 5.23 | U35: 5.25 | V35: 5.24 | W35: 5.23 | X35: 5.23 | Y35: 5.23 | Z35: 5.22 | AA35: 5.2 | AB35: 5.19 | AC35: 5.18 | AD35: 5.16 | AE35: 5.15 | AF35: 5.13 | AG35: 5.12 | AH35: 5.1 | AI35: 5.09 | AJ35: 5.08 | AK35: 5.06 | AL35: 5.05 | AM35: 5.04 | AN35: 5.03 | AO35: 5.02 | AP35: 5.01 | AQ35: 5 | AR35: 4.99 | AS35: 4.98 | AT35: 4.98 | AU35: 4.97 | AV35: 4.96 | AW35: 4.95 | AX35: 4.94 | AY35: 4.94 | AZ35: 2.75% | BA35: 2.75
A36: 2011-03-31 | B36: 3.76 | C36: 3.91 | D36: 4.08 | E36: 4.23 | F36: 4.36 | G36: 4.48 | H36: 4.59 | I36: 4.69 | J36: 4.78 | K36: 4.86 | L36: 4.93 | M36: 5 | N36: 5.05 | O36: 5.1 | P36: 5.14 | Q36: 5.17 | R36: 5.19 | S36: 5.21 | T36: 5.23 | U36: 5.24 | V36: 5.24 | W36: 5.23 | X36: 5.22 | Y36: 5.22 | Z36: 5.21 | AA36: 5.2 | AB36: 5.18 | AC36: 5.17 | AD36: 5.15 | AE36: 5.14 | AF36: 5.13 | AG36: 5.11 | AH36: 5.09 | AI36: 5.08 | AJ36: 5.07 | AK36: 5.05 | AL36: 5.04 | AM36: 5.03 | AN36: 5.02 | AO36: 5.01 | AP36: 5 | AQ36: 4.99 | AR36: 4.98 | AS36: 4.97 | AT36: 4.96 | AU36: 4.96 | AV36: 4.95 | AW36: 4.94 | AX36: 4.93 | AY36: 4.93 | AZ36: 2.75% | BA36: 2.75
A37: 2011-04-30 | B37: 3.76 | C37: 3.91 | D37: 4.08 | E37: 4.23 | F37: 4.36 | G37: 4.48 | H37: 4.59 | I37: 4.69 | J37: 4.78 | K37: 4.86 | L37: 4.93 | M37: 4.99 | N37: 5.05 | O37: 5.1 | P37: 5.14 | Q37: 5.16 | R37: 5.18 | S37: 5.2 | T37: 5.22 | U37: 5.24 | V37: 5.23 | W37: 5.22 | X37: 5.22 | Y37: 5.21 | Z37: 5.21 | AA37: 5.19 | AB37: 5.17 | AC37: 5.16 | AD37: 5.14 | AE37: 5.13 | AF37: 5.11 | AG37: 5.1 | AH37: 5.08 | AI37: 5.07 | AJ37: 5.05 | AK37: 5.04 | AL37: 5.03 | AM37: 5.02 | AN37: 5.01 | AO37: 5 | AP37: 4.99 | AQ37: 4.98 | AR37: 4.97 | AS37: 4.96 | AT37: 4.95 | AU37: 4.94 | AV37: 4.93 | AW37: 4.93 | AX37: 4.92 | AY37: 4.91 | AZ37: 2.75% | BA37: 2.75
A38: 2011-05-31 | B38: 3.76 | C38: 3.91 | D38: 4.08 | E38: 4.23 | F38: 4.36 | G38: 4.48 | H38: 4.59 | I38: 4.69 | J38: 4.77 | K38: 4.85 | L38: 4.93 | M38: 4.99 | N38: 5.04 | O38: 5.09 | P38: 5.13 | Q38: 5.16 | R38: 5.18 | S38: 5.2 | T38: 5.21 | U38: 5.23 | V38: 5.22 | W38: 5.21 | X38: 5.21 | Y38: 5.2 | Z38: 5.2 | AA38: 5.18 | AB38: 5.16 | AC38: 5.15 | AD38: 5.13 | AE38: 5.12 | AF38: 5.1 | AG38: 5.09 | AH38: 5.07 | AI38: 5.06 | AJ38: 5.04 | AK38: 5.03 | AL38: 5.02 | AM38: 5 | AN38: 4.99 | AO38: 4.98 | AP38: 4.97 | AQ38: 4.96 | AR38: 4.95 | AS38: 4.94 | AT38: 4.94 | AU38: 4.93 | AV38: 4.92 | AW38: 4.91 | AX38: 4.9 | AY38: 4.9 | AZ38: 2.75% | BA38: 2.75
A39: 2011-06-30 | B39: 3.77 | C39: 3.91 | D39: 4.08 | E39: 4.23 | F39: 4.36 | G39: 4.48 | H39: 4.59 | I39: 4.68 | J39: 4.77 | K39: 4.85 | L39: 4.92 | M39: 4.99 | N39: 5.04 | O39: 5.09 | P39: 5.13 | Q39: 5.16 | R39: 5.18 | S39: 5.2 | T39: 5.21 | U39: 5.23 | V39: 5.22 | W39: 5.21 | X39: 5.2 | Y39: 5.2 | Z39: 5.19 | AA39: 5.18 | AB39: 5.16 | AC39: 5.14 | AD39: 5.13 | AE39: 5.12 | AF39: 5.1 | AG39: 5.08 | AH39: 5.07 | AI39: 5.05 | AJ39: 5.04 | AK39: 5.02 | AL39: 5.01 | AM39: 5 | AN39: 4.99 | AO39: 4.98 | AP39: 4.97 | AQ39: 4.96 | AR39: 4.95 | AS39: 4.94 | AT39: 4.93 | AU39: 4.92 | AV39: 4.91 | AW39: 4.91 | AX39: 4.9 | AY39: 4.89 | AZ39: 2.75% | BA39: 2.75
A40: 2011-07-31 | B40: 3.77 | C40: 3.91 | D40: 4.08 | E40: 4.22 | F40: 4.35 | G40: 4.47 | H40: 4.58 | I40: 4.68 | J40: 4.77 | K40: 4.85 | L40: 4.92 | M40: 4.98 | N40: 5.04 | O40: 5.09 | P40: 5.13 | Q40: 5.15 | R40: 5.17 | S40: 5.19 | T40: 5.21 | U40: 5.22 | V40: 5.21 | W40: 5.2 | X40: 5.2 | Y40: 5.19 | Z40: 5.18 | AA40: 5.17 | AB40: 5.15 | AC40: 5.13 | AD40: 5.12 | AE40: 5.11 | AF40: 5.09 | AG40: 5.07 | AH40: 5.05 | AI40: 5.04 | AJ40: 5.03 | AK40: 5.01 | AL40: 5 | AM40: 4.99 | AN40: 4.98 | AO40: 4.97 | AP40: 4.96 | AQ40: 4.95 | AR40: 4.94 | AS40: 4.93 | AT40: 4.92 | AU40: 4.91 | AV40: 4.9 | AW40: 4.9 | AX40: 4.89 | AY40: 4.88 | AZ40: 2.75% | BA40: 2.75
A41: 2011-08-31 | B41: 3.78 | C41: 3.92 | D41: 4.08 | E41: 4.22 | F41: 4.36 | G41: 4.48 | H41: 4.59 | I41: 4.68 | J41: 4.77 | K41: 4.85 | L41: 4.92 | M41: 4.98 | N41: 5.04 | O41: 5.09 | P41: 5.13 | Q41: 5.15 | R41: 5.17 | S41: 5.19 | T41: 5.21 | U41: 5.22 | V41: 5.21 | W41: 5.2 | X41: 5.2 | Y41: 5.19 | Z41: 5.18 | AA41: 5.16 | AB41: 5.15 | AC41: 5.13 | AD41: 5.12 | AE41: 5.1 | AF41: 5.08 | AG41: 5.07 | AH41: 5.05 | AI41: 5.04 | AJ41: 5.02 | AK41: 5.01 | AL41: 5 | AM41: 4.98 | AN41: 4.97 | AO41: 4.96 | AP41: 4.95 | AQ41: 4.94 | AR41: 4.93 | AS41: 4.92 | AT41: 4.92 | AU41: 4.91 | AV41: 4.9 | AW41: 4.89 | AX41: 4.88 | AY41: 4.88 | AZ41: 2.75% | BA41: 2.75
A42: 2011-09-30 | B42: 3.79 | C42: 3.93 | D42: 4.08 | E42: 4.23 | F42: 4.36 | G42: 4.48 | H42: 4.59 | I42: 4.69 | J42: 4.77 | K42: 4.85 | L42: 4.92 | M42: 4.99 | N42: 5.04 | O42: 5.09 | P42: 5.13 | Q42: 5.15 | R42: 5.17 | S42: 5.19 | T42: 5.21 | U42: 5.22 | V42: 5.21 | W42: 5.2 | X42: 5.19 | Y42: 5.19 | Z42: 5.18 | AA42: 5.16 | AB42: 5.14 | AC42: 5.13 | AD42: 5.11 | AE42: 5.1 | AF42: 5.08 | AG42: 5.06 | AH42: 5.05 | AI42: 5.03 | AJ42: 5.02 | AK42: 5 | AL42: 4.99 | AM42: 4.98 | AN42: 4.97 | AO42: 4.96 | AP42: 4.95 | AQ42: 4.94 | AR42: 4.93 | AS42: 4.92 | AT42: 4.91 | AU42: 4.9 | AV42: 4.89 | AW42: 4.89 | AX42: 4.88 | AY42: 4.87 | AZ42: 2.75% | BA42: 2.75
A43: 2011-10-31 | B43: 3.8 | C43: 3.93 | D43: 4.09 | E43: 4.23 | F43: 4.36 | G43: 4.48 | H43: 4.59 | I43: 4.68 | J43: 4.77 | K43: 4.85 | L43: 4.92 | M43: 4.98 | N43: 5.04 | O43: 5.09 | P43: 5.13 | Q43: 5.15 | R43: 5.17 | S43: 5.19 | T43: 5.2 | U43: 5.22 | V43: 5.21 | W43: 5.2 | X43: 5.19 | Y43: 5.18 | Z43: 5.17 | AA43: 5.15 | AB43: 5.14 | AC43: 5.12 | AD43: 5.1 | AE43: 5.09 | AF43: 5.07 | AG43: 5.05 | AH43: 5.04 | AI43: 5.02 | AJ43: 5.01 | AK43: 4.99 | AL43: 4.98 | AM43: 4.97 | AN43: 4.96 | AO43: 4.95 | AP43: 4.94 | AQ43: 4.93 | AR43: 4.92 | AS43: 4.91 | AT43: 4.9 | AU43: 4.89 | AV43: 4.89 | AW43: 4.88 | AX43: 4.87 | AY43: 4.87 | AZ43: 2.75% | BA43: 2.75
A44: 2011-11-30 | B44: 3.81 | C44: 3.94 | D44: 4.09 | E44: 4.24 | F44: 4.37 | G44: 4.49 | H44: 4.6 | I44: 4.69 | J44: 4.78 | K44: 4.86 | L44: 4.93 | M44: 4.99 | N44: 5.05 | O44: 5.09 | P44: 5.14 | Q44: 5.16 | R44: 5.17 | S44: 5.19 | T44: 5.21 | U44: 5.22 | V44: 5.21 | W44: 5.2 | X44: 5.19 | Y44: 5.18 | Z44: 5.17 | AA44: 5.15 | AB44: 5.13 | AC44: 5.12 | AD44: 5.1 | AE44: 5.09 | AF44: 5.07 | AG44: 5.05 | AH44: 5.03 | AI44: 5.02 | AJ44: 5.01 | AK44: 4.99 | AL44: 4.98 | AM44: 4.97 | AN44: 4.96 | AO44: 4.94 | AP44: 4.93 | AQ44: 4.93 | AR44: 4.92 | AS44: 4.91 | AT44: 4.9 | AU44: 4.89 | AV44: 4.88 | AW44: 4.88 | AX44: 4.87 | AY44: 4.86 | AZ44: 2.75% | BA44: 2.75
A45: 2011-12-31 | B45: 3.82 | C45: 3.94 | D45: 4.09 | E45: 4.24 | F45: 4.37 | G45: 4.49 | H45: 4.6 | I45: 4.69 | J45: 4.78 | K45: 4.86 | L45: 4.93 | M45: 4.99 | N45: 5.05 | O45: 5.1 | P45: 5.14 | Q45: 5.16 | R45: 5.17 | S45: 5.19 | T45: 5.2 | U45: 5.22 | V45: 5.2 | W45: 5.19 | X45: 5.18 | Y45: 5.18 | Z45: 5.17 | AA45: 5.15 | AB45: 5.13 | AC45: 5.11 | AD45: 5.1 | AE45: 5.08 | AF45: 5.06 | AG45: 5.04 | AH45: 5.03 | AI45: 5.01 | AJ45: 5 | AK45: 4.99 | AL45: 4.97 | AM45: 4.96 | AN45: 4.95 | AO45: 4.94 | AP45: 4.93 | AQ45: 4.92 | AR45: 4.91 | AS45: 4.9 | AT45: 4.89 | AU45: 4.89 | AV45: 4.88 | AW45: 4.87 | AX45: 4.86 | AY45: 4.86 | AZ45: 2.75% | BA45: 2.75
A46: 2012-01-31 | B46: 3.82 | C46: 3.94 | D46: 4.09 | E46: 4.23 | F46: 4.36 | G46: 4.48 | H46: 4.59 | I46: 4.69 | J46: 4.78 | K46: 4.85 | L46: 4.93 | M46: 4.99 | N46: 5.05 | O46: 5.09 | P46: 5.13 | Q46: 5.15 | R46: 5.17 | S46: 5.19 | T46: 5.2 | U46: 5.21 | V46: 5.2 | W46: 5.19 | X46: 5.18 | Y46: 5.17 | Z46: 5.16 | AA46: 5.14 | AB46: 5.12 | AC46: 5.11 | AD46: 5.09 | AE46: 5.07 | AF46: 5.05 | AG46: 5.04 | AH46: 5.02 | AI46: 5.01 | AJ46: 4.99 | AK46: 4.98 | AL46: 4.97 | AM46: 4.95 | AN46: 4.94 | AO46: 4.93 | AP46: 4.92 | AQ46: 4.91 | AR46: 4.9 | AS46: 4.89 | AT46: 4.89 | AU46: 4.88 | AV46: 4.87 | AW46: 4.86 | AX46: 4.86 | AY46: 4.85 | AZ46: 1.75% | BA46: 1.75
A47: 2012-02-29 | B47: 3.82 | C47: 3.93 | D47: 4.08 | E47: 4.22 | F47: 4.36 | G47: 4.48 | H47: 4.59 | I47: 4.68 | J47: 4.77 | K47: 4.85 | L47: 4.92 | M47: 4.99 | N47: 5.04 | O47: 5.09 | P47: 5.13 | Q47: 5.15 | R47: 5.17 | S47: 5.18 | T47: 5.19 | U47: 5.21 | V47: 5.19 | W47: 5.18 | X47: 5.17 | Y47: 5.16 | Z47: 5.15 | AA47: 5.13 | AB47: 5.11 | AC47: 5.1 | AD47: 5.08 | AE47: 5.06 | AF47: 5.04 | AG47: 5.03 | AH47: 5.01 | AI47: 5 | AJ47: 4.98 | AK47: 4.97 | AL47: 4.95 | AM47: 4.94 | AN47: 4.93 | AO47: 4.92 | AP47: 4.91 | AQ47: 4.9 | AR47: 4.89 | AS47: 4.88 | AT47: 4.87 | AU47: 4.87 | AV47: 4.86 | AW47: 4.85 | AX47: 4.84 | AY47: 4.84 | AZ47: 1.75% | BA47: 1.75
A48: 2012-03-31 | B48: 3.81 | C48: 3.92 | D48: 4.07 | E48: 4.21 | F48: 4.35 | G48: 4.47 | H48: 4.58 | I48: 4.68 | J48: 4.76 | K48: 4.84 | L48: 4.92 | M48: 4.98 | N48: 5.03 | O48: 5.08 | P48: 5.12 | Q48: 5.14 | R48: 5.16 | S48: 5.17 | T48: 5.18 | U48: 5.2 | V48: 5.18 | W48: 5.17 | X48: 5.16 | Y48: 5.15 | Z48: 5.14 | AA48: 5.12 | AB48: 5.1 | AC48: 5.08 | AD48: 5.07 | AE48: 5.05 | AF48: 5.03 | AG48: 5.01 | AH48: 5 | AI48: 4.98 | AJ48: 4.97 | AK48: 4.95 | AL48: 4.94 | AM48: 4.93 | AN48: 4.92 | AO48: 4.91 | AP48: 4.9 | AQ48: 4.89 | AR48: 4.88 | AS48: 4.87 | AT48: 4.86 | AU48: 4.85 | AV48: 4.85 | AW48: 4.84 | AX48: 4.83 | AY48: 4.83 | AZ48: 1.75% | BA48: 1.75
A49: 2012-04-30 | B49: 3.81 | C49: 3.91 | D49: 4.06 | E49: 4.21 | F49: 4.34 | G49: 4.46 | H49: 4.57 | I49: 4.67 | J49: 4.76 | K49: 4.83 | L49: 4.91 | M49: 4.97 | N49: 5.03 | O49: 5.08 | P49: 5.12 | Q49: 5.13 | R49: 5.15 | S49: 5.16 | T49: 5.18 | U49: 5.19 | V49: 5.18 | W49: 5.16 | X49: 5.15 | Y49: 5.14 | Z49: 5.13 | AA49: 5.11 | AB49: 5.09 | AC49: 5.07 | AD49: 5.06 | AE49: 5.04 | AF49: 5.02 | AG49: 5 | AH49: 4.99 | AI49: 4.97 | AJ49: 4.96 | AK49: 4.94 | AL49: 4.93 | AM49: 4.92 | AN49: 4.91 | AO49: 4.89 | AP49: 4.88 | AQ49: 4.88 | AR49: 4.87 | AS49: 4.86 | AT49: 4.85 | AU49: 4.84 | AV49: 4.84 | AW49: 4.83 | AX49: 4.82 | AY49: 4.81 | AZ49: 1.75% | BA49: 1.75
A50: 2012-05-31 | B50: 3.8 | C50: 3.9 | D50: 4.05 | E50: 4.19 | F50: 4.33 | G50: 4.45 | H50: 4.56 | I50: 4.66 | J50: 4.74 | K50: 4.82 | L50: 4.9 | M50: 4.96 | N50: 5.01 | O50: 5.06 | P50: 5.1 | Q50: 5.12 | R50: 5.14 | S50: 5.15 | T50: 5.16 | U50: 5.17 | V50: 5.16 | W50: 5.15 | X50: 5.14 | Y50: 5.13 | Z50: 5.12 | AA50: 5.09 | AB50: 5.07 | AC50: 5.05 | AD50: 5.04 | AE50: 5.02 | AF50: 5 | AG50: 4.98 | AH50: 4.97 | AI50: 4.95 | AJ50: 4.94 | AK50: 4.92 | AL50: 4.91 | AM50: 4.9 | AN50: 4.89 | AO50: 4.88 | AP50: 4.87 | AQ50: 4.86 | AR50: 4.85 | AS50: 4.84 | AT50: 4.83 | AU50: 4.82 | AV50: 4.82 | AW50: 4.81 | AX50: 4.8 | AY50: 4.8 | AZ50: 1.75% | BA50: 1.75
A51: 2012-06-30 | B51: 3.79 | C51: 3.9 | D51: 4.04 | E51: 4.19 | F51: 4.32 | G51: 4.44 | H51: 4.55 | I51: 4.65 | J51: 4.74 | K51: 4.82 | L51: 4.89 | M51: 4.95 | N51: 5.01 | O51: 5.06 | P51: 5.1 | Q51: 5.11 | R51: 5.13 | S51: 5.14 | T51: 5.15 | U51: 5.16 | V51: 5.15 | W51: 5.14 | X51: 5.13 | Y51: 5.12 | Z51: 5.11 | AA51: 5.08 | AB51: 5.06 | AC51: 5.04 | AD51: 5.03 | AE51: 5.01 | AF51: 4.99 | AG51: 4.97 | AH51: 4.96 | AI51: 4.94 | AJ51: 4.93 | AK51: 4.91 | AL51: 4.9 | AM51: 4.89 | AN51: 4.88 | AO51: 4.87 | AP51: 4.86 | AQ51: 4.85 | AR51: 4.84 | AS51: 4.83 | AT51: 4.82 | AU51: 4.82 | AV51: 4.81 | AW51: 4.8 | AX51: 4.79 | AY51: 4.79 | AZ51: 1.75% | BA51: 1.75
A52: 2012-07-31 | B52: 3.78 | C52: 3.88 | D52: 4.03 | E52: 4.17 | F52: 4.31 | G52: 4.43 | H52: 4.54 | I52: 4.64 | J52: 4.73 | K52: 4.81 | L52: 4.88 | M52: 4.94 | N52: 5 | O52: 5.05 | P52: 5.09 | Q52: 5.1 | R52: 5.12 | S52: 5.13 | T52: 5.14 | U52: 5.15 | V52: 5.14 | W52: 5.13 | X52: 5.11 | Y52: 5.1 | Z52: 5.09 | AA52: 5.07 | AB52: 5.05 | AC52: 5.03 | AD52: 5.01 | AE52: 5 | AF52: 4.98 | AG52: 4.96 | AH52: 4.95 | AI52: 4.93 | AJ52: 4.92 | AK52: 4.9 | AL52: 4.89 | AM52: 4.88 | AN52: 4.87 | AO52: 4.85 | AP52: 4.84 | AQ52: 4.84 | AR52: 4.83 | AS52: 4.82 | AT52: 4.81 | AU52: 4.8 | AV52: 4.8 | AW52: 4.79 | AX52: 4.78 | AY52: 4.78 | AZ52: 1.75% | BA52: 1.75
A53: 2012-08-31 | B53: 3.77 | C53: 3.87 | D53: 4.01 | E53: 4.16 | F53: 4.3 | G53: 4.42 | H53: 4.53 | I53: 4.63 | J53: 4.72 | K53: 4.79 | L53: 4.87 | M53: 4.93 | N53: 4.99 | O53: 5.04 | P53: 5.08 | Q53: 5.09 | R53: 5.11 | S53: 5.12 | T53: 5.13 | U53: 5.14 | V53: 5.13 | W53: 5.11 | X53: 5.1 | Y53: 5.09 | Z53: 5.08 | AA53: 5.06 | AB53: 5.04 | AC53: 5.02 | AD53: 5 | AE53: 4.99 | AF53: 4.97 | AG53: 4.95 | AH53: 4.93 | AI53: 4.92 | AJ53: 4.9 | AK53: 4.89 | AL53: 4.88 | AM53: 4.87 | AN53: 4.85 | AO53: 4.84 | AP53: 4.83 | AQ53: 4.83 | AR53: 4.82 | AS53: 4.81 | AT53: 4.8 | AU53: 4.79 | AV53: 4.79 | AW53: 4.78 | AX53: 4.77 | AY53: 4.77 | AZ53: 1.75% | BA53: 1.75
A54: 2012-09-30 | B54: 3.75 | C54: 3.85 | D54: 4 | E54: 4.14 | F54: 4.28 | G54: 4.41 | H54: 4.52 | I54: 4.62 | J54: 4.71 | K54: 4.79 | L54: 4.86 | M54: 4.92 | N54: 4.98 | O54: 5.03 | P54: 5.07 | Q54: 5.09 | R54: 5.1 | S54: 5.11 | T54: 5.12 | U54: 5.13 | V54: 5.12 | W54: 5.11 | X54: 5.09 | Y54: 5.08 | Z54: 5.07 | AA54: 5.05 | AB54: 5.03 | AC54: 5.01 | AD54: 4.99 | AE54: 4.98 | AF54: 4.96 | AG54: 4.94 | AH54: 4.93 | AI54: 4.91 | AJ54: 4.9 | AK54: 4.88 | AL54: 4.87 | AM54: 4.86 | AN54: 4.85 | AO54: 4.84 | AP54: 4.83 | AQ54: 4.82 | AR54: 4.81 | AS54: 4.8 | AT54: 4.8 | AU54: 4.79 | AV54: 4.78 | AW54: 4.78 | AX54: 4.77 | AY54: 4.76 | AZ54: 1.75% | BA54: 1.75
A55: 2012-10-31 | B55: 3.74 | C55: 3.83 | D55: 3.98 | E55: 4.12 | F55: 4.26 | G55: 4.39 | H55: 4.5 | I55: 4.6 | J55: 4.69 | K55: 4.77 | L55: 4.85 | M55: 4.91 | N55: 4.97 | O55: 5.02 | P55: 5.06 | Q55: 5.07 | R55: 5.09 | S55: 5.1 | T55: 5.11 | U55: 5.12 | V55: 5.11 | W55: 5.09 | X55: 5.08 | Y55: 5.07 | Z55: 5.06 | AA55: 5.04 | AB55: 5.02 | AC55: 5 | AD55: 4.98 | AE55: 4.97 | AF55: 4.95 | AG55: 4.93 | AH55: 4.91 | AI55: 4.9 | AJ55: 4.89 | AK55: 4.87 | AL55: 4.86 | AM55: 4.85 | AN55: 4.84 | AO55: 4.83 | AP55: 4.82 | AQ55: 4.81 | AR55: 4.8 | AS55: 4.79 | AT55: 4.79 | AU55: 4.78 | AV55: 4.77 | AW55: 4.77 | AX55: 4.76 | AY55: 4.75 | AZ55: 1.75% | BA55: 1.75
A56: 2012-11-30 | B56: 3.71 | C56: 3.81 | D56: 3.95 | E56: 4.1 | F56: 4.24 | G56: 4.37 | H56: 4.49 | I56: 4.59 | J56: 4.68 | K56: 4.76 | L56: 4.84 | M56: 4.9 | N56: 4.96 | O56: 5 | P56: 5.05 | Q56: 5.06 | R56: 5.08 | S56: 5.09 | T56: 5.1 | U56: 5.11 | V56: 5.1 | W56: 5.08 | X56: 5.07 | Y56: 5.06 | Z56: 5.05 | AA56: 5.03 | AB56: 5.01 | AC56: 4.99 | AD56: 4.97 | AE56: 4.95 | AF56: 4.94 | AG56: 4.92 | AH56: 4.9 | AI56: 4.89 | AJ56: 4.87 | AK56: 4.86 | AL56: 4.85 | AM56: 4.84 | AN56: 4.83 | AO56: 4.81 | AP56: 4.81 | AQ56: 4.8 | AR56: 4.79 | AS56: 4.78 | AT56: 4.78 | AU56: 4.77 | AV56: 4.76 | AW56: 4.76 | AX56: 4.75 | AY56: 4.75 | AZ56: 1.75% | BA56: 1.75
A57: 2012-12-31 | B57: 3.69 | C57: 3.79 | D57: 3.93 | E57: 4.08 | F57: 4.22 | G57: 4.35 | H57: 4.47 | I57: 4.57 | J57: 4.66 | K57: 4.74 | L57: 4.82 | M57: 4.89 | N57: 4.94 | O57: 4.99 | P57: 5.04 | Q57: 5.05 | R57: 5.07 | S57: 5.08 | T57: 5.09 | U57: 5.1 | V57: 5.09 | W57: 5.07 | X57: 5.06 | Y57: 5.05 | Z57: 5.04 | AA57: 5.02 | AB57: 5 | AC57: 4.98 | AD57: 4.96 | AE57: 4.94 | AF57: 4.93 | AG57: 4.91 | AH57: 4.89 | AI57: 4.88 | AJ57: 4.87 | AK57: 4.85 | AL57: 4.84 | AM57: 4.83 | AN57: 4.82 | AO57: 4.81 | AP57: 4.8 | AQ57: 4.79 | AR57: 4.78 | AS57: 4.78 | AT57: 4.77 | AU57: 4.76 | AV57: 4.76 | AW57: 4.75 | AX57: 4.74 | AY57: 4.74 | AZ57: 1.75% | BA57: 1.75
A58: 2013-01-31 | B58: 3.67 | C58: 3.77 | D58: 3.91 | E58: 4.06 | F58: 4.2 | G58: 4.33 | H58: 4.45 | I58: 4.56 | J58: 4.65 | K58: 4.73 | L58: 4.81 | M58: 4.88 | N58: 4.93 | O58: 4.98 | P58: 5.03 | Q58: 5.04 | R58: 5.06 | S58: 5.07 | T58: 5.08 | U58: 5.09 | V58: 5.08 | W58: 5.06 | X58: 5.05 | Y58: 5.04 | Z58: 5.03 | AA58: 5.01 | AB58: 4.99 | AC58: 4.97 | AD58: 4.95 | AE58: 4.93 | AF58: 4.92 | AG58: 4.9 | AH58: 4.88 | AI58: 4.87 | AJ58: 4.86 | AK58: 4.84 | AL58: 4.83 | AM58: 4.82 | AN58: 4.81 | AO58: 4.8 | AP58: 4.79 | AQ58: 4.78 | AR58: 4.77 | AS58: 4.77 | AT58: 4.76 | AU58: 4.75 | AV58: 4.75 | AW58: 4.74 | AX58: 4.74 | AY58: 4.73 | AZ58: 1.75% | BA58: 1.75
A59: 2013-02-28 | B59: 3.65 | C59: 3.74 | D59: 3.89 | E59: 4.04 | F59: 4.18 | G59: 4.32 | H59: 4.43 | I59: 4.54 | J59: 4.63 | K59: 4.72 | L59: 4.8 | M59: 4.86 | N59: 4.92 | O59: 4.97 | P59: 5.02 | Q59: 5.03 | R59: 5.05 | S59: 5.06 | T59: 5.07 | U59: 5.08 | V59: 5.07 | W59: 5.05 | X59: 5.04 | Y59: 5.03 | Z59: 5.02 | AA59: 5 | AB59: 4.98 | AC59: 4.96 | AD59: 4.94 | AE59: 4.92 | AF59: 4.91 | AG59: 4.89 | AH59: 4.87 | AI59: 4.86 | AJ59: 4.85 | AK59: 4.83 | AL59: 4.82 | AM59: 4.81 | AN59: 4.8 | AO59: 4.79 | AP59: 4.78 | AQ59: 4.77 | AR59: 4.77 | AS59: 4.76 | AT59: 4.75 | AU59: 4.75 | AV59: 4.74 | AW59: 4.74 | AX59: 4.73 | AY59: 4.73 | AZ59: 1.75% | BA59: 1.75
A60: 2013-03-31 | B60: 3.62 | C60: 3.71 | D60: 3.86 | E60: 4.01 | F60: 4.16 | G60: 4.29 | H60: 4.41 | I60: 4.52 | J60: 4.61 | K60: 4.7 | L60: 4.78 | M60: 4.85 | N60: 4.91 | O60: 4.96 | P60: 5 | Q60: 5.02 | R60: 5.03 | S60: 5.04 | T60: 5.06 | U60: 5.07 | V60: 5.05 | W60: 5.04 | X60: 5.03 | Y60: 5.01 | Z60: 5 | AA60: 4.98 | AB60: 4.96 | AC60: 4.94 | AD60: 4.92 | AE60: 4.91 | AF60: 4.89 | AG60: 4.88 | AH60: 4.86 | AI60: 4.85 | AJ60: 4.83 | AK60: 4.82 | AL60: 4.81 | AM60: 4.8 | AN60: 4.79 | AO60: 4.78 | AP60: 4.77 | AQ60: 4.76 | AR60: 4.75 | AS60: 4.75 | AT60: 4.74 | AU60: 4.73 | AV60: 4.73 | AW60: 4.72 | AX60: 4.72 | AY60: 4.71 | AZ60: 1.75% | BA60: 1.75
A61: 2013-04-30 | B61: 3.59 | C61: 3.68 | D61: 3.83 | E61: 3.98 | F61: 4.13 | G61: 4.26 | H61: 4.38 | I61: 4.49 | J61: 4.59 | K61: 4.67 | L61: 4.76 | M61: 4.82 | N61: 4.88 | O61: 4.93 | P61: 4.98 | Q61: 5 | R61: 5.01 | S61: 5.02 | T61: 5.04 | U61: 5.05 | V61: 5.03 | W61: 5.02 | X61: 5.01 | Y61: 4.99 | Z61: 4.98 | AA61: 4.96 | AB61: 4.94 | AC61: 4.92 | AD61: 4.91 | AE61: 4.89 | AF61: 4.87 | AG61: 4.86 | AH61: 4.84 | AI61: 4.83 | AJ61: 4.81 | AK61: 4.8 | AL61: 4.79 | AM61: 4.78 | AN61: 4.77 | AO61: 4.76 | AP61: 4.75 | AQ61: 4.74 | AR61: 4.74 | AS61: 4.73 | AT61: 4.72 | AU61: 4.72 | AV61: 4.71 | AW61: 4.71 | AX61: 4.7 | AY61: 4.7 | AZ61: 1.75% | BA61: 1.75
A62: 2013-05-31 | B62: 3.56 | C62: 3.65 | D62: 3.8 | E62: 3.95 | F62: 4.1 | G62: 4.23 | H62: 4.36 | I62: 4.47 | J62: 4.56 | K62: 4.65 | L62: 4.73 | M62: 4.8 | N62: 4.86 | O62: 4.92 | P62: 4.96 | Q62: 4.98 | R62: 4.99 | S62: 5.01 | T62: 5.02 | U62: 5.03 | V62: 5.01 | W62: 5 | X62: 4.99 | Y62: 4.98 | Z62: 4.97 | AA62: 4.94 | AB62: 4.92 | AC62: 4.9 | AD62: 4.89 | AE62: 4.87 | AF62: 4.85 | AG62: 4.84 | AH62: 4.82 | AI62: 4.81 | AJ62: 4.8 | AK62: 4.78 | AL62: 4.77 | AM62: 4.76 | AN62: 4.75 | AO62: 4.74 | AP62: 4.73 | AQ62: 4.73 | AR62: 4.72 | AS62: 4.71 | AT62: 4.71 | AU62: 4.7 | AV62: 4.7 | AW62: 4.69 | AX62: 4.69 | AY62: 4.68 | AZ62: 1.75% | BA62: 1.75
A63: 2013-06-30 | B63: 3.53 | C63: 3.62 | D63: 3.77 | E63: 3.92 | F63: 4.07 | G63: 4.21 | H63: 4.33 | I63: 4.45 | J63: 4.54 | K63: 4.63 | L63: 4.72 | M63: 4.79 | N63: 4.85 | O63: 4.9 | P63: 4.94 | Q63: 4.96 | R63: 4.98 | S63: 4.99 | T63: 5 | U63: 5.01 | V63: 5 | W63: 4.98 | X63: 4.97 | Y63: 4.96 | Z63: 4.95 | AA63: 4.93 | AB63: 4.91 | AC63: 4.89 | AD63: 4.87 | AE63: 4.85 | AF63: 4.84 | AG63: 4.82 | AH63: 4.81 | AI63: 4.79 | AJ63: 4.78 | AK63: 4.77 | AL63: 4.76 | AM63: 4.74 | AN63: 4.73 | AO63: 4.72 | AP63: 4.72 | AQ63: 4.71 | AR63: 4.7 | AS63: 4.7 | AT63: 4.69 | AU63: 4.69 | AV63: 4.68 | AW63: 4.68 | AX63: 4.67 | AY63: 4.67 | AZ63: 1.75% | BA63: 1.75
A64: 2013-07-31 | B64: 3.5 | C64: 3.59 | D64: 3.74 | E64: 3.89 | F64: 4.05 | G64: 4.19 | H64: 4.31 | I64: 4.42 | J64: 4.52 | K64: 4.61 | L64: 4.7 | M64: 4.77 | N64: 4.83 | O64: 4.88 | P64: 4.93 | Q64: 4.94 | R64: 4.96 | S64: 4.97 | T64: 4.99 | U64: 5 | V64: 4.98 | W64: 4.97 | X64: 4.96 | Y64: 4.94 | Z64: 4.93 | AA64: 4.91 | AB64: 4.89 | AC64: 4.87 | AD64: 4.85 | AE64: 4.84 | AF64: 4.82 | AG64: 4.81 | AH64: 4.79 | AI64: 4.78 | AJ64: 4.76 | AK64: 4.75 | AL64: 4.74 | AM64: 4.73 | AN64: 4.72 | AO64: 4.71 | AP64: 4.7 | AQ64: 4.7 | AR64: 4.69 | AS64: 4.68 | AT64: 4.68 | AU64: 4.67 | AV64: 4.67 | AW64: 4.66 | AX64: 4.66 | AY64: 4.65 | AZ64: 1.75% | BA64: 1.75
A65: 2013-08-31 | B65: 3.47 | C65: 3.56 | D65: 3.71 | E65: 3.87 | F65: 4.02 | G65: 4.17 | H65: 4.29 | I65: 4.41 | J65: 4.51 | K65: 4.6 | L65: 4.68 | M65: 4.76 | N65: 4.82 | O65: 4.87 | P65: 4.92 | Q65: 4.93 | R65: 4.95 | S65: 4.96 | T65: 4.97 | U65: 4.99 | V65: 4.97 | W65: 4.96 | X65: 4.94 | Y65: 4.93 | Z65: 4.92 | AA65: 4.9 | AB65: 4.88 | AC65: 4.86 | AD65: 4.84 | AE65: 4.83 | AF65: 4.81 | AG65: 4.79 | AH65: 4.78 | AI65: 4.77 | AJ65: 4.75 | AK65: 4.74 | AL65: 4.73 | AM65: 4.72 | AN65: 4.71 | AO65: 4.7 | AP65: 4.69 | AQ65: 4.68 | AR65: 4.68 | AS65: 4.67 | AT65: 4.67 | AU65: 4.66 | AV65: 4.66 | AW65: 4.65 | AX65: 4.65 | AY65: 4.64 | AZ65: 1.75% | BA65: 1.75
A66: 2013-09-30 | B66: 3.44 | C66: 3.53 | D66: 3.68 | E66: 3.84 | F66: 4 | G66: 4.15 | H66: 4.28 | I66: 4.39 | J66: 4.49 | K66: 4.58 | L66: 4.67 | M66: 4.74 | N66: 4.81 | O66: 4.86 | P66: 4.91 | Q66: 4.92 | R66: 4.94 | S66: 4.95 | T66: 4.97 | U66: 4.98 | V66: 4.96 | W66: 4.95 | X66: 4.93 | Y66: 4.92 | Z66: 4.91 | AA66: 4.89 | AB66: 4.87 | AC66: 4.85 | AD66: 4.83 | AE66: 4.82 | AF66: 4.8 | AG66: 4.78 | AH66: 4.77 | AI66: 4.76 | AJ66: 4.74 | AK66: 4.73 | AL66: 4.72 | AM66: 4.71 | AN66: 4.7 | AO66: 4.69 | AP66: 4.68 | AQ66: 4.68 | AR66: 4.67 | AS66: 4.67 | AT66: 4.66 | AU66: 4.66 | AV66: 4.65 | AW66: 4.65 | AX66: 4.64 | AY66: 4.64 | AZ66: 1.75% | BA66: 1.75 | BE66: BilMoG-7 | BG66: BilMoG-10
A67: 2013-10-31 | B67: 3.41 | C67: 3.5 | D67: 3.65 | E67: 3.82 | F67: 3.98 | G67: 4.12 | H67: 4.26 | I67: 4.37 | J67: 4.48 | K67: 4.57 | L67: 4.66 | M67: 4.73 | N67: 4.79 | O67: 4.85 | P67: 4.9 | Q67: 4.91 | R67: 4.93 | S67: 4.94 | T67: 4.96 | U67: 4.97 | V67: 4.95 | W67: 4.94 | X67: 4.93 | Y67: 4.91 | Z67: 4.9 | AA67: 4.88 | AB67: 4.86 | AC67: 4.84 | AD67: 4.83 | AE67: 4.81 | AF67: 4.79 | AG67: 4.78 | AH67: 4.76 | AI67: 4.75 | AJ67: 4.74 | AK67: 4.72 | AL67: 4.71 | AM67: 4.7 | AN67: 4.69 | AO67: 4.68 | AP67: 4.68 | AQ67: 4.67 | AR67: 4.66 | AS67: 4.66 | AT67: 4.65 | AU67: 4.65 | AV67: 4.65 | AW67: 4.64 | AX67: 4.64 | AY67: 4.63 | AZ67: 1.75% | BA67: 1.75 | BD67: Barwerte | BE67: Q-V | BF67: DRV | BG67: Q-V | BH67: DRV
A68: 2013-11-30 | B68: 3.37 | C68: 3.47 | D68: 3.62 | E68: 3.79 | F68: 3.95 | G68: 4.1 | H68: 4.24 | I68: 4.36 | J68: 4.46 | K68: 4.56 | L68: 4.65 | M68: 4.72 | N68: 4.79 | O68: 4.84 | P68: 4.89 | Q68: 4.91 | R68: 4.92 | S68: 4.94 | T68: 4.95 | U68: 4.96 | V68: 4.95 | W68: 4.93 | X68: 4.92 | Y68: 4.91 | Z68: 4.9 | AA68: 4.88 | AB68: 4.85 | AC68: 4.84 | AD68: 4.82 | AE68: 4.8 | AF68: 4.79 | AG68: 4.77 | AH68: 4.76 | AI68: 4.74 | AJ68: 4.73 | AK68: 4.72 | AL68: 4.71 | AM68: 4.7 | AN68: 4.69 | AO68: 4.68 | AP68: 4.67 | AQ68: 4.66 | AR68: 4.66 | AS68: 4.65 | AT68: 4.65 | AU68: 4.64 | AV68: 4.64 | AW68: 4.64 | AX68: 4.63 | AY68: 4.63 | AZ68: 1.75% | BA68: 1.75 | BD68: 2015-01-01 | BE68: 20818 | BF68: 12675 | BG68: 16565 | BH68: 7890
A69: 2013-12-31 | B69: 3.34 | C69: 3.43 | D69: 3.59 | E69: 3.76 | F69: 3.93 | G69: 4.08 | H69: 4.22 | I69: 4.34 | J69: 4.45 | K69: 4.54 | L69: 4.63 | M69: 4.71 | N69: 4.77 | O69: 4.83 | P69: 4.88 | Q69: 4.9 | R69: 4.91 | S69: 4.93 | T69: 4.94 | U69: 4.95 | V69: 4.94 | W69: 4.92 | X69: 4.91 | Y69: 4.9 | Z69: 4.89 | AA69: 4.87 | AB69: 4.85 | AC69: 4.83 | AD69: 4.81 | AE69: 4.79 | AF69: 4.78 | AG69: 4.76 | AH69: 4.75 | AI69: 4.74 | AJ69: 4.72 | AK69: 4.71 | AL69: 4.7 | AM69: 4.69 | AN69: 4.68 | AO69: 4.67 | AP69: 4.66 | AQ69: 4.66 | AR69: 4.65 | AS69: 4.65 | AT69: 4.64 | AU69: 4.64 | AV69: 4.63 | AW69: 4.63 | AX69: 4.63 | AY69: 4.62 | AZ69: 1.75% | BA69: 1.75 | BD69: 2016-01-01 | BE69: 24437 | BF69: 17416 | BG69: 22082 | BH69: 14118
A70: 2014-01-31 | B70: 3.3 | C70: 3.4 | D70: 3.56 | E70: 3.73 | F70: 3.9 | G70: 4.05 | H70: 4.19 | I70: 4.32 | J70: 4.42 | K70: 4.52 | L70: 4.62 | M70: 4.69 | N70: 4.76 | O70: 4.81 | P70: 4.86 | Q70: 4.88 | R70: 4.9 | S70: 4.91 | T70: 4.93 | U70: 4.94 | V70: 4.92 | W70: 4.91 | X70: 4.9 | Y70: 4.89 | Z70: 4.88 | AA70: 4.85 | AB70: 4.83 | AC70: 4.82 | AD70: 4.8 | AE70: 4.78 | AF70: 4.77 | AG70: 4.75 | AH70: 4.74 | AI70: 4.72 | AJ70: 4.71 | AK70: 4.7 | AL70: 4.69 | AM70: 4.68 | AN70: 4.67 | AO70: 4.66 | AP70: 4.65 | AQ70: 4.65 | AR70: 4.64 | AS70: 4.64 | AT70: 4.63 | AU70: 4.63 | AV70: 4.62 | AW70: 4.62 | AX70: 4.62 | AY70: 4.61 | AZ70: 1.75% | BA70: 1.75 | BD70: 2017-01-01 | BE70: 28828 | BF70: 25010 | BG70: 23880 | BH70: 16935
A71: 2014-02-28 | B71: 3.27 | C71: 3.36 | D71: 3.52 | E71: 3.7 | F71: 3.87 | G71: 4.03 | H71: 4.17 | I71: 4.29 | J71: 4.4 | K71: 4.5 | L71: 4.6 | M71: 4.68 | N71: 4.74 | O71: 4.8 | P71: 4.85 | Q71: 4.87 | R71: 4.89 | S71: 4.9 | T71: 4.91 | U71: 4.93 | V71: 4.91 | W71: 4.9 | X71: 4.89 | Y71: 4.87 | Z71: 4.86 | AA71: 4.84 | AB71: 4.82 | AC71: 4.8 | AD71: 4.79 | AE71: 4.77 | AF71: 4.75 | AG71: 4.74 | AH71: 4.72 | AI71: 4.71 | AJ71: 4.7 | AK71: 4.69 | AL71: 4.68 | AM71: 4.67 | AN71: 4.66 | AO71: 4.65 | AP71: 4.64 | AQ71: 4.64 | AR71: 4.63 | AS71: 4.63 | AT71: 4.62 | AU71: 4.62 | AV71: 4.61 | AW71: 4.61 | AX71: 4.61 | AY71: 4.6 | AZ71: 1.75% | BA71: 1.75 | BD71: 2018-01-01 | BE71: 32379 | BF71: 31940 | BG71: 26044 | BH71: 20355
A72: 2014-03-31 | B72: 3.23 | C72: 3.33 | D72: 3.49 | E72: 3.67 | F72: 3.84 | G72: 4 | H72: 4.14 | I72: 4.27 | J72: 4.38 | K72: 4.48 | L72: 4.58 | M72: 4.66 | N72: 4.72 | O72: 4.78 | P72: 4.83 | Q72: 4.85 | R72: 4.87 | S72: 4.88 | T72: 4.9 | U72: 4.91 | V72: 4.9 | W72: 4.88 | X72: 4.87 | Y72: 4.86 | Z72: 4.85 | AA72: 4.83 | AB72: 4.81 | AC72: 4.79 | AD72: 4.77 | AE72: 4.75 | AF72: 4.74 | AG72: 4.72 | AH72: 4.71 | AI72: 4.7 | AJ72: 4.68 | AK72: 4.67 | AL72: 4.66 | AM72: 4.65 | AN72: 4.64 | AO72: 4.63 | AP72: 4.63 | AQ72: 4.62 | AR72: 4.62 | AS72: 4.61 | AT72: 4.61 | AU72: 4.6 | AV72: 4.6 | AW72: 4.6 | AX72: 4.59 | AY72: 4.59 | AZ72: 1.75% | BA72: 1.75 | BD72: 2019-01-01 | BE72: 36794 | BF72: 41832 | BG72: 29431 | BH72: 26362
A73: 2014-04-30 | B73: 3.19 | C73: 3.29 | D73: 3.45 | E73: 3.63 | F73: 3.81 | G73: 3.97 | H73: 4.11 | I73: 4.24 | J73: 4.36 | K73: 4.46 | L73: 4.55 | M73: 4.63 | N73: 4.7 | O73: 4.76 | P73: 4.81 | Q73: 4.83 | R73: 4.85 | S73: 4.87 | T73: 4.88 | U73: 4.89 | V73: 4.88 | W73: 4.86 | X73: 4.85 | Y73: 4.84 | Z73: 4.83 | AA73: 4.81 | AB73: 4.79 | AC73: 4.77 | AD73: 4.75 | AE73: 4.74 | AF73: 4.72 | AG73: 4.71 | AH73: 4.69 | AI73: 4.68 | AJ73: 4.67 | AK73: 4.66 | AL73: 4.65 | AM73: 4.64 | AN73: 4.63 | AO73: 4.62 | AP73: 4.61 | AQ73: 4.61 | AR73: 4.6 | AS73: 4.6 | AT73: 4.59 | AU73: 4.59 | AV73: 4.58 | AW73: 4.58 | AX73: 4.58 | AY73: 4.57 | AZ73: 1.75% | BA73: 1.75 | BD73: 2020-01-01 | BE73: 40505 | BF73: 50549 | BG73: 33563 | BH73: 34274
A74: 2014-05-31 | B74: 3.15 | C74: 3.24 | D74: 3.41 | E74: 3.59 | F74: 3.77 | G74: 3.93 | H74: 4.08 | I74: 4.21 | J74: 4.33 | K74: 4.43 | L74: 4.53 | M74: 4.61 | N74: 4.68 | O74: 4.74 | P74: 4.79 | Q74: 4.81 | R74: 4.83 | S74: 4.84 | T74: 4.86 | U74: 4.87 | V74: 4.86 | W74: 4.84 | X74: 4.83 | Y74: 4.82 | Z74: 4.81 | AA74: 4.79 | AB74: 4.77 | AC74: 4.75 | AD74: 4.73 | AE74: 4.72 | AF74: 4.7 | AG74: 4.69 | AH74: 4.67 | AI74: 4.66 | AJ74: 4.65 | AK74: 4.64 | AL74: 4.63 | AM74: 4.62 | AN74: 4.61 | AO74: 4.6 | AP74: 4.59 | AQ74: 4.59 | AR74: 4.58 | AS74: 4.58 | AT74: 4.57 | AU74: 4.57 | AV74: 4.57 | AW74: 4.56 | AX74: 4.56 | AY74: 4.56 | AZ74: 1.75% | BA74: =+AZ74*100 -> 1.75 | BD74: 2021-01-01 | BE74: 44887 | BF74: 63138 | BG74: 37493 | BH74: 43534
A75: 2014-06-30 | B75: 3.1 | C75: 3.2 | D75: 3.37 | E75: 3.55 | F75: 3.73 | G75: 3.89 | H75: 4.04 | I75: 4.17 | J75: 4.29 | K75: 4.4 | L75: 4.5 | M75: 4.58 | N75: 4.65 | O75: 4.71 | P75: 4.76 | Q75: 4.78 | R75: 4.8 | S75: 4.82 | T75: 4.83 | U75: 4.84 | V75: 4.83 | W75: 4.82 | X75: 4.81 | Y75: 4.8 | Z75: 4.79 | AA75: 4.76 | AB75: 4.74 | AC75: 4.73 | AD75: 4.71 | AE75: 4.69 | AF75: 4.68 | AG75: 4.66 | AH75: 4.65 | AI75: 4.64 | AJ75: 4.62 | AK75: 4.61 | AL75: 4.6 | AM75: 4.59 | AN75: 4.58 | AO75: 4.57 | AP75: 4.57 | AQ75: 4.56 | AR75: 4.56 | AS75: 4.56 | AT75: 4.55 | AU75: 4.55 | AV75: 4.54 | AW75: 4.54 | AX75: 4.54 | AY75: 4.53 | AZ75: 1.75% | BA75: 1.75 | BD75: 2022-01-01 | BE75: 48262 | BF75: 78353 | BG75: 42159 | BH75: 59272
A76: 2014-07-31 | B76: 3.06 | C76: 3.15 | D76: 3.32 | E76: 3.51 | F76: 3.69 | G76: 3.85 | H76: 4 | I76: 4.14 | J76: 4.26 | K76: 4.36 | L76: 4.46 | M76: 4.55 | N76: 4.62 | O76: 4.68 | P76: 4.73 | Q76: 4.75 | R76: 4.77 | S76: 4.79 | T76: 4.8 | U76: 4.82 | V76: 4.8 | W76: 4.79 | X76: 4.78 | Y76: 4.77 | Z76: 4.76 | AA76: 4.74 | AB76: 4.72 | AC76: 4.7 | AD76: 4.68 | AE76: 4.67 | AF76: 4.65 | AG76: 4.64 | AH76: 4.62 | AI76: 4.61 | AJ76: 4.6 | AK76: 4.59 | AL76: 4.58 | AM76: 4.57 | AN76: 4.56 | AO76: 4.55 | AP76: 4.54 | AQ76: 4.54 | AR76: 4.54 | AS76: 4.53 | AT76: 4.53 | AU76: 4.52 | AV76: 4.52 | AW76: 4.52 | AX76: 4.51 | AY76: 4.51 | AZ76: 1.75% | BA76: 1.75
A77: 2014-08-31 | B77: 3.01 | C77: 3.11 | D77: 3.28 | E77: 3.46 | F77: 3.64 | G77: 3.81 | H77: 3.96 | I77: 4.1 | J77: 4.22 | K77: 4.32 | L77: 4.42 | M77: 4.51 | N77: 4.58 | O77: 4.64 | P77: 4.7 | Q77: 4.72 | R77: 4.74 | S77: 4.75 | T77: 4.77 | U77: 4.78 | V77: 4.77 | W77: 4.76 | X77: 4.75 | Y77: 4.74 | Z77: 4.73 | AA77: 4.7 | AB77: 4.69 | AC77: 4.67 | AD77: 4.65 | AE77: 4.63 | AF77: 4.62 | AG77: 4.61 | AH77: 4.59 | AI77: 4.58 | AJ77: 4.57 | AK77: 4.56 | AL77: 4.55 | AM77: 4.54 | AN77: 4.53 | AO77: 4.52 | AP77: 4.51 | AQ77: 4.51 | AR77: 4.51 | AS77: 4.5 | AT77: 4.5 | AU77: 4.49 | AV77: 4.49 | AW77: 4.49 | AX77: 4.49 | AY77: 4.48 | AZ77: 1.75% | BA77: 1.75
A78: 2014-09-30 | B78: 2.96 | C78: 3.06 | D78: 3.23 | E78: 3.41 | F78: 3.59 | G78: 3.77 | H78: 3.92 | I78: 4.05 | J78: 4.17 | K78: 4.28 | L78: 4.39 | M78: 4.47 | N78: 4.54 | O78: 4.61 | P78: 4.66 | Q78: 4.68 | R78: 4.7 | S78: 4.72 | T78: 4.73 | U78: 4.75 | V78: 4.73 | W78: 4.72 | X78: 4.71 | Y78: 4.7 | Z78: 4.69 | AA78: 4.67 | AB78: 4.65 | AC78: 4.63 | AD78: 4.62 | AE78: 4.6 | AF78: 4.59 | AG78: 4.57 | AH78: 4.56 | AI78: 4.55 | AJ78: 4.54 | AK78: 4.53 | AL78: 4.52 | AM78: 4.51 | AN78: 4.5 | AO78: 4.49 | AP78: 4.48 | AQ78: 4.48 | AR78: 4.48 | AS78: 4.47 | AT78: 4.47 | AU78: 4.47 | AV78: 4.46 | AW78: 4.46 | AX78: 4.46 | AY78: 4.45 | AZ78: 1.75% | BA78: 1.75
A79: 2014-10-31 | B79: 2.91 | C79: 3.01 | D79: 3.18 | E79: 3.37 | F79: 3.55 | G79: 3.72 | H79: 3.87 | I79: 4.01 | J79: 4.13 | K79: 4.24 | L79: 4.35 | M79: 4.43 | N79: 4.51 | O79: 4.57 | P79: 4.62 | Q79: 4.65 | R79: 4.67 | S79: 4.68 | T79: 4.7 | U79: 4.71 | V79: 4.7 | W79: 4.69 | X79: 4.68 | Y79: 4.67 | Z79: 4.66 | AA79: 4.64 | AB79: 4.62 | AC79: 4.6 | AD79: 4.59 | AE79: 4.57 | AF79: 4.56 | AG79: 4.54 | AH79: 4.53 | AI79: 4.52 | AJ79: 4.51 | AK79: 4.49 | AL79: 4.48 | AM79: 4.48 | AN79: 4.47 | AO79: 4.46 | AP79: 4.45 | AQ79: 4.45 | AR79: 4.45 | AS79: 4.44 | AT79: 4.44 | AU79: 4.44 | AV79: 4.43 | AW79: 4.43 | AX79: 4.43 | AY79: 4.42 | AZ79: 1.75% | BA79: 1.75
A80: 2014-11-30 | B80: 2.85 | C80: 2.96 | D80: 3.13 | E80: 3.32 | F80: 3.5 | G80: 3.67 | H80: 3.83 | I80: 3.96 | J80: 4.09 | K80: 4.2 | L80: 4.3 | M80: 4.39 | N80: 4.46 | O80: 4.52 | P80: 4.58 | Q80: 4.6 | R80: 4.62 | S80: 4.64 | T80: 4.66 | U80: 4.67 | V80: 4.66 | W80: 4.65 | X80: 4.64 | Y80: 4.63 | Z80: 4.62 | AA80: 4.6 | AB80: 4.58 | AC80: 4.56 | AD80: 4.55 | AE80: 4.53 | AF80: 4.52 | AG80: 4.5 | AH80: 4.49 | AI80: 4.48 | AJ80: 4.47 | AK80: 4.46 | AL80: 4.45 | AM80: 4.44 | AN80: 4.43 | AO80: 4.42 | AP80: 4.42 | AQ80: 4.41 | AR80: 4.41 | AS80: 4.4 | AT80: 4.4 | AU80: 4.4 | AV80: 4.4 | AW80: 4.39 | AX80: 4.39 | AY80: 4.39 | AZ80: 1.75% | BA80: 1.75 | BD80: BilMoG-7 | BF80: BilMoG-10
A81: 2014-12-31 | B81: 2.8 | C81: 2.9 | D81: 3.07 | E81: 3.26 | F81: 3.45 | G81: 3.62 | H81: 3.78 | I81: 3.91 | J81: 4.04 | K81: 4.15 | L81: 4.25 | M81: 4.34 | N81: 4.41 | O81: 4.48 | P81: 4.53 | Q81: 4.56 | R81: 4.58 | S81: 4.6 | T81: 4.61 | U81: 4.63 | V81: 4.61 | W81: 4.6 | X81: 4.59 | Y81: 4.58 | Z81: 4.58 | AA81: 4.56 | AB81: 4.54 | AC81: 4.52 | AD81: 4.5 | AE81: 4.49 | AF81: 4.47 | AG81: 4.46 | AH81: 4.45 | AI81: 4.44 | AJ81: 4.43 | AK81: 4.42 | AL81: 4.41 | AM81: 4.4 | AN81: 4.39 | AO81: 4.38 | AP81: 4.38 | AQ81: 4.37 | AR81: 4.37 | AS81: 4.37 | AT81: 4.36 | AU81: 4.36 | AV81: 4.36 | AW81: 4.35 | AX81: 4.35 | AY81: 4.35 | AZ81: 1.75% | BA81: 1.75 | BD81: Q-V | BE81: DRV | BF81: Q-V | BG81: DRV
A82: 2015-01-31 | B82: 2.74 | C82: 2.85 | D82: 3.02 | E82: 3.21 | F82: 3.4 | G82: 3.57 | H82: 3.72 | I82: 3.86 | J82: 3.99 | K82: 4.1 | L82: 4.2 | M82: 4.29 | N82: 4.36 | O82: 4.43 | P82: 4.48 | Q82: 4.5 | R82: 4.53 | S82: 4.54 | T82: 4.56 | U82: 4.58 | V82: 4.56 | W82: 4.55 | X82: 4.54 | Y82: 4.53 | Z82: 4.52 | AA82: 4.5 | AB82: 4.49 | AC82: 4.47 | AD82: 4.45 | AE82: 4.44 | AF82: 4.42 | AG82: 4.41 | AH82: 4.4 | AI82: 4.39 | AJ82: 4.38 | AK82: 4.37 | AL82: 4.36 | AM82: 4.35 | AN82: 4.34 | AO82: 4.33 | AP82: 4.33 | AQ82: 4.32 | AR82: 4.32 | AS82: 4.32 | AT82: 4.31 | AU82: 4.31 | AV82: 4.31 | AW82: 4.31 | AX82: 4.3 | AY82: 4.3 | AZ82: 1.25% | BA82: =+AZ82*100 -> 1.25 | BC82: 4.51 | BD82: 20,818 | BE82: 12,675 | BF82: 16,565 | BG82: 7,890
A83: 2015-02-28 | B83: 2.68 | C83: 2.8 | D83: 2.97 | E83: 3.16 | F83: 3.34 | G83: 3.52 | H83: 3.67 | I83: 3.81 | J83: 3.93 | K83: 4.04 | L83: 4.15 | M83: 4.24 | N83: 4.31 | O83: 4.37 | P83: 4.43 | Q83: 4.45 | R83: 4.47 | S83: 4.49 | T83: 4.51 | U83: 4.52 | V83: 4.51 | W83: 4.5 | X83: 4.49 | Y83: 4.48 | Z83: 4.47 | AA83: 4.45 | AB83: 4.43 | AC83: 4.42 | AD83: 4.4 | AE83: 4.39 | AF83: 4.37 | AG83: 4.36 | AH83: 4.35 | AI83: 4.34 | AJ83: 4.33 | AK83: 4.32 | AL83: 4.31 | AM83: 4.3 | AN83: 4.29 | AO83: 4.28 | AP83: 4.28 | AQ83: 4.28 | AR83: 4.27 | AS83: 4.27 | AT83: 4.27 | AU83: 4.26 | AV83: 4.26 | AW83: 4.26 | AX83: 4.26 | AY83: 4.25 | AZ83: 1.25% | BA83: 1.25 | BC83: 4.48 | BD83: =BD$82+(BD$94-BD$82)/12*$BH83 -> 21,120 | BE83: =BE$82+(BE$94-BE$82)/12*$BH83 -> 13,070 | BF83: 17,025 | BG83: 8,409 | BH83: 1
A84: 2015-03-31 | B84: 2.62 | C84: 2.73 | D84: 2.91 | E84: 3.1 | F84: 3.28 | G84: 3.46 | H84: 3.61 | I84: 3.75 | J84: 3.87 | K84: 3.99 | L84: 4.09 | M84: 4.18 | N84: 4.25 | O84: 4.31 | P84: 4.37 | Q84: 4.39 | R84: 4.41 | S84: 4.43 | T84: 4.45 | U84: 4.46 | V84: 4.45 | W84: 4.44 | X84: 4.43 | Y84: 4.42 | Z84: 4.41 | AA84: 4.39 | AB84: 4.37 | AC84: 4.36 | AD84: 4.34 | AE84: 4.33 | AF84: 4.31 | AG84: 4.3 | AH84: 4.29 | AI84: 4.28 | AJ84: 4.27 | AK84: 4.26 | AL84: 4.25 | AM84: 4.24 | AN84: 4.23 | AO84: 4.23 | AP84: 4.22 | AQ84: 4.22 | AR84: 4.22 | AS84: 4.21 | AT84: 4.21 | AU84: 4.21 | AV84: 4.2 | AW84: 4.2 | AX84: 4.2 | AY84: 4.2 | AZ84: 1.25% | BA84: 1.25 | BC84: 4.46 | BD84: =BD$82+(BD$94-BD$82)/12*$BH84 -> 21,421 | BE84: 13,465 | BF84: 17,485 | BG84: 8,928 | BH84: 2
A85: 2015-04-30 | B85: 2.55 | C85: 2.67 | D85: 2.85 | E85: 3.04 | F85: 3.23 | G85: 3.4 | H85: 3.56 | I85: 3.69 | J85: 3.82 | K85: 3.93 | L85: 4.03 | M85: 4.12 | N85: 4.19 | O85: 4.26 | P85: 4.31 | Q85: 4.34 | R85: 4.36 | S85: 4.37 | T85: 4.39 | U85: 4.41 | V85: 4.39 | W85: 4.38 | X85: 4.37 | Y85: 4.37 | Z85: 4.36 | AA85: 4.34 | AB85: 4.32 | AC85: 4.3 | AD85: 4.29 | AE85: 4.27 | AF85: 4.26 | AG85: 4.25 | AH85: 4.24 | AI85: 4.23 | AJ85: 4.22 | AK85: 4.21 | AL85: 4.2 | AM85: 4.19 | AN85: 4.18 | AO85: 4.17 | AP85: 4.17 | AQ85: 4.17 | AR85: 4.16 | AS85: 4.16 | AT85: 4.16 | AU85: 4.15 | AV85: 4.15 | AW85: 4.15 | AX85: 4.15 | AY85: 4.15 | AZ85: 1.25% | BA85: 1.25 | BC85: 4.43 | BD85: 21,723 | BE85: 13,860 | BF85: 17,944 | BG85: 9,447 | BH85: 3
A86: 2015-05-31 | B86: 2.49 | C86: 2.61 | D86: 2.79 | E86: 2.98 | F86: 3.17 | G86: 3.34 | H86: 3.5 | I86: 3.64 | J86: 3.76 | K86: 3.88 | L86: 3.98 | M86: 4.07 | N86: 4.14 | O86: 4.2 | P86: 4.26 | Q86: 4.28 | R86: 4.3 | S86: 4.32 | T86: 4.34 | U86: 4.36 | V86: 4.34 | W86: 4.33 | X86: 4.32 | Y86: 4.32 | Z86: 4.31 | AA86: 4.29 | AB86: 4.27 | AC86: 4.25 | AD86: 4.24 | AE86: 4.22 | AF86: 4.21 | AG86: 4.2 | AH86: 4.19 | AI86: 4.18 | AJ86: 4.17 | AK86: 4.16 | AL86: 4.15 | AM86: 4.14 | AN86: 4.13 | AO86: 4.13 | AP86: 4.12 | AQ86: 4.12 | AR86: 4.12 | AS86: 4.11 | AT86: 4.11 | AU86: 4.11 | AV86: 4.1 | AW86: 4.1 | AX86: 4.1 | AY86: 4.1 | AZ86: 1.25% | BA86: 1.25 | BC86: 4.41 | BD86: 22,024 | BE86: 14,255 | BF86: 18,404 | BG86: 9,966 | BH86: 4
A87: 2015-06-30 | B87: 2.42 | C87: 2.54 | D87: 2.72 | E87: 2.92 | F87: 3.11 | G87: 3.29 | H87: 3.45 | I87: 3.59 | J87: 3.71 | K87: 3.83 | L87: 3.93 | M87: 4.02 | N87: 4.09 | O87: 4.16 | P87: 4.21 | Q87: 4.24 | R87: 4.26 | S87: 4.28 | T87: 4.3 | U87: 4.31 | V87: 4.3 | W87: 4.29 | X87: 4.28 | Y87: 4.27 | Z87: 4.27 | AA87: 4.25 | AB87: 4.23 | AC87: 4.21 | AD87: 4.2 | AE87: 4.18 | AF87: 4.17 | AG87: 4.16 | AH87: 4.15 | AI87: 4.14 | AJ87: 4.13 | AK87: 4.12 | AL87: 4.11 | AM87: 4.1 | AN87: 4.09 | AO87: 4.09 | AP87: 4.08 | AQ87: 4.08 | AR87: 4.08 | AS87: 4.08 | AT87: 4.07 | AU87: 4.07 | AV87: 4.07 | AW87: 4.07 | AX87: 4.06 | AY87: 4.06 | AZ87: 1.25% | BA87: 1.25 | BC87: 4.39 | BD87: 22,326 | BE87: 14,650 | BF87: 18,864 | BG87: 10,485 | BH87: 5
A88: 2015-07-31 | B88: 2.35 | C88: 2.48 | D88: 2.66 | E88: 2.86 | F88: 3.05 | G88: 3.23 | H88: 3.39 | I88: 3.54 | J88: 3.66 | K88: 3.78 | L88: 3.88 | M88: 3.97 | N88: 4.05 | O88: 4.11 | P88: 4.17 | Q88: 4.19 | R88: 4.21 | S88: 4.23 | T88: 4.25 | U88: 4.27 | V88: 4.26 | W88: 4.25 | X88: 4.24 | Y88: 4.23 | Z88: 4.22 | AA88: 4.2 | AB88: 4.18 | AC88: 4.17 | AD88: 4.15 | AE88: 4.14 | AF88: 4.13 | AG88: 4.12 | AH88: 4.11 | AI88: 4.1 | AJ88: 4.09 | AK88: 4.08 | AL88: 4.07 | AM88: 4.06 | AN88: 4.05 | AO88: 4.05 | AP88: 4.04 | AQ88: 4.04 | AR88: 4.04 | AS88: 4.03 | AT88: 4.03 | AU88: 4.03 | AV88: 4.03 | AW88: 4.03 | AX88: 4.02 | AY88: 4.02 | AZ88: 1.25% | BA88: 1.25 | BC88: 4.38 | BD88: 22,628 | BE88: 15,046 | BF88: 19,324 | BG88: 11,004 | BH88: 6
A89: 2015-08-31 | B89: 2.29 | C89: 2.42 | D89: 2.6 | E89: 2.8 | F89: 3 | G89: 3.18 | H89: 3.34 | I89: 3.49 | J89: 3.61 | K89: 3.73 | L89: 3.84 | M89: 3.92 | N89: 4 | O89: 4.07 | P89: 4.12 | Q89: 4.15 | R89: 4.17 | S89: 4.19 | T89: 4.21 | U89: 4.22 | V89: 4.21 | W89: 4.2 | X89: 4.19 | Y89: 4.19 | Z89: 4.18 | AA89: 4.16 | AB89: 4.14 | AC89: 4.13 | AD89: 4.11 | AE89: 4.1 | AF89: 4.09 | AG89: 4.08 | AH89: 4.07 | AI89: 4.06 | AJ89: 4.05 | AK89: 4.04 | AL89: 4.03 | AM89: 4.02 | AN89: 4.01 | AO89: 4.01 | AP89: 4 | AQ89: 4 | AR89: 4 | AS89: 4 | AT89: 3.99 | AU89: 3.99 | AV89: 3.99 | AW89: 3.99 | AX89: 3.99 | AY89: 3.98 | AZ89: 1.25% | BA89: 1.25 | BC89: 4.36 | BD89: 22,929 | BE89: 15,441 | BF89: 19,783 | BG89: 11,523 | BH89: 7
A90: 2015-09-30 | B90: 2.21 | C90: 2.35 | D90: 2.53 | E90: 2.73 | F90: 2.93 | G90: 3.11 | H90: 3.28 | I90: 3.42 | J90: 3.55 | K90: 3.67 | L90: 3.78 | M90: 3.87 | N90: 3.94 | O90: 4.01 | P90: 4.07 | Q90: 4.09 | R90: 4.11 | S90: 4.14 | T90: 4.15 | U90: 4.17 | V90: 4.16 | W90: 4.15 | X90: 4.14 | Y90: 4.14 | Z90: 4.13 | AA90: 4.11 | AB90: 4.09 | AC90: 4.08 | AD90: 4.06 | AE90: 4.05 | AF90: 4.04 | AG90: 4.03 | AH90: 4.02 | AI90: 4.01 | AJ90: 4 | AK90: 3.99 | AL90: 3.98 | AM90: 3.97 | AN90: 3.97 | AO90: 3.96 | AP90: 3.96 | AQ90: 3.95 | AR90: 3.95 | AS90: 3.95 | AT90: 3.95 | AU90: 3.94 | AV90: 3.94 | AW90: 3.94 | AX90: 3.94 | AY90: 3.94 | AZ90: 1.25% | BA90: 1.25 | BC90: 4.35 | BD90: 23,231 | BE90: 15,836 | BF90: 20,243 | BG90: 12,042 | BH90: 8
A91: 2015-10-31 | B91: 2.14 | C91: 2.28 | D91: 2.46 | E91: 2.67 | F91: 2.86 | G91: 3.05 | H91: 3.21 | I91: 3.36 | J91: 3.49 | K91: 3.6 | L91: 3.71 | M91: 3.8 | N91: 3.88 | O91: 3.94 | P91: 4 | Q91: 4.03 | R91: 4.05 | S91: 4.07 | T91: 4.09 | U91: 4.11 | V91: 4.1 | W91: 4.09 | X91: 4.09 | Y91: 4.08 | Z91: 4.07 | AA91: 4.05 | AB91: 4.04 | AC91: 4.02 | AD91: 4.01 | AE91: 4 | AF91: 3.98 | AG91: 3.97 | AH91: 3.96 | AI91: 3.95 | AJ91: 3.95 | AK91: 3.94 | AL91: 3.93 | AM91: 3.92 | AN91: 3.91 | AO91: 3.91 | AP91: 3.9 | AQ91: 3.9 | AR91: 3.9 | AS91: 3.9 | AT91: 3.9 | AU91: 3.89 | AV91: 3.89 | AW91: 3.89 | AX91: 3.89 | AY91: 3.89 | AZ91: 1.25% | BA91: 1.25 | BC91: 4.33 | BD91: 23,532 | BE91: 16,231 | BF91: 20,703 | BG91: 12,561 | BH91: 9
A92: 2015-11-30 | B92: 2.08 | C92: 2.22 | D92: 2.4 | E92: 2.6 | F92: 2.8 | G92: 2.98 | H92: 3.14 | I92: 3.29 | J92: 3.42 | K92: 3.54 | L92: 3.65 | M92: 3.74 | N92: 3.82 | O92: 3.88 | P92: 3.94 | Q92: 3.97 | R92: 4 | S92: 4.02 | T92: 4.04 | U92: 4.05 | V92: 4.05 | W92: 4.04 | X92: 4.03 | Y92: 4.03 | Z92: 4.02 | AA92: 4 | AB92: 3.99 | AC92: 3.97 | AD92: 3.96 | AE92: 3.95 | AF92: 3.94 | AG92: 3.93 | AH92: 3.92 | AI92: 3.91 | AJ92: 3.9 | AK92: 3.89 | AL92: 3.88 | AM92: 3.88 | AN92: 3.87 | AO92: 3.86 | AP92: 3.86 | AQ92: 3.86 | AR92: 3.86 | AS92: 3.85 | AT92: 3.85 | AU92: 3.85 | AV92: 3.85 | AW92: 3.85 | AX92: 3.84 | AY92: 3.84 | AZ92: 1.25% | BA92: 1.25 | BC92: 4.32 | BD92: 23,834 | BE92: 16,626 | BF92: 21,163 | BG92: 13,080 | BH92: 10
A93: 2015-12-31 | B93: 2.02 | C93: 2.16 | D93: 2.34 | E93: 2.54 | F93: 2.74 | G93: 2.92 | H93: 3.09 | I93: 3.23 | J93: 3.36 | K93: 3.48 | L93: 3.59 | M93: 3.68 | N93: 3.76 | O93: 3.83 | P93: 3.89 | Q93: 3.92 | R93: 3.94 | S93: 3.96 | T93: 3.98 | U93: 4 | V93: 4 | W93: 3.99 | X93: 3.98 | Y93: 3.98 | Z93: 3.97 | AA93: 3.96 | AB93: 3.94 | AC93: 3.93 | AD93: 3.91 | AE93: 3.9 | AF93: 3.89 | AG93: 3.88 | AH93: 3.87 | AI93: 3.86 | AJ93: 3.86 | AK93: 3.85 | AL93: 3.84 | AM93: 3.83 | AN93: 3.83 | AO93: 3.82 | AP93: 3.82 | AQ93: 3.82 | AR93: 3.81 | AS93: 3.81 | AT93: 3.81 | AU93: 3.81 | AV93: 3.81 | AW93: 3.8 | AX93: 3.8 | AY93: 3.8 | AZ93: 1.25% | BA93: 1.25 | BC93: 4.31 | BD93: 24,135 | BE93: 17,021 | BF93: 21,622 | BG93: 13,599 | BH93: 11
A94: 2016-01-31 | B94: 1.97 | C94: 2.11 | D94: 2.29 | E94: 2.48 | F94: 2.68 | G94: 2.86 | H94: 3.03 | I94: 3.17 | J94: 3.3 | K94: 3.42 | L94: 3.53 | M94: 3.62 | N94: 3.7 | O94: 3.77 | P94: 3.83 | Q94: 3.86 | R94: 3.88 | S94: 3.91 | T94: 3.93 | U94: 3.95 | V94: 3.94 | W94: 3.93 | X94: 3.93 | Y94: 3.92 | Z94: 3.92 | AA94: 3.9 | AB94: 3.89 | AC94: 3.88 | AD94: 3.86 | AE94: 3.85 | AF94: 3.84 | AG94: 3.83 | AH94: 3.82 | AI94: 3.81 | AJ94: 3.81 | AK94: 3.8 | AL94: 3.79 | AM94: 3.79 | AN94: 3.78 | AO94: 3.77 | AP94: 3.77 | AQ94: 3.77 | AR94: 3.77 | AS94: 3.77 | AT94: 3.76 | AU94: 3.76 | AV94: 3.76 | AW94: 3.76 | AX94: 3.76 | AY94: 3.76 | AZ94: 1.25% | BA94: 1.25 | BC94: 4.29 | BD94: 24,437 | BE94: 17,416 | BF94: 22,082 | BG94: 14,118
A95: 2016-02-29 | B95: 1.92 | C95: 2.05 | D95: 2.23 | E95: 2.43 | F95: 2.62 | G95: 2.8 | H95: 2.96 | I95: 3.11 | J95: 3.24 | K95: 3.36 | L95: 3.47 | M95: 3.56 | N95: 3.64 | O95: 3.71 | P95: 3.76 | Q95: 3.79 | R95: 3.82 | S95: 3.84 | T95: 3.87 | U95: 3.88 | V95: 3.88 | W95: 3.87 | X95: 3.87 | Y95: 3.87 | Z95: 3.86 | AA95: 3.85 | AB95: 3.83 | AC95: 3.82 | AD95: 3.81 | AE95: 3.8 | AF95: 3.79 | AG95: 3.78 | AH95: 3.77 | AI95: 3.76 | AJ95: 3.76 | AK95: 3.75 | AL95: 3.74 | AM95: 3.74 | AN95: 3.73 | AO95: 3.73 | AP95: 3.72 | AQ95: 3.72 | AR95: 3.72 | AS95: 3.72 | AT95: 3.72 | AU95: 3.71 | AV95: 3.71 | AW95: 3.71 | AX95: 3.71 | AY95: 3.71 | AZ95: 1.25% | BA95: 1.25 | BC95: 4.27 | BD95: =BD$94+(BD$106-BD$94)/12*$BH95 -> 24,803 | BE95: =BE$94+(BE$106-BE$94)/12*$BH95 -> 18,049 | BF95: =BF$94+(BF$106-BF$94)/12*$BH95 -> 22,232 | BG95: =BG$94+(BG$106-BG$94)/12*$BH95 -> 14,353 | BH95: 1
A96: 2016-03-31 | B96: 1.87 | C96: 2 | D96: 2.17 | E96: 2.37 | F96: 2.56 | G96: 2.74 | H96: 2.9 | I96: 3.05 | J96: 3.18 | K96: 3.29 | L96: 3.4 | M96: 3.49 | N96: 3.57 | O96: 3.64 | P96: 3.7 | Q96: 3.73 | R96: 3.75 | S96: 3.78 | T96: 3.8 | U96: 3.82 | V96: 3.81 | W96: 3.81 | X96: 3.81 | Y96: 3.8 | Z96: 3.8 | AA96: 3.78 | AB96: 3.77 | AC96: 3.76 | AD96: 3.75 | AE96: 3.74 | AF96: 3.73 | AG96: 3.72 | AH96: 3.71 | AI96: 3.7 | AJ96: 3.7 | AK96: 3.69 | AL96: 3.68 | AM96: 3.68 | AN96: 3.67 | AO96: 3.67 | AP96: 3.66 | AQ96: 3.66 | AR96: 3.66 | AS96: 3.66 | AT96: 3.66 | AU96: 3.66 | AV96: 3.65 | AW96: 3.65 | AX96: 3.65 | AY96: 3.65 | AZ96: 1.25% | BA96: 1.25 | BC96: 4.24 | BD96: =BD$94+(BD$106-BD$94)/12*$BH96 -> 25,169 | BE96: 18,682 | BF96: 22,382 | BG96: 14,588 | BH96: 2
A97: 2016-04-30 | B97: 1.82 | C97: 1.95 | D97: 2.12 | E97: 2.31 | F97: 2.5 | G97: 2.68 | H97: 2.84 | I97: 2.99 | J97: 3.12 | K97: 3.24 | L97: 3.34 | M97: 3.44 | N97: 3.51 | O97: 3.58 | P97: 3.64 | Q97: 3.67 | R97: 3.7 | S97: 3.72 | T97: 3.74 | U97: 3.76 | V97: 3.76 | W97: 3.75 | X97: 3.75 | Y97: 3.75 | Z97: 3.74 | AA97: 3.73 | AB97: 3.72 | AC97: 3.7 | AD97: 3.69 | AE97: 3.68 | AF97: 3.67 | AG97: 3.66 | AH97: 3.66 | AI97: 3.65 | AJ97: 3.64 | AK97: 3.64 | AL97: 3.63 | AM97: 3.63 | AN97: 3.62 | AO97: 3.61 | AP97: 3.61 | AQ97: 3.61 | AR97: 3.61 | AS97: 3.61 | AT97: 3.61 | AU97: 3.6 | AV97: 3.6 | AW97: 3.6 | AX97: 3.6 | AY97: 3.6 | AZ97: 1.25% | BA97: 1.25 | BC97: 4.22 | BD97: 25,535 | BE97: 19,315 | BF97: 22,532 | BG97: 14,822 | BH97: 3
A98: 2016-05-31 | B98: 1.78 | C98: 1.91 | D98: 2.07 | E98: 2.26 | F98: 2.45 | G98: 2.63 | H98: 2.78 | I98: 2.93 | J98: 3.06 | K98: 3.18 | L98: 3.29 | M98: 3.38 | N98: 3.46 | O98: 3.52 | P98: 3.58 | Q98: 3.61 | R98: 3.64 | S98: 3.66 | T98: 3.68 | U98: 3.7 | V98: 3.7 | W98: 3.7 | X98: 3.69 | Y98: 3.69 | Z98: 3.69 | AA98: 3.67 | AB98: 3.66 | AC98: 3.65 | AD98: 3.64 | AE98: 3.63 | AF98: 3.62 | AG98: 3.61 | AH98: 3.61 | AI98: 3.6 | AJ98: 3.59 | AK98: 3.59 | AL98: 3.58 | AM98: 3.58 | AN98: 3.57 | AO98: 3.57 | AP98: 3.56 | AQ98: 3.56 | AR98: 3.56 | AS98: 3.56 | AT98: 3.56 | AU98: 3.56 | AV98: 3.55 | AW98: 3.55 | AX98: 3.55 | AY98: 3.55 | AZ98: 1.25% | BA98: 1.25 | BC98: 4.2 | BD98: 25,901 | BE98: 19,947 | BF98: 22,681 | BG98: 15,057 | BH98: 4
A99: 2016-06-30 | B99: 1.75 | C99: 1.87 | D99: 2.03 | E99: 2.21 | F99: 2.39 | G99: 2.57 | H99: 2.73 | I99: 2.88 | J99: 3.01 | K99: 3.12 | L99: 3.23 | M99: 3.32 | N99: 3.4 | O99: 3.47 | P99: 3.52 | Q99: 3.56 | R99: 3.58 | S99: 3.61 | T99: 3.63 | U99: 3.65 | V99: 3.64 | W99: 3.64 | X99: 3.64 | Y99: 3.63 | Z99: 3.63 | AA99: 3.62 | AB99: 3.61 | AC99: 3.6 | AD99: 3.58 | AE99: 3.57 | AF99: 3.57 | AG99: 3.56 | AH99: 3.55 | AI99: 3.55 | AJ99: 3.54 | AK99: 3.54 | AL99: 3.53 | AM99: 3.52 | AN99: 3.52 | AO99: 3.52 | AP99: 3.51 | AQ99: 3.51 | AR99: 3.51 | AS99: 3.51 | AT99: 3.51 | AU99: 3.51 | AV99: 3.5 | AW99: 3.5 | AX99: 3.5 | AY99: 3.5 | AZ99: 1.25% | BA99: 1.25 | BC99: 4.17 | BD99: 26,267 | BE99: 20,580 | BF99: 22,831 | BG99: 15,292 | BH99: 5
A100: 2016-07-31 | B100: 1.72 | C100: 1.84 | D100: 1.99 | E100: 2.17 | F100: 2.35 | G100: 2.52 | H100: 2.68 | I100: 2.82 | J100: 2.95 | K100: 3.07 | L100: 3.18 | M100: 3.27 | N100: 3.35 | O100: 3.41 | P100: 3.47 | Q100: 3.5 | R100: 3.53 | S100: 3.55 | T100: 3.57 | U100: 3.59 | V100: 3.59 | W100: 3.59 | X100: 3.58 | Y100: 3.58 | Z100: 3.58 | AA100: 3.57 | AB100: 3.55 | AC100: 3.54 | AD100: 3.53 | AE100: 3.52 | AF100: 3.52 | AG100: 3.51 | AH100: 3.5 | AI100: 3.5 | AJ100: 3.49 | AK100: 3.49 | AL100: 3.48 | AM100: 3.48 | AN100: 3.47 | AO100: 3.47 | AP100: 3.47 | AQ100: 3.46 | AR100: 3.46 | AS100: 3.46 | AT100: 3.46 | AU100: 3.46 | AV100: 3.46 | AW100: 3.46 | AX100: 3.46 | AY100: 3.45 | AZ100: 1.25% | BA100: 1.25 | BC100: 4.14 | BD100: 26,633 | BE100: 21,213 | BF100: 22,981 | BG100: 15,527 | BH100: 6
A101: 2016-08-31 | B101: 1.69 | C101: 1.8 | D101: 1.95 | E101: 2.12 | F101: 2.3 | G101: 2.47 | H101: 2.63 | I101: 2.77 | J101: 2.9 | K101: 3.02 | L101: 3.13 | M101: 3.22 | N101: 3.3 | O101: 3.36 | P101: 3.42 | Q101: 3.45 | R101: 3.48 | S101: 3.5 | T101: 3.52 | U101: 3.54 | V101: 3.54 | W101: 3.53 | X101: 3.53 | Y101: 3.53 | Z101: 3.53 | AA101: 3.52 | AB101: 3.5 | AC101: 3.49 | AD101: 3.48 | AE101: 3.47 | AF101: 3.47 | AG101: 3.46 | AH101: 3.45 | AI101: 3.45 | AJ101: 3.44 | AK101: 3.44 | AL101: 3.43 | AM101: 3.43 | AN101: 3.43 | AO101: 3.42 | AP101: 3.42 | AQ101: 3.42 | AR101: 3.42 | AS101: 3.42 | AT101: 3.41 | AU101: 3.41 | AV101: 3.41 | AW101: 3.41 | AX101: 3.41 | AY101: 3.41 | AZ101: 1.25% | BA101: 1.25 | BC101: 4.11 | BD101: 26,998 | BE101: 21,846 | BF101: 23,131 | BG101: 15,761 | BH101: 7
A102: 2016-09-30 | B102: 1.66 | C102: 1.77 | D102: 1.91 | E102: 2.08 | F102: 2.26 | G102: 2.43 | H102: 2.58 | I102: 2.73 | J102: 2.85 | K102: 2.97 | L102: 3.08 | M102: 3.17 | N102: 3.25 | O102: 3.31 | P102: 3.37 | Q102: 3.4 | R102: 3.42 | S102: 3.45 | T102: 3.47 | U102: 3.49 | V102: 3.49 | W102: 3.48 | X102: 3.48 | Y102: 3.48 | Z102: 3.48 | AA102: 3.47 | AB102: 3.45 | AC102: 3.44 | AD102: 3.43 | AE102: 3.43 | AF102: 3.42 | AG102: 3.41 | AH102: 3.41 | AI102: 3.4 | AJ102: 3.4 | AK102: 3.39 | AL102: 3.39 | AM102: 3.38 | AN102: 3.38 | AO102: 3.38 | AP102: 3.37 | AQ102: 3.37 | AR102: 3.37 | AS102: 3.37 | AT102: 3.37 | AU102: 3.37 | AV102: 3.37 | AW102: 3.37 | AX102: 3.36 | AY102: 3.36 | AZ102: 1.25% | BA102: 1.25 | BC102: 4.08 | BD102: 27,364 | BE102: 22,479 | BF102: 23,281 | BG102: 15,996 | BH102: 8
A103: 2016-10-31 | B103: 1.64 | C103: 1.74 | D103: 1.87 | E103: 2.04 | F103: 2.22 | G103: 2.39 | H103: 2.54 | I103: 2.68 | J103: 2.81 | K103: 2.93 | L103: 3.03 | M103: 3.12 | N103: 3.2 | O103: 3.27 | P103: 3.32 | Q103: 3.35 | R103: 3.38 | S103: 3.4 | T103: 3.42 | U103: 3.44 | V103: 3.44 | W103: 3.44 | X103: 3.44 | Y103: 3.43 | Z103: 3.43 | AA103: 3.42 | AB103: 3.41 | AC103: 3.4 | AD103: 3.39 | AE103: 3.38 | AF103: 3.38 | AG103: 3.37 | AH103: 3.37 | AI103: 3.36 | AJ103: 3.36 | AK103: 3.35 | AL103: 3.35 | AM103: 3.34 | AN103: 3.34 | AO103: 3.34 | AP103: 3.33 | AQ103: 3.33 | AR103: 3.33 | AS103: 3.33 | AT103: 3.33 | AU103: 3.33 | AV103: 3.33 | AW103: 3.33 | AX103: 3.32 | AY103: 3.32 | AZ103: 1.25% | BA103: 1.25 | BC103: 4.06 | BD103: 27,730 | BE103: 23,112 | BF103: 23,431 | BG103: 16,231 | BH103: 9
A104: 2016-11-30 | B104: 1.61 | C104: 1.71 | D104: 1.84 | E104: 2.01 | F104: 2.18 | G104: 2.35 | H104: 2.5 | I104: 2.64 | J104: 2.77 | K104: 2.89 | L104: 2.99 | M104: 3.08 | N104: 3.16 | O104: 3.22 | P104: 3.28 | Q104: 3.31 | R104: 3.34 | S104: 3.36 | T104: 3.38 | U104: 3.4 | V104: 3.4 | W104: 3.4 | X104: 3.4 | Y104: 3.39 | Z104: 3.39 | AA104: 3.38 | AB104: 3.37 | AC104: 3.36 | AD104: 3.35 | AE104: 3.34 | AF104: 3.34 | AG104: 3.33 | AH104: 3.33 | AI104: 3.32 | AJ104: 3.32 | AK104: 3.32 | AL104: 3.31 | AM104: 3.31 | AN104: 3.3 | AO104: 3.3 | AP104: 3.3 | AQ104: 3.3 | AR104: 3.3 | AS104: 3.3 | AT104: 3.29 | AU104: 3.29 | AV104: 3.29 | AW104: 3.29 | AX104: 3.29 | AY104: 3.29 | AZ104: 1.25% | BA104: 1.25 | BC104: 4.03 | BD104: 28,096 | BE104: 23,744 | BF104: 23,580 | BG104: 16,466 | BH104: 10
A105: 2016-12-31 | B105: 1.59 | C105: 1.67 | D105: 1.81 | E105: 1.97 | F105: 2.14 | G105: 2.3 | H105: 2.46 | I105: 2.6 | J105: 2.73 | K105: 2.84 | L105: 2.95 | M105: 3.04 | N105: 3.12 | O105: 3.18 | P105: 3.24 | Q105: 3.27 | R105: 3.29 | S105: 3.32 | T105: 3.34 | U105: 3.36 | V105: 3.36 | W105: 3.36 | X105: 3.35 | Y105: 3.35 | Z105: 3.35 | AA105: 3.34 | AB105: 3.33 | AC105: 3.32 | AD105: 3.31 | AE105: 3.31 | AF105: 3.3 | AG105: 3.29 | AH105: 3.29 | AI105: 3.29 | AJ105: 3.28 | AK105: 3.28 | AL105: 3.27 | AM105: 3.27 | AN105: 3.27 | AO105: 3.26 | AP105: 3.26 | AQ105: 3.26 | AR105: 3.26 | AS105: 3.26 | AT105: 3.26 | AU105: 3.26 | AV105: 3.26 | AW105: 3.26 | AX105: 3.25 | AY105: 3.25 | AZ105: 1.25% | BA105: 1.25 | BC105: 4.01 | BD105: 28,462 | BE105: 24,377 | BF105: 23,730 | BG105: 16,700 | BH105: 11
A106: 2017-01-31 | B106: 1.57 | C106: 1.65 | D106: 1.77 | E106: 1.93 | F106: 2.1 | G106: 2.27 | H106: 2.42 | I106: 2.56 | J106: 2.69 | K106: 2.8 | L106: 2.91 | M106: 3 | N106: 3.08 | O106: 3.14 | P106: 3.2 | Q106: 3.23 | R106: 3.26 | S106: 3.28 | T106: 3.3 | U106: 3.32 | V106: 3.32 | W106: 3.32 | X106: 3.32 | Y106: 3.32 | Z106: 3.32 | AA106: 3.3 | AB106: 3.3 | AC106: 3.29 | AD106: 3.28 | AE106: 3.27 | AF106: 3.27 | AG106: 3.26 | AH106: 3.26 | AI106: 3.25 | AJ106: 3.25 | AK106: 3.24 | AL106: 3.24 | AM106: 3.24 | AN106: 3.24 | AO106: 3.23 | AP106: 3.23 | AQ106: 3.23 | AR106: 3.23 | AS106: 3.23 | AT106: 3.23 | AU106: 3.23 | AV106: 3.23 | AW106: 3.22 | AX106: 3.22 | AY106: 3.22 | AZ106: 1.25% | BA106: 1.25 | BC106: 3.99 | BD106: 28,828 | BE106: 25,010 | BF106: 23,880 | BG106: 16,935
A107: 2017-02-28 | B107: 1.54 | C107: 1.62 | D107: 1.74 | E107: 1.9 | F107: 2.06 | G107: 2.23 | H107: 2.38 | I107: 2.52 | J107: 2.65 | K107: 2.76 | L107: 2.87 | M107: 2.96 | N107: 3.03 | O107: 3.1 | P107: 3.16 | Q107: 3.19 | R107: 3.21 | S107: 3.24 | T107: 3.26 | U107: 3.28 | V107: 3.28 | W107: 3.28 | X107: 3.28 | Y107: 3.28 | Z107: 3.28 | AA107: 3.27 | AB107: 3.26 | AC107: 3.25 | AD107: 3.24 | AE107: 3.23 | AF107: 3.23 | AG107: 3.22 | AH107: 3.22 | AI107: 3.22 | AJ107: 3.21 | AK107: 3.21 | AL107: 3.21 | AM107: 3.2 | AN107: 3.2 | AO107: 3.2 | AP107: 3.2 | AQ107: 3.2 | AR107: 3.19 | AS107: 3.19 | AT107: 3.19 | AU107: 3.19 | AV107: 3.19 | AW107: 3.19 | AX107: 3.19 | AY107: 3.19 | AZ107: 0.90% | BA107: 0.9 | BC107: 3.96 | BD107: =BD$106+(BD$118-BD$106)/12*$BH107 -> 29,124 | BE107: =BE$106+(BE$118-BE$106)/12*$BH107 -> 25,588 | BF107: 24,060 | BG107: 17,220 | BH107: 1
A108: 2017-03-31 | B108: 1.52 | C108: 1.59 | D108: 1.71 | E108: 1.87 | F108: 2.03 | G108: 2.19 | H108: 2.34 | I108: 2.48 | J108: 2.61 | K108: 2.72 | L108: 2.83 | M108: 2.92 | N108: 2.99 | O108: 3.06 | P108: 3.12 | Q108: 3.15 | R108: 3.17 | S108: 3.2 | T108: 3.22 | U108: 3.24 | V108: 3.24 | W108: 3.24 | X108: 3.24 | Y108: 3.24 | Z108: 3.24 | AA108: 3.23 | AB108: 3.22 | AC108: 3.21 | AD108: 3.2 | AE108: 3.2 | AF108: 3.19 | AG108: 3.19 | AH108: 3.19 | AI108: 3.18 | AJ108: 3.18 | AK108: 3.18 | AL108: 3.17 | AM108: 3.17 | AN108: 3.17 | AO108: 3.17 | AP108: 3.16 | AQ108: 3.16 | AR108: 3.16 | AS108: 3.16 | AT108: 3.16 | AU108: 3.16 | AV108: 3.16 | AW108: 3.16 | AX108: 3.16 | AY108: 3.16 | AZ108: 0.90% | BA108: 0.9 | BC108: 3.94 | BD108: =BD$106+(BD$118-BD$106)/12*$BH108 -> 29,420 | BE108: 26,165 | BF108: 24,241 | BG108: 17,505 | BH108: 2
A109: 2017-04-30 | B109: 1.49 | C109: 1.56 | D109: 1.68 | E109: 1.83 | F109: 1.99 | G109: 2.16 | H109: 2.3 | I109: 2.44 | J109: 2.57 | K109: 2.69 | L109: 2.79 | M109: 2.88 | N109: 2.96 | O109: 3.02 | P109: 3.08 | Q109: 3.11 | R109: 3.14 | S109: 3.16 | T109: 3.18 | U109: 3.2 | V109: 3.2 | W109: 3.2 | X109: 3.2 | Y109: 3.2 | Z109: 3.2 | AA109: 3.19 | AB109: 3.18 | AC109: 3.18 | AD109: 3.17 | AE109: 3.16 | AF109: 3.16 | AG109: 3.16 | AH109: 3.15 | AI109: 3.15 | AJ109: 3.15 | AK109: 3.14 | AL109: 3.14 | AM109: 3.14 | AN109: 3.14 | AO109: 3.13 | AP109: 3.13 | AQ109: 3.13 | AR109: 3.13 | AS109: 3.13 | AT109: 3.13 | AU109: 3.13 | AV109: 3.13 | AW109: 3.13 | AX109: 3.13 | AY109: 3.13 | AZ109: 0.90% | BA109: 0.9 | BC109: 3.91 | BD109: 29,716 | BE109: 26,743 | BF109: 24,421 | BG109: 17,790 | BH109: 3
A110: 2017-05-31 | B110: 1.47 | C110: 1.54 | D110: 1.65 | E110: 1.8 | F110: 1.96 | G110: 2.12 | H110: 2.27 | I110: 2.41 | J110: 2.53 | K110: 2.65 | L110: 2.75 | M110: 2.84 | N110: 2.92 | O110: 2.98 | P110: 3.04 | Q110: 3.07 | R110: 3.1 | S110: 3.12 | T110: 3.15 | U110: 3.17 | V110: 3.17 | W110: 3.17 | X110: 3.17 | Y110: 3.17 | Z110: 3.17 | AA110: 3.16 | AB110: 3.15 | AC110: 3.14 | AD110: 3.14 | AE110: 3.13 | AF110: 3.13 | AG110: 3.12 | AH110: 3.12 | AI110: 3.12 | AJ110: 3.12 | AK110: 3.11 | AL110: 3.11 | AM110: 3.11 | AN110: 3.11 | AO110: 3.1 | AP110: 3.1 | AQ110: 3.1 | AR110: 3.1 | AS110: 3.1 | AT110: 3.1 | AU110: 3.1 | AV110: 3.1 | AW110: 3.1 | AX110: 3.1 | AY110: 3.1 | AZ110: 0.90% | BA110: 0.9 | BC110: 3.88 | BD110: 30,012 | BE110: 27,320 | BF110: 24,601 | BG110: 18,075 | BH110: 4
A111: 2017-06-30 | B111: 1.44 | C111: 1.51 | D111: 1.62 | E111: 1.77 | F111: 1.93 | G111: 2.09 | H111: 2.23 | I111: 2.37 | J111: 2.5 | K111: 2.61 | L111: 2.72 | M111: 2.81 | N111: 2.88 | O111: 2.95 | P111: 3 | Q111: 3.04 | R111: 3.06 | S111: 3.09 | T111: 3.11 | U111: 3.13 | V111: 3.13 | W111: 3.13 | X111: 3.13 | Y111: 3.13 | Z111: 3.14 | AA111: 3.13 | AB111: 3.12 | AC111: 3.11 | AD111: 3.11 | AE111: 3.1 | AF111: 3.1 | AG111: 3.09 | AH111: 3.09 | AI111: 3.09 | AJ111: 3.09 | AK111: 3.08 | AL111: 3.08 | AM111: 3.08 | AN111: 3.08 | AO111: 3.08 | AP111: 3.08 | AQ111: 3.07 | AR111: 3.07 | AS111: 3.07 | AT111: 3.07 | AU111: 3.07 | AV111: 3.07 | AW111: 3.07 | AX111: 3.07 | AY111: 3.07 | AZ111: 0.90% | BA111: 0.9 | BC111: 3.86 | BD111: 30,308 | BE111: 27,898 | BF111: 24,782 | BG111: 18,360 | BH111: 5
A112: 2017-07-31 | B112: 1.41 | C112: 1.48 | D112: 1.59 | E112: 1.74 | F112: 1.89 | G112: 2.05 | H112: 2.2 | I112: 2.34 | J112: 2.46 | K112: 2.58 | L112: 2.68 | M112: 2.77 | N112: 2.85 | O112: 2.91 | P112: 2.97 | Q112: 3 | R112: 3.03 | S112: 3.05 | T112: 3.08 | U112: 3.1 | V112: 3.1 | W112: 3.1 | X112: 3.1 | Y112: 3.1 | Z112: 3.1 | AA112: 3.1 | AB112: 3.09 | AC112: 3.08 | AD112: 3.08 | AE112: 3.07 | AF112: 3.07 | AG112: 3.06 | AH112: 3.06 | AI112: 3.06 | AJ112: 3.06 | AK112: 3.06 | AL112: 3.05 | AM112: 3.05 | AN112: 3.05 | AO112: 3.05 | AP112: 3.05 | AQ112: 3.05 | AR112: 3.05 | AS112: 3.04 | AT112: 3.04 | AU112: 3.04 | AV112: 3.04 | AW112: 3.04 | AX112: 3.04 | AY112: 3.04 | AZ112: 0.90% | BA112: 0.9 | BC112: 3.83 | BD112: 30,604 | BE112: 28,475 | BF112: 24,962 | BG112: 18,645 | BH112: 6
A113: 2017-08-31 | B113: 1.38 | C113: 1.45 | D113: 1.56 | E113: 1.71 | F113: 1.87 | G113: 2.02 | H113: 2.17 | I113: 2.31 | J113: 2.43 | K113: 2.55 | L113: 2.66 | M113: 2.74 | N113: 2.82 | O113: 2.89 | P113: 2.94 | Q113: 2.97 | R113: 3 | S113: 3.03 | T113: 3.05 | U113: 3.07 | V113: 3.07 | W113: 3.07 | X113: 3.08 | Y113: 3.08 | Z113: 3.08 | AA113: 3.07 | AB113: 3.06 | AC113: 3.06 | AD113: 3.05 | AE113: 3.05 | AF113: 3.05 | AG113: 3.04 | AH113: 3.04 | AI113: 3.04 | AJ113: 3.04 | AK113: 3.03 | AL113: 3.03 | AM113: 3.03 | AN113: 3.03 | AO113: 3.03 | AP113: 3.03 | AQ113: 3.03 | AR113: 3.02 | AS113: 3.02 | AT113: 3.02 | AU113: 3.02 | AV113: 3.02 | AW113: 3.02 | AX113: 3.02 | AY113: 3.02 | AZ113: 0.90% | BA113: 0.9 | BC113: 3.8 | BD113: 30,899 | BE113: 29,053 | BF113: 25,142 | BG113: 18,930 | BH113: 7
A114: 2017-09-30 | B114: 1.36 | C114: 1.42 | D114: 1.53 | E114: 1.68 | F114: 1.84 | G114: 1.99 | H114: 2.14 | I114: 2.28 | J114: 2.4 | K114: 2.52 | L114: 2.63 | M114: 2.71 | N114: 2.79 | O114: 2.86 | P114: 2.91 | Q114: 2.95 | R114: 2.97 | S114: 3 | T114: 3.02 | U114: 3.04 | V114: 3.05 | W114: 3.05 | X114: 3.05 | Y114: 3.05 | Z114: 3.05 | AA114: 3.05 | AB114: 3.04 | AC114: 3.03 | AD114: 3.03 | AE114: 3.02 | AF114: 3.02 | AG114: 3.02 | AH114: 3.02 | AI114: 3.02 | AJ114: 3.01 | AK114: 3.01 | AL114: 3.01 | AM114: 3.01 | AN114: 3.01 | AO114: 3.01 | AP114: 3.01 | AQ114: 3 | AR114: 3 | AS114: 3 | AT114: 3 | AU114: 3 | AV114: 3 | AW114: 3 | AX114: 3 | AY114: 3 | AZ114: 0.90% | BA114: 0.9 | BC114: 3.77 | BD114: 31,195 | BE114: 29,630 | BF114: 25,323 | BG114: 19,215 | BH114: 8
A115: 2017-10-31 | B115: 1.33 | C115: 1.39 | D115: 1.5 | E115: 1.65 | F115: 1.8 | G115: 1.96 | H115: 2.11 | I115: 2.24 | J115: 2.37 | K115: 2.49 | L115: 2.59 | M115: 2.68 | N115: 2.76 | O115: 2.82 | P115: 2.88 | Q115: 2.91 | R115: 2.94 | S115: 2.97 | T115: 2.99 | U115: 3.01 | V115: 3.02 | W115: 3.02 | X115: 3.02 | Y115: 3.02 | Z115: 3.02 | AA115: 3.02 | AB115: 3.01 | AC115: 3.01 | AD115: 3 | AE115: 3 | AF115: 3 | AG115: 3 | AH115: 2.99 | AI115: 2.99 | AJ115: 2.99 | AK115: 2.99 | AL115: 2.99 | AM115: 2.99 | AN115: 2.99 | AO115: 2.98 | AP115: 2.98 | AQ115: 2.98 | AR115: 2.98 | AS115: 2.98 | AT115: 2.98 | AU115: 2.98 | AV115: 2.98 | AW115: 2.98 | AX115: 2.98 | AY115: 2.98 | AZ115: 0.90% | BA115: 0.9 | BC115: 3.74 | BD115: 31,491 | BE115: 30,208 | BF115: 25,503 | BG115: 19,500 | BH115: 9
A116: 2017-11-30 | B116: 1.29 | C116: 1.36 | D116: 1.47 | E116: 1.61 | F116: 1.76 | G116: 1.92 | H116: 2.07 | I116: 2.2 | J116: 2.33 | K116: 2.45 | L116: 2.55 | M116: 2.64 | N116: 2.72 | O116: 2.79 | P116: 2.84 | Q116: 2.88 | R116: 2.91 | S116: 2.93 | T116: 2.95 | U116: 2.98 | V116: 2.98 | W116: 2.98 | X116: 2.99 | Y116: 2.99 | Z116: 2.99 | AA116: 2.99 | AB116: 2.98 | AC116: 2.98 | AD116: 2.97 | AE116: 2.97 | AF116: 2.97 | AG116: 2.97 | AH116: 2.96 | AI116: 2.96 | AJ116: 2.96 | AK116: 2.96 | AL116: 2.96 | AM116: 2.96 | AN116: 2.96 | AO116: 2.96 | AP116: 2.96 | AQ116: 2.95 | AR116: 2.95 | AS116: 2.95 | AT116: 2.95 | AU116: 2.95 | AV116: 2.95 | AW116: 2.95 | AX116: 2.95 | AY116: 2.95 | AZ116: 0.90% | BA116: 0.9 | BC116: 3.71 | BD116: 31,787 | BE116: 30,785 | BF116: 25,683 | BG116: 19,785 | BH116: 10
A117: 2017-12-31 | B117: 1.26 | C117: 1.33 | D117: 1.43 | E117: 1.58 | F117: 1.73 | G117: 1.88 | H117: 2.02 | I117: 2.16 | J117: 2.29 | K117: 2.4 | L117: 2.51 | M117: 2.6 | N117: 2.68 | O117: 2.74 | P117: 2.8 | Q117: 2.83 | R117: 2.86 | S117: 2.89 | T117: 2.91 | U117: 2.94 | V117: 2.94 | W117: 2.94 | X117: 2.95 | Y117: 2.95 | Z117: 2.95 | AA117: 2.95 | AB117: 2.94 | AC117: 2.94 | AD117: 2.94 | AE117: 2.93 | AF117: 2.93 | AG117: 2.93 | AH117: 2.93 | AI117: 2.93 | AJ117: 2.93 | AK117: 2.93 | AL117: 2.93 | AM117: 2.93 | AN117: 2.93 | AO117: 2.92 | AP117: 2.92 | AQ117: 2.92 | AR117: 2.92 | AS117: 2.92 | AT117: 2.92 | AU117: 2.92 | AV117: 2.92 | AW117: 2.92 | AX117: 2.92 | AY117: 2.92 | AZ117: 0.90% | BA117: 0.9 | BC117: 3.68 | BD117: 32,083 | BE117: 31,363 | BF117: 25,864 | BG117: 20,070 | BH117: 11
A118: 2018-01-31 | B118: 1.23 | C118: 1.29 | D118: 1.39 | E118: 1.54 | F118: 1.68 | G118: 1.84 | H118: 1.98 | I118: 2.12 | J118: 2.25 | K118: 2.36 | L118: 2.47 | M118: 2.56 | N118: 2.63 | O118: 2.7 | P118: 2.76 | Q118: 2.79 | R118: 2.82 | S118: 2.85 | T118: 2.87 | U118: 2.89 | V118: 2.9 | W118: 2.9 | X118: 2.91 | Y118: 2.91 | Z118: 2.91 | AA118: 2.91 | AB118: 2.91 | AC118: 2.9 | AD118: 2.9 | AE118: 2.9 | AF118: 2.89 | AG118: 2.89 | AH118: 2.89 | AI118: 2.89 | AJ118: 2.89 | AK118: 2.89 | AL118: 2.89 | AM118: 2.89 | AN118: 2.89 | AO118: 2.89 | AP118: 2.89 | AQ118: 2.89 | AR118: 2.89 | AS118: 2.89 | AT118: 2.89 | AU118: 2.88 | AV118: 2.88 | AW118: 2.88 | AX118: 2.88 | AY118: 2.88 | AZ118: 0.90% | BA118: 0.9 | BC118: 3.64 | BD118: 32,379 | BE118: 31,940 | BF118: 26,044 | BG118: 20,355
A119: 2018-02-28 | B119: 1.19 | C119: 1.25 | D119: 1.35 | E119: 1.5 | F119: 1.64 | G119: 1.8 | H119: 1.94 | I119: 2.08 | J119: 2.21 | K119: 2.32 | L119: 2.43 | M119: 2.52 | N119: 2.59 | O119: 2.66 | P119: 2.72 | Q119: 2.75 | R119: 2.78 | S119: 2.81 | T119: 2.83 | U119: 2.85 | V119: 2.86 | W119: 2.86 | X119: 2.87 | Y119: 2.87 | Z119: 2.88 | AA119: 2.87 | AB119: 2.87 | AC119: 2.87 | AD119: 2.86 | AE119: 2.86 | AF119: 2.86 | AG119: 2.86 | AH119: 2.86 | AI119: 2.86 | AJ119: 2.86 | AK119: 2.86 | AL119: 2.86 | AM119: 2.86 | AN119: 2.86 | AO119: 2.86 | AP119: 2.86 | AQ119: 2.86 | AR119: 2.85 | AS119: 2.85 | AT119: 2.85 | AU119: 2.85 | AV119: 2.85 | AW119: 2.85 | AX119: 2.85 | AY119: 2.85 | AZ119: 0.90% | BA119: 0.9 | BC119: 3.61 | BD119: =BD$118+(BD$130-BD$118)/12*$BH119 -> 32,747 | BE119: =BE$118+(BE$130-BE$118)/12*$BH119 -> 32,764 | BF119: 26,326 | BG119: 20,856 | BH119: 1
A120: 2018-03-31 | B120: 1.16 | C120: 1.21 | D120: 1.31 | E120: 1.45 | F120: 1.6 | G120: 1.76 | H120: 1.9 | I120: 2.04 | J120: 2.16 | K120: 2.28 | L120: 2.39 | M120: 2.48 | N120: 2.55 | O120: 2.62 | P120: 2.68 | Q120: 2.71 | R120: 2.74 | S120: 2.77 | T120: 2.79 | U120: 2.81 | V120: 2.82 | W120: 2.82 | X120: 2.83 | Y120: 2.83 | Z120: 2.84 | AA120: 2.83 | AB120: 2.83 | AC120: 2.83 | AD120: 2.82 | AE120: 2.82 | AF120: 2.82 | AG120: 2.82 | AH120: 2.82 | AI120: 2.82 | AJ120: 2.82 | AK120: 2.82 | AL120: 2.82 | AM120: 2.82 | AN120: 2.82 | AO120: 2.82 | AP120: 2.82 | AQ120: 2.82 | AR120: 2.82 | AS120: 2.82 | AT120: 2.82 | AU120: 2.82 | AV120: 2.82 | AW120: 2.82 | AX120: 2.82 | AY120: 2.82 | AZ120: 0.90% | BA120: 0.9 | BC120: 3.57 | BD120: =BD$118+(BD$130-BD$118)/12*$BH120 -> 33,115 | BE120: 33,589 | BF120: 26,609 | BG120: 21,356 | BH120: 2
A121: 2018-04-30 | B121: 1.12 | C121: 1.17 | D121: 1.27 | E121: 1.41 | F121: 1.56 | G121: 1.72 | H121: 1.86 | I121: 2 | J121: 2.12 | K121: 2.24 | L121: 2.35 | M121: 2.44 | N121: 2.51 | O121: 2.58 | P121: 2.64 | Q121: 2.67 | R121: 2.7 | S121: 2.73 | T121: 2.75 | U121: 2.77 | V121: 2.78 | W121: 2.79 | X121: 2.79 | Y121: 2.8 | Z121: 2.8 | AA121: 2.8 | AB121: 2.79 | AC121: 2.79 | AD121: 2.79 | AE121: 2.79 | AF121: 2.79 | AG121: 2.79 | AH121: 2.79 | AI121: 2.79 | AJ121: 2.79 | AK121: 2.79 | AL121: 2.79 | AM121: 2.79 | AN121: 2.79 | AO121: 2.79 | AP121: 2.79 | AQ121: 2.79 | AR121: 2.79 | AS121: 2.79 | AT121: 2.79 | AU121: 2.79 | AV121: 2.78 | AW121: 2.78 | AX121: 2.78 | AY121: 2.78 | AZ121: 0.90% | BA121: 0.9 | BC121: 3.53 | BD121: 33,483 | BE121: 34,413 | BF121: 26,891 | BG121: 21,857 | BH121: 3
A122: 2018-05-31 | B122: 1.09 | C122: 1.14 | D122: 1.24 | E122: 1.38 | F122: 1.52 | G122: 1.68 | H122: 1.82 | I122: 1.96 | J122: 2.08 | K122: 2.2 | L122: 2.31 | M122: 2.4 | N122: 2.47 | O122: 2.54 | P122: 2.6 | Q122: 2.63 | R122: 2.66 | S122: 2.69 | T122: 2.71 | U122: 2.74 | V122: 2.74 | W122: 2.75 | X122: 2.75 | Y122: 2.76 | Z122: 2.76 | AA122: 2.76 | AB122: 2.76 | AC122: 2.76 | AD122: 2.75 | AE122: 2.75 | AF122: 2.75 | AG122: 2.75 | AH122: 2.75 | AI122: 2.75 | AJ122: 2.75 | AK122: 2.76 | AL122: 2.76 | AM122: 2.76 | AN122: 2.76 | AO122: 2.76 | AP122: 2.76 | AQ122: 2.76 | AR122: 2.75 | AS122: 2.75 | AT122: 2.75 | AU122: 2.75 | AV122: 2.75 | AW122: 2.75 | AX122: 2.75 | AY122: 2.75 | AZ122: 0.90% | BA122: 0.9 | BC122: 3.5 | BD122: 33,851 | BE122: 35,237 | BF122: 27,173 | BG122: 22,357 | BH122: 4
A123: 2018-06-30 | B123: 1.05 | C123: 1.1 | D123: 1.2 | E123: 1.34 | F123: 1.48 | G123: 1.64 | H123: 1.78 | I123: 1.92 | J123: 2.04 | K123: 2.16 | L123: 2.27 | M123: 2.35 | N123: 2.43 | O123: 2.5 | P123: 2.56 | Q123: 2.59 | R123: 2.62 | S123: 2.65 | T123: 2.67 | U123: 2.7 | V123: 2.7 | W123: 2.71 | X123: 2.71 | Y123: 2.72 | Z123: 2.72 | AA123: 2.72 | AB123: 2.72 | AC123: 2.72 | AD123: 2.71 | AE123: 2.71 | AF123: 2.71 | AG123: 2.71 | AH123: 2.72 | AI123: 2.72 | AJ123: 2.72 | AK123: 2.72 | AL123: 2.72 | AM123: 2.72 | AN123: 2.72 | AO123: 2.72 | AP123: 2.72 | AQ123: 2.72 | AR123: 2.72 | AS123: 2.72 | AT123: 2.71 | AU123: 2.71 | AV123: 2.71 | AW123: 2.71 | AX123: 2.71 | AY123: 2.71 | AZ123: 0.90% | BA123: 0.9 | BC123: 3.46 | BD123: 34,219 | BE123: 36,062 | BF123: 27,455 | BG123: 22,858 | BH123: 5
A124: 2018-07-31 | B124: 1.02 | C124: 1.06 | D124: 1.16 | E124: 1.3 | F124: 1.44 | G124: 1.6 | H124: 1.74 | I124: 1.88 | J124: 2 | K124: 2.12 | L124: 2.23 | M124: 2.32 | N124: 2.39 | O124: 2.46 | P124: 2.52 | Q124: 2.55 | R124: 2.58 | S124: 2.61 | T124: 2.64 | U124: 2.66 | V124: 2.67 | W124: 2.67 | X124: 2.68 | Y124: 2.68 | Z124: 2.69 | AA124: 2.69 | AB124: 2.68 | AC124: 2.68 | AD124: 2.68 | AE124: 2.68 | AF124: 2.68 | AG124: 2.68 | AH124: 2.68 | AI124: 2.68 | AJ124: 2.68 | AK124: 2.68 | AL124: 2.68 | AM124: 2.68 | AN124: 2.69 | AO124: 2.69 | AP124: 2.68 | AQ124: 2.68 | AR124: 2.68 | AS124: 2.68 | AT124: 2.68 | AU124: 2.68 | AV124: 2.68 | AW124: 2.68 | AX124: 2.68 | AY124: 2.68 | AZ124: 0.90% | BA124: 0.9 | BC124: 3.42 | BD124: 34,587 | BE124: 36,886 | BF124: 27,738 | BG124: 23,359 | BH124: 6
A125: 2018-08-31 | B125: 0.98 | C125: 1.02 | D125: 1.12 | E125: 1.26 | F125: 1.4 | G125: 1.56 | H125: 1.7 | I125: 1.84 | J125: 1.96 | K125: 2.08 | L125: 2.19 | M125: 2.27 | N125: 2.35 | O125: 2.42 | P125: 2.48 | Q125: 2.51 | R125: 2.54 | S125: 2.57 | T125: 2.59 | U125: 2.62 | V125: 2.62 | W125: 2.63 | X125: 2.64 | Y125: 2.64 | Z125: 2.65 | AA125: 2.65 | AB125: 2.65 | AC125: 2.64 | AD125: 2.64 | AE125: 2.64 | AF125: 2.64 | AG125: 2.64 | AH125: 2.64 | AI125: 2.65 | AJ125: 2.65 | AK125: 2.65 | AL125: 2.65 | AM125: 2.65 | AN125: 2.65 | AO125: 2.65 | AP125: 2.65 | AQ125: 2.65 | AR125: 2.65 | AS125: 2.64 | AT125: 2.64 | AU125: 2.64 | AV125: 2.64 | AW125: 2.64 | AX125: 2.64 | AY125: 2.64 | AZ125: 0.90% | BA125: 0.9 | BC125: 3.39 | BD125: 34,954 | BE125: 37,710 | BF125: 28,020 | BG125: 23,859 | BH125: 7
A126: 2018-09-30 | B126: 0.93 | C126: 0.98 | D126: 1.08 | E126: 1.22 | F126: 1.36 | G126: 1.52 | H126: 1.66 | I126: 1.8 | J126: 1.92 | K126: 2.04 | L126: 2.15 | M126: 2.23 | N126: 2.31 | O126: 2.38 | P126: 2.43 | Q126: 2.47 | R126: 2.5 | S126: 2.53 | T126: 2.56 | U126: 2.58 | V126: 2.59 | W126: 2.59 | X126: 2.6 | Y126: 2.61 | Z126: 2.61 | AA126: 2.61 | AB126: 2.61 | AC126: 2.61 | AD126: 2.61 | AE126: 2.61 | AF126: 2.61 | AG126: 2.61 | AH126: 2.61 | AI126: 2.61 | AJ126: 2.61 | AK126: 2.61 | AL126: 2.61 | AM126: 2.61 | AN126: 2.61 | AO126: 2.61 | AP126: 2.61 | AQ126: 2.61 | AR126: 2.61 | AS126: 2.61 | AT126: 2.61 | AU126: 2.61 | AV126: 2.61 | AW126: 2.61 | AX126: 2.61 | AY126: 2.6 | AZ126: 0.90% | BA126: 0.9 | BC126: 3.34 | BD126: 35,322 | BE126: 38,535 | BF126: 28,302 | BG126: 24,360 | BH126: 8
A127: 2018-10-31 | B127: 0.89 | C127: 0.95 | D127: 1.05 | E127: 1.18 | F127: 1.33 | G127: 1.48 | H127: 1.62 | I127: 1.76 | J127: 1.88 | K127: 2 | L127: 2.11 | M127: 2.2 | N127: 2.27 | O127: 2.34 | P127: 2.4 | Q127: 2.43 | R127: 2.47 | S127: 2.5 | T127: 2.52 | U127: 2.54 | V127: 2.55 | W127: 2.56 | X127: 2.57 | Y127: 2.57 | Z127: 2.58 | AA127: 2.58 | AB127: 2.58 | AC127: 2.58 | AD127: 2.57 | AE127: 2.57 | AF127: 2.58 | AG127: 2.58 | AH127: 2.58 | AI127: 2.58 | AJ127: 2.58 | AK127: 2.58 | AL127: 2.58 | AM127: 2.58 | AN127: 2.58 | AO127: 2.58 | AP127: 2.58 | AQ127: 2.58 | AR127: 2.58 | AS127: 2.58 | AT127: 2.58 | AU127: 2.57 | AV127: 2.57 | AW127: 2.57 | AX127: 2.57 | AY127: 2.57 | AZ127: 0.90% | BA127: 0.9 | BC127: 3.29 | BD127: 35,690 | BE127: 39,359 | BF127: 28,584 | BG127: 24,860 | BH127: 9
A128: 2018-11-30 | B128: 0.85 | C128: 0.91 | D128: 1.01 | E128: 1.14 | F128: 1.29 | G128: 1.44 | H128: 1.58 | I128: 1.72 | J128: 1.84 | K128: 1.96 | L128: 2.07 | M128: 2.16 | N128: 2.23 | O128: 2.3 | P128: 2.36 | Q128: 2.39 | R128: 2.43 | S128: 2.46 | T128: 2.48 | U128: 2.51 | V128: 2.51 | W128: 2.52 | X128: 2.53 | Y128: 2.54 | Z128: 2.54 | AA128: 2.54 | AB128: 2.54 | AC128: 2.54 | AD128: 2.54 | AE128: 2.54 | AF128: 2.54 | AG128: 2.54 | AH128: 2.54 | AI128: 2.54 | AJ128: 2.54 | AK128: 2.54 | AL128: 2.54 | AM128: 2.55 | AN128: 2.55 | AO128: 2.55 | AP128: 2.54 | AQ128: 2.54 | AR128: 2.54 | AS128: 2.54 | AT128: 2.54 | AU128: 2.54 | AV128: 2.54 | AW128: 2.54 | AX128: 2.54 | AY128: 2.54 | AZ128: 0.90% | BA128: 0.9 | BC128: 3.25 | BD128: 36,058 | BE128: 40,183 | BF128: 28,867 | BG128: 25,361 | BH128: 10
A129: 2018-12-31 | B129: 0.82 | C129: 0.88 | D129: 0.98 | E129: 1.11 | F129: 1.25 | G129: 1.4 | H129: 1.55 | I129: 1.68 | J129: 1.81 | K129: 1.93 | L129: 2.03 | M129: 2.12 | N129: 2.2 | O129: 2.27 | P129: 2.32 | Q129: 2.36 | R129: 2.39 | S129: 2.42 | T129: 2.45 | U129: 2.47 | V129: 2.48 | W129: 2.49 | X129: 2.5 | Y129: 2.51 | Z129: 2.51 | AA129: 2.51 | AB129: 2.51 | AC129: 2.51 | AD129: 2.51 | AE129: 2.51 | AF129: 2.51 | AG129: 2.51 | AH129: 2.51 | AI129: 2.51 | AJ129: 2.51 | AK129: 2.52 | AL129: 2.52 | AM129: 2.52 | AN129: 2.52 | AO129: 2.52 | AP129: 2.52 | AQ129: 2.51 | AR129: 2.51 | AS129: 2.51 | AT129: 2.51 | AU129: 2.51 | AV129: 2.51 | AW129: 2.51 | AX129: 2.51 | AY129: 2.51 | AZ129: 0.90% | BA129: 0.9 | BC129: 3.21 | BD129: 36,426 | BE129: 41,008 | BF129: 29,149 | BG129: 25,861 | BH129: 11
A130: 2019-01-31 | B130: 0.79 | C130: 0.85 | D130: 0.95 | E130: 1.08 | F130: 1.22 | G130: 1.37 | H130: 1.51 | I130: 1.65 | J130: 1.78 | K130: 1.9 | L130: 2 | M130: 2.09 | N130: 2.17 | O130: 2.24 | P130: 2.29 | Q130: 2.33 | R130: 2.36 | S130: 2.39 | T130: 2.42 | U130: 2.44 | V130: 2.45 | W130: 2.46 | X130: 2.47 | Y130: 2.48 | Z130: 2.48 | AA130: 2.48 | AB130: 2.48 | AC130: 2.48 | AD130: 2.48 | AE130: 2.48 | AF130: 2.49 | AG130: 2.49 | AH130: 2.49 | AI130: 2.49 | AJ130: 2.49 | AK130: 2.49 | AL130: 2.49 | AM130: 2.49 | AN130: 2.49 | AO130: 2.49 | AP130: 2.49 | AQ130: 2.49 | AR130: 2.49 | AS130: 2.49 | AT130: 2.49 | AU130: 2.48 | AV130: 2.48 | AW130: 2.48 | AX130: 2.48 | AY130: 2.48 | AZ130: 0.90% | BA130: 0.9 | BC130: 3.16 | BD130: 36,794 | BE130: 41,832 | BF130: 29,431 | BG130: 26,362
A131: 2019-02-28 | B131: 0.76 | C131: 0.82 | D131: 0.92 | E131: 1.06 | F131: 1.2 | G131: 1.35 | H131: 1.49 | I131: 1.62 | J131: 1.75 | K131: 1.87 | L131: 1.97 | M131: 2.06 | N131: 2.14 | O131: 2.21 | P131: 2.26 | Q131: 2.3 | R131: 2.34 | S131: 2.37 | T131: 2.39 | U131: 2.42 | V131: 2.43 | W131: 2.44 | X131: 2.44 | Y131: 2.45 | Z131: 2.46 | AA131: 2.46 | AB131: 2.46 | AC131: 2.46 | AD131: 2.46 | AE131: 2.46 | AF131: 2.46 | AG131: 2.46 | AH131: 2.46 | AI131: 2.46 | AJ131: 2.46 | AK131: 2.46 | AL131: 2.46 | AM131: 2.47 | AN131: 2.47 | AO131: 2.47 | AP131: 2.47 | AQ131: 2.46 | AR131: 2.46 | AS131: 2.46 | AT131: 2.46 | AU131: 2.46 | AV131: 2.46 | AW131: 2.46 | AX131: 2.46 | AY131: 2.46 | AZ131: 0.90% | BA131: 0.9 | BC131: 3.12 | BD131: =BD$130+(BD$142-BD$130)/12*$BH131 -> 37,103 | BE131: =BE$130+(BE$142-BE$130)/12*$BH131 -> 42,558 | BF131: 29,775 | BG131: 27,021 | BH131: 1
A132: 2019-03-31 | B132: 0.74 | C132: 0.8 | D132: 0.9 | E132: 1.03 | F132: 1.17 | G132: 1.32 | H132: 1.46 | I132: 1.59 | J132: 1.72 | K132: 1.84 | L132: 1.94 | M132: 2.03 | N132: 2.11 | O132: 2.17 | P132: 2.23 | Q132: 2.27 | R132: 2.31 | S132: 2.34 | T132: 2.36 | U132: 2.39 | V132: 2.4 | W132: 2.41 | X132: 2.42 | Y132: 2.42 | Z132: 2.43 | AA132: 2.43 | AB132: 2.43 | AC132: 2.43 | AD132: 2.43 | AE132: 2.43 | AF132: 2.43 | AG132: 2.44 | AH132: 2.44 | AI132: 2.44 | AJ132: 2.44 | AK132: 2.44 | AL132: 2.44 | AM132: 2.44 | AN132: 2.44 | AO132: 2.44 | AP132: 2.44 | AQ132: 2.44 | AR132: 2.44 | AS132: 2.44 | AT132: 2.43 | AU132: 2.43 | AV132: 2.43 | AW132: 2.43 | AX132: 2.43 | AY132: 2.43 | AZ132: 0.90% | BA132: 0.9 | BC132: 3.07 | BD132: =BD$130+(BD$142-BD$130)/12*$BH132 -> 37,413 | BE132: 43,285 | BF132: 30,120 | BG132: 27,681 | BH132: 2
A133: 2019-04-30 | B133: 0.71 | C133: 0.78 | D133: 0.87 | E133: 1 | F133: 1.14 | G133: 1.29 | H133: 1.43 | I133: 1.56 | J133: 1.69 | K133: 1.8 | L133: 1.91 | M133: 2 | N133: 2.08 | O133: 2.14 | P133: 2.2 | Q133: 2.24 | R133: 2.27 | S133: 2.31 | T133: 2.33 | U133: 2.36 | V133: 2.37 | W133: 2.38 | X133: 2.39 | Y133: 2.4 | Z133: 2.4 | AA133: 2.4 | AB133: 2.4 | AC133: 2.41 | AD133: 2.41 | AE133: 2.41 | AF133: 2.41 | AG133: 2.41 | AH133: 2.41 | AI133: 2.41 | AJ133: 2.41 | AK133: 2.41 | AL133: 2.41 | AM133: 2.41 | AN133: 2.41 | AO133: 2.41 | AP133: 2.41 | AQ133: 2.41 | AR133: 2.41 | AS133: 2.41 | AT133: 2.41 | AU133: 2.41 | AV133: 2.4 | AW133: 2.4 | AX133: 2.4 | AY133: 2.4 | AZ133: 0.90% | BA133: 0.9 | BC133: 3.03 | BD133: 37,722 | BE133: 44,011 | BF133: 30,464 | BG133: 28,340 | BH133: 3
A134: 2019-05-31 | B134: 0.69 | C134: 0.75 | D134: 0.85 | E134: 0.98 | F134: 1.12 | G134: 1.27 | H134: 1.4 | I134: 1.54 | J134: 1.66 | K134: 1.78 | L134: 1.89 | M134: 1.97 | N134: 2.05 | O134: 2.12 | P134: 2.18 | Q134: 2.22 | R134: 2.25 | S134: 2.28 | T134: 2.31 | U134: 2.34 | V134: 2.35 | W134: 2.36 | X134: 2.37 | Y134: 2.38 | Z134: 2.38 | AA134: 2.38 | AB134: 2.39 | AC134: 2.39 | AD134: 2.39 | AE134: 2.39 | AF134: 2.39 | AG134: 2.39 | AH134: 2.39 | AI134: 2.39 | AJ134: 2.39 | AK134: 2.39 | AL134: 2.39 | AM134: 2.39 | AN134: 2.39 | AO134: 2.39 | AP134: 2.39 | AQ134: 2.39 | AR134: 2.39 | AS134: 2.39 | AT134: 2.39 | AU134: 2.39 | AV134: 2.38 | AW134: 2.38 | AX134: 2.38 | AY134: 2.38 | AZ134: 0.90% | BA134: 0.9 | BC134: 2.98 | BD134: 38,031 | BE134: 44,738 | BF134: 30,808 | BG134: 28,999 | BH134: 4
A135: 2019-06-30 | B135: 0.67 | C135: 0.73 | D135: 0.83 | E135: 0.96 | F135: 1.09 | G135: 1.24 | H135: 1.37 | I135: 1.51 | J135: 1.63 | K135: 1.75 | L135: 1.86 | M135: 1.94 | N135: 2.02 | O135: 2.09 | P135: 2.15 | Q135: 2.19 | R135: 2.22 | S135: 2.25 | T135: 2.28 | U135: 2.31 | V135: 2.32 | W135: 2.33 | X135: 2.34 | Y135: 2.35 | Z135: 2.35 | AA135: 2.36 | AB135: 2.36 | AC135: 2.36 | AD135: 2.36 | AE135: 2.36 | AF135: 2.36 | AG135: 2.36 | AH135: 2.36 | AI135: 2.36 | AJ135: 2.36 | AK135: 2.36 | AL135: 2.36 | AM135: 2.37 | AN135: 2.37 | AO135: 2.37 | AP135: 2.36 | AQ135: 2.36 | AR135: 2.36 | AS135: 2.36 | AT135: 2.36 | AU135: 2.36 | AV135: 2.36 | AW135: 2.35 | AX135: 2.35 | AY135: 2.35 | AZ135: 0.90% | BA135: 0.9 | BC135: 2.94 | BD135: 38,340 | BE135: 45,464 | BF135: 31,153 | BG135: 29,659 | BH135: 5
A136: 2019-07-31 | B136: 0.65 | C136: 0.71 | D136: 0.81 | E136: 0.93 | F136: 1.07 | G136: 1.21 | H136: 1.35 | I136: 1.48 | J136: 1.6 | K136: 1.72 | L136: 1.83 | M136: 1.91 | N136: 1.99 | O136: 2.06 | P136: 2.12 | Q136: 2.16 | R136: 2.19 | S136: 2.23 | T136: 2.25 | U136: 2.28 | V136: 2.29 | W136: 2.3 | X136: 2.31 | Y136: 2.32 | Z136: 2.33 | AA136: 2.33 | AB136: 2.33 | AC136: 2.33 | AD136: 2.33 | AE136: 2.33 | AF136: 2.33 | AG136: 2.33 | AH136: 2.33 | AI136: 2.34 | AJ136: 2.34 | AK136: 2.34 | AL136: 2.34 | AM136: 2.34 | AN136: 2.34 | AO136: 2.34 | AP136: 2.33 | AQ136: 2.33 | AR136: 2.33 | AS136: 2.33 | AT136: 2.33 | AU136: 2.33 | AV136: 2.32 | AW136: 2.32 | AX136: 2.32 | AY136: 2.32 | AZ136: 0.90% | BA136: 0.9 | BC136: 2.9 | BD136: 38,650 | BE136: 46,191 | BF136: 31,497 | BG136: 30,318 | BH136: 6
A137: 2019-08-31 | B137: 0.63 | C137: 0.69 | D137: 0.79 | E137: 0.91 | F137: 1.04 | G137: 1.19 | H137: 1.32 | I137: 1.45 | J137: 1.57 | K137: 1.69 | L137: 1.8 | M137: 1.88 | N137: 1.96 | O137: 2.03 | P137: 2.08 | Q137: 2.13 | R137: 2.16 | S137: 2.19 | T137: 2.22 | U137: 2.25 | V137: 2.26 | W137: 2.27 | X137: 2.28 | Y137: 2.29 | Z137: 2.3 | AA137: 2.3 | AB137: 2.3 | AC137: 2.3 | AD137: 2.3 | AE137: 2.3 | AF137: 2.3 | AG137: 2.3 | AH137: 2.3 | AI137: 2.3 | AJ137: 2.3 | AK137: 2.3 | AL137: 2.3 | AM137: 2.3 | AN137: 2.3 | AO137: 2.3 | AP137: 2.3 | AQ137: 2.3 | AR137: 2.3 | AS137: 2.29 | AT137: 2.29 | AU137: 2.29 | AV137: 2.29 | AW137: 2.29 | AX137: 2.29 | AY137: 2.29 | AZ137: 0.90% | BA137: 0.9 | BC137: 2.86 | BD137: 38,959 | BE137: 46,917 | BF137: 31,841 | BG137: 30,977 | BH137: 7
A138: 2019-09-30 | B138: 0.62 | C138: 0.68 | D138: 0.77 | E138: 0.89 | F138: 1.02 | G138: 1.16 | H138: 1.29 | I138: 1.42 | J138: 1.55 | K138: 1.66 | L138: 1.77 | M138: 1.85 | N138: 1.93 | O138: 2 | P138: 2.05 | Q138: 2.09 | R138: 2.13 | S138: 2.16 | T138: 2.19 | U138: 2.22 | V138: 2.23 | W138: 2.24 | X138: 2.25 | Y138: 2.26 | Z138: 2.26 | AA138: 2.27 | AB138: 2.27 | AC138: 2.27 | AD138: 2.27 | AE138: 2.27 | AF138: 2.27 | AG138: 2.27 | AH138: 2.27 | AI138: 2.27 | AJ138: 2.27 | AK138: 2.27 | AL138: 2.27 | AM138: 2.27 | AN138: 2.27 | AO138: 2.27 | AP138: 2.27 | AQ138: 2.26 | AR138: 2.26 | AS138: 2.26 | AT138: 2.26 | AU138: 2.26 | AV138: 2.25 | AW138: 2.25 | AX138: 2.25 | AY138: 2.25 | AZ138: 0.90% | BA138: =+AZ138*100 -> 0.9 | BC138: 2.82 | BD138: 39,268 | BE138: 47,643 | BF138: 32,186 | BG138: 31,637 | BH138: 8
A139: 2019-10-31 | B139: 0.6 | C139: 0.66 | D139: 0.75 | E139: 0.87 | F139: 1 | G139: 1.14 | H139: 1.27 | I139: 1.4 | J139: 1.52 | K139: 1.64 | L139: 1.74 | M139: 1.82 | N139: 1.9 | O139: 1.97 | P139: 2.02 | Q139: 2.06 | R139: 2.1 | S139: 2.13 | T139: 2.16 | U139: 2.19 | V139: 2.2 | W139: 2.21 | X139: 2.22 | Y139: 2.23 | Z139: 2.23 | AA139: 2.24 | AB139: 2.24 | AC139: 2.24 | AD139: 2.24 | AE139: 2.24 | AF139: 2.24 | AG139: 2.24 | AH139: 2.24 | AI139: 2.24 | AJ139: 2.24 | AK139: 2.24 | AL139: 2.24 | AM139: 2.24 | AN139: 2.24 | AO139: 2.24 | AP139: 2.24 | AQ139: 2.23 | AR139: 2.23 | AS139: 2.23 | AT139: 2.23 | AU139: 2.22 | AV139: 2.22 | AW139: 2.22 | AX139: 2.22 | AY139: 2.22 | AZ139: 0.90% | BA139: 0.9 | BC139: 2.79 | BD139: 39,577 | BE139: 48,370 | BF139: 32,530 | BG139: 32,296 | BH139: 9
A140: 2019-11-30 | B140: 0.59 | C140: 0.65 | D140: 0.74 | E140: 0.86 | F140: 0.98 | G140: 1.12 | H140: 1.25 | I140: 1.38 | J140: 1.5 | K140: 1.61 | L140: 1.71 | M140: 1.8 | N140: 1.87 | O140: 1.94 | P140: 2 | Q140: 2.04 | R140: 2.07 | S140: 2.1 | T140: 2.13 | U140: 2.16 | V140: 2.17 | W140: 2.18 | X140: 2.19 | Y140: 2.2 | Z140: 2.21 | AA140: 2.21 | AB140: 2.21 | AC140: 2.21 | AD140: 2.21 | AE140: 2.21 | AF140: 2.21 | AG140: 2.21 | AH140: 2.21 | AI140: 2.21 | AJ140: 2.21 | AK140: 2.21 | AL140: 2.21 | AM140: 2.21 | AN140: 2.21 | AO140: 2.21 | AP140: 2.21 | AQ140: 2.2 | AR140: 2.2 | AS140: 2.2 | AT140: 2.19 | AU140: 2.19 | AV140: 2.19 | AW140: 2.19 | AX140: 2.19 | AY140: 2.18 | AZ140: 0.90% | BA140: 0.9 | BC140: 2.75 | BD140: 39,887 | BE140: 49,096 | BF140: 32,874 | BG140: 32,955 | BH140: 10
A141: 2019-12-31 | B141: 0.58 | C141: 0.63 | D141: 0.72 | E141: 0.84 | F141: 0.97 | G141: 1.1 | H141: 1.23 | I141: 1.36 | J141: 1.48 | K141: 1.59 | L141: 1.69 | M141: 1.77 | N141: 1.85 | O141: 1.91 | P141: 1.97 | Q141: 2.01 | R141: 2.05 | S141: 2.08 | T141: 2.11 | U141: 2.13 | V141: 2.15 | W141: 2.16 | X141: 2.16 | Y141: 2.17 | Z141: 2.18 | AA141: 2.18 | AB141: 2.18 | AC141: 2.19 | AD141: 2.19 | AE141: 2.19 | AF141: 2.19 | AG141: 2.19 | AH141: 2.19 | AI141: 2.18 | AJ141: 2.18 | AK141: 2.18 | AL141: 2.18 | AM141: 2.18 | AN141: 2.18 | AO141: 2.18 | AP141: 2.18 | AQ141: 2.17 | AR141: 2.17 | AS141: 2.17 | AT141: 2.17 | AU141: 2.16 | AV141: 2.16 | AW141: 2.16 | AX141: 2.16 | AY141: 2.15 | AZ141: 0.90% | BA141: 0.9 | BC141: 2.71 | BD141: 40,196 | BE141: 49,823 | BF141: 33,219 | BG141: 33,615 | BH141: 11
A142: 2020-01-31 | B142: 0.56 | C142: 0.61 | D142: 0.7 | E142: 0.82 | F142: 0.95 | G142: 1.08 | H142: 1.2 | I142: 1.33 | J142: 1.45 | K142: 1.56 | L142: 1.66 | M142: 1.74 | N142: 1.82 | O142: 1.88 | P142: 1.94 | Q142: 1.98 | R142: 2.02 | S142: 2.05 | T142: 2.08 | U142: 2.1 | V142: 2.11 | W142: 2.12 | X142: 2.13 | Y142: 2.14 | Z142: 2.15 | AA142: 2.15 | AB142: 2.15 | AC142: 2.15 | AD142: 2.16 | AE142: 2.16 | AF142: 2.16 | AG142: 2.15 | AH142: 2.15 | AI142: 2.15 | AJ142: 2.15 | AK142: 2.15 | AL142: 2.15 | AM142: 2.15 | AN142: 2.15 | AO142: 2.15 | AP142: 2.14 | AQ142: 2.14 | AR142: 2.14 | AS142: 2.14 | AT142: 2.13 | AU142: 2.13 | AV142: 2.13 | AW142: 2.12 | AX142: 2.12 | AY142: 2.12 | AZ142: 0.90% | BA142: 0.9 | BC142: 2.68 | BD142: 40,505 | BE142: 50,549 | BF142: 33,563 | BG142: 34,274
A143: 2020-02-29 | B143: 0.55 | C143: 0.6 | D143: 0.69 | E143: 0.8 | F143: 0.93 | G143: 1.06 | H143: 1.18 | I143: 1.3 | J143: 1.42 | K143: 1.53 | L143: 1.63 | M143: 1.71 | N143: 1.79 | O143: 1.85 | P143: 1.91 | Q143: 1.95 | R143: 1.98 | S143: 2.02 | T143: 2.04 | U143: 2.07 | V143: 2.08 | W143: 2.09 | X143: 2.1 | Y143: 2.11 | Z143: 2.12 | AA143: 2.12 | AB143: 2.12 | AC143: 2.12 | AD143: 2.12 | AE143: 2.12 | AF143: 2.12 | AG143: 2.12 | AH143: 2.12 | AI143: 2.12 | AJ143: 2.12 | AK143: 2.12 | AL143: 2.12 | AM143: 2.12 | AN143: 2.11 | AO143: 2.11 | AP143: 2.11 | AQ143: 2.11 | AR143: 2.1 | AS143: 2.1 | AT143: 2.1 | AU143: 2.09 | AV143: 2.09 | AW143: 2.09 | AX143: 2.09 | AY143: 2.08 | AZ143: 0.90% | BA143: 0.9 | BC143: 2.64 | BD143: =BD$142+(BD$154-BD$142)/12*$BH143 -> 40,870 | BE143: =BE$142+(BE$154-BE$142)/12*$BH143 -> 51,598 | BF143: 33,891 | BG143: 35,046 | BH143: 1
A144: 2020-03-31 | B144: 0.54 | C144: 0.6 | D144: 0.68 | E144: 0.8 | F144: 0.92 | G144: 1.05 | H144: 1.17 | I144: 1.29 | J144: 1.41 | K144: 1.52 | L144: 1.62 | M144: 1.7 | N144: 1.77 | O144: 1.84 | P144: 1.89 | Q144: 1.93 | R144: 1.97 | S144: 2 | T144: 2.03 | U144: 2.05 | V144: 2.06 | W144: 2.07 | X144: 2.08 | Y144: 2.09 | Z144: 2.1 | AA144: 2.1 | AB144: 2.1 | AC144: 2.1 | AD144: 2.1 | AE144: 2.1 | AF144: 2.1 | AG144: 2.1 | AH144: 2.1 | AI144: 2.1 | AJ144: 2.1 | AK144: 2.1 | AL144: 2.1 | AM144: 2.09 | AN144: 2.09 | AO144: 2.09 | AP144: 2.09 | AQ144: 2.08 | AR144: 2.08 | AS144: 2.08 | AT144: 2.07 | AU144: 2.07 | AV144: 2.07 | AW144: 2.07 | AX144: 2.06 | AY144: 2.06 | AZ144: 0.90% | BA144: 0.9 | BC144: 2.61 | BD144: =BD$142+(BD$154-BD$142)/12*$BH144 -> 41,235 | BE144: 52,647 | BF144: 34,218 | BG144: 35,817 | BH144: 2
A145: 2020-04-30 | B145: 0.54 | C145: 0.59 | D145: 0.67 | E145: 0.79 | F145: 0.91 | G145: 1.03 | H145: 1.15 | I145: 1.28 | J145: 1.39 | K145: 1.5 | L145: 1.59 | M145: 1.68 | N145: 1.75 | O145: 1.81 | P145: 1.87 | Q145: 1.91 | R145: 1.94 | S145: 1.97 | T145: 2 | U145: 2.03 | V145: 2.04 | W145: 2.05 | X145: 2.06 | Y145: 2.06 | Z145: 2.07 | AA145: 2.07 | AB145: 2.07 | AC145: 2.07 | AD145: 2.08 | AE145: 2.08 | AF145: 2.07 | AG145: 2.07 | AH145: 2.07 | AI145: 2.07 | AJ145: 2.07 | AK145: 2.07 | AL145: 2.07 | AM145: 2.06 | AN145: 2.06 | AO145: 2.06 | AP145: 2.06 | AQ145: 2.05 | AR145: 2.05 | AS145: 2.05 | AT145: 2.04 | AU145: 2.04 | AV145: 2.04 | AW145: 2.03 | AX145: 2.03 | AY145: 2.03 | AZ145: 0.90% | BA145: 0.9 | BC145: 2.58 | BD145: 41,601 | BE145: 53,696 | BF145: 34,546 | BG145: 36,589 | BH145: 3
A146: 2020-05-31 | B146: 0.53 | C146: 0.58 | D146: 0.66 | E146: 0.77 | F146: 0.89 | G146: 1.02 | H146: 1.14 | I146: 1.25 | J146: 1.37 | K146: 1.47 | L146: 1.57 | M146: 1.65 | N146: 1.72 | O146: 1.79 | P146: 1.84 | Q146: 1.88 | R146: 1.91 | S146: 1.95 | T146: 1.97 | U146: 2 | V146: 2.01 | W146: 2.02 | X146: 2.03 | Y146: 2.04 | Z146: 2.04 | AA146: 2.04 | AB146: 2.04 | AC146: 2.05 | AD146: 2.05 | AE146: 2.05 | AF146: 2.04 | AG146: 2.04 | AH146: 2.04 | AI146: 2.04 | AJ146: 2.04 | AK146: 2.04 | AL146: 2.04 | AM146: 2.03 | AN146: 2.03 | AO146: 2.03 | AP146: 2.03 | AQ146: 2.02 | AR146: 2.02 | AS146: 2.01 | AT146: 2.01 | AU146: 2.01 | AV146: 2 | AW146: 2 | AX146: 2 | AY146: 1.99 | AZ146: 0.90% | BA146: 0.9 | BC146: 2.54 | BD146: 41,966 | BE146: 54,745 | BF146: 34,873 | BG146: 37,361 | BH146: 4
A147: 2020-06-30 | B147: 0.52 | C147: 0.57 | D147: 0.65 | E147: 0.76 | F147: 0.87 | G147: 0.99 | H147: 1.11 | I147: 1.23 | J147: 1.34 | K147: 1.45 | L147: 1.54 | M147: 1.62 | N147: 1.69 | O147: 1.76 | P147: 1.81 | Q147: 1.85 | R147: 1.88 | S147: 1.91 | T147: 1.94 | U147: 1.97 | V147: 1.98 | W147: 1.99 | X147: 2 | Y147: 2 | Z147: 2.01 | AA147: 2.01 | AB147: 2.01 | AC147: 2.01 | AD147: 2.01 | AE147: 2.01 | AF147: 2.01 | AG147: 2.01 | AH147: 2.01 | AI147: 2.01 | AJ147: 2.01 | AK147: 2 | AL147: 2 | AM147: 2 | AN147: 2 | AO147: 2 | AP147: 1.99 | AQ147: 1.99 | AR147: 1.98 | AS147: 1.98 | AT147: 1.98 | AU147: 1.97 | AV147: 1.97 | AW147: 1.97 | AX147: 1.96 | AY147: 1.96 | AZ147: 0.90% | BA147: 0.9 | BC147: 2.51 | BD147: 42,331 | BE147: 55,794 | BF147: 35,201 | BG147: 38,132 | BH147: 5
A148: 2020-07-31 | B148: 0.51 | C148: 0.55 | D148: 0.63 | E148: 0.74 | F148: 0.85 | G148: 0.97 | H148: 1.09 | I148: 1.2 | J148: 1.31 | K148: 1.42 | L148: 1.51 | M148: 1.59 | N148: 1.66 | O148: 1.72 | P148: 1.78 | Q148: 1.82 | R148: 1.85 | S148: 1.88 | T148: 1.91 | U148: 1.93 | V148: 1.94 | W148: 1.95 | X148: 1.96 | Y148: 1.97 | Z148: 1.98 | AA148: 1.98 | AB148: 1.98 | AC148: 1.98 | AD148: 1.98 | AE148: 1.98 | AF148: 1.98 | AG148: 1.98 | AH148: 1.97 | AI148: 1.97 | AJ148: 1.97 | AK148: 1.97 | AL148: 1.97 | AM148: 1.97 | AN148: 1.96 | AO148: 1.96 | AP148: 1.96 | AQ148: 1.95 | AR148: 1.95 | AS148: 1.94 | AT148: 1.94 | AU148: 1.94 | AV148: 1.93 | AW148: 1.93 | AX148: 1.93 | AY148: 1.92 | BC148: 2.47 | BD148: 42,696 | BE148: 56,844 | BF148: 35,528 | BG148: 38,904 | BH148: 6
A149: 2020-08-31 | B149: 0.49 | C149: 0.54 | D149: 0.61 | E149: 0.72 | F149: 0.83 | G149: 0.95 | H149: 1.06 | I149: 1.17 | J149: 1.28 | K149: 1.39 | L149: 1.48 | M149: 1.56 | N149: 1.63 | O149: 1.69 | P149: 1.74 | Q149: 1.78 | R149: 1.82 | S149: 1.85 | T149: 1.87 | U149: 1.9 | V149: 1.91 | W149: 1.92 | X149: 1.93 | Y149: 1.94 | Z149: 1.94 | AA149: 1.95 | AB149: 1.95 | AC149: 1.95 | AD149: 1.95 | AE149: 1.95 | AF149: 1.94 | AG149: 1.94 | AH149: 1.94 | AI149: 1.94 | AJ149: 1.94 | AK149: 1.94 | AL149: 1.93 | AM149: 1.93 | AN149: 1.93 | AO149: 1.93 | AP149: 1.92 | AQ149: 1.92 | AR149: 1.91 | AS149: 1.91 | AT149: 1.91 | AU149: 1.9 | AV149: 1.9 | AW149: 1.89 | AX149: 1.89 | AY149: 1.89 | BC149: 2.45 | BD149: 43,061 | BE149: 57,893 | BF149: 35,856 | BG149: 39,676 | BH149: 7
A150: 2020-09-30 | B150: 0.48 | C150: 0.52 | D150: 0.6 | E150: 0.7 | F150: 0.8 | G150: 0.92 | H150: 1.03 | I150: 1.15 | J150: 1.25 | K150: 1.36 | L150: 1.45 | M150: 1.53 | N150: 1.6 | O150: 1.66 | P150: 1.71 | Q150: 1.75 | R150: 1.78 | S150: 1.81 | T150: 1.84 | U150: 1.86 | V150: 1.88 | W150: 1.89 | X150: 1.89 | Y150: 1.9 | Z150: 1.91 | AA150: 1.91 | AB150: 1.91 | AC150: 1.91 | AD150: 1.91 | AE150: 1.91 | AF150: 1.91 | AG150: 1.91 | AH150: 1.91 | AI150: 1.9 | AJ150: 1.9 | AK150: 1.9 | AL150: 1.9 | AM150: 1.9 | AN150: 1.9 | AO150: 1.89 | AP150: 1.89 | AQ150: 1.88 | AR150: 1.88 | AS150: 1.87 | AT150: 1.87 | AU150: 1.87 | AV150: 1.86 | AW150: 1.86 | AX150: 1.85 | AY150: 1.85 | BC150: 2.41 | BD150: 43,426 | BE150: 58,942 | BF150: 36,183 | BG150: 40,447 | BH150: 8
A151: 2020-10-31 | B151: 0.47 | C151: 0.51 | D151: 0.58 | E151: 0.68 | F151: 0.78 | G151: 0.9 | H151: 1.01 | I151: 1.12 | J151: 1.22 | K151: 1.33 | L151: 1.42 | M151: 1.49 | N151: 1.56 | O151: 1.62 | P151: 1.68 | Q151: 1.71 | R151: 1.75 | S151: 1.78 | T151: 1.81 | U151: 1.83 | V151: 1.84 | W151: 1.85 | X151: 1.86 | Y151: 1.87 | Z151: 1.87 | AA151: 1.88 | AB151: 1.88 | AC151: 1.88 | AD151: 1.88 | AE151: 1.88 | AF151: 1.87 | AG151: 1.87 | AH151: 1.87 | AI151: 1.87 | AJ151: 1.87 | AK151: 1.86 | AL151: 1.86 | AM151: 1.86 | AN151: 1.86 | AO151: 1.86 | AP151: 1.85 | AQ151: 1.85 | AR151: 1.84 | AS151: 1.84 | AT151: 1.83 | AU151: 1.83 | AV151: 1.82 | AW151: 1.82 | AX151: 1.82 | AY151: 1.81 | BC151: 2.38 | BD151: 43,792 | BE151: 59,991 | BF151: 36,511 | BG151: 41,219 | BH151: 9
A152: 2020-11-30 | B152: 0.45 | C152: 0.49 | D152: 0.56 | E152: 0.66 | F152: 0.76 | G152: 0.87 | H152: 0.98 | I152: 1.09 | J152: 1.19 | K152: 1.29 | L152: 1.38 | M152: 1.46 | N152: 1.53 | O152: 1.59 | P152: 1.64 | Q152: 1.68 | R152: 1.71 | S152: 1.74 | T152: 1.77 | U152: 1.79 | V152: 1.8 | W152: 1.81 | X152: 1.82 | Y152: 1.83 | Z152: 1.84 | AA152: 1.84 | AB152: 1.84 | AC152: 1.84 | AD152: 1.84 | AE152: 1.84 | AF152: 1.84 | AG152: 1.83 | AH152: 1.83 | AI152: 1.83 | AJ152: 1.83 | AK152: 1.83 | AL152: 1.82 | AM152: 1.82 | AN152: 1.82 | AO152: 1.82 | AP152: 1.81 | AQ152: 1.81 | AR152: 1.8 | AS152: 1.8 | AT152: 1.79 | AU152: 1.79 | AV152: 1.79 | AW152: 1.78 | AX152: 1.78 | AY152: 1.77 | BC152: 2.34 | BD152: 44,157 | BE152: 61,040 | BF152: 36,838 | BG152: 41,991 | BH152: 10
A153: 2020-12-31 | B153: 0.44 | C153: 0.47 | D153: 0.54 | E153: 0.64 | F153: 0.74 | G153: 0.84 | H153: 0.95 | I153: 1.06 | J153: 1.16 | K153: 1.26 | L153: 1.35 | M153: 1.42 | N153: 1.49 | O153: 1.55 | P153: 1.6 | Q153: 1.64 | R153: 1.67 | S153: 1.7 | T153: 1.73 | U153: 1.75 | V153: 1.77 | W153: 1.77 | X153: 1.78 | Y153: 1.79 | Z153: 1.8 | AA153: 1.8 | AB153: 1.8 | AC153: 1.8 | AD153: 1.8 | AE153: 1.8 | AF153: 1.8 | AG153: 1.8 | AH153: 1.79 | AI153: 1.79 | AJ153: 1.79 | AK153: 1.79 | AL153: 1.79 | AM153: 1.78 | AN153: 1.78 | AO153: 1.78 | AP153: 1.77 | AQ153: 1.77 | AR153: 1.76 | AS153: 1.76 | AT153: 1.75 | AU153: 1.75 | AV153: 1.75 | AW153: 1.74 | AX153: 1.74 | AY153: 1.73 | BC153: 2.3 | BD153: 44,522 | BE153: 62,089 | BF153: 37,166 | BG153: 42,762 | BH153: 11
A154: 2021-01-31 | B154: 0.42 | C154: 0.46 | D154: 0.52 | E154: 0.62 | F154: 0.71 | G154: 0.82 | H154: 0.93 | I154: 1.03 | J154: 1.13 | K154: 1.23 | L154: 1.32 | M154: 1.39 | N154: 1.46 | O154: 1.52 | P154: 1.57 | Q154: 1.61 | R154: 1.64 | S154: 1.67 | T154: 1.7 | U154: 1.72 | V154: 1.73 | W154: 1.74 | X154: 1.75 | Y154: 1.76 | Z154: 1.77 | AA154: 1.77 | AB154: 1.77 | AC154: 1.77 | AD154: 1.77 | AE154: 1.77 | AF154: 1.77 | AG154: 1.76 | AH154: 1.76 | AI154: 1.76 | AJ154: 1.76 | AK154: 1.75 | AL154: 1.75 | AM154: 1.75 | AN154: 1.75 | AO154: 1.75 | AP154: 1.74 | AQ154: 1.74 | AR154: 1.73 | AS154: 1.72 | AT154: 1.72 | AU154: 1.72 | AV154: 1.71 | AW154: 1.71 | AX154: 1.7 | AY154: 1.7 | BC154: 2.26 | BD154: 44,887 | BE154: 63,138 | BF154: 37,493 | BG154: 43,534
A155: 2021-02-28 | B155: 0.41 | C155: 0.44 | D155: 0.51 | E155: 0.6 | F155: 0.69 | G155: 0.8 | H155: 0.9 | I155: 1.01 | J155: 1.11 | K155: 1.21 | L155: 1.29 | M155: 1.37 | N155: 1.43 | O155: 1.49 | P155: 1.54 | Q155: 1.58 | R155: 1.61 | S155: 1.64 | T155: 1.67 | U155: 1.69 | V155: 1.7 | W155: 1.71 | X155: 1.72 | Y155: 1.73 | Z155: 1.74 | AA155: 1.74 | AB155: 1.74 | AC155: 1.74 | AD155: 1.74 | AE155: 1.74 | AF155: 1.74 | AG155: 1.73 | AH155: 1.73 | AI155: 1.73 | AJ155: 1.73 | AK155: 1.72 | AL155: 1.72 | AM155: 1.72 | AN155: 1.72 | AO155: 1.72 | AP155: 1.71 | AQ155: 1.7 | AR155: 1.7 | AS155: 1.69 | AT155: 1.69 | AU155: 1.68 | AV155: 1.68 | AW155: 1.68 | AX155: 1.67 | AY155: 1.67 | BC155: 2.23 | BD155: =BD$154+(BD$166-BD$154)/12*$BH155 -> 45,168 | BE155: =BE$154+(BE$166-BE$154)/12*$BH155 -> 64,406 | BF155: 37,882 | BG155: 44,846 | BH155: 1
A156: 2021-03-31 | B156: 0.4 | C156: 0.43 | D156: 0.49 | E156: 0.58 | F156: 0.68 | G156: 0.78 | H156: 0.88 | I156: 0.99 | J156: 1.08 | K156: 1.18 | L156: 1.27 | M156: 1.34 | N156: 1.41 | O156: 1.46 | P156: 1.51 | Q156: 1.55 | R156: 1.58 | S156: 1.61 | T156: 1.64 | U156: 1.66 | V156: 1.67 | W156: 1.68 | X156: 1.69 | Y156: 1.7 | Z156: 1.71 | AA156: 1.71 | AB156: 1.71 | AC156: 1.71 | AD156: 1.71 | AE156: 1.71 | AF156: 1.71 | AG156: 1.7 | AH156: 1.7 | AI156: 1.7 | AJ156: 1.7 | AK156: 1.7 | AL156: 1.69 | AM156: 1.69 | AN156: 1.69 | AO156: 1.69 | AP156: 1.68 | AQ156: 1.68 | AR156: 1.67 | AS156: 1.67 | AT156: 1.66 | AU156: 1.66 | AV156: 1.65 | AW156: 1.65 | AX156: 1.64 | AY156: 1.64 | BC156: 2.19 | BD156: =BD$154+(BD$166-BD$154)/12*$BH156 -> 45,450 | BE156: 65,674 | BF156: 38,271 | BG156: 46,157 | BH156: 2
A157: 2021-04-30 | B157: 0.38 | C157: 0.42 | D157: 0.48 | E157: 0.57 | F157: 0.66 | G157: 0.76 | H157: 0.86 | I157: 0.97 | J157: 1.06 | K157: 1.16 | L157: 1.25 | M157: 1.32 | N157: 1.38 | O157: 1.44 | P157: 1.49 | Q157: 1.53 | R157: 1.56 | S157: 1.59 | T157: 1.62 | U157: 1.64 | V157: 1.65 | W157: 1.66 | X157: 1.67 | Y157: 1.68 | Z157: 1.68 | AA157: 1.68 | AB157: 1.68 | AC157: 1.68 | AD157: 1.68 | AE157: 1.69 | AF157: 1.68 | AG157: 1.68 | AH157: 1.68 | AI157: 1.67 | AJ157: 1.67 | AK157: 1.67 | AL157: 1.67 | AM157: 1.67 | AN157: 1.66 | AO157: 1.66 | AP157: 1.66 | AQ157: 1.65 | AR157: 1.64 | AS157: 1.64 | AT157: 1.63 | AU157: 1.63 | AV157: 1.62 | AW157: 1.62 | AX157: 1.62 | AY157: 1.61 | BC157: 2.16 | BD157: 45,731 | BE157: 66,942 | BF157: 38,660 | BG157: 47,469 | BH157: 3
A158: 2021-05-31 | B158: 0.37 | C158: 0.4 | D158: 0.47 | E158: 0.55 | F158: 0.65 | G158: 0.75 | H158: 0.85 | I158: 0.95 | J158: 1.05 | K158: 1.14 | L158: 1.22 | M158: 1.3 | N158: 1.36 | O158: 1.42 | P158: 1.47 | Q158: 1.5 | R158: 1.54 | S158: 1.57 | T158: 1.59 | U158: 1.62 | V158: 1.63 | W158: 1.64 | X158: 1.64 | Y158: 1.65 | Z158: 1.66 | AA158: 1.66 | AB158: 1.66 | AC158: 1.66 | AD158: 1.66 | AE158: 1.66 | AF158: 1.66 | AG158: 1.66 | AH158: 1.65 | AI158: 1.65 | AJ158: 1.65 | AK158: 1.65 | AL158: 1.64 | AM158: 1.64 | AN158: 1.64 | AO158: 1.64 | AP158: 1.63 | AQ158: 1.62 | AR158: 1.62 | AS158: 1.61 | AT158: 1.61 | AU158: 1.6 | AV158: 1.6 | AW158: 1.6 | AX158: 1.59 | AY158: 1.59 | BC158: 2.12 | BD158: 46,012 | BE158: 68,210 | BF158: 39,048 | BG158: 48,780 | BH158: 4
A159: 2021-06-30 | B159: 0.36 | C159: 0.39 | D159: 0.45 | E159: 0.54 | F159: 0.63 | G159: 0.73 | H159: 0.83 | I159: 0.93 | J159: 1.03 | K159: 1.12 | L159: 1.2 | M159: 1.28 | N159: 1.34 | O159: 1.4 | P159: 1.45 | Q159: 1.48 | R159: 1.51 | S159: 1.54 | T159: 1.57 | U159: 1.59 | V159: 1.6 | W159: 1.61 | X159: 1.62 | Y159: 1.63 | Z159: 1.64 | AA159: 1.64 | AB159: 1.64 | AC159: 1.64 | AD159: 1.64 | AE159: 1.64 | AF159: 1.63 | AG159: 1.63 | AH159: 1.63 | AI159: 1.63 | AJ159: 1.62 | AK159: 1.62 | AL159: 1.62 | AM159: 1.62 | AN159: 1.61 | AO159: 1.61 | AP159: 1.61 | AQ159: 1.6 | AR159: 1.59 | AS159: 1.59 | AT159: 1.58 | AU159: 1.58 | AV159: 1.57 | AW159: 1.57 | AX159: 1.57 | AY159: 1.56 | BC159: 2.09 | BD159: 46,293 | BE159: 69,478 | BF159: 39,437 | BG159: 50,092 | BH159: 5
A160: 2021-07-31 | B160: 0.34 | C160: 0.38 | D160: 0.44 | E160: 0.53 | F160: 0.62 | G160: 0.72 | H160: 0.81 | I160: 0.91 | J160: 1.01 | K160: 1.1 | L160: 1.18 | M160: 1.25 | N160: 1.32 | O160: 1.37 | P160: 1.42 | Q160: 1.46 | R160: 1.49 | S160: 1.52 | T160: 1.55 | U160: 1.57 | V160: 1.58 | W160: 1.59 | X160: 1.6 | Y160: 1.6 | Z160: 1.61 | AA160: 1.61 | AB160: 1.61 | AC160: 1.61 | AD160: 1.61 | AE160: 1.61 | AF160: 1.61 | AG160: 1.6 | AH160: 1.6 | AI160: 1.6 | AJ160: 1.6 | AK160: 1.59 | AL160: 1.59 | AM160: 1.59 | AN160: 1.59 | AO160: 1.59 | AP160: 1.58 | AQ160: 1.57 | AR160: 1.57 | AS160: 1.56 | AT160: 1.56 | AU160: 1.55 | AV160: 1.55 | AW160: 1.54 | AX160: 1.54 | AY160: 1.53 | BC160: 2.05 | BD160: 46,575 | BE160: 70,746 | BF160: 39,826 | BG160: 51,403 | BH160: 6
A161: 2021-08-31 | B161: 0.33 | C161: 0.37 | D161: 0.43 | E161: 0.52 | F161: 0.61 | G161: 0.7 | H161: 0.8 | I161: 0.9 | J161: 0.99 | K161: 1.09 | L161: 1.17 | M161: 1.24 | N161: 1.3 | O161: 1.36 | P161: 1.41 | Q161: 1.44 | R161: 1.47 | S161: 1.5 | T161: 1.53 | U161: 1.55 | V161: 1.56 | W161: 1.57 | X161: 1.58 | Y161: 1.59 | Z161: 1.59 | AA161: 1.59 | AB161: 1.59 | AC161: 1.59 | AD161: 1.59 | AE161: 1.59 | AF161: 1.59 | AG161: 1.58 | AH161: 1.58 | AI161: 1.58 | AJ161: 1.58 | AK161: 1.57 | AL161: 1.57 | AM161: 1.57 | AN161: 1.57 | AO161: 1.56 | AP161: 1.56 | AQ161: 1.55 | AR161: 1.55 | AS161: 1.54 | AT161: 1.54 | AU161: 1.53 | AV161: 1.53 | AW161: 1.52 | AX161: 1.52 | AY161: 1.51 | BC161: 2.01 | BD161: 46,856 | BE161: 72,013 | BF161: 40,215 | BG161: 52,715 | BH161: 7
A162: 2021-09-30 | B162: 0.32 | C162: 0.36 | D162: 0.42 | E162: 0.51 | F162: 0.6 | G162: 0.69 | H162: 0.79 | I162: 0.89 | J162: 0.98 | K162: 1.07 | L162: 1.15 | M162: 1.22 | N162: 1.29 | O162: 1.34 | P162: 1.39 | Q162: 1.42 | R162: 1.46 | S162: 1.48 | T162: 1.51 | U162: 1.53 | V162: 1.54 | W162: 1.55 | X162: 1.56 | Y162: 1.57 | Z162: 1.57 | AA162: 1.57 | AB162: 1.57 | AC162: 1.57 | AD162: 1.57 | AE162: 1.57 | AF162: 1.57 | AG162: 1.56 | AH162: 1.56 | AI162: 1.56 | AJ162: 1.56 | AK162: 1.55 | AL162: 1.55 | AM162: 1.55 | AN162: 1.55 | AO162: 1.54 | AP162: 1.54 | AQ162: 1.53 | AR162: 1.52 | AS162: 1.52 | AT162: 1.51 | AU162: 1.51 | AV162: 1.5 | AW162: 1.5 | AX162: 1.49 | AY162: 1.49 | BC162: 1.98 | BD162: 47,137 | BE162: 73,281 | BF162: 40,604 | BG162: 54,026 | BH162: 8
A163: 2021-10-31 | B163: 0.31 | C163: 0.35 | D163: 0.42 | E163: 0.5 | F163: 0.59 | G163: 0.68 | H163: 0.78 | I163: 0.88 | J163: 0.97 | K163: 1.06 | L163: 1.14 | M163: 1.21 | N163: 1.27 | O163: 1.33 | P163: 1.37 | Q163: 1.41 | R163: 1.44 | S163: 1.47 | T163: 1.49 | U163: 1.51 | V163: 1.52 | W163: 1.53 | X163: 1.54 | Y163: 1.55 | Z163: 1.55 | AA163: 1.55 | AB163: 1.55 | AC163: 1.55 | AD163: 1.55 | AE163: 1.55 | AF163: 1.55 | AG163: 1.54 | AH163: 1.54 | AI163: 1.54 | AJ163: 1.53 | AK163: 1.53 | AL163: 1.53 | AM163: 1.52 | AN163: 1.52 | AO163: 1.52 | AP163: 1.51 | AQ163: 1.51 | AR163: 1.5 | AS163: 1.49 | AT163: 1.49 | AU163: 1.48 | AV163: 1.48 | AW163: 1.47 | AX163: 1.47 | AY163: 1.47 | BC163: 1.94 | BD163: 47,418 | BE163: 74,549 | BF163: 40,993 | BG163: 55,338 | BH163: 9
A164: 2021-11-30 | B164: 0.3 | C164: 0.34 | D164: 0.41 | E164: 0.49 | F164: 0.58 | G164: 0.68 | H164: 0.77 | I164: 0.87 | J164: 0.96 | K164: 1.05 | L164: 1.13 | M164: 1.2 | N164: 1.26 | O164: 1.31 | P164: 1.36 | Q164: 1.39 | R164: 1.42 | S164: 1.45 | T164: 1.48 | U164: 1.5 | V164: 1.51 | W164: 1.51 | X164: 1.52 | Y164: 1.53 | Z164: 1.53 | AA164: 1.53 | AB164: 1.53 | AC164: 1.53 | AD164: 1.53 | AE164: 1.53 | AF164: 1.53 | AG164: 1.52 | AH164: 1.52 | AI164: 1.52 | AJ164: 1.51 | AK164: 1.51 | AL164: 1.51 | AM164: 1.5 | AN164: 1.5 | AO164: 1.5 | AP164: 1.49 | AQ164: 1.49 | AR164: 1.48 | AS164: 1.47 | AT164: 1.47 | AU164: 1.46 | AV164: 1.46 | AW164: 1.45 | AX164: 1.45 | AY164: 1.44 | BC164: 1.9 | BD164: 47,700 | BE164: 75,817 | BF164: 41,381 | BG164: 56,649 | BH164: 10
A165: 2021-12-31 | B165: 0.3 | C165: 0.34 | D165: 0.4 | E165: 0.49 | F165: 0.58 | G165: 0.67 | H165: 0.77 | I165: 0.86 | J165: 0.95 | K165: 1.04 | L165: 1.12 | M165: 1.19 | N165: 1.25 | O165: 1.3 | P165: 1.35 | Q165: 1.38 | R165: 1.41 | S165: 1.44 | T165: 1.47 | U165: 1.49 | V165: 1.5 | W165: 1.5 | X165: 1.51 | Y165: 1.52 | Z165: 1.52 | AA165: 1.52 | AB165: 1.52 | AC165: 1.52 | AD165: 1.52 | AE165: 1.52 | AF165: 1.51 | AG165: 1.51 | AH165: 1.5 | AI165: 1.5 | AJ165: 1.5 | AK165: 1.49 | AL165: 1.49 | AM165: 1.49 | AN165: 1.49 | AO165: 1.48 | AP165: 1.48 | AQ165: 1.47 | AR165: 1.46 | AS165: 1.46 | AT165: 1.45 | AU165: 1.45 | AV165: 1.44 | AW165: 1.44 | AX165: 1.43 | AY165: 1.43 | BC165: 1.87 | BD165: 47,981 | BE165: 77,085 | BF165: 41,770 | BG165: 57,961 | BH165: 11
A166: 2022-01-31 | B166: 0.29 | C166: 0.33 | D166: 0.4 | E166: 0.49 | F166: 0.57 | G166: 0.67 | H166: 0.76 | I166: 0.86 | J166: 0.95 | K166: 1.04 | L166: 1.12 | M166: 1.18 | N166: 1.24 | O166: 1.3 | P166: 1.34 | Q166: 1.38 | R166: 1.41 | S166: 1.43 | T166: 1.46 | U166: 1.48 | V166: 1.49 | W166: 1.5 | X166: 1.5 | Y166: 1.51 | Z166: 1.51 | AA166: 1.51 | AB166: 1.51 | AC166: 1.51 | AD166: 1.51 | AE166: 1.51 | AF166: 1.5 | AG166: 1.5 | AH166: 1.49 | AI166: 1.49 | AJ166: 1.49 | AK166: 1.48 | AL166: 1.48 | AM166: 1.48 | AN166: 1.47 | AO166: 1.47 | AP166: 1.47 | AQ166: 1.46 | AR166: 1.45 | AS166: 1.45 | AT166: 1.44 | AU166: 1.44 | AV166: 1.43 | AW166: 1.43 | AX166: 1.42 | AY166: 1.42 | BC166: 1.85 | BD166: 48,262 | BE166: 78,353 | BF166: 42,159 | BG166: 59,272
A167: 2022-02-28 | B167: 0.28 | C167: 0.33 | D167: 0.4 | E167: 0.49 | F167: 0.58 | G167: 0.67 | H167: 0.77 | I167: 0.86 | J167: 0.95 | K167: 1.04 | L167: 1.12 | M167: 1.19 | N167: 1.25 | O167: 1.3 | P167: 1.35 | Q167: 1.38 | R167: 1.41 | S167: 1.43 | T167: 1.46 | U167: 1.48 | V167: 1.49 | W167: 1.49 | X167: 1.5 | Y167: 1.51 | Z167: 1.51 | AA167: 1.51 | AB167: 1.51 | AC167: 1.51 | AD167: 1.5 | AE167: 1.5 | AF167: 1.5 | AG167: 1.49 | AH167: 1.49 | AI167: 1.49 | AJ167: 1.48 | AK167: 1.48 | AL167: 1.48 | AM167: 1.47 | AN167: 1.47 | AO167: 1.47 | AP167: 1.46 | AQ167: 1.45 | AR167: 1.45 | AS167: 1.44 | AT167: 1.43 | AU167: 1.43 | AV167: 1.42 | AW167: 1.42 | AX167: 1.41 | AY167: 1.41 | BC167: 1.82 | BD167: =BD$166+(BD$172-BD$166)/7*$BH167 -> 48,255 | BE167: =BE$166+(BE$172-BE$166)/7*$BH167 -> 78,808 | BF167: =BF$166+(BF$172-BF$166)/7*$BH167 -> 42,355 | BG167: 60,237 | BH167: 1
A168: 2022-03-31 | B168: 0.28 | C168: 0.34 | D168: 0.41 | E168: 0.5 | F168: 0.58 | G168: 0.68 | H168: 0.77 | I168: 0.87 | J168: 0.96 | K168: 1.05 | L168: 1.12 | M168: 1.19 | N168: 1.25 | O168: 1.3 | P168: 1.35 | Q168: 1.38 | R168: 1.41 | S168: 1.44 | T168: 1.46 | U168: 1.48 | V168: 1.49 | W168: 1.5 | X168: 1.5 | Y168: 1.51 | Z168: 1.51 | AA168: 1.51 | AB168: 1.51 | AC168: 1.51 | AD168: 1.5 | AE168: 1.5 | AF168: 1.5 | AG168: 1.49 | AH168: 1.49 | AI168: 1.48 | AJ168: 1.48 | AK168: 1.48 | AL168: 1.47 | AM168: 1.47 | AN168: 1.47 | AO168: 1.46 | AP168: 1.46 | AQ168: 1.45 | AR168: 1.44 | AS168: 1.44 | AT168: 1.43 | AU168: 1.43 | AV168: 1.42 | AW168: 1.42 | AX168: 1.41 | AY168: 1.41 | BC168: 1.81 | BD168: =BD$166+(BD$172-BD$166)/7*$BH168 -> 48,248 | BE168: 79,262 | BF168: 42,552 | BG168: 61,203 | BH168: 2
A169: 2022-04-30 | B169: 0.28 | C169: 0.34 | D169: 0.42 | E169: 0.51 | F169: 0.6 | G169: 0.69 | H169: 0.78 | I169: 0.88 | J169: 0.97 | K169: 1.06 | L169: 1.13 | M169: 1.2 | N169: 1.26 | O169: 1.31 | P169: 1.36 | Q169: 1.39 | R169: 1.42 | S169: 1.45 | T169: 1.47 | U169: 1.49 | V169: 1.5 | W169: 1.5 | X169: 1.51 | Y169: 1.51 | Z169: 1.52 | AA169: 1.51 | AB169: 1.51 | AC169: 1.51 | AD169: 1.51 | AE169: 1.51 | AF169: 1.5 | AG169: 1.49 | AH169: 1.49 | AI169: 1.49 | AJ169: 1.48 | AK169: 1.48 | AL169: 1.47 | AM169: 1.47 | AN169: 1.47 | AO169: 1.46 | AP169: 1.46 | AQ169: 1.45 | AR169: 1.44 | AS169: 1.44 | AT169: 1.43 | AU169: 1.43 | AV169: 1.42 | AW169: 1.41 | AX169: 1.41 | AY169: 1.41 | BC169: 1.79 | BD169: =BD$166+(BD$172-BD$166)/7*$BH169 -> 48,241 | BE169: 79,717 | BF169: 42,748 | BG169: 62,168 | BH169: 3
A170: 2022-05-31 | B170: 0.28 | C170: 0.35 | D170: 0.43 | E170: 0.52 | F170: 0.61 | G170: 0.7 | H170: 0.79 | I170: 0.89 | J170: 0.98 | K170: 1.07 | L170: 1.14 | M170: 1.21 | N170: 1.27 | O170: 1.32 | P170: 1.37 | Q170: 1.4 | R170: 1.43 | S170: 1.45 | T170: 1.48 | U170: 1.5 | V170: 1.5 | W170: 1.51 | X170: 1.51 | Y170: 1.52 | Z170: 1.52 | AA170: 1.52 | AB170: 1.52 | AC170: 1.51 | AD170: 1.51 | AE170: 1.51 | AF170: 1.5 | AG170: 1.5 | AH170: 1.49 | AI170: 1.49 | AJ170: 1.48 | AK170: 1.48 | AL170: 1.47 | AM170: 1.47 | AN170: 1.47 | AO170: 1.46 | AP170: 1.46 | AQ170: 1.45 | AR170: 1.44 | AS170: 1.44 | AT170: 1.43 | AU170: 1.43 | AV170: 1.42 | AW170: 1.42 | AX170: 1.41 | AY170: 1.41 | BC170: 1.79 | BD170: =BD$166+(BD$172-BD$166)/7*$BH170 -> 48,235 | BE170: 80,171 | BF170: 42,945 | BG170: 63,133 | BH170: 4
A171: 2022-06-30 | B171: 0.29 | C171: 0.37 | D171: 0.45 | E171: 0.53 | F171: 0.62 | G171: 0.72 | H171: 0.81 | I171: 0.9 | J171: 0.99 | K171: 1.08 | L171: 1.16 | M171: 1.22 | N171: 1.28 | O171: 1.33 | P171: 1.38 | Q171: 1.41 | R171: 1.44 | S171: 1.46 | T171: 1.48 | U171: 1.5 | V171: 1.51 | W171: 1.51 | X171: 1.52 | Y171: 1.52 | Z171: 1.53 | AA171: 1.52 | AB171: 1.52 | AC171: 1.52 | AD171: 1.51 | AE171: 1.51 | AF171: 1.5 | AG171: 1.5 | AH171: 1.49 | AI171: 1.49 | AJ171: 1.48 | AK171: 1.48 | AL171: 1.47 | AM171: 1.47 | AN171: 1.47 | AO171: 1.46 | AP171: 1.46 | AQ171: 1.45 | AR171: 1.44 | AS171: 1.44 | AT171: 1.43 | AU171: 1.42 | AV171: 1.42 | AW171: 1.41 | AX171: 1.41 | AY171: 1.4 | BC171: 1.78 | BD171: =BD$166+(BD$172-BD$166)/7*$BH171 -> 48,228 | BE171: 80,626 | BF171: 43,141 | BG171: 64,098 | BH171: 5
A172: 2022-07-31 | B172: 0.3 | C172: 0.38 | D172: 0.45 | E172: 0.54 | F172: 0.63 | G172: 0.72 | H172: 0.82 | I172: 0.91 | J172: 1 | K172: 1.08 | L172: 1.16 | M172: 1.22 | N172: 1.29 | O172: 1.34 | P172: 1.38 | Q172: 1.41 | R172: 1.44 | S172: 1.46 | T172: 1.48 | U172: 1.5 | V172: 1.51 | W172: 1.51 | X172: 1.52 | Y172: 1.52 | Z172: 1.52 | AA172: 1.52 | AB172: 1.52 | AC172: 1.51 | AD172: 1.51 | AE172: 1.51 | AF172: 1.5 | AG172: 1.49 | AH172: 1.49 | AI172: 1.48 | AJ172: 1.48 | AK172: 1.47 | AL172: 1.47 | AM172: 1.47 | AN172: 1.46 | AO172: 1.46 | AP172: 1.45 | AQ172: 1.44 | AR172: 1.44 | AS172: 1.43 | AT172: 1.42 | AU172: 1.42 | AV172: 1.41 | AW172: 1.41 | AX172: 1.4 | AY172: 1.4 | BC172: 1.78 | BD172: 48,214 | BE172: 81,535 | BF172: 43,534 | BG172: 66,029 | BH172: 6
A173: 2022-08-31 | B173: 0.32 | C173: 0.4 | D173: 0.47 | E173: 0.56 | F173: 0.65 | G173: 0.74 | H173: 0.83 | I173: 0.92 | J173: 1.01 | K173: 1.09 | L173: 1.17 | M173: 1.23 | N173: 1.29 | O173: 1.34 | P173: 1.39 | Q173: 1.42 | R173: 1.44 | S173: 1.47 | T173: 1.49 | U173: 1.51 | V173: 1.51 | W173: 1.51 | X173: 1.52 | Y173: 1.52 | Z173: 1.52 | AA173: 1.52 | AB173: 1.52 | AC173: 1.51 | AD173: 1.51 | AE173: 1.51 | AF173: 1.5 | AG173: 1.49 | AH173: 1.49 | AI173: 1.48 | AJ173: 1.48 | AK173: 1.47 | AL173: 1.47 | AM173: 1.46 | AN173: 1.46 | AO173: 1.45 | AP173: 1.45 | AQ173: 1.44 | AR173: 1.43 | AS173: 1.43 | AT173: 1.42 | AU173: 1.41 | AV173: 1.41 | AW173: 1.4 | AX173: 1.4 | AY173: 1.39 | BH173: 7
A174: 2022-09-30 | B174: 0.34 | C174: 0.43 | D174: 0.5 | E174: 0.59 | F174: 0.67 | G174: 0.76 | H174: 0.85 | I174: 0.94 | J174: 1.03 | K174: 1.11 | L174: 1.19 | M174: 1.25 | N174: 1.31 | O174: 1.36 | P174: 1.4 | Q174: 1.43 | R174: 1.46 | S174: 1.48 | T174: 1.5 | U174: 1.52 | V174: 1.52 | W174: 1.52 | X174: 1.52 | Y174: 1.53 | Z174: 1.53 | AA174: 1.52 | AB174: 1.52 | AC174: 1.52 | AD174: 1.51 | AE174: 1.51 | AF174: 1.5 | AG174: 1.49 | AH174: 1.49 | AI174: 1.48 | AJ174: 1.48 | AK174: 1.47 | AL174: 1.47 | AM174: 1.46 | AN174: 1.46 | AO174: 1.45 | AP174: 1.45 | AQ174: 1.44 | AR174: 1.43 | AS174: 1.42 | AT174: 1.42 | AU174: 1.41 | AV174: 1.4 | AW174: 1.4 | AX174: 1.39 | AY174: 1.39 | BH174: 8
A175: 2022-10-31 | B175: 0.37 | C175: 0.46 | D175: 0.53 | E175: 0.62 | F175: 0.7 | G175: 0.79 | H175: 0.88 | I175: 0.97 | J175: 1.05 | K175: 1.13 | L175: 1.21 | M175: 1.27 | N175: 1.33 | O175: 1.38 | P175: 1.42 | Q175: 1.45 | R175: 1.47 | S175: 1.49 | T175: 1.51 | U175: 1.53 | V175: 1.53 | W175: 1.53 | X175: 1.53 | Y175: 1.54 | Z175: 1.54 | AA175: 1.53 | AB175: 1.53 | AC175: 1.52 | AD175: 1.52 | AE175: 1.51 | AF175: 1.51 | AG175: 1.5 | AH175: 1.49 | AI175: 1.49 | AJ175: 1.48 | AK175: 1.47 | AL175: 1.47 | AM175: 1.46 | AN175: 1.46 | AO175: 1.45 | AP175: 1.45 | AQ175: 1.44 | AR175: 1.43 | AS175: 1.42 | AT175: 1.42 | AU175: 1.41 | AV175: 1.4 | AW175: 1.4 | AX175: 1.39 | AY175: 1.39 | BH175: 9
A176: 2022-11-30 | B176: 0.4 | C176: 0.48 | D176: 0.56 | E176: 0.64 | F176: 0.72 | G176: 0.81 | H176: 0.9 | I176: 0.98 | J176: 1.07 | K176: 1.15 | L176: 1.22 | M176: 1.28 | N176: 1.34 | O176: 1.39 | P176: 1.43 | Q176: 1.46 | R176: 1.48 | S176: 1.5 | T176: 1.52 | U176: 1.53 | V176: 1.53 | W176: 1.54 | X176: 1.54 | Y176: 1.54 | Z176: 1.54 | AA176: 1.53 | AB176: 1.53 | AC176: 1.52 | AD176: 1.52 | AE176: 1.51 | AF176: 1.5 | AG176: 1.5 | AH176: 1.49 | AI176: 1.48 | AJ176: 1.48 | AK176: 1.47 | AL176: 1.47 | AM176: 1.46 | AN176: 1.46 | AO176: 1.45 | AP176: 1.44 | AQ176: 1.43 | AR176: 1.43 | AS176: 1.42 | AT176: 1.41 | AU176: 1.41 | AV176: 1.4 | AW176: 1.39 | AX176: 1.39 | AY176: 1.38 | BH176: 10
A177: 2022-12-31 | B177: 0.43 | C177: 0.52 | D177: 0.59 | E177: 0.67 | F177: 0.75 | G177: 0.84 | H177: 0.92 | I177: 1.01 | J177: 1.09 | K177: 1.17 | L177: 1.24 | M177: 1.3 | N177: 1.36 | O177: 1.4 | P177: 1.44 | Q177: 1.47 | R177: 1.49 | S177: 1.51 | T177: 1.53 | U177: 1.54 | V177: 1.54 | W177: 1.54 | X177: 1.54 | Y177: 1.54 | Z177: 1.54 | AA177: 1.54 | AB177: 1.53 | AC177: 1.53 | AD177: 1.52 | AE177: 1.51 | AF177: 1.51 | AG177: 1.5 | AH177: 1.49 | AI177: 1.48 | AJ177: 1.48 | AK177: 1.47 | AL177: 1.47 | AM177: 1.46 | AN177: 1.45 | AO177: 1.45 | AP177: 1.44 | AQ177: 1.43 | AR177: 1.42 | AS177: 1.42 | AT177: 1.41 | AU177: 1.4 | AV177: 1.4 | AW177: 1.39 | AX177: 1.38 | AY177: 1.38
A178: 2023-01-31 | B178: 0.46 | C178: 0.55 | D178: 0.62 | E178: 0.7 | F178: 0.78 | G178: 0.86 | H178: 0.95 | I178: 1.03 | J178: 1.11 | K178: 1.19 | L178: 1.26 | M178: 1.32 | N178: 1.37 | O178: 1.42 | P178: 1.46 | Q178: 1.48 | R178: 1.5 | S178: 1.52 | T178: 1.54 | U178: 1.55 | V178: 1.55 | W178: 1.55 | X178: 1.55 | Y178: 1.55 | Z178: 1.55 | AA178: 1.54 | AB178: 1.54 | AC178: 1.53 | AD178: 1.53 | AE178: 1.52 | AF178: 1.51 | AG178: 1.5 | AH178: 1.49 | AI178: 1.49 | AJ178: 1.48 | AK178: 1.47 | AL178: 1.47 | AM178: 1.46 | AN178: 1.46 | AO178: 1.45 | AP178: 1.44 | AQ178: 1.43 | AR178: 1.43 | AS178: 1.42 | AT178: 1.41 | AU178: 1.4 | AV178: 1.4 | AW178: 1.39 | AX178: 1.38 | AY178: 1.38
A179: 2023-01-31 | B179: 0.46 | C179: 0.55 | D179: 0.62 | E179: 0.7 | F179: 0.78 | G179: 0.86 | H179: 0.95 | I179: 1.03 | J179: 1.11 | K179: 1.19 | L179: 1.26 | M179: 1.32 | N179: 1.37 | O179: 1.42 | P179: 1.46 | Q179: 1.48 | R179: 1.5 | S179: 1.52 | T179: 1.54 | U179: 1.55 | V179: 1.55 | W179: 1.55 | X179: 1.55 | Y179: 1.55 | Z179: 1.55 | AA179: 1.54 | AB179: 1.54 | AC179: 1.53 | AD179: 1.53 | AE179: 1.52 | AF179: 1.51 | AG179: 1.5 | AH179: 1.49 | AI179: 1.49 | AJ179: 1.48 | AK179: 1.47 | AL179: 1.47 | AM179: 1.46 | AN179: 1.46 | AO179: 1.45 | AP179: 1.44 | AQ179: 1.43 | AR179: 1.43 | AS179: 1.42 | AT179: 1.41 | AU179: 1.4 | AV179: 1.4 | AW179: 1.39 | AX179: 1.38 | AY179: 1.38
A180: 2023-02-28 | B180: 0.5 | C180: 0.6 | D180: 0.66 | E180: 0.74 | F180: 0.82 | G180: 0.9 | H180: 0.98 | I180: 1.06 | J180: 1.14 | K180: 1.22 | L180: 1.28 | M180: 1.34 | N180: 1.4 | O180: 1.44 | P180: 1.48 | Q180: 1.5 | R180: 1.52 | S180: 1.54 | T180: 1.55 | U180: 1.57 | V180: 1.57 | W180: 1.57 | X180: 1.57 | Y180: 1.57 | Z180: 1.57 | AA180: 1.56 | AB180: 1.55 | AC180: 1.54 | AD180: 1.54 | AE180: 1.53 | AF180: 1.52 | AG180: 1.51 | AH180: 1.51 | AI180: 1.5 | AJ180: 1.49 | AK180: 1.48 | AL180: 1.48 | AM180: 1.47 | AN180: 1.47 | AO180: 1.46 | AP180: 1.45 | AQ180: 1.44 | AR180: 1.44 | AS180: 1.43 | AT180: 1.42 | AU180: 1.41 | AV180: 1.41 | AW180: 1.4 | AX180: 1.39 | AY180: 1.39
A181: 2023-03-31 | B181: 0.55 | C181: 0.64 | D181: 0.7 | E181: 0.77 | F181: 0.85 | G181: 0.93 | H181: 1.01 | I181: 1.09 | J181: 1.16 | K181: 1.24 | L181: 1.31 | M181: 1.37 | N181: 1.42 | O181: 1.46 | P181: 1.5 | Q181: 1.52 | R181: 1.54 | S181: 1.56 | T181: 1.57 | U181: 1.59 | V181: 1.59 | W181: 1.58 | X181: 1.58 | Y181: 1.58 | Z181: 1.58 | AA181: 1.57 | AB181: 1.57 | AC181: 1.56 | AD181: 1.55 | AE181: 1.55 | AF181: 1.54 | AG181: 1.53 | AH181: 1.52 | AI181: 1.51 | AJ181: 1.5 | AK181: 1.5 | AL181: 1.49 | AM181: 1.48 | AN181: 1.48 | AO181: 1.47 | AP181: 1.46 | AQ181: 1.45 | AR181: 1.45 | AS181: 1.44 | AT181: 1.43 | AU181: 1.42 | AV181: 1.42 | AW181: 1.41 | AX181: 1.4 | AY181: 1.4
A182: 2023-04-30 | B182: 0.59 | C182: 0.68 | D182: 0.74 | E182: 0.81 | F182: 0.88 | G182: 0.96 | H182: 1.03 | I182: 1.11 | J182: 1.19 | K182: 1.27 | L182: 1.33 | M182: 1.39 | N182: 1.44 | O182: 1.48 | P182: 1.52 | Q182: 1.54 | R182: 1.56 | S182: 1.58 | T182: 1.59 | U182: 1.6 | V182: 1.6 | W182: 1.6 | X182: 1.6 | Y182: 1.6 | Z182: 1.59 | AA182: 1.59 | AB182: 1.58 | AC182: 1.57 | AD182: 1.56 | AE182: 1.56 | AF182: 1.55 | AG182: 1.54 | AH182: 1.53 | AI182: 1.52 | AJ182: 1.51 | AK182: 1.51 | AL182: 1.5 | AM182: 1.49 | AN182: 1.49 | AO182: 1.48 | AP182: 1.47 | AQ182: 1.46 | AR182: 1.45 | AS182: 1.45 | AT182: 1.44 | AU182: 1.43 | AV182: 1.42 | AW182: 1.42 | AX182: 1.41 | AY182: 1.4
A183: 2023-05-31 | B183: 0.64 | C183: 0.72 | D183: 0.77 | E183: 0.84 | F183: 0.91 | G183: 0.99 | H183: 1.07 | I183: 1.14 | J183: 1.22 | K183: 1.29 | L183: 1.36 | M183: 1.41 | N183: 1.46 | O183: 1.51 | P183: 1.54 | Q183: 1.56 | R183: 1.58 | S183: 1.6 | T183: 1.61 | U183: 1.62 | V183: 1.62 | W183: 1.62 | X183: 1.61 | Y183: 1.61 | Z183: 1.61 | AA183: 1.6 | AB183: 1.59 | AC183: 1.58 | AD183: 1.58 | AE183: 1.57 | AF183: 1.56 | AG183: 1.55 | AH183: 1.54 | AI183: 1.53 | AJ183: 1.53 | AK183: 1.52 | AL183: 1.51 | AM183: 1.5 | AN183: 1.5 | AO183: 1.49 | AP183: 1.48 | AQ183: 1.47 | AR183: 1.46 | AS183: 1.46 | AT183: 1.45 | AU183: 1.44 | AV183: 1.43 | AW183: 1.43 | AX183: 1.42 | AY183: 1.41
A184: 2023-06-30 | B184: 0.69 | C184: 0.76 | D184: 0.82 | E184: 0.88 | F184: 0.95 | G184: 1.03 | H184: 1.1 | I184: 1.18 | J184: 1.25 | K184: 1.32 | L184: 1.39 | M184: 1.44 | N184: 1.49 | O184: 1.53 | P184: 1.57 | Q184: 1.59 | R184: 1.6 | S184: 1.62 | T184: 1.63 | U184: 1.64 | V184: 1.64 | W184: 1.64 | X184: 1.63 | Y184: 1.63 | Z184: 1.63 | AA184: 1.62 | AB184: 1.61 | AC184: 1.6 | AD184: 1.6 | AE184: 1.59 | AF184: 1.58 | AG184: 1.57 | AH184: 1.56 | AI184: 1.55 | AJ184: 1.54 | AK184: 1.53 | AL184: 1.53 | AM184: 1.52 | AN184: 1.51 | AO184: 1.51 | AP184: 1.5 | AQ184: 1.49 | AR184: 1.48 | AS184: 1.47 | AT184: 1.46 | AU184: 1.45 | AV184: 1.45 | AW184: 1.44 | AX184: 1.43 | AY184: 1.43
A185: 2023-07-31 | B185: 0.74 | C185: 0.81 | D185: 0.86 | E185: 0.93 | F185: 0.99 | G185: 1.06 | H185: 1.14 | I185: 1.21 | J185: 1.28 | K185: 1.35 | L185: 1.42 | M185: 1.47 | N185: 1.52 | O185: 1.56 | P185: 1.6 | Q185: 1.62 | R185: 1.63 | S185: 1.65 | T185: 1.66 | U185: 1.67 | V185: 1.67 | W185: 1.66 | X185: 1.66 | Y185: 1.66 | Z185: 1.65 | AA185: 1.64 | AB185: 1.63 | AC185: 1.63 | AD185: 1.62 | AE185: 1.61 | AF185: 1.6 | AG185: 1.59 | AH185: 1.58 | AI185: 1.57 | AJ185: 1.56 | AK185: 1.55 | AL185: 1.55 | AM185: 1.54 | AN185: 1.53 | AO185: 1.53 | AP185: 1.52 | AQ185: 1.51 | AR185: 1.5 | AS185: 1.49 | AT185: 1.48 | AU185: 1.47 | AV185: 1.46 | AW185: 1.46 | AX185: 1.45 | AY185: 1.44
A186: 2023-08-31 | B186: 0.79 | C186: 0.86 | D186: 0.91 | E186: 0.97 | F186: 1.03 | G186: 1.1 | H186: 1.17 | I186: 1.25 | J186: 1.32 | K186: 1.39 | L186: 1.45 | M186: 1.5 | N186: 1.55 | O186: 1.59 | P186: 1.63 | Q186: 1.65 | R186: 1.66 | S186: 1.67 | T186: 1.69 | U186: 1.7 | V186: 1.69 | W186: 1.69 | X186: 1.68 | Y186: 1.68 | Z186: 1.68 | AA186: 1.67 | AB186: 1.66 | AC186: 1.65 | AD186: 1.64 | AE186: 1.63 | AF186: 1.62 | AG186: 1.61 | AH186: 1.6 | AI186: 1.59 | AJ186: 1.58 | AK186: 1.58 | AL186: 1.57 | AM186: 1.56 | AN186: 1.55 | AO186: 1.55 | AP186: 1.54 | AQ186: 1.53 | AR186: 1.52 | AS186: 1.51 | AT186: 1.5 | AU186: 1.49 | AV186: 1.48 | AW186: 1.48 | AX186: 1.47 | AY186: 1.46
A187: 2023-09-30 | B187: 0.84 | C187: 0.91 | D187: 0.95 | E187: 1.01 | F187: 1.08 | G187: 1.15 | H187: 1.21 | I187: 1.29 | J187: 1.36 | K187: 1.43 | L187: 1.49 | M187: 1.54 | N187: 1.59 | O187: 1.63 | P187: 1.66 | Q187: 1.68 | R187: 1.69 | S187: 1.71 | T187: 1.72 | U187: 1.73 | V187: 1.72 | W187: 1.72 | X187: 1.71 | Y187: 1.71 | Z187: 1.71 | AA187: 1.7 | AB187: 1.69 | AC187: 1.68 | AD187: 1.67 | AE187: 1.66 | AF187: 1.65 | AG187: 1.64 | AH187: 1.63 | AI187: 1.62 | AJ187: 1.61 | AK187: 1.6 | AL187: 1.59 | AM187: 1.59 | AN187: 1.58 | AO187: 1.57 | AP187: 1.56 | AQ187: 1.55 | AR187: 1.54 | AS187: 1.53 | AT187: 1.52 | AU187: 1.52 | AV187: 1.51 | AW187: 1.5 | AX187: 1.49 | AY187: 1.49
A188: 2023-10-31 | B188: 0.89 | C188: 0.95 | D188: 1 | E188: 1.05 | F188: 1.12 | G188: 1.19 | H188: 1.25 | I188: 1.32 | J188: 1.39 | K188: 1.46 | L188: 1.52 | M188: 1.58 | N188: 1.62 | O188: 1.66 | P188: 1.7 | Q188: 1.71 | R188: 1.73 | S188: 1.74 | T188: 1.75 | U188: 1.76 | V188: 1.75 | W188: 1.75 | X188: 1.74 | Y188: 1.74 | Z188: 1.74 | AA188: 1.72 | AB188: 1.71 | AC188: 1.7 | AD188: 1.7 | AE188: 1.69 | AF188: 1.67 | AG188: 1.66 | AH188: 1.65 | AI188: 1.64 | AJ188: 1.63 | AK188: 1.63 | AL188: 1.62 | AM188: 1.61 | AN188: 1.6 | AO188: 1.6 | AP188: 1.58 | AQ188: 1.57 | AR188: 1.57 | AS188: 1.56 | AT188: 1.55 | AU188: 1.54 | AV188: 1.53 | AW188: 1.52 | AX188: 1.52 | AY188: 1.51
A189: 2023-11-30 | B189: 0.94 | C189: 1 | D189: 1.03 | E189: 1.09 | F189: 1.15 | G189: 1.22 | H189: 1.28 | I189: 1.35 | J189: 1.42 | K189: 1.49 | L189: 1.55 | M189: 1.6 | N189: 1.65 | O189: 1.69 | P189: 1.72 | Q189: 1.74 | R189: 1.75 | S189: 1.76 | T189: 1.77 | U189: 1.78 | V189: 1.77 | W189: 1.77 | X189: 1.76 | Y189: 1.76 | Z189: 1.75 | AA189: 1.74 | AB189: 1.73 | AC189: 1.72 | AD189: 1.71 | AE189: 1.7 | AF189: 1.69 | AG189: 1.68 | AH189: 1.67 | AI189: 1.66 | AJ189: 1.65 | AK189: 1.64 | AL189: 1.63 | AM189: 1.63 | AN189: 1.62 | AO189: 1.61 | AP189: 1.6 | AQ189: 1.59 | AR189: 1.58 | AS189: 1.57 | AT189: 1.56 | AU189: 1.55 | AV189: 1.54 | AW189: 1.54 | AX189: 1.53 | AY189: 1.52
A190: 2023-12-31 | B190: 0.99 | C190: 1.03 | D190: 1.07 | E190: 1.12 | F190: 1.18 | G190: 1.25 | H190: 1.31 | I190: 1.38 | J190: 1.45 | K190: 1.51 | L190: 1.57 | M190: 1.62 | N190: 1.67 | O190: 1.71 | P190: 1.74 | Q190: 1.75 | R190: 1.77 | S190: 1.78 | T190: 1.79 | U190: 1.8 | V190: 1.79 | W190: 1.78 | X190: 1.78 | Y190: 1.77 | Z190: 1.77 | AA190: 1.76 | AB190: 1.75 | AC190: 1.74 | AD190: 1.73 | AE190: 1.72 | AF190: 1.71 | AG190: 1.69 | AH190: 1.68 | AI190: 1.67 | AJ190: 1.66 | AK190: 1.65 | AL190: 1.65 | AM190: 1.64 | AN190: 1.63 | AO190: 1.62 | AP190: 1.61 | AQ190: 1.6 | AR190: 1.59 | AS190: 1.58 | AT190: 1.57 | AU190: 1.56 | AV190: 1.56 | AW190: 1.55 | AX190: 1.54 | AY190: 1.53
A191: 2024-01-31 | B191: 1.03 | C191: 1.07 | D191: 1.1 | E191: 1.15 | F191: 1.21 | G191: 1.27 | H191: 1.34 | I191: 1.4 | J191: 1.47 | K191: 1.53 | L191: 1.59 | M191: 1.64 | N191: 1.69 | O191: 1.73 | P191: 1.76 | Q191: 1.77 | R191: 1.78 | S191: 1.79 | T191: 1.8 | U191: 1.81 | V191: 1.8 | W191: 1.8 | X191: 1.79 | Y191: 1.79 | Z191: 1.78 | AA191: 1.77 | AB191: 1.76 | AC191: 1.75 | AD191: 1.74 | AE191: 1.73 | AF191: 1.72 | AG191: 1.7 | AH191: 1.69 | AI191: 1.68 | AJ191: 1.67 | AK191: 1.66 | AL191: 1.65 | AM191: 1.65 | AN191: 1.64 | AO191: 1.63 | AP191: 1.62 | AQ191: 1.61 | AR191: 1.6 | AS191: 1.59 | AT191: 1.58 | AU191: 1.57 | AV191: 1.56 | AW191: 1.56 | AX191: 1.55 | AY191: 1.54
A192: 2024-02-29 | B192: 1.08 | C192: 1.11 | D192: 1.14 | E192: 1.19 | F192: 1.24 | G192: 1.31 | H192: 1.37 | I192: 1.43 | J192: 1.5 | K192: 1.56 | L192: 1.62 | M192: 1.67 | N192: 1.71 | O192: 1.75 | P192: 1.78 | Q192: 1.79 | R192: 1.8 | S192: 1.81 | T192: 1.82 | U192: 1.83 | V192: 1.82 | W192: 1.82 | X192: 1.81 | Y192: 1.8 | Z192: 1.8 | AA192: 1.79 | AB192: 1.77 | AC192: 1.76 | AD192: 1.75 | AE192: 1.74 | AF192: 1.73 | AG192: 1.72 | AH192: 1.71 | AI192: 1.7 | AJ192: 1.69 | AK192: 1.68 | AL192: 1.67 | AM192: 1.66 | AN192: 1.65 | AO192: 1.64 | AP192: 1.63 | AQ192: 1.62 | AR192: 1.61 | AS192: 1.6 | AT192: 1.59 | AU192: 1.58 | AV192: 1.57 | AW192: 1.57 | AX192: 1.56 | AY192: 1.55

Sheet BilMoG10 (hidden)
A6: =MIN(A9:A300) -> 2015-01-31 | B6: % p.a. | L6: % p.a. | V6: % p.a. | AF6: % p.a. | AP6: % p.a.
A7: =MAX(A9:A300) -> 2024-02-29 | B7: Abzinsungszinssatz gemäß § 253 Abs. 2 HGB (10-Jahresdurchschnitt) bei einer Restlaufzeit von .... Jahr(en) | L7: Abzinsungszinssatz gemäß § 253 Abs. 2 HGB (10-Jahresdurchschnitt) bei einer Restlaufzeit von .... Jahr(en) | V7: Abzinsungszinssatz gemäß § 253 Abs. 2 HGB (10-Jahresdurchschnitt) bei einer Restlaufzeit von .... Jahr(en) | AF7: Abzinsungszinssatz gemäß § 253 Abs. 2 HGB (10-Jahresdurchschnitt) bei einer Restlaufzeit von .... Jahr(en) | AP7: Abzinsungszinssatz gemäß § 253 Abs. 2 HGB (10-Jahresdurchschnitt) bei einer Restlaufzeit von .... Jahr(en)
B8: 1 | C8: 2 | D8: 3 | E8: 4 | F8: 5 | G8: 6 | H8: 7 | I8: 8 | J8: 9 | K8: 10 | L8: 11 | M8: 12 | N8: 13 | O8: 14 | P8: 15 | Q8: 16 | R8: 17 | S8: 18 | T8: 19 | U8: 20 | V8: 21 | W8: 22 | X8: 23 | Y8: 24 | Z8: 25 | AA8: 26 | AB8: 27 | AC8: 28 | AD8: 29 | AE8: 30 | AF8: 31 | AG8: 32 | AH8: 33 | AI8: 34 | AJ8: 35 | AK8: 36 | AL8: 37 | AM8: 38 | AN8: 39 | AO8: 40 | AP8: 41 | AQ8: 42 | AR8: 43 | AS8: 44 | AT8: 45 | AU8: 46 | AV8: 47 | AW8: 48 | AX8: 49 | AY8: 50
A9: 2015-01-31 | B9: 3.07 | C9: 3.17 | D9: 3.31 | E9: 3.46 | F9: 3.6 | G9: 3.74 | H9: 3.87 | I9: 3.98 | J9: 4.09 | K9: 4.18 | L9: 4.27 | M9: 4.34 | N9: 4.41 | O9: 4.46 | P9: 4.51 | Q9: 4.53 | R9: 4.56 | S9: 4.57 | T9: 4.59 | U9: 4.61 | V9: 4.6 | W9: 4.59 | X9: 4.59 | Y9: 4.58 | Z9: 4.58 | AA9: 4.56 | AB9: 4.55 | AC9: 4.54 | AD9: 4.53 | AE9: 4.52 | AF9: 4.5 | AG9: 4.49 | AH9: 4.48 | AI9: 4.47 | AJ9: 4.46 | AK9: 4.46 | AL9: 4.45 | AM9: 4.44 | AN9: 4.43 | AO9: 4.43 | AP9: 4.42 | AQ9: 4.42 | AR9: 4.41 | AS9: 4.41 | AT9: 4.4 | AU9: 4.4 | AV9: 4.4 | AW9: 4.39 | AX9: 4.39 | AY9: 4.38 | BB9: 4.48
A10: 2015-02-28 | B10: 3.05 | C10: 3.15 | D10: 3.29 | E10: 3.44 | F10: 3.58 | G10: 3.72 | H10: 3.84 | I10: 3.96 | J10: 4.06 | K10: 4.16 | L10: 4.24 | M10: 4.32 | N10: 4.38 | O10: 4.44 | P10: 4.48 | Q10: 4.51 | R10: 4.53 | S10: 4.55 | T10: 4.56 | U10: 4.58 | V10: 4.57 | W10: 4.57 | X10: 4.56 | Y10: 4.56 | Z10: 4.55 | AA10: 4.54 | AB10: 4.52 | AC10: 4.51 | AD10: 4.5 | AE10: 4.49 | AF10: 4.48 | AG10: 4.47 | AH10: 4.46 | AI10: 4.45 | AJ10: 4.44 | AK10: 4.43 | AL10: 4.42 | AM10: 4.41 | AN10: 4.41 | AO10: 4.4 | AP10: 4.39 | AQ10: 4.39 | AR10: 4.39 | AS10: 4.38 | AT10: 4.38 | AU10: 4.37 | AV10: 4.37 | AW10: 4.37 | AX10: 4.36 | AY10: 4.36 | BB10: 4.43
A11: 2015-03-31 | B11: 3.03 | C11: 3.13 | D11: 3.26 | E11: 3.41 | F11: 3.56 | G11: 3.69 | H11: 3.82 | I11: 3.93 | J11: 4.04 | K11: 4.13 | L11: 4.22 | M11: 4.29 | N11: 4.35 | O11: 4.41 | P11: 4.46 | Q11: 4.48 | R11: 4.5 | S11: 4.52 | T11: 4.54 | U11: 4.55 | V11: 4.54 | W11: 4.54 | X11: 4.53 | Y11: 4.53 | Z11: 4.52 | AA11: 4.51 | AB11: 4.5 | AC11: 4.48 | AD11: 4.47 | AE11: 4.46 | AF11: 4.45 | AG11: 4.44 | AH11: 4.43 | AI11: 4.42 | AJ11: 4.41 | AK11: 4.4 | AL11: 4.39 | AM11: 4.38 | AN11: 4.38 | AO11: 4.37 | AP11: 4.37 | AQ11: 4.36 | AR11: 4.36 | AS11: 4.35 | AT11: 4.35 | AU11: 4.34 | AV11: 4.34 | AW11: 4.34 | AX11: 4.33 | AY11: 4.33 | BB11: 4.37
A12: 2015-04-30 | B12: 3.02 | C12: 3.11 | D12: 3.24 | E12: 3.39 | F12: 3.53 | G12: 3.67 | H12: 3.8 | I12: 3.91 | J12: 4.01 | K12: 4.1 | L12: 4.19 | M12: 4.26 | N12: 4.33 | O12: 4.38 | P12: 4.43 | Q12: 4.45 | R12: 4.47 | S12: 4.49 | T12: 4.51 | U12: 4.53 | V12: 4.52 | W12: 4.51 | X12: 4.51 | Y12: 4.5 | Z12: 4.5 | AA12: 4.48 | AB12: 4.47 | AC12: 4.46 | AD12: 4.44 | AE12: 4.43 | AF12: 4.42 | AG12: 4.41 | AH12: 4.4 | AI12: 4.39 | AJ12: 4.38 | AK12: 4.37 | AL12: 4.37 | AM12: 4.36 | AN12: 4.35 | AO12: 4.34 | AP12: 4.34 | AQ12: 4.33 | AR12: 4.33 | AS12: 4.32 | AT12: 4.32 | AU12: 4.32 | AV12: 4.31 | AW12: 4.31 | AX12: 4.3 | AY12: 4.3 | BB12: 4.31
A13: 2015-05-31 | B13: 3 | C13: 3.09 | D13: 3.23 | E13: 3.37 | F13: 3.51 | G13: 3.65 | H13: 3.78 | I13: 3.89 | J13: 3.99 | K13: 4.08 | L13: 4.17 | M13: 4.24 | N13: 4.31 | O13: 4.36 | P13: 4.41 | Q13: 4.43 | R13: 4.45 | S13: 4.47 | T13: 4.49 | U13: 4.5 | V13: 4.5 | W13: 4.49 | X13: 4.48 | Y13: 4.48 | Z13: 4.47 | AA13: 4.46 | AB13: 4.45 | AC13: 4.43 | AD13: 4.42 | AE13: 4.41 | AF13: 4.4 | AG13: 4.39 | AH13: 4.38 | AI13: 4.37 | AJ13: 4.36 | AK13: 4.35 | AL13: 4.34 | AM13: 4.34 | AN13: 4.33 | AO13: 4.32 | AP13: 4.32 | AQ13: 4.31 | AR13: 4.31 | AS13: 4.3 | AT13: 4.3 | AU13: 4.29 | AV13: 4.29 | AW13: 4.29 | AX13: 4.28 | AY13: 4.28 | BB13: 4.26
A14: 2015-06-30 | B14: 2.99 | C14: 3.08 | D14: 3.21 | E14: 3.36 | F14: 3.5 | G14: 3.64 | H14: 3.76 | I14: 3.87 | J14: 3.98 | K14: 4.07 | L14: 4.16 | M14: 4.23 | N14: 4.29 | O14: 4.35 | P14: 4.39 | Q14: 4.42 | R14: 4.44 | S14: 4.46 | T14: 4.47 | U14: 4.49 | V14: 4.48 | W14: 4.48 | X14: 4.47 | Y14: 4.46 | Z14: 4.46 | AA14: 4.44 | AB14: 4.43 | AC14: 4.42 | AD14: 4.41 | AE14: 4.39 | AF14: 4.38 | AG14: 4.37 | AH14: 4.36 | AI14: 4.35 | AJ14: 4.34 | AK14: 4.34 | AL14: 4.33 | AM14: 4.32 | AN14: 4.31 | AO14: 4.31 | AP14: 4.3 | AQ14: 4.3 | AR14: 4.29 | AS14: 4.29 | AT14: 4.28 | AU14: 4.28 | AV14: 4.27 | AW14: 4.27 | AX14: 4.27 | AY14: 4.26 | BB14: 4.21
A15: 2015-07-31 | B15: 2.97 | C15: 3.06 | D15: 3.19 | E15: 3.34 | F15: 3.48 | G15: 3.62 | H15: 3.74 | I15: 3.86 | J15: 3.96 | K15: 4.05 | L15: 4.14 | M15: 4.21 | N15: 4.28 | O15: 4.33 | P15: 4.38 | Q15: 4.4 | R15: 4.42 | S15: 4.44 | T15: 4.46 | U15: 4.47 | V15: 4.46 | W15: 4.46 | X15: 4.45 | Y15: 4.45 | Z15: 4.44 | AA15: 4.43 | AB15: 4.41 | AC15: 4.4 | AD15: 4.39 | AE15: 4.38 | AF15: 4.37 | AG15: 4.35 | AH15: 4.34 | AI15: 4.33 | AJ15: 4.33 | AK15: 4.32 | AL15: 4.31 | AM15: 4.3 | AN15: 4.29 | AO15: 4.29 | AP15: 4.28 | AQ15: 4.28 | AR15: 4.27 | AS15: 4.27 | AT15: 4.26 | AU15: 4.26 | AV15: 4.25 | AW15: 4.25 | AX15: 4.25 | AY15: 4.24 | BB15: 4.17
A16: 2015-08-31 | B16: 2.95 | C16: 3.05 | D16: 3.18 | E16: 3.33 | F16: 3.47 | G16: 3.61 | H16: 3.73 | I16: 3.84 | J16: 3.94 | K16: 4.04 | L16: 4.13 | M16: 4.2 | N16: 4.26 | O16: 4.32 | P16: 4.36 | Q16: 4.39 | R16: 4.41 | S16: 4.43 | T16: 4.44 | U16: 4.46 | V16: 4.45 | W16: 4.44 | X16: 4.44 | Y16: 4.43 | Z16: 4.43 | AA16: 4.41 | AB16: 4.4 | AC16: 4.39 | AD16: 4.37 | AE16: 4.36 | AF16: 4.35 | AG16: 4.34 | AH16: 4.33 | AI16: 4.32 | AJ16: 4.31 | AK16: 4.3 | AL16: 4.29 | AM16: 4.29 | AN16: 4.28 | AO16: 4.27 | AP16: 4.27 | AQ16: 4.26 | AR16: 4.26 | AS16: 4.25 | AT16: 4.25 | AU16: 4.24 | AV16: 4.24 | AW16: 4.24 | AX16: 4.23 | AY16: 4.23 | BB16: 4.12
A17: 2015-09-30 | B17: 2.94 | C17: 3.03 | D17: 3.16 | E17: 3.31 | F17: 3.45 | G17: 3.59 | H17: 3.71 | I17: 3.83 | J17: 3.93 | K17: 4.02 | L17: 4.11 | M17: 4.19 | N17: 4.25 | O17: 4.3 | P17: 4.35 | Q17: 4.37 | R17: 4.39 | S17: 4.41 | T17: 4.43 | U17: 4.44 | V17: 4.44 | W17: 4.43 | X17: 4.42 | Y17: 4.42 | Z17: 4.41 | AA17: 4.4 | AB17: 4.38 | AC17: 4.37 | AD17: 4.36 | AE17: 4.35 | AF17: 4.34 | AG17: 4.33 | AH17: 4.32 | AI17: 4.31 | AJ17: 4.3 | AK17: 4.29 | AL17: 4.28 | AM17: 4.27 | AN17: 4.27 | AO17: 4.26 | AP17: 4.25 | AQ17: 4.25 | AR17: 4.24 | AS17: 4.24 | AT17: 4.23 | AU17: 4.23 | AV17: 4.23 | AW17: 4.22 | AX17: 4.22 | AY17: 4.21 | BB17: 4.07
A18: 2015-10-31 | B18: 2.92 | C18: 3.01 | D18: 3.14 | E18: 3.29 | F18: 3.43 | G18: 3.57 | H18: 3.7 | I18: 3.81 | J18: 3.91 | K18: 4.01 | L18: 4.1 | M18: 4.17 | N18: 4.23 | O18: 4.29 | P18: 4.33 | Q18: 4.36 | R18: 4.38 | S18: 4.4 | T18: 4.41 | U18: 4.43 | V18: 4.42 | W18: 4.41 | X18: 4.41 | Y18: 4.4 | Z18: 4.4 | AA18: 4.38 | AB18: 4.37 | AC18: 4.36 | AD18: 4.34 | AE18: 4.33 | AF18: 4.32 | AG18: 4.31 | AH18: 4.3 | AI18: 4.29 | AJ18: 4.28 | AK18: 4.27 | AL18: 4.26 | AM18: 4.26 | AN18: 4.25 | AO18: 4.24 | AP18: 4.24 | AQ18: 4.23 | AR18: 4.23 | AS18: 4.22 | AT18: 4.22 | AU18: 4.21 | AV18: 4.21 | AW18: 4.21 | AX18: 4.2 | AY18: 4.2 | BB18: 4
A19: 2015-11-30 | B19: 2.9 | C19: 2.99 | D19: 3.12 | E19: 3.27 | F19: 3.41 | G19: 3.55 | H19: 3.68 | I19: 3.79 | J19: 3.89 | K19: 3.99 | L19: 4.08 | M19: 4.15 | N19: 4.22 | O19: 4.27 | P19: 4.32 | Q19: 4.34 | R19: 4.36 | S19: 4.38 | T19: 4.4 | U19: 4.41 | V19: 4.41 | W19: 4.4 | X19: 4.39 | Y19: 4.39 | Z19: 4.38 | AA19: 4.37 | AB19: 4.35 | AC19: 4.34 | AD19: 4.33 | AE19: 4.32 | AF19: 4.3 | AG19: 4.29 | AH19: 4.28 | AI19: 4.27 | AJ19: 4.27 | AK19: 4.26 | AL19: 4.25 | AM19: 4.24 | AN19: 4.23 | AO19: 4.23 | AP19: 4.22 | AQ19: 4.22 | AR19: 4.21 | AS19: 4.21 | AT19: 4.2 | AU19: 4.2 | AV19: 4.19 | AW19: 4.19 | AX19: 4.19 | AY19: 4.18 | BB19: 3.94
A20: 2015-12-31 | B20: 2.89 | C20: 2.97 | D20: 3.1 | E20: 3.25 | F20: 3.39 | G20: 3.53 | H20: 3.66 | I20: 3.78 | J20: 3.88 | K20: 3.97 | L20: 4.06 | M20: 4.14 | N20: 4.2 | O20: 4.26 | P20: 4.31 | Q20: 4.33 | R20: 4.35 | S20: 4.37 | T20: 4.39 | U20: 4.4 | V20: 4.39 | W20: 4.39 | X20: 4.38 | Y20: 4.37 | Z20: 4.37 | AA20: 4.35 | AB20: 4.34 | AC20: 4.33 | AD20: 4.32 | AE20: 4.3 | AF20: 4.29 | AG20: 4.28 | AH20: 4.27 | AI20: 4.26 | AJ20: 4.25 | AK20: 4.24 | AL20: 4.24 | AM20: 4.23 | AN20: 4.22 | AO20: 4.21 | AP20: 4.21 | AQ20: 4.2 | AR20: 4.2 | AS20: 4.19 | AT20: 4.19 | AU20: 4.18 | AV20: 4.18 | AW20: 4.18 | AX20: 4.17 | AY20: 4.17 | BB20: 3.89
A21: 2016-01-31 | B21: 2.87 | C21: 2.95 | D21: 3.08 | E21: 3.23 | F21: 3.37 | G21: 3.51 | H21: 3.64 | I21: 3.75 | J21: 3.86 | K21: 3.96 | L21: 4.04 | M21: 4.12 | N21: 4.18 | O21: 4.24 | P21: 4.29 | Q21: 4.31 | R21: 4.33 | S21: 4.35 | T21: 4.37 | U21: 4.38 | V21: 4.38 | W21: 4.37 | X21: 4.36 | Y21: 4.36 | Z21: 4.35 | AA21: 4.34 | AB21: 4.32 | AC21: 4.31 | AD21: 4.3 | AE21: 4.29 | AF21: 4.28 | AG21: 4.26 | AH21: 4.25 | AI21: 4.24 | AJ21: 4.24 | AK21: 4.23 | AL21: 4.22 | AM21: 4.21 | AN21: 4.2 | AO21: 4.2 | AP21: 4.19 | AQ21: 4.19 | AR21: 4.18 | AS21: 4.18 | AT21: 4.17 | AU21: 4.17 | AV21: 4.16 | AW21: 4.16 | AX21: 4.16 | AY21: 4.15 | BB21: 3.83
A22: 2016-02-29 | B22: 2.84 | C22: 2.93 | D22: 3.06 | E22: 3.2 | F22: 3.35 | G22: 3.49 | H22: 3.62 | I22: 3.73 | J22: 3.84 | K22: 3.93 | L22: 4.02 | M22: 4.1 | N22: 4.16 | O22: 4.22 | P22: 4.27 | Q22: 4.29 | R22: 4.31 | S22: 4.33 | T22: 4.35 | U22: 4.36 | V22: 4.36 | W22: 4.35 | X22: 4.34 | Y22: 4.34 | Z22: 4.33 | AA22: 4.32 | AB22: 4.3 | AC22: 4.29 | AD22: 4.28 | AE22: 4.27 | AF22: 4.26 | AG22: 4.24 | AH22: 4.23 | AI22: 4.23 | AJ22: 4.22 | AK22: 4.21 | AL22: 4.2 | AM22: 4.19 | AN22: 4.18 | AO22: 4.18 | AP22: 4.17 | AQ22: 4.17 | AR22: 4.16 | AS22: 4.16 | AT22: 4.15 | AU22: 4.15 | AV22: 4.14 | AW22: 4.14 | AX22: 4.14 | AY22: 4.13 | BB22: 3.76
A23: 2016-03-31 | B23: 2.82 | C23: 2.9 | D23: 3.03 | E23: 3.18 | F23: 3.32 | G23: 3.46 | H23: 3.59 | I23: 3.71 | J23: 3.81 | K23: 3.91 | L23: 4 | M23: 4.08 | N23: 4.14 | O23: 4.2 | P23: 4.24 | Q23: 4.27 | R23: 4.29 | S23: 4.31 | T23: 4.33 | U23: 4.34 | V23: 4.33 | W23: 4.33 | X23: 4.32 | Y23: 4.32 | Z23: 4.31 | AA23: 4.3 | AB23: 4.28 | AC23: 4.27 | AD23: 4.26 | AE23: 4.24 | AF23: 4.23 | AG23: 4.22 | AH23: 4.21 | AI23: 4.2 | AJ23: 4.19 | AK23: 4.18 | AL23: 4.18 | AM23: 4.17 | AN23: 4.16 | AO23: 4.15 | AP23: 4.15 | AQ23: 4.14 | AR23: 4.14 | AS23: 4.13 | AT23: 4.13 | AU23: 4.12 | AV23: 4.12 | AW23: 4.12 | AX23: 4.11 | AY23: 4.11 | BB23: 3.7
A24: 2016-04-30 | B24: 2.79 | C24: 2.87 | D24: 3 | E24: 3.15 | F24: 3.29 | G24: 3.44 | H24: 3.56 | I24: 3.68 | J24: 3.79 | K24: 3.88 | L24: 3.97 | M24: 4.05 | N24: 4.12 | O24: 4.17 | P24: 4.22 | Q24: 4.24 | R24: 4.27 | S24: 4.29 | T24: 4.3 | U24: 4.32 | V24: 4.31 | W24: 4.3 | X24: 4.3 | Y24: 4.29 | Z24: 4.29 | AA24: 4.27 | AB24: 4.26 | AC24: 4.24 | AD24: 4.23 | AE24: 4.22 | AF24: 4.21 | AG24: 4.2 | AH24: 4.19 | AI24: 4.18 | AJ24: 4.17 | AK24: 4.16 | AL24: 4.15 | AM24: 4.15 | AN24: 4.14 | AO24: 4.13 | AP24: 4.13 | AQ24: 4.12 | AR24: 4.12 | AS24: 4.11 | AT24: 4.11 | AU24: 4.1 | AV24: 4.1 | AW24: 4.09 | AX24: 4.09 | AY24: 4.09 | BB24: 3.64
A25: 2016-05-31 | B25: 2.77 | C25: 2.84 | D25: 2.97 | E25: 3.12 | F25: 3.26 | G25: 3.41 | H25: 3.53 | I25: 3.65 | J25: 3.76 | K25: 3.86 | L25: 3.95 | M25: 4.02 | N25: 4.09 | O25: 4.15 | P25: 4.2 | Q25: 4.22 | R25: 4.24 | S25: 4.26 | T25: 4.28 | U25: 4.29 | V25: 4.28 | W25: 4.28 | X25: 4.27 | Y25: 4.27 | Z25: 4.26 | AA25: 4.25 | AB25: 4.23 | AC25: 4.22 | AD25: 4.21 | AE25: 4.2 | AF25: 4.18 | AG25: 4.17 | AH25: 4.16 | AI25: 4.15 | AJ25: 4.14 | AK25: 4.14 | AL25: 4.13 | AM25: 4.12 | AN25: 4.11 | AO25: 4.11 | AP25: 4.1 | AQ25: 4.09 | AR25: 4.09 | AS25: 4.08 | AT25: 4.08 | AU25: 4.08 | AV25: 4.07 | AW25: 4.07 | AX25: 4.06 | AY25: 4.06 | BB25: 3.58
A26: 2016-06-30 | B26: 2.74 | C26: 2.81 | D26: 2.94 | E26: 3.09 | F26: 3.23 | G26: 3.37 | H26: 3.5 | I26: 3.62 | J26: 3.73 | K26: 3.83 | L26: 3.92 | M26: 3.99 | N26: 4.06 | O26: 4.12 | P26: 4.17 | Q26: 4.19 | R26: 4.21 | S26: 4.23 | T26: 4.25 | U26: 4.26 | V26: 4.26 | W26: 4.25 | X26: 4.24 | Y26: 4.24 | Z26: 4.23 | AA26: 4.22 | AB26: 4.2 | AC26: 4.19 | AD26: 4.18 | AE26: 4.17 | AF26: 4.16 | AG26: 4.14 | AH26: 4.13 | AI26: 4.12 | AJ26: 4.12 | AK26: 4.11 | AL26: 4.1 | AM26: 4.09 | AN26: 4.08 | AO26: 4.08 | AP26: 4.07 | AQ26: 4.07 | AR26: 4.06 | AS26: 4.06 | AT26: 4.05 | AU26: 4.05 | AV26: 4.04 | AW26: 4.04 | AX26: 4.04 | AY26: 4.03 | BB26: 3.52
A27: 2016-07-31 | B27: 2.71 | C27: 2.78 | D27: 2.91 | E27: 3.06 | F27: 3.2 | G27: 3.34 | H27: 3.47 | I27: 3.59 | J27: 3.7 | K27: 3.8 | L27: 3.89 | M27: 3.96 | N27: 4.03 | O27: 4.09 | P27: 4.14 | Q27: 4.16 | R27: 4.18 | S27: 4.2 | T27: 4.22 | U27: 4.23 | V27: 4.23 | W27: 4.22 | X27: 4.21 | Y27: 4.21 | Z27: 4.2 | AA27: 4.19 | AB27: 4.17 | AC27: 4.16 | AD27: 4.15 | AE27: 4.14 | AF27: 4.12 | AG27: 4.11 | AH27: 4.1 | AI27: 4.09 | AJ27: 4.08 | AK27: 4.08 | AL27: 4.07 | AM27: 4.06 | AN27: 4.05 | AO27: 4.05 | AP27: 4.04 | AQ27: 4.04 | AR27: 4.03 | AS27: 4.03 | AT27: 4.02 | AU27: 4.02 | AV27: 4.01 | AW27: 4.01 | AX27: 4 | AY27: 4 | BB27: 3.47
A28: 2016-08-31 | B28: 2.68 | C28: 2.75 | D28: 2.88 | E28: 3.02 | F28: 3.17 | G28: 3.31 | H28: 3.44 | I28: 3.56 | J28: 3.67 | K28: 3.77 | L28: 3.86 | M28: 3.93 | N28: 4 | O28: 4.06 | P28: 4.11 | Q28: 4.13 | R28: 4.15 | S28: 4.17 | T28: 4.19 | U28: 4.2 | V28: 4.2 | W28: 4.19 | X28: 4.18 | Y28: 4.18 | Z28: 4.17 | AA28: 4.16 | AB28: 4.14 | AC28: 4.13 | AD28: 4.12 | AE28: 4.11 | AF28: 4.1 | AG28: 4.09 | AH28: 4.08 | AI28: 4.07 | AJ28: 4.06 | AK28: 4.05 | AL28: 4.04 | AM28: 4.03 | AN28: 4.02 | AO28: 4.02 | AP28: 4.01 | AQ28: 4.01 | AR28: 4 | AS28: 4 | AT28: 3.99 | AU28: 3.99 | AV28: 3.98 | AW28: 3.98 | AX28: 3.98 | AY28: 3.97 | BB28: 3.42
A29: 2016-09-30 | B29: 2.65 | C29: 2.72 | D29: 2.85 | E29: 2.99 | F29: 3.14 | G29: 3.28 | H29: 3.41 | I29: 3.53 | J29: 3.64 | K29: 3.74 | L29: 3.83 | M29: 3.91 | N29: 3.97 | O29: 4.03 | P29: 4.08 | Q29: 4.1 | R29: 4.13 | S29: 4.14 | T29: 4.16 | U29: 4.18 | V29: 4.17 | W29: 4.16 | X29: 4.16 | Y29: 4.15 | Z29: 4.15 | AA29: 4.13 | AB29: 4.12 | AC29: 4.11 | AD29: 4.09 | AE29: 4.08 | AF29: 4.07 | AG29: 4.06 | AH29: 4.05 | AI29: 4.04 | AJ29: 4.03 | AK29: 4.02 | AL29: 4.01 | AM29: 4.01 | AN29: 4 | AO29: 3.99 | AP29: 3.99 | AQ29: 3.98 | AR29: 3.98 | AS29: 3.97 | AT29: 3.97 | AU29: 3.96 | AV29: 3.96 | AW29: 3.95 | AX29: 3.95 | AY29: 3.95 | BB29: 3.37
A30: 2016-10-31 | B30: 2.61 | C30: 2.69 | D30: 2.82 | E30: 2.96 | F30: 3.11 | G30: 3.25 | H30: 3.38 | I30: 3.5 | J30: 3.61 | K30: 3.71 | L30: 3.8 | M30: 3.88 | N30: 3.95 | O30: 4.01 | P30: 4.06 | Q30: 4.08 | R30: 4.1 | S30: 4.12 | T30: 4.14 | U30: 4.15 | V30: 4.15 | W30: 4.14 | X30: 4.13 | Y30: 4.13 | Z30: 4.12 | AA30: 4.11 | AB30: 4.09 | AC30: 4.08 | AD30: 4.07 | AE30: 4.06 | AF30: 4.05 | AG30: 4.04 | AH30: 4.03 | AI30: 4.02 | AJ30: 4.01 | AK30: 4 | AL30: 3.99 | AM30: 3.98 | AN30: 3.98 | AO30: 3.97 | AP30: 3.96 | AQ30: 3.96 | AR30: 3.95 | AS30: 3.95 | AT30: 3.94 | AU30: 3.94 | AV30: 3.93 | AW30: 3.93 | AX30: 3.93 | AY30: 3.92 | BB30: 3.32
A31: 2016-11-30 | B31: 2.58 | C31: 2.66 | D31: 2.79 | E31: 2.93 | F31: 3.08 | G31: 3.22 | H31: 3.35 | I31: 3.48 | J31: 3.59 | K31: 3.69 | L31: 3.78 | M31: 3.86 | N31: 3.93 | O31: 3.98 | P31: 4.03 | Q31: 4.06 | R31: 4.08 | S31: 4.1 | T31: 4.12 | U31: 4.13 | V31: 4.13 | W31: 4.12 | X31: 4.11 | Y31: 4.11 | Z31: 4.1 | AA31: 4.09 | AB31: 4.07 | AC31: 4.06 | AD31: 4.05 | AE31: 4.04 | AF31: 4.03 | AG31: 4.02 | AH31: 4.01 | AI31: 4 | AJ31: 3.99 | AK31: 3.98 | AL31: 3.97 | AM31: 3.96 | AN31: 3.96 | AO31: 3.95 | AP31: 3.94 | AQ31: 3.94 | AR31: 3.93 | AS31: 3.93 | AT31: 3.92 | AU31: 3.92 | AV31: 3.92 | AW31: 3.91 | AX31: 3.91 | AY31: 3.9 | BB31: 3.28
A32: 2016-12-31 | B32: 2.55 | C32: 2.62 | D32: 2.75 | E32: 2.9 | F32: 3.05 | G32: 3.19 | H32: 3.33 | I32: 3.45 | J32: 3.56 | K32: 3.66 | L32: 3.75 | M32: 3.83 | N32: 3.9 | O32: 3.96 | P32: 4.01 | Q32: 4.04 | R32: 4.06 | S32: 4.08 | T32: 4.09 | U32: 4.11 | V32: 4.1 | W32: 4.1 | X32: 4.09 | Y32: 4.09 | Z32: 4.08 | AA32: 4.07 | AB32: 4.05 | AC32: 4.04 | AD32: 4.03 | AE32: 4.02 | AF32: 4 | AG32: 3.99 | AH32: 3.98 | AI32: 3.97 | AJ32: 3.97 | AK32: 3.96 | AL32: 3.95 | AM32: 3.94 | AN32: 3.93 | AO32: 3.93 | AP32: 3.92 | AQ32: 3.92 | AR32: 3.91 | AS32: 3.91 | AT32: 3.9 | AU32: 3.9 | AV32: 3.89 | AW32: 3.89 | AX32: 3.89 | AY32: 3.88 | BB32: 3.24
A33: 2017-01-31 | B33: 2.52 | C33: 2.59 | D33: 2.72 | E33: 2.87 | F33: 3.02 | G33: 3.16 | H33: 3.3 | I33: 3.42 | J33: 3.53 | K33: 3.63 | L33: 3.73 | M33: 3.81 | N33: 3.88 | O33: 3.94 | P33: 3.99 | Q33: 4.01 | R33: 4.03 | S33: 4.05 | T33: 4.07 | U33: 4.09 | V33: 4.08 | W33: 4.07 | X33: 4.07 | Y33: 4.06 | Z33: 4.06 | AA33: 4.04 | AB33: 4.03 | AC33: 4.02 | AD33: 4.01 | AE33: 4 | AF33: 3.98 | AG33: 3.97 | AH33: 3.96 | AI33: 3.95 | AJ33: 3.94 | AK33: 3.94 | AL33: 3.93 | AM33: 3.92 | AN33: 3.91 | AO33: 3.91 | AP33: 3.9 | AQ33: 3.9 | AR33: 3.89 | AS33: 3.89 | AT33: 3.88 | AU33: 3.88 | AV33: 3.87 | AW33: 3.87 | AX33: 3.87 | AY33: 3.86 | BB33: 3.2
A34: 2017-02-28 | B34: 2.48 | C34: 2.56 | D34: 2.69 | E34: 2.84 | F34: 2.99 | G34: 3.13 | H34: 3.27 | I34: 3.39 | J34: 3.5 | K34: 3.61 | L34: 3.7 | M34: 3.78 | N34: 3.85 | O34: 3.91 | P34: 3.96 | Q34: 3.99 | R34: 4.01 | S34: 4.03 | T34: 4.05 | U34: 4.06 | V34: 4.06 | W34: 4.05 | X34: 4.05 | Y34: 4.04 | Z34: 4.04 | AA34: 4.02 | AB34: 4.01 | AC34: 4 | AD34: 3.98 | AE34: 3.97 | AF34: 3.96 | AG34: 3.95 | AH34: 3.94 | AI34: 3.93 | AJ34: 3.92 | AK34: 3.91 | AL34: 3.91 | AM34: 3.9 | AN34: 3.89 | AO34: 3.89 | AP34: 3.88 | AQ34: 3.87 | AR34: 3.87 | AS34: 3.86 | AT34: 3.86 | AU34: 3.86 | AV34: 3.85 | AW34: 3.85 | AX34: 3.84 | AY34: 3.84 | BB34: 3.16
A35: 2017-03-31 | B35: 2.45 | C35: 2.52 | D35: 2.65 | E35: 2.81 | F35: 2.96 | G35: 3.1 | H35: 3.24 | I35: 3.36 | J35: 3.48 | K35: 3.58 | L35: 3.68 | M35: 3.76 | N35: 3.83 | O35: 3.89 | P35: 3.94 | Q35: 3.96 | R35: 3.99 | S35: 4.01 | T35: 4.02 | U35: 4.04 | V35: 4.03 | W35: 4.03 | X35: 4.02 | Y35: 4.02 | Z35: 4.01 | AA35: 4 | AB35: 3.98 | AC35: 3.97 | AD35: 3.96 | AE35: 3.95 | AF35: 3.94 | AG35: 3.93 | AH35: 3.92 | AI35: 3.91 | AJ35: 3.9 | AK35: 3.89 | AL35: 3.88 | AM35: 3.88 | AN35: 3.87 | AO35: 3.86 | AP35: 3.86 | AQ35: 3.85 | AR35: 3.85 | AS35: 3.84 | AT35: 3.84 | AU35: 3.83 | AV35: 3.83 | AW35: 3.83 | AX35: 3.82 | AY35: 3.82 | BB35: 3.12
A36: 2017-04-30 | B36: 2.41 | C36: 2.49 | D36: 2.62 | E36: 2.77 | F36: 2.92 | G36: 3.07 | H36: 3.21 | I36: 3.33 | J36: 3.45 | K36: 3.55 | L36: 3.65 | M36: 3.73 | N36: 3.8 | O36: 3.86 | P36: 3.91 | Q36: 3.94 | R36: 3.96 | S36: 3.98 | T36: 4 | U36: 4.02 | V36: 4.01 | W36: 4 | X36: 4 | Y36: 3.99 | Z36: 3.99 | AA36: 3.97 | AB36: 3.96 | AC36: 3.95 | AD36: 3.94 | AE36: 3.93 | AF36: 3.91 | AG36: 3.9 | AH36: 3.89 | AI36: 3.89 | AJ36: 3.88 | AK36: 3.87 | AL36: 3.86 | AM36: 3.85 | AN36: 3.85 | AO36: 3.84 | AP36: 3.83 | AQ36: 3.83 | AR36: 3.82 | AS36: 3.82 | AT36: 3.82 | AU36: 3.81 | AV36: 3.81 | AW36: 3.8 | AX36: 3.8 | AY36: 3.8 | BB36: 3.08
A37: 2017-05-31 | B37: 2.38 | C37: 2.45 | D37: 2.58 | E37: 2.74 | F37: 2.89 | G37: 3.04 | H37: 3.18 | I37: 3.3 | J37: 3.42 | K37: 3.52 | L37: 3.62 | M37: 3.7 | N37: 3.77 | O37: 3.83 | P37: 3.88 | Q37: 3.91 | R37: 3.93 | S37: 3.95 | T37: 3.97 | U37: 3.99 | V37: 3.98 | W37: 3.98 | X37: 3.97 | Y37: 3.97 | Z37: 3.96 | AA37: 3.95 | AB37: 3.94 | AC37: 3.92 | AD37: 3.91 | AE37: 3.9 | AF37: 3.89 | AG37: 3.88 | AH37: 3.87 | AI37: 3.86 | AJ37: 3.85 | AK37: 3.84 | AL37: 3.84 | AM37: 3.83 | AN37: 3.82 | AO37: 3.82 | AP37: 3.81 | AQ37: 3.81 | AR37: 3.8 | AS37: 3.8 | AT37: 3.79 | AU37: 3.79 | AV37: 3.78 | AW37: 3.78 | AX37: 3.78 | AY37: 3.77 | BB37: 3.04
A38: 2017-06-30 | B38: 2.34 | C38: 2.41 | D38: 2.55 | E38: 2.7 | F38: 2.85 | G38: 3 | H38: 3.14 | I38: 3.27 | J38: 3.39 | K38: 3.49 | L38: 3.59 | M38: 3.67 | N38: 3.74 | O38: 3.8 | P38: 3.86 | Q38: 3.88 | R38: 3.91 | S38: 3.93 | T38: 3.95 | U38: 3.96 | V38: 3.96 | W38: 3.95 | X38: 3.95 | Y38: 3.94 | Z38: 3.94 | AA38: 3.92 | AB38: 3.91 | AC38: 3.9 | AD38: 3.89 | AE38: 3.88 | AF38: 3.87 | AG38: 3.86 | AH38: 3.85 | AI38: 3.84 | AJ38: 3.83 | AK38: 3.82 | AL38: 3.81 | AM38: 3.81 | AN38: 3.8 | AO38: 3.79 | AP38: 3.79 | AQ38: 3.78 | AR38: 3.78 | AS38: 3.77 | AT38: 3.77 | AU38: 3.76 | AV38: 3.76 | AW38: 3.76 | AX38: 3.75 | AY38: 3.75 | BB38: 3
A39: 2017-07-31 | B39: 2.3 | C39: 2.38 | D39: 2.51 | E39: 2.67 | F39: 2.82 | G39: 2.97 | H39: 3.11 | I39: 3.24 | J39: 3.36 | K39: 3.46 | L39: 3.56 | M39: 3.64 | N39: 3.72 | O39: 3.78 | P39: 3.83 | Q39: 3.86 | R39: 3.88 | S39: 3.9 | T39: 3.92 | U39: 3.94 | V39: 3.93 | W39: 3.93 | X39: 3.92 | Y39: 3.92 | Z39: 3.91 | AA39: 3.9 | AB39: 3.89 | AC39: 3.87 | AD39: 3.86 | AE39: 3.85 | AF39: 3.84 | AG39: 3.83 | AH39: 3.82 | AI39: 3.81 | AJ39: 3.8 | AK39: 3.8 | AL39: 3.79 | AM39: 3.78 | AN39: 3.77 | AO39: 3.77 | AP39: 3.76 | AQ39: 3.76 | AR39: 3.75 | AS39: 3.75 | AT39: 3.74 | AU39: 3.74 | AV39: 3.74 | AW39: 3.73 | AX39: 3.73 | AY39: 3.72 | BB39: 2.97
A40: 2017-08-31 | B40: 2.26 | C40: 2.34 | D40: 2.47 | E40: 2.63 | F40: 2.78 | G40: 2.94 | H40: 3.08 | I40: 3.21 | J40: 3.32 | K40: 3.43 | L40: 3.53 | M40: 3.61 | N40: 3.69 | O40: 3.75 | P40: 3.8 | Q40: 3.83 | R40: 3.85 | S40: 3.87 | T40: 3.89 | U40: 3.91 | V40: 3.9 | W40: 3.9 | X40: 3.89 | Y40: 3.89 | Z40: 3.89 | AA40: 3.87 | AB40: 3.86 | AC40: 3.85 | AD40: 3.84 | AE40: 3.82 | AF40: 3.81 | AG40: 3.8 | AH40: 3.79 | AI40: 3.79 | AJ40: 3.78 | AK40: 3.77 | AL40: 3.76 | AM40: 3.76 | AN40: 3.75 | AO40: 3.74 | AP40: 3.74 | AQ40: 3.73 | AR40: 3.73 | AS40: 3.72 | AT40: 3.72 | AU40: 3.71 | AV40: 3.71 | AW40: 3.71 | AX40: 3.7 | AY40: 3.7 | BB40: 2.94
A41: 2017-09-30 | B41: 2.22 | C41: 2.3 | D41: 2.43 | E41: 2.59 | F41: 2.75 | G41: 2.9 | H41: 3.04 | I41: 3.17 | J41: 3.29 | K41: 3.4 | L41: 3.5 | M41: 3.58 | N41: 3.66 | O41: 3.72 | P41: 3.77 | Q41: 3.8 | R41: 3.82 | S41: 3.84 | T41: 3.86 | U41: 3.88 | V41: 3.88 | W41: 3.87 | X41: 3.87 | Y41: 3.86 | Z41: 3.86 | AA41: 3.84 | AB41: 3.83 | AC41: 3.82 | AD41: 3.81 | AE41: 3.8 | AF41: 3.79 | AG41: 3.78 | AH41: 3.77 | AI41: 3.76 | AJ41: 3.75 | AK41: 3.74 | AL41: 3.74 | AM41: 3.73 | AN41: 3.72 | AO41: 3.72 | AP41: 3.71 | AQ41: 3.71 | AR41: 3.7 | AS41: 3.7 | AT41: 3.69 | AU41: 3.69 | AV41: 3.68 | AW41: 3.68 | AX41: 3.68 | AY41: 3.67 | BB41: 2.91
A42: 2017-10-31 | B42: 2.18 | C42: 2.26 | D42: 2.4 | E42: 2.55 | F42: 2.71 | G42: 2.87 | H42: 3.01 | I42: 3.14 | J42: 3.26 | K42: 3.37 | L42: 3.47 | M42: 3.55 | N42: 3.62 | O42: 3.69 | P42: 3.74 | Q42: 3.77 | R42: 3.79 | S42: 3.82 | T42: 3.84 | U42: 3.85 | V42: 3.85 | W42: 3.84 | X42: 3.84 | Y42: 3.83 | Z42: 3.83 | AA42: 3.82 | AB42: 3.8 | AC42: 3.79 | AD42: 3.78 | AE42: 3.77 | AF42: 3.76 | AG42: 3.75 | AH42: 3.74 | AI42: 3.73 | AJ42: 3.72 | AK42: 3.72 | AL42: 3.71 | AM42: 3.7 | AN42: 3.7 | AO42: 3.69 | AP42: 3.68 | AQ42: 3.68 | AR42: 3.67 | AS42: 3.67 | AT42: 3.67 | AU42: 3.66 | AV42: 3.66 | AW42: 3.65 | AX42: 3.65 | AY42: 3.65 | BB42: 2.88
A43: 2017-11-30 | B43: 2.13 | C43: 2.22 | D43: 2.36 | E43: 2.52 | F43: 2.67 | G43: 2.83 | H43: 2.97 | I43: 3.1 | J43: 3.22 | K43: 3.33 | L43: 3.43 | M43: 3.52 | N43: 3.59 | O43: 3.65 | P43: 3.71 | Q43: 3.74 | R43: 3.76 | S43: 3.78 | T43: 3.8 | U43: 3.82 | V43: 3.82 | W43: 3.81 | X43: 3.81 | Y43: 3.8 | Z43: 3.8 | AA43: 3.79 | AB43: 3.77 | AC43: 3.76 | AD43: 3.75 | AE43: 3.74 | AF43: 3.73 | AG43: 3.72 | AH43: 3.71 | AI43: 3.7 | AJ43: 3.69 | AK43: 3.69 | AL43: 3.68 | AM43: 3.67 | AN43: 3.67 | AO43: 3.66 | AP43: 3.65 | AQ43: 3.65 | AR43: 3.64 | AS43: 3.64 | AT43: 3.64 | AU43: 3.63 | AV43: 3.63 | AW43: 3.62 | AX43: 3.62 | AY43: 3.62 | BB43: 2.84
A44: 2017-12-31 | B44: 2.09 | C44: 2.17 | D44: 2.32 | E44: 2.48 | F44: 2.63 | G44: 2.79 | H44: 2.93 | I44: 3.07 | J44: 3.19 | K44: 3.3 | L44: 3.4 | M44: 3.48 | N44: 3.56 | O44: 3.62 | P44: 3.68 | Q44: 3.7 | R44: 3.73 | S44: 3.75 | T44: 3.77 | U44: 3.79 | V44: 3.78 | W44: 3.78 | X44: 3.77 | Y44: 3.77 | Z44: 3.77 | AA44: 3.75 | AB44: 3.74 | AC44: 3.73 | AD44: 3.72 | AE44: 3.71 | AF44: 3.7 | AG44: 3.69 | AH44: 3.68 | AI44: 3.67 | AJ44: 3.66 | AK44: 3.66 | AL44: 3.65 | AM44: 3.64 | AN44: 3.64 | AO44: 3.63 | AP44: 3.62 | AQ44: 3.62 | AR44: 3.62 | AS44: 3.61 | AT44: 3.61 | AU44: 3.6 | AV44: 3.6 | AW44: 3.6 | AX44: 3.59 | AY44: 3.59 | BB44: 2.8
A45: 2018-01-31 | B45: 2.04 | C45: 2.13 | D45: 2.28 | E45: 2.44 | F45: 2.6 | G45: 2.75 | H45: 2.9 | I45: 3.03 | J45: 3.15 | K45: 3.26 | L45: 3.37 | M45: 3.45 | N45: 3.52 | O45: 3.59 | P45: 3.64 | Q45: 3.67 | R45: 3.69 | S45: 3.72 | T45: 3.74 | U45: 3.75 | V45: 3.75 | W45: 3.74 | X45: 3.74 | Y45: 3.74 | Z45: 3.73 | AA45: 3.72 | AB45: 3.71 | AC45: 3.7 | AD45: 3.68 | AE45: 3.67 | AF45: 3.66 | AG45: 3.66 | AH45: 3.65 | AI45: 3.64 | AJ45: 3.63 | AK45: 3.62 | AL45: 3.62 | AM45: 3.61 | AN45: 3.6 | AO45: 3.6 | AP45: 3.59 | AQ45: 3.59 | AR45: 3.58 | AS45: 3.58 | AT45: 3.57 | AU45: 3.57 | AV45: 3.57 | AW45: 3.56 | AX45: 3.56 | AY45: 3.56 | BB45: 2.76
A46: 2018-02-28 | B46: 2 | C46: 2.09 | D46: 2.24 | E46: 2.4 | F46: 2.56 | G46: 2.72 | H46: 2.86 | I46: 3 | J46: 3.12 | K46: 3.23 | L46: 3.33 | M46: 3.41 | N46: 3.49 | O46: 3.55 | P46: 3.61 | Q46: 3.63 | R46: 3.66 | S46: 3.68 | T46: 3.7 | U46: 3.72 | V46: 3.72 | W46: 3.71 | X46: 3.71 | Y46: 3.7 | Z46: 3.7 | AA46: 3.69 | AB46: 3.67 | AC46: 3.66 | AD46: 3.65 | AE46: 3.64 | AF46: 3.63 | AG46: 3.62 | AH46: 3.61 | AI46: 3.6 | AJ46: 3.6 | AK46: 3.59 | AL46: 3.58 | AM46: 3.58 | AN46: 3.57 | AO46: 3.56 | AP46: 3.56 | AQ46: 3.55 | AR46: 3.55 | AS46: 3.55 | AT46: 3.54 | AU46: 3.54 | AV46: 3.53 | AW46: 3.53 | AX46: 3.53 | AY46: 3.52 | BB46: 2.72
A47: 2018-03-31 | B47: 1.95 | C47: 2.05 | D47: 2.19 | E47: 2.36 | F47: 2.52 | G47: 2.68 | H47: 2.82 | I47: 2.96 | J47: 3.08 | K47: 3.19 | L47: 3.29 | M47: 3.38 | N47: 3.45 | O47: 3.51 | P47: 3.57 | Q47: 3.6 | R47: 3.62 | S47: 3.65 | T47: 3.67 | U47: 3.68 | V47: 3.68 | W47: 3.67 | X47: 3.67 | Y47: 3.67 | Z47: 3.66 | AA47: 3.65 | AB47: 3.64 | AC47: 3.63 | AD47: 3.61 | AE47: 3.6 | AF47: 3.59 | AG47: 3.59 | AH47: 3.58 | AI47: 3.57 | AJ47: 3.56 | AK47: 3.55 | AL47: 3.55 | AM47: 3.54 | AN47: 3.53 | AO47: 3.53 | AP47: 3.52 | AQ47: 3.52 | AR47: 3.51 | AS47: 3.51 | AT47: 3.51 | AU47: 3.5 | AV47: 3.5 | AW47: 3.5 | AX47: 3.49 | AY47: 3.49 | BB47: 2.68
A48: 2018-04-30 | B48: 1.9 | C48: 2 | D48: 2.15 | E48: 2.32 | F48: 2.48 | G48: 2.64 | H48: 2.78 | I48: 2.92 | J48: 3.04 | K48: 3.15 | L48: 3.25 | M48: 3.34 | N48: 3.41 | O48: 3.48 | P48: 3.53 | Q48: 3.56 | R48: 3.59 | S48: 3.61 | T48: 3.63 | U48: 3.65 | V48: 3.64 | W48: 3.64 | X48: 3.63 | Y48: 3.63 | Z48: 3.63 | AA48: 3.61 | AB48: 3.6 | AC48: 3.59 | AD48: 3.58 | AE48: 3.57 | AF48: 3.56 | AG48: 3.55 | AH48: 3.54 | AI48: 3.53 | AJ48: 3.53 | AK48: 3.52 | AL48: 3.51 | AM48: 3.51 | AN48: 3.5 | AO48: 3.49 | AP48: 3.49 | AQ48: 3.49 | AR48: 3.48 | AS48: 3.48 | AT48: 3.47 | AU48: 3.47 | AV48: 3.47 | AW48: 3.46 | AX48: 3.46 | AY48: 3.46 | BB48: 2.64
A49: 2018-05-31 | B49: 1.85 | C49: 1.95 | D49: 2.1 | E49: 2.27 | F49: 2.44 | G49: 2.6 | H49: 2.74 | I49: 2.88 | J49: 3 | K49: 3.11 | L49: 3.22 | M49: 3.3 | N49: 3.38 | O49: 3.44 | P49: 3.5 | Q49: 3.52 | R49: 3.55 | S49: 3.57 | T49: 3.59 | U49: 3.61 | V49: 3.61 | W49: 3.6 | X49: 3.6 | Y49: 3.6 | Z49: 3.59 | AA49: 3.58 | AB49: 3.57 | AC49: 3.56 | AD49: 3.55 | AE49: 3.54 | AF49: 3.53 | AG49: 3.52 | AH49: 3.51 | AI49: 3.5 | AJ49: 3.49 | AK49: 3.49 | AL49: 3.48 | AM49: 3.47 | AN49: 3.47 | AO49: 3.46 | AP49: 3.46 | AQ49: 3.45 | AR49: 3.45 | AS49: 3.44 | AT49: 3.44 | AU49: 3.44 | AV49: 3.43 | AW49: 3.43 | AX49: 3.43 | AY49: 3.42 | BB49: 2.6
A50: 2018-06-30 | B50: 1.8 | C50: 1.9 | D50: 2.05 | E50: 2.22 | F50: 2.39 | G50: 2.55 | H50: 2.7 | I50: 2.84 | J50: 2.96 | K50: 3.07 | L50: 3.18 | M50: 3.26 | N50: 3.34 | O50: 3.4 | P50: 3.46 | Q50: 3.49 | R50: 3.51 | S50: 3.54 | T50: 3.56 | U50: 3.58 | V50: 3.57 | W50: 3.57 | X50: 3.56 | Y50: 3.56 | Z50: 3.56 | AA50: 3.54 | AB50: 3.53 | AC50: 3.52 | AD50: 3.51 | AE50: 3.5 | AF50: 3.49 | AG50: 3.48 | AH50: 3.48 | AI50: 3.47 | AJ50: 3.46 | AK50: 3.45 | AL50: 3.45 | AM50: 3.44 | AN50: 3.43 | AO50: 3.43 | AP50: 3.42 | AQ50: 3.42 | AR50: 3.42 | AS50: 3.41 | AT50: 3.41 | AU50: 3.4 | AV50: 3.4 | AW50: 3.4 | AX50: 3.39 | AY50: 3.39 | BB50: 2.56
A51: 2018-07-31 | B51: 1.75 | C51: 1.85 | D51: 2 | E51: 2.18 | F51: 2.35 | G51: 2.51 | H51: 2.66 | I51: 2.8 | J51: 2.92 | K51: 3.04 | L51: 3.14 | M51: 3.23 | N51: 3.3 | O51: 3.37 | P51: 3.42 | Q51: 3.45 | R51: 3.48 | S51: 3.5 | T51: 3.52 | U51: 3.54 | V51: 3.54 | W51: 3.53 | X51: 3.53 | Y51: 3.53 | Z51: 3.52 | AA51: 3.51 | AB51: 3.5 | AC51: 3.49 | AD51: 3.48 | AE51: 3.47 | AF51: 3.46 | AG51: 3.45 | AH51: 3.44 | AI51: 3.44 | AJ51: 3.43 | AK51: 3.42 | AL51: 3.41 | AM51: 3.41 | AN51: 3.4 | AO51: 3.4 | AP51: 3.39 | AQ51: 3.39 | AR51: 3.38 | AS51: 3.38 | AT51: 3.38 | AU51: 3.37 | AV51: 3.37 | AW51: 3.37 | AX51: 3.36 | AY51: 3.36 | BB51: 2.52
A52: 2018-08-31 | B52: 1.69 | C52: 1.8 | D52: 1.96 | E52: 2.13 | F52: 2.3 | G52: 2.47 | H52: 2.62 | I52: 2.76 | J52: 2.88 | K52: 3 | L52: 3.1 | M52: 3.19 | N52: 3.26 | O52: 3.33 | P52: 3.39 | Q52: 3.42 | R52: 3.44 | S52: 3.47 | T52: 3.49 | U52: 3.51 | V52: 3.5 | W52: 3.5 | X52: 3.5 | Y52: 3.49 | Z52: 3.49 | AA52: 3.48 | AB52: 3.47 | AC52: 3.46 | AD52: 3.45 | AE52: 3.44 | AF52: 3.43 | AG52: 3.42 | AH52: 3.41 | AI52: 3.4 | AJ52: 3.4 | AK52: 3.39 | AL52: 3.38 | AM52: 3.38 | AN52: 3.37 | AO52: 3.37 | AP52: 3.36 | AQ52: 3.36 | AR52: 3.35 | AS52: 3.35 | AT52: 3.35 | AU52: 3.34 | AV52: 3.34 | AW52: 3.34 | AX52: 3.33 | AY52: 3.33 | BB52: 2.48
A53: 2018-09-30 | B53: 1.63 | C53: 1.75 | D53: 1.9 | E53: 2.08 | F53: 2.25 | G53: 2.42 | H53: 2.57 | I53: 2.71 | J53: 2.83 | K53: 2.95 | L53: 3.06 | M53: 3.14 | N53: 3.22 | O53: 3.28 | P53: 3.34 | Q53: 3.37 | R53: 3.4 | S53: 3.42 | T53: 3.44 | U53: 3.46 | V53: 3.46 | W53: 3.46 | X53: 3.45 | Y53: 3.45 | Z53: 3.45 | AA53: 3.44 | AB53: 3.43 | AC53: 3.42 | AD53: 3.41 | AE53: 3.4 | AF53: 3.39 | AG53: 3.38 | AH53: 3.37 | AI53: 3.36 | AJ53: 3.36 | AK53: 3.35 | AL53: 3.34 | AM53: 3.34 | AN53: 3.33 | AO53: 3.33 | AP53: 3.32 | AQ53: 3.32 | AR53: 3.32 | AS53: 3.31 | AT53: 3.31 | AU53: 3.31 | AV53: 3.3 | AW53: 3.3 | AX53: 3.3 | AY53: 3.29 | BB53: 2.43
A54: 2018-10-31 | B54: 1.58 | C54: 1.7 | D54: 1.85 | E54: 2.03 | F54: 2.2 | G54: 2.37 | H54: 2.52 | I54: 2.66 | J54: 2.78 | K54: 2.9 | L54: 3.01 | M54: 3.09 | N54: 3.17 | O54: 3.24 | P54: 3.29 | Q54: 3.32 | R54: 3.35 | S54: 3.38 | T54: 3.4 | U54: 3.42 | V54: 3.42 | W54: 3.41 | X54: 3.41 | Y54: 3.41 | Z54: 3.41 | AA54: 3.39 | AB54: 3.38 | AC54: 3.37 | AD54: 3.36 | AE54: 3.36 | AF54: 3.35 | AG54: 3.34 | AH54: 3.33 | AI54: 3.32 | AJ54: 3.32 | AK54: 3.31 | AL54: 3.3 | AM54: 3.3 | AN54: 3.29 | AO54: 3.29 | AP54: 3.28 | AQ54: 3.28 | AR54: 3.28 | AS54: 3.27 | AT54: 3.27 | AU54: 3.27 | AV54: 3.26 | AW54: 3.26 | AX54: 3.26 | AY54: 3.25 | BB54: 2.4
A55: 2018-11-30 | B55: 1.53 | C55: 1.65 | D55: 1.81 | E55: 1.98 | F55: 2.15 | G55: 2.32 | H55: 2.47 | I55: 2.61 | J55: 2.74 | K55: 2.86 | L55: 2.96 | M55: 3.05 | N55: 3.13 | O55: 3.19 | P55: 3.25 | Q55: 3.28 | R55: 3.31 | S55: 3.33 | T55: 3.36 | U55: 3.38 | V55: 3.38 | W55: 3.37 | X55: 3.37 | Y55: 3.37 | Z55: 3.37 | AA55: 3.36 | AB55: 3.35 | AC55: 3.34 | AD55: 3.33 | AE55: 3.32 | AF55: 3.31 | AG55: 3.3 | AH55: 3.3 | AI55: 3.29 | AJ55: 3.28 | AK55: 3.28 | AL55: 3.27 | AM55: 3.26 | AN55: 3.26 | AO55: 3.25 | AP55: 3.25 | AQ55: 3.25 | AR55: 3.24 | AS55: 3.24 | AT55: 3.24 | AU55: 3.23 | AV55: 3.23 | AW55: 3.23 | AX55: 3.22 | AY55: 3.22 | BB55: 2.36
A56: 2018-12-31 | B56: 1.49 | C56: 1.61 | D56: 1.76 | E56: 1.94 | F56: 2.11 | G56: 2.28 | H56: 2.43 | I56: 2.57 | J56: 2.7 | K56: 2.81 | L56: 2.92 | M56: 3.01 | N56: 3.08 | O56: 3.15 | P56: 3.21 | Q56: 3.24 | R56: 3.27 | S56: 3.29 | T56: 3.32 | U56: 3.34 | V56: 3.34 | W56: 3.33 | X56: 3.33 | Y56: 3.33 | Z56: 3.33 | AA56: 3.32 | AB56: 3.31 | AC56: 3.3 | AD56: 3.29 | AE56: 3.28 | AF56: 3.28 | AG56: 3.27 | AH56: 3.26 | AI56: 3.25 | AJ56: 3.25 | AK56: 3.24 | AL56: 3.24 | AM56: 3.23 | AN56: 3.23 | AO56: 3.22 | AP56: 3.22 | AQ56: 3.21 | AR56: 3.21 | AS56: 3.21 | AT56: 3.2 | AU56: 3.2 | AV56: 3.2 | AW56: 3.2 | AX56: 3.19 | AY56: 3.19 | BB56: 2.32
A57: 2019-01-31 | B57: 1.45 | C57: 1.57 | D57: 1.72 | E57: 1.9 | F57: 2.07 | G57: 2.23 | H57: 2.39 | I57: 2.53 | J57: 2.65 | K57: 2.77 | L57: 2.87 | M57: 2.96 | N57: 3.04 | O57: 3.11 | P57: 3.16 | Q57: 3.2 | R57: 3.23 | S57: 3.25 | T57: 3.27 | U57: 3.3 | V57: 3.29 | W57: 3.29 | X57: 3.29 | Y57: 3.29 | Z57: 3.29 | AA57: 3.28 | AB57: 3.27 | AC57: 3.26 | AD57: 3.25 | AE57: 3.25 | AF57: 3.24 | AG57: 3.23 | AH57: 3.22 | AI57: 3.22 | AJ57: 3.21 | AK57: 3.21 | AL57: 3.2 | AM57: 3.2 | AN57: 3.19 | AO57: 3.19 | AP57: 3.18 | AQ57: 3.18 | AR57: 3.18 | AS57: 3.17 | AT57: 3.17 | AU57: 3.17 | AV57: 3.16 | AW57: 3.16 | AX57: 3.16 | AY57: 3.16 | BB57: 2.29
A58: 2019-02-28 | B58: 1.41 | C58: 1.53 | D58: 1.68 | E58: 1.85 | F58: 2.02 | G58: 2.19 | H58: 2.34 | I58: 2.48 | J58: 2.61 | K58: 2.72 | L58: 2.83 | M58: 2.92 | N58: 2.99 | O58: 3.06 | P58: 3.12 | Q58: 3.15 | R58: 3.18 | S58: 3.21 | T58: 3.23 | U58: 3.25 | V58: 3.25 | W58: 3.25 | X58: 3.25 | Y58: 3.25 | Z58: 3.25 | AA58: 3.24 | AB58: 3.23 | AC58: 3.22 | AD58: 3.22 | AE58: 3.21 | AF58: 3.2 | AG58: 3.19 | AH58: 3.19 | AI58: 3.18 | AJ58: 3.18 | AK58: 3.17 | AL58: 3.17 | AM58: 3.16 | AN58: 3.16 | AO58: 3.15 | AP58: 3.15 | AQ58: 3.15 | AR58: 3.14 | AS58: 3.14 | AT58: 3.14 | AU58: 3.13 | AV58: 3.13 | AW58: 3.13 | AX58: 3.13 | AY58: 3.12 | BB58: 2.26
A59: 2019-03-31 | B59: 1.37 | C59: 1.49 | D59: 1.64 | E59: 1.81 | F59: 1.98 | G59: 2.14 | H59: 2.3 | I59: 2.43 | J59: 2.56 | K59: 2.68 | L59: 2.78 | M59: 2.87 | N59: 2.95 | O59: 3.01 | P59: 3.07 | Q59: 3.1 | R59: 3.13 | S59: 3.16 | T59: 3.18 | U59: 3.2 | V59: 3.2 | W59: 3.21 | X59: 3.21 | Y59: 3.21 | Z59: 3.21 | AA59: 3.2 | AB59: 3.19 | AC59: 3.18 | AD59: 3.17 | AE59: 3.17 | AF59: 3.16 | AG59: 3.15 | AH59: 3.15 | AI59: 3.14 | AJ59: 3.13 | AK59: 3.13 | AL59: 3.12 | AM59: 3.12 | AN59: 3.11 | AO59: 3.11 | AP59: 3.11 | AQ59: 3.1 | AR59: 3.1 | AS59: 3.1 | AT59: 3.09 | AU59: 3.09 | AV59: 3.09 | AW59: 3.09 | AX59: 3.08 | AY59: 3.08 | BB59: 2.23
A60: 2019-04-30 | B60: 1.34 | C60: 1.45 | D60: 1.6 | E60: 1.77 | F60: 1.94 | G60: 2.1 | H60: 2.25 | I60: 2.39 | J60: 2.52 | K60: 2.63 | L60: 2.74 | M60: 2.82 | N60: 2.9 | O60: 2.97 | P60: 3.03 | Q60: 3.06 | R60: 3.09 | S60: 3.12 | T60: 3.14 | U60: 3.16 | V60: 3.16 | W60: 3.16 | X60: 3.16 | Y60: 3.16 | Z60: 3.16 | AA60: 3.15 | AB60: 3.15 | AC60: 3.14 | AD60: 3.13 | AE60: 3.12 | AF60: 3.12 | AG60: 3.11 | AH60: 3.11 | AI60: 3.1 | AJ60: 3.09 | AK60: 3.09 | AL60: 3.08 | AM60: 3.08 | AN60: 3.08 | AO60: 3.07 | AP60: 3.07 | AQ60: 3.07 | AR60: 3.06 | AS60: 3.06 | AT60: 3.06 | AU60: 3.05 | AV60: 3.05 | AW60: 3.05 | AX60: 3.05 | AY60: 3.04 | BB60: 2.2
A61: 2019-05-31 | B61: 1.31 | C61: 1.42 | D61: 1.57 | E61: 1.73 | F61: 1.9 | G61: 2.06 | H61: 2.21 | I61: 2.35 | J61: 2.47 | K61: 2.59 | L61: 2.69 | M61: 2.78 | N61: 2.86 | O61: 2.93 | P61: 2.98 | Q61: 3.02 | R61: 3.05 | S61: 3.07 | T61: 3.1 | U61: 3.12 | V61: 3.12 | W61: 3.12 | X61: 3.12 | Y61: 3.12 | Z61: 3.12 | AA61: 3.11 | AB61: 3.11 | AC61: 3.1 | AD61: 3.09 | AE61: 3.09 | AF61: 3.08 | AG61: 3.07 | AH61: 3.07 | AI61: 3.06 | AJ61: 3.06 | AK61: 3.05 | AL61: 3.05 | AM61: 3.04 | AN61: 3.04 | AO61: 3.04 | AP61: 3.03 | AQ61: 3.03 | AR61: 3.03 | AS61: 3.02 | AT61: 3.02 | AU61: 3.02 | AV61: 3.02 | AW61: 3.01 | AX61: 3.01 | AY61: 3.01 | BB61: 2.18
A62: 2019-06-30 | B62: 1.29 | C62: 1.39 | D62: 1.53 | E62: 1.7 | F62: 1.86 | G62: 2.02 | H62: 2.17 | I62: 2.31 | J62: 2.43 | K62: 2.55 | L62: 2.65 | M62: 2.74 | N62: 2.82 | O62: 2.88 | P62: 2.94 | Q62: 2.98 | R62: 3.01 | S62: 3.03 | T62: 3.06 | U62: 3.08 | V62: 3.08 | W62: 3.08 | X62: 3.08 | Y62: 3.08 | Z62: 3.08 | AA62: 3.08 | AB62: 3.07 | AC62: 3.06 | AD62: 3.05 | AE62: 3.05 | AF62: 3.04 | AG62: 3.04 | AH62: 3.03 | AI62: 3.02 | AJ62: 3.02 | AK62: 3.02 | AL62: 3.01 | AM62: 3.01 | AN62: 3 | AO62: 3 | AP62: 3 | AQ62: 2.99 | AR62: 2.99 | AS62: 2.99 | AT62: 2.98 | AU62: 2.98 | AV62: 2.98 | AW62: 2.98 | AX62: 2.98 | AY62: 2.97 | BB62: 2.15
A63: 2019-07-31 | B63: 1.27 | C63: 1.37 | D63: 1.5 | E63: 1.67 | F63: 1.83 | G63: 1.99 | H63: 2.14 | I63: 2.27 | J63: 2.4 | K63: 2.51 | L63: 2.62 | M63: 2.7 | N63: 2.78 | O63: 2.85 | P63: 2.9 | Q63: 2.94 | R63: 2.97 | S63: 2.99 | T63: 3.02 | U63: 3.04 | V63: 3.04 | W63: 3.04 | X63: 3.04 | Y63: 3.04 | Z63: 3.05 | AA63: 3.04 | AB63: 3.03 | AC63: 3.02 | AD63: 3.02 | AE63: 3.01 | AF63: 3 | AG63: 3 | AH63: 2.99 | AI63: 2.99 | AJ63: 2.98 | AK63: 2.98 | AL63: 2.98 | AM63: 2.97 | AN63: 2.97 | AO63: 2.96 | AP63: 2.96 | AQ63: 2.96 | AR63: 2.96 | AS63: 2.95 | AT63: 2.95 | AU63: 2.95 | AV63: 2.95 | AW63: 2.94 | AX63: 2.94 | AY63: 2.94 | BB63: 2.12
A64: 2019-08-31 | B64: 1.24 | C64: 1.34 | D64: 1.47 | E64: 1.63 | F64: 1.79 | G64: 1.95 | H64: 2.1 | I64: 2.23 | J64: 2.36 | K64: 2.47 | L64: 2.58 | M64: 2.66 | N64: 2.74 | O64: 2.8 | P64: 2.86 | Q64: 2.9 | R64: 2.93 | S64: 2.95 | T64: 2.98 | U64: 3 | V64: 3 | W64: 3 | X64: 3 | Y64: 3 | Z64: 3.01 | AA64: 3 | AB64: 2.99 | AC64: 2.98 | AD64: 2.98 | AE64: 2.97 | AF64: 2.97 | AG64: 2.96 | AH64: 2.96 | AI64: 2.95 | AJ64: 2.95 | AK64: 2.94 | AL64: 2.94 | AM64: 2.93 | AN64: 2.93 | AO64: 2.93 | AP64: 2.93 | AQ64: 2.92 | AR64: 2.92 | AS64: 2.92 | AT64: 2.92 | AU64: 2.91 | AV64: 2.91 | AW64: 2.91 | AX64: 2.91 | AY64: 2.9 | BB64: 2.08
A65: 2019-09-30 | B65: 1.22 | C65: 1.32 | D65: 1.45 | E65: 1.6 | F65: 1.76 | G65: 1.92 | H65: 2.06 | I65: 2.2 | J65: 2.32 | K65: 2.44 | L65: 2.54 | M65: 2.62 | N65: 2.7 | O65: 2.77 | P65: 2.82 | Q65: 2.86 | R65: 2.89 | S65: 2.91 | T65: 2.94 | U65: 2.96 | V65: 2.96 | W65: 2.96 | X65: 2.96 | Y65: 2.97 | Z65: 2.97 | AA65: 2.96 | AB65: 2.95 | AC65: 2.95 | AD65: 2.94 | AE65: 2.93 | AF65: 2.93 | AG65: 2.92 | AH65: 2.92 | AI65: 2.91 | AJ65: 2.91 | AK65: 2.91 | AL65: 2.9 | AM65: 2.9 | AN65: 2.9 | AO65: 2.89 | AP65: 2.89 | AQ65: 2.89 | AR65: 2.88 | AS65: 2.88 | AT65: 2.88 | AU65: 2.88 | AV65: 2.88 | AW65: 2.87 | AX65: 2.87 | AY65: 2.87 | BB65: 2.05
A66: 2019-10-31 | B66: 1.21 | C66: 1.29 | D66: 1.42 | E66: 1.57 | F66: 1.73 | G66: 1.89 | H66: 2.03 | I66: 2.16 | J66: 2.29 | K66: 2.4 | L66: 2.5 | M66: 2.59 | N66: 2.66 | O66: 2.73 | P66: 2.79 | Q66: 2.82 | R66: 2.85 | S66: 2.88 | T66: 2.9 | U66: 2.92 | V66: 2.92 | W66: 2.93 | X66: 2.93 | Y66: 2.93 | Z66: 2.93 | AA66: 2.92 | AB66: 2.92 | AC66: 2.91 | AD66: 2.9 | AE66: 2.9 | AF66: 2.89 | AG66: 2.89 | AH66: 2.88 | AI66: 2.88 | AJ66: 2.88 | AK66: 2.87 | AL66: 2.87 | AM66: 2.87 | AN66: 2.86 | AO66: 2.86 | AP66: 2.86 | AQ66: 2.85 | AR66: 2.85 | AS66: 2.85 | AT66: 2.85 | AU66: 2.84 | AV66: 2.84 | AW66: 2.84 | AX66: 2.84 | AY66: 2.84 | BB66: 2.02
A67: 2019-11-30 | B67: 1.19 | C67: 1.27 | D67: 1.39 | E67: 1.55 | F67: 1.7 | G67: 1.86 | H67: 2 | I67: 2.13 | J67: 2.25 | K67: 2.37 | L67: 2.47 | M67: 2.55 | N67: 2.63 | O67: 2.69 | P67: 2.75 | Q67: 2.78 | R67: 2.81 | S67: 2.84 | T67: 2.86 | U67: 2.89 | V67: 2.89 | W67: 2.89 | X67: 2.89 | Y67: 2.89 | Z67: 2.9 | AA67: 2.89 | AB67: 2.88 | AC67: 2.88 | AD67: 2.87 | AE67: 2.87 | AF67: 2.86 | AG67: 2.86 | AH67: 2.85 | AI67: 2.85 | AJ67: 2.84 | AK67: 2.84 | AL67: 2.84 | AM67: 2.83 | AN67: 2.83 | AO67: 2.83 | AP67: 2.83 | AQ67: 2.82 | AR67: 2.82 | AS67: 2.82 | AT67: 2.82 | AU67: 2.81 | AV67: 2.81 | AW67: 2.81 | AX67: 2.81 | AY67: 2.81 | BB67: 2
A68: 2019-12-31 | B68: 1.17 | C68: 1.25 | D68: 1.37 | E68: 1.52 | F68: 1.67 | G68: 1.82 | H68: 1.97 | I68: 2.1 | J68: 2.22 | K68: 2.33 | L68: 2.43 | M68: 2.52 | N68: 2.59 | O68: 2.66 | P68: 2.71 | Q68: 2.75 | R68: 2.78 | S68: 2.8 | T68: 2.83 | U68: 2.85 | V68: 2.85 | W68: 2.86 | X68: 2.86 | Y68: 2.86 | Z68: 2.86 | AA68: 2.86 | AB68: 2.85 | AC68: 2.84 | AD68: 2.84 | AE68: 2.83 | AF68: 2.83 | AG68: 2.82 | AH68: 2.82 | AI68: 2.82 | AJ68: 2.81 | AK68: 2.81 | AL68: 2.81 | AM68: 2.8 | AN68: 2.8 | AO68: 2.8 | AP68: 2.79 | AQ68: 2.79 | AR68: 2.79 | AS68: 2.79 | AT68: 2.78 | AU68: 2.78 | AV68: 2.78 | AW68: 2.78 | AX68: 2.78 | AY68: 2.77 | BB68: 1.97
A69: 2020-01-31 | B69: 1.15 | C69: 1.23 | D69: 1.34 | E69: 1.49 | F69: 1.64 | G69: 1.79 | H69: 1.93 | I69: 2.06 | J69: 2.18 | K69: 2.3 | L69: 2.4 | M69: 2.48 | N69: 2.56 | O69: 2.62 | P69: 2.68 | Q69: 2.71 | R69: 2.74 | S69: 2.77 | T69: 2.79 | U69: 2.81 | V69: 2.82 | W69: 2.82 | X69: 2.82 | Y69: 2.82 | Z69: 2.83 | AA69: 2.82 | AB69: 2.81 | AC69: 2.81 | AD69: 2.8 | AE69: 2.8 | AF69: 2.79 | AG69: 2.79 | AH69: 2.78 | AI69: 2.78 | AJ69: 2.78 | AK69: 2.77 | AL69: 2.77 | AM69: 2.77 | AN69: 2.77 | AO69: 2.76 | AP69: 2.76 | AQ69: 2.76 | AR69: 2.76 | AS69: 2.75 | AT69: 2.75 | AU69: 2.75 | AV69: 2.75 | AW69: 2.75 | AX69: 2.74 | AY69: 2.74 | BB69: 1.94
A70: 2020-02-29 | B70: 1.13 | C70: 1.2 | D70: 1.32 | E70: 1.46 | F70: 1.61 | G70: 1.76 | H70: 1.9 | I70: 2.03 | J70: 2.15 | K70: 2.26 | L70: 2.36 | M70: 2.45 | N70: 2.52 | O70: 2.58 | P70: 2.64 | Q70: 2.67 | R70: 2.7 | S70: 2.73 | T70: 2.75 | U70: 2.77 | V70: 2.78 | W70: 2.78 | X70: 2.78 | Y70: 2.79 | Z70: 2.79 | AA70: 2.78 | AB70: 2.78 | AC70: 2.77 | AD70: 2.77 | AE70: 2.76 | AF70: 2.76 | AG70: 2.75 | AH70: 2.75 | AI70: 2.75 | AJ70: 2.74 | AK70: 2.74 | AL70: 2.74 | AM70: 2.73 | AN70: 2.73 | AO70: 2.73 | AP70: 2.73 | AQ70: 2.72 | AR70: 2.72 | AS70: 2.72 | AT70: 2.72 | AU70: 2.72 | AV70: 2.71 | AW70: 2.71 | AX70: 2.71 | AY70: 2.71 | BB70: 1.91
A71: 2020-03-31 | B71: 1.12 | C71: 1.19 | D71: 1.3 | E71: 1.45 | F71: 1.59 | G71: 1.74 | H71: 1.88 | I71: 2.01 | J71: 2.12 | K71: 2.23 | L71: 2.33 | M71: 2.42 | N71: 2.49 | O71: 2.56 | P71: 2.61 | Q71: 2.64 | R71: 2.67 | S71: 2.7 | T71: 2.72 | U71: 2.75 | V71: 2.75 | W71: 2.75 | X71: 2.76 | Y71: 2.76 | Z71: 2.76 | AA71: 2.75 | AB71: 2.75 | AC71: 2.74 | AD71: 2.74 | AE71: 2.73 | AF71: 2.73 | AG71: 2.73 | AH71: 2.72 | AI71: 2.72 | AJ71: 2.72 | AK71: 2.71 | AL71: 2.71 | AM71: 2.71 | AN71: 2.7 | AO71: 2.7 | AP71: 2.7 | AQ71: 2.7 | AR71: 2.7 | AS71: 2.69 | AT71: 2.69 | AU71: 2.69 | AV71: 2.69 | AW71: 2.69 | AX71: 2.68 | AY71: 2.68 | BB71: 1.89
A72: 2020-04-30 | B72: 1.11 | C72: 1.18 | D72: 1.28 | E72: 1.42 | F72: 1.57 | G72: 1.71 | H72: 1.85 | I72: 1.98 | J72: 2.09 | K72: 2.2 | L72: 2.3 | M72: 2.39 | N72: 2.46 | O72: 2.52 | P72: 2.58 | Q72: 2.61 | R72: 2.64 | S72: 2.67 | T72: 2.69 | U72: 2.71 | V72: 2.72 | W72: 2.72 | X72: 2.72 | Y72: 2.72 | Z72: 2.73 | AA72: 2.72 | AB72: 2.72 | AC72: 2.71 | AD72: 2.71 | AE72: 2.7 | AF72: 2.7 | AG72: 2.69 | AH72: 2.69 | AI72: 2.69 | AJ72: 2.68 | AK72: 2.68 | AL72: 2.68 | AM72: 2.68 | AN72: 2.67 | AO72: 2.67 | AP72: 2.67 | AQ72: 2.67 | AR72: 2.66 | AS72: 2.66 | AT72: 2.66 | AU72: 2.66 | AV72: 2.66 | AW72: 2.65 | AX72: 2.65 | AY72: 2.65 | BB72: 1.87
A73: 2020-05-31 | B73: 1.09 | C73: 1.16 | D73: 1.26 | E73: 1.4 | F73: 1.54 | G73: 1.69 | H73: 1.82 | I73: 1.95 | J73: 2.06 | K73: 2.17 | L73: 2.27 | M73: 2.35 | N73: 2.43 | O73: 2.49 | P73: 2.54 | Q73: 2.58 | R73: 2.61 | S73: 2.63 | T73: 2.66 | U73: 2.68 | V73: 2.68 | W73: 2.68 | X73: 2.69 | Y73: 2.69 | Z73: 2.69 | AA73: 2.69 | AB73: 2.68 | AC73: 2.68 | AD73: 2.67 | AE73: 2.67 | AF73: 2.66 | AG73: 2.66 | AH73: 2.66 | AI73: 2.66 | AJ73: 2.65 | AK73: 2.65 | AL73: 2.65 | AM73: 2.64 | AN73: 2.64 | AO73: 2.64 | AP73: 2.64 | AQ73: 2.64 | AR73: 2.63 | AS73: 2.63 | AT73: 2.63 | AU73: 2.63 | AV73: 2.62 | AW73: 2.62 | AX73: 2.62 | AY73: 2.62 | BB73: 1.84
A74: 2020-06-30 | B74: 1.07 | C74: 1.13 | D74: 1.24 | E74: 1.37 | F74: 1.51 | G74: 1.66 | H74: 1.79 | I74: 1.91 | J74: 2.03 | K74: 2.14 | L74: 2.24 | M74: 2.32 | N74: 2.39 | O74: 2.45 | P74: 2.51 | Q74: 2.54 | R74: 2.57 | S74: 2.6 | T74: 2.62 | U74: 2.64 | V74: 2.65 | W74: 2.65 | X74: 2.65 | Y74: 2.66 | Z74: 2.66 | AA74: 2.65 | AB74: 2.65 | AC74: 2.64 | AD74: 2.64 | AE74: 2.63 | AF74: 2.63 | AG74: 2.63 | AH74: 2.63 | AI74: 2.62 | AJ74: 2.62 | AK74: 2.62 | AL74: 2.61 | AM74: 2.61 | AN74: 2.61 | AO74: 2.61 | AP74: 2.61 | AQ74: 2.6 | AR74: 2.6 | AS74: 2.6 | AT74: 2.6 | AU74: 2.59 | AV74: 2.59 | AW74: 2.59 | AX74: 2.59 | AY74: 2.59 | BB74: 1.81
A75: 2020-07-31 | B75: 1.05 | C75: 1.11 | D75: 1.21 | E75: 1.35 | F75: 1.49 | G75: 1.63 | H75: 1.76 | I75: 1.88 | J75: 2 | K75: 2.11 | L75: 2.2 | M75: 2.28 | N75: 2.36 | O75: 2.42 | P75: 2.47 | Q75: 2.51 | R75: 2.54 | S75: 2.56 | T75: 2.59 | U75: 2.61 | V75: 2.61 | W75: 2.61 | X75: 2.62 | Y75: 2.62 | Z75: 2.62 | AA75: 2.62 | AB75: 2.61 | AC75: 2.61 | AD75: 2.6 | AE75: 2.6 | AF75: 2.6 | AG75: 2.59 | AH75: 2.59 | AI75: 2.59 | AJ75: 2.59 | AK75: 2.58 | AL75: 2.58 | AM75: 2.58 | AN75: 2.58 | AO75: 2.57 | AP75: 2.57 | AQ75: 2.57 | AR75: 2.57 | AS75: 2.56 | AT75: 2.56 | AU75: 2.56 | AV75: 2.56 | AW75: 2.56 | AX75: 2.56 | AY75: 2.55 | BB75: 1.78
A76: 2020-08-31 | B76: 1.03 | C76: 1.09 | D76: 1.19 | E76: 1.33 | F76: 1.46 | G76: 1.6 | H76: 1.73 | I76: 1.86 | J76: 1.97 | K76: 2.08 | L76: 2.18 | M76: 2.26 | N76: 2.33 | O76: 2.39 | P76: 2.45 | Q76: 2.48 | R76: 2.51 | S76: 2.53 | T76: 2.56 | U76: 2.58 | V76: 2.58 | W76: 2.59 | X76: 2.59 | Y76: 2.59 | Z76: 2.6 | AA76: 2.59 | AB76: 2.59 | AC76: 2.58 | AD76: 2.58 | AE76: 2.57 | AF76: 2.57 | AG76: 2.57 | AH76: 2.56 | AI76: 2.56 | AJ76: 2.56 | AK76: 2.56 | AL76: 2.55 | AM76: 2.55 | AN76: 2.55 | AO76: 2.55 | AP76: 2.55 | AQ76: 2.54 | AR76: 2.54 | AS76: 2.54 | AT76: 2.54 | AU76: 2.54 | AV76: 2.53 | AW76: 2.53 | AX76: 2.53 | AY76: 2.53 | BB76: 1.74
A77: 2020-09-30 | B77: 1.01 | C77: 1.07 | D77: 1.17 | E77: 1.3 | F77: 1.44 | G77: 1.58 | H77: 1.71 | I77: 1.83 | J77: 1.94 | K77: 2.05 | L77: 2.15 | M77: 2.23 | N77: 2.3 | O77: 2.36 | P77: 2.41 | Q77: 2.45 | R77: 2.48 | S77: 2.5 | T77: 2.53 | U77: 2.55 | V77: 2.55 | W77: 2.56 | X77: 2.56 | Y77: 2.56 | Z77: 2.57 | AA77: 2.56 | AB77: 2.56 | AC77: 2.55 | AD77: 2.55 | AE77: 2.54 | AF77: 2.54 | AG77: 2.54 | AH77: 2.54 | AI77: 2.53 | AJ77: 2.53 | AK77: 2.53 | AL77: 2.53 | AM77: 2.52 | AN77: 2.52 | AO77: 2.52 | AP77: 2.52 | AQ77: 2.52 | AR77: 2.51 | AS77: 2.51 | AT77: 2.51 | AU77: 2.51 | AV77: 2.51 | AW77: 2.5 | AX77: 2.5 | AY77: 2.5 | BB77: 1.71
A78: 2020-10-31 | B78: 0.99 | C78: 1.05 | D78: 1.15 | E78: 1.28 | F78: 1.41 | G78: 1.55 | H78: 1.68 | I78: 1.8 | J78: 1.91 | K78: 2.02 | L78: 2.11 | M78: 2.19 | N78: 2.27 | O78: 2.33 | P78: 2.38 | Q78: 2.41 | R78: 2.44 | S78: 2.47 | T78: 2.49 | U78: 2.51 | V78: 2.52 | W78: 2.52 | X78: 2.53 | Y78: 2.53 | Z78: 2.53 | AA78: 2.53 | AB78: 2.52 | AC78: 2.52 | AD78: 2.52 | AE78: 2.51 | AF78: 2.51 | AG78: 2.51 | AH78: 2.51 | AI78: 2.5 | AJ78: 2.5 | AK78: 2.5 | AL78: 2.5 | AM78: 2.5 | AN78: 2.49 | AO78: 2.49 | AP78: 2.49 | AQ78: 2.49 | AR78: 2.48 | AS78: 2.48 | AT78: 2.48 | AU78: 2.48 | AV78: 2.48 | AW78: 2.47 | AX78: 2.47 | AY78: 2.47 | BB78: 1.68
A79: 2020-11-30 | B79: 0.97 | C79: 1.02 | D79: 1.12 | E79: 1.25 | F79: 1.38 | G79: 1.51 | H79: 1.64 | I79: 1.76 | J79: 1.87 | K79: 1.98 | L79: 2.08 | M79: 2.16 | N79: 2.23 | O79: 2.29 | P79: 2.34 | Q79: 2.38 | R79: 2.41 | S79: 2.43 | T79: 2.46 | U79: 2.48 | V79: 2.48 | W79: 2.49 | X79: 2.49 | Y79: 2.49 | Z79: 2.5 | AA79: 2.49 | AB79: 2.49 | AC79: 2.49 | AD79: 2.48 | AE79: 2.48 | AF79: 2.48 | AG79: 2.47 | AH79: 2.47 | AI79: 2.47 | AJ79: 2.47 | AK79: 2.47 | AL79: 2.46 | AM79: 2.46 | AN79: 2.46 | AO79: 2.46 | AP79: 2.46 | AQ79: 2.45 | AR79: 2.45 | AS79: 2.45 | AT79: 2.45 | AU79: 2.45 | AV79: 2.44 | AW79: 2.44 | AX79: 2.44 | AY79: 2.44 | BB79: 1.64
A80: 2020-12-31 | B80: 0.94 | C80: 1 | D80: 1.09 | E80: 1.22 | F80: 1.35 | G80: 1.48 | H80: 1.61 | I80: 1.73 | J80: 1.84 | K80: 1.94 | L80: 2.04 | M80: 2.12 | N80: 2.19 | O80: 2.25 | P80: 2.3 | Q80: 2.34 | R80: 2.37 | S80: 2.39 | T80: 2.42 | U80: 2.44 | V80: 2.44 | W80: 2.45 | X80: 2.45 | Y80: 2.46 | Z80: 2.46 | AA80: 2.46 | AB80: 2.45 | AC80: 2.45 | AD80: 2.45 | AE80: 2.44 | AF80: 2.44 | AG80: 2.44 | AH80: 2.44 | AI80: 2.43 | AJ80: 2.43 | AK80: 2.43 | AL80: 2.43 | AM80: 2.43 | AN80: 2.43 | AO80: 2.42 | AP80: 2.42 | AQ80: 2.42 | AR80: 2.42 | AS80: 2.41 | AT80: 2.41 | AU80: 2.41 | AV80: 2.41 | AW80: 2.41 | AX80: 2.41 | AY80: 2.4 | BB80: 1.6
A81: 2021-01-31 | B81: 0.92 | C81: 0.97 | D81: 1.06 | E81: 1.18 | F81: 1.31 | G81: 1.44 | H81: 1.57 | I81: 1.69 | J81: 1.8 | K81: 1.9 | L81: 2 | M81: 2.08 | N81: 2.15 | O81: 2.21 | P81: 2.26 | Q81: 2.3 | R81: 2.33 | S81: 2.35 | T81: 2.38 | U81: 2.4 | V81: 2.4 | W81: 2.41 | X81: 2.41 | Y81: 2.42 | Z81: 2.42 | AA81: 2.42 | AB81: 2.42 | AC81: 2.41 | AD81: 2.41 | AE81: 2.41 | AF81: 2.4 | AG81: 2.4 | AH81: 2.4 | AI81: 2.4 | AJ81: 2.4 | AK81: 2.39 | AL81: 2.39 | AM81: 2.39 | AN81: 2.39 | AO81: 2.39 | AP81: 2.39 | AQ81: 2.38 | AR81: 2.38 | AS81: 2.38 | AT81: 2.38 | AU81: 2.38 | AV81: 2.37 | AW81: 2.37 | AX81: 2.37 | AY81: 2.37 | BB81: 1.57
A82: 2021-02-28 | B82: 0.9 | C82: 0.94 | D82: 1.03 | E82: 1.15 | F82: 1.28 | G82: 1.41 | H82: 1.54 | I82: 1.65 | J82: 1.76 | K82: 1.87 | L82: 1.96 | M82: 2.04 | N82: 2.12 | O82: 2.18 | P82: 2.23 | Q82: 2.26 | R82: 2.29 | S82: 2.32 | T82: 2.34 | U82: 2.36 | V82: 2.37 | W82: 2.37 | X82: 2.38 | Y82: 2.38 | Z82: 2.39 | AA82: 2.38 | AB82: 2.38 | AC82: 2.38 | AD82: 2.38 | AE82: 2.37 | AF82: 2.37 | AG82: 2.37 | AH82: 2.37 | AI82: 2.37 | AJ82: 2.36 | AK82: 2.36 | AL82: 2.36 | AM82: 2.36 | AN82: 2.36 | AO82: 2.36 | AP82: 2.35 | AQ82: 2.35 | AR82: 2.35 | AS82: 2.35 | AT82: 2.35 | AU82: 2.35 | AV82: 2.34 | AW82: 2.34 | AX82: 2.34 | AY82: 2.34 | BB82: 1.54
A83: 2021-03-31 | B83: 0.87 | C83: 0.91 | D83: 1 | E83: 1.12 | F83: 1.24 | G83: 1.38 | H83: 1.5 | I83: 1.62 | J83: 1.73 | K83: 1.83 | L83: 1.93 | M83: 2.01 | N83: 2.08 | O83: 2.14 | P83: 2.19 | Q83: 2.23 | R83: 2.26 | S83: 2.28 | T83: 2.31 | U83: 2.33 | V83: 2.33 | W83: 2.34 | X83: 2.34 | Y83: 2.35 | Z83: 2.35 | AA83: 2.35 | AB83: 2.35 | AC83: 2.34 | AD83: 2.34 | AE83: 2.34 | AF83: 2.34 | AG83: 2.34 | AH83: 2.33 | AI83: 2.33 | AJ83: 2.33 | AK83: 2.33 | AL83: 2.33 | AM83: 2.33 | AN83: 2.33 | AO83: 2.33 | AP83: 2.32 | AQ83: 2.32 | AR83: 2.32 | AS83: 2.32 | AT83: 2.32 | AU83: 2.31 | AV83: 2.31 | AW83: 2.31 | AX83: 2.31 | AY83: 2.31 | BB83: 1.51
A84: 2021-04-30 | B84: 0.84 | C84: 0.88 | D84: 0.97 | E84: 1.09 | F84: 1.21 | G84: 1.34 | H84: 1.47 | I84: 1.59 | J84: 1.7 | K84: 1.8 | L84: 1.89 | M84: 1.97 | N84: 2.04 | O84: 2.11 | P84: 2.16 | Q84: 2.19 | R84: 2.22 | S84: 2.25 | T84: 2.27 | U84: 2.29 | V84: 2.3 | W84: 2.3 | X84: 2.31 | Y84: 2.31 | Z84: 2.32 | AA84: 2.32 | AB84: 2.31 | AC84: 2.31 | AD84: 2.31 | AE84: 2.31 | AF84: 2.31 | AG84: 2.3 | AH84: 2.3 | AI84: 2.3 | AJ84: 2.3 | AK84: 2.3 | AL84: 2.3 | AM84: 2.3 | AN84: 2.3 | AO84: 2.29 | AP84: 2.29 | AQ84: 2.29 | AR84: 2.29 | AS84: 2.29 | AT84: 2.28 | AU84: 2.28 | AV84: 2.28 | AW84: 2.28 | AX84: 2.28 | AY84: 2.28 | BB84: 1.49
A85: 2021-05-31 | B85: 0.82 | C85: 0.86 | D85: 0.94 | E85: 1.06 | F85: 1.18 | G85: 1.31 | H85: 1.43 | I85: 1.55 | J85: 1.66 | K85: 1.77 | L85: 1.86 | M85: 1.94 | N85: 2.01 | O85: 2.07 | P85: 2.12 | Q85: 2.16 | R85: 2.19 | S85: 2.21 | T85: 2.24 | U85: 2.26 | V85: 2.27 | W85: 2.27 | X85: 2.28 | Y85: 2.28 | Z85: 2.29 | AA85: 2.28 | AB85: 2.28 | AC85: 2.28 | AD85: 2.28 | AE85: 2.28 | AF85: 2.27 | AG85: 2.27 | AH85: 2.27 | AI85: 2.27 | AJ85: 2.27 | AK85: 2.27 | AL85: 2.27 | AM85: 2.27 | AN85: 2.26 | AO85: 2.26 | AP85: 2.26 | AQ85: 2.26 | AR85: 2.26 | AS85: 2.26 | AT85: 2.25 | AU85: 2.25 | AV85: 2.25 | AW85: 2.25 | AX85: 2.25 | AY85: 2.25 | BB85: 1.47
A86: 2021-06-30 | B86: 0.79 | C86: 0.83 | D86: 0.91 | E86: 1.02 | F86: 1.15 | G86: 1.28 | H86: 1.4 | I86: 1.52 | J86: 1.63 | K86: 1.73 | L86: 1.83 | M86: 1.9 | N86: 1.97 | O86: 2.03 | P86: 2.09 | Q86: 2.12 | R86: 2.15 | S86: 2.18 | T86: 2.2 | U86: 2.22 | V86: 2.23 | W86: 2.23 | X86: 2.24 | Y86: 2.25 | Z86: 2.25 | AA86: 2.25 | AB86: 2.25 | AC86: 2.24 | AD86: 2.24 | AE86: 2.24 | AF86: 2.24 | AG86: 2.24 | AH86: 2.24 | AI86: 2.23 | AJ86: 2.23 | AK86: 2.23 | AL86: 2.23 | AM86: 2.23 | AN86: 2.23 | AO86: 2.23 | AP86: 2.23 | AQ86: 2.22 | AR86: 2.22 | AS86: 2.22 | AT86: 2.22 | AU86: 2.22 | AV86: 2.22 | AW86: 2.21 | AX86: 2.21 | AY86: 2.21 | BB86: 1.45
A87: 2021-07-31 | B87: 0.76 | C87: 0.8 | D87: 0.88 | E87: 0.99 | F87: 1.12 | G87: 1.24 | H87: 1.37 | I87: 1.48 | J87: 1.59 | K87: 1.7 | L87: 1.79 | M87: 1.87 | N87: 1.94 | O87: 2 | P87: 2.05 | Q87: 2.08 | R87: 2.11 | S87: 2.14 | T87: 2.16 | U87: 2.19 | V87: 2.19 | W87: 2.2 | X87: 2.2 | Y87: 2.21 | Z87: 2.21 | AA87: 2.21 | AB87: 2.21 | AC87: 2.21 | AD87: 2.21 | AE87: 2.21 | AF87: 2.2 | AG87: 2.2 | AH87: 2.2 | AI87: 2.2 | AJ87: 2.2 | AK87: 2.2 | AL87: 2.2 | AM87: 2.2 | AN87: 2.2 | AO87: 2.19 | AP87: 2.19 | AQ87: 2.19 | AR87: 2.19 | AS87: 2.19 | AT87: 2.18 | AU87: 2.18 | AV87: 2.18 | AW87: 2.18 | AX87: 2.18 | AY87: 2.18 | BB87: 1.42
A88: 2021-08-31 | B88: 0.73 | C88: 0.77 | D88: 0.85 | E88: 0.96 | F88: 1.08 | G88: 1.21 | H88: 1.33 | I88: 1.45 | J88: 1.56 | K88: 1.66 | L88: 1.75 | M88: 1.83 | N88: 1.9 | O88: 1.96 | P88: 2.01 | Q88: 2.05 | R88: 2.08 | S88: 2.1 | T88: 2.13 | U88: 2.15 | V88: 2.16 | W88: 2.16 | X88: 2.17 | Y88: 2.17 | Z88: 2.18 | AA88: 2.18 | AB88: 2.17 | AC88: 2.17 | AD88: 2.17 | AE88: 2.17 | AF88: 2.17 | AG88: 2.17 | AH88: 2.17 | AI88: 2.16 | AJ88: 2.16 | AK88: 2.16 | AL88: 2.16 | AM88: 2.16 | AN88: 2.16 | AO88: 2.16 | AP88: 2.16 | AQ88: 2.15 | AR88: 2.15 | AS88: 2.15 | AT88: 2.15 | AU88: 2.15 | AV88: 2.14 | AW88: 2.14 | AX88: 2.14 | AY88: 2.14 | BB88: 1.41
A89: 2021-09-30 | B89: 0.7 | C89: 0.74 | D89: 0.82 | E89: 0.93 | F89: 1.05 | G89: 1.18 | H89: 1.3 | I89: 1.41 | J89: 1.52 | K89: 1.62 | L89: 1.72 | M89: 1.79 | N89: 1.86 | O89: 1.92 | P89: 1.98 | Q89: 2.01 | R89: 2.04 | S89: 2.07 | T89: 2.09 | U89: 2.11 | V89: 2.12 | W89: 2.13 | X89: 2.13 | Y89: 2.14 | Z89: 2.14 | AA89: 2.14 | AB89: 2.14 | AC89: 2.14 | AD89: 2.14 | AE89: 2.14 | AF89: 2.13 | AG89: 2.13 | AH89: 2.13 | AI89: 2.13 | AJ89: 2.13 | AK89: 2.13 | AL89: 2.13 | AM89: 2.13 | AN89: 2.12 | AO89: 2.12 | AP89: 2.12 | AQ89: 2.12 | AR89: 2.12 | AS89: 2.11 | AT89: 2.11 | AU89: 2.11 | AV89: 2.11 | AW89: 2.11 | AX89: 2.11 | AY89: 2.1 | BB89: 1.39
A90: 2021-10-31 | B90: 0.67 | C90: 0.71 | D90: 0.79 | E90: 0.9 | F90: 1.02 | G90: 1.15 | H90: 1.27 | I90: 1.38 | J90: 1.49 | K90: 1.59 | L90: 1.68 | M90: 1.76 | N90: 1.83 | O90: 1.89 | P90: 1.94 | Q90: 1.98 | R90: 2.01 | S90: 2.03 | T90: 2.06 | U90: 2.08 | V90: 2.09 | W90: 2.09 | X90: 2.1 | Y90: 2.1 | Z90: 2.11 | AA90: 2.11 | AB90: 2.11 | AC90: 2.1 | AD90: 2.1 | AE90: 2.1 | AF90: 2.1 | AG90: 2.1 | AH90: 2.1 | AI90: 2.1 | AJ90: 2.09 | AK90: 2.09 | AL90: 2.09 | AM90: 2.09 | AN90: 2.09 | AO90: 2.09 | AP90: 2.09 | AQ90: 2.08 | AR90: 2.08 | AS90: 2.08 | AT90: 2.08 | AU90: 2.08 | AV90: 2.07 | AW90: 2.07 | AX90: 2.07 | AY90: 2.07 | BB90: 1.37
A91: 2021-11-30 | B91: 0.64 | C91: 0.68 | D91: 0.76 | E91: 0.87 | F91: 0.99 | G91: 1.11 | H91: 1.23 | I91: 1.35 | J91: 1.45 | K91: 1.56 | L91: 1.65 | M91: 1.72 | N91: 1.79 | O91: 1.85 | P91: 1.9 | Q91: 1.94 | R91: 1.97 | S91: 2 | T91: 2.02 | U91: 2.04 | V91: 2.05 | W91: 2.06 | X91: 2.06 | Y91: 2.07 | Z91: 2.07 | AA91: 2.07 | AB91: 2.07 | AC91: 2.07 | AD91: 2.07 | AE91: 2.07 | AF91: 2.06 | AG91: 2.06 | AH91: 2.06 | AI91: 2.06 | AJ91: 2.06 | AK91: 2.06 | AL91: 2.06 | AM91: 2.05 | AN91: 2.05 | AO91: 2.05 | AP91: 2.05 | AQ91: 2.05 | AR91: 2.05 | AS91: 2.04 | AT91: 2.04 | AU91: 2.04 | AV91: 2.04 | AW91: 2.03 | AX91: 2.03 | AY91: 2.03 | BB91: 1.36
A92: 2021-12-31 | B92: 0.61 | C92: 0.66 | D92: 0.74 | E92: 0.85 | F92: 0.96 | G92: 1.08 | H92: 1.2 | I92: 1.32 | J92: 1.42 | K92: 1.52 | L92: 1.62 | M92: 1.69 | N92: 1.76 | O92: 1.82 | P92: 1.87 | Q92: 1.91 | R92: 1.94 | S92: 1.96 | T92: 1.99 | U92: 2.01 | V92: 2.02 | W92: 2.02 | X92: 2.03 | Y92: 2.04 | Z92: 2.04 | AA92: 2.04 | AB92: 2.04 | AC92: 2.04 | AD92: 2.04 | AE92: 2.04 | AF92: 2.03 | AG92: 2.03 | AH92: 2.03 | AI92: 2.03 | AJ92: 2.03 | AK92: 2.03 | AL92: 2.03 | AM92: 2.02 | AN92: 2.02 | AO92: 2.02 | AP92: 2.02 | AQ92: 2.02 | AR92: 2.01 | AS92: 2.01 | AT92: 2.01 | AU92: 2.01 | AV92: 2 | AW92: 2 | AX92: 2 | AY92: 2 | BB92: 1.35
A93: 2022-01-31 | B93: 0.59 | C93: 0.64 | D93: 0.72 | E93: 0.83 | F93: 0.94 | G93: 1.06 | H93: 1.18 | I93: 1.29 | J93: 1.4 | K93: 1.5 | L93: 1.59 | M93: 1.67 | N93: 1.74 | O93: 1.79 | P93: 1.85 | Q93: 1.88 | R93: 1.91 | S93: 1.94 | T93: 1.96 | U93: 1.98 | V93: 1.99 | W93: 2 | X93: 2 | Y93: 2.01 | Z93: 2.01 | AA93: 2.01 | AB93: 2.01 | AC93: 2.01 | AD93: 2.01 | AE93: 2.01 | AF93: 2.01 | AG93: 2.01 | AH93: 2 | AI93: 2 | AJ93: 2 | AK93: 2 | AL93: 2 | AM93: 2 | AN93: 2 | AO93: 1.99 | AP93: 1.99 | AQ93: 1.99 | AR93: 1.99 | AS93: 1.98 | AT93: 1.98 | AU93: 1.98 | AV93: 1.98 | AW93: 1.98 | AX93: 1.97 | AY93: 1.97 | BB93: 1.34
A94: 2022-02-28 | B94: 0.57 | C94: 0.62 | D94: 0.7 | E94: 0.81 | F94: 0.92 | G94: 1.05 | H94: 1.16 | I94: 1.27 | J94: 1.38 | K94: 1.48 | L94: 1.57 | M94: 1.65 | N94: 1.72 | O94: 1.77 | P94: 1.82 | Q94: 1.86 | R94: 1.89 | S94: 1.92 | T94: 1.94 | U94: 1.96 | V94: 1.97 | W94: 1.98 | X94: 1.98 | Y94: 1.99 | Z94: 1.99 | AA94: 1.99 | AB94: 1.99 | AC94: 1.99 | AD94: 1.99 | AE94: 1.99 | AF94: 1.99 | AG94: 1.98 | AH94: 1.98 | AI94: 1.98 | AJ94: 1.98 | AK94: 1.98 | AL94: 1.98 | AM94: 1.97 | AN94: 1.97 | AO94: 1.97 | AP94: 1.97 | AQ94: 1.97 | AR94: 1.96 | AS94: 1.96 | AT94: 1.96 | AU94: 1.96 | AV94: 1.95 | AW94: 1.95 | AX94: 1.95 | AY94: 1.95 | BB94: 1.35
A95: 2022-03-31 | B95: 0.55 | C95: 0.61 | D95: 0.69 | E95: 0.8 | F95: 0.91 | G95: 1.03 | H95: 1.14 | I95: 1.26 | J95: 1.36 | K95: 1.46 | L95: 1.55 | M95: 1.63 | N95: 1.7 | O95: 1.75 | P95: 1.81 | Q95: 1.84 | R95: 1.87 | S95: 1.9 | T95: 1.92 | U95: 1.94 | V95: 1.95 | W95: 1.96 | X95: 1.96 | Y95: 1.97 | Z95: 1.97 | AA95: 1.97 | AB95: 1.97 | AC95: 1.97 | AD95: 1.97 | AE95: 1.97 | AF95: 1.96 | AG95: 1.96 | AH95: 1.96 | AI95: 1.96 | AJ95: 1.96 | AK95: 1.96 | AL95: 1.95 | AM95: 1.95 | AN95: 1.95 | AO95: 1.95 | AP95: 1.95 | AQ95: 1.94 | AR95: 1.94 | AS95: 1.94 | AT95: 1.94 | AU95: 1.93 | AV95: 1.93 | AW95: 1.93 | AX95: 1.93 | AY95: 1.93 | BB95: 1.35
A96: 2022-04-30 | B96: 0.54 | C96: 0.6 | D96: 0.69 | E96: 0.79 | F96: 0.9 | G96: 1.02 | H96: 1.14 | I96: 1.25 | J96: 1.35 | K96: 1.45 | L96: 1.54 | M96: 1.62 | N96: 1.68 | O96: 1.74 | P96: 1.79 | Q96: 1.83 | R96: 1.85 | S96: 1.88 | T96: 1.9 | U96: 1.93 | V96: 1.93 | W96: 1.94 | X96: 1.95 | Y96: 1.95 | Z96: 1.96 | AA96: 1.96 | AB96: 1.95 | AC96: 1.95 | AD96: 1.95 | AE96: 1.95 | AF96: 1.95 | AG96: 1.95 | AH96: 1.94 | AI96: 1.94 | AJ96: 1.94 | AK96: 1.94 | AL96: 1.94 | AM96: 1.94 | AN96: 1.93 | AO96: 1.93 | AP96: 1.93 | AQ96: 1.93 | AR96: 1.92 | AS96: 1.92 | AT96: 1.92 | AU96: 1.91 | AV96: 1.91 | AW96: 1.91 | AX96: 1.91 | AY96: 1.91 | BB96: 1.36
A97: 2022-05-31 | B97: 0.53 | C97: 0.6 | D97: 0.68 | E97: 0.79 | F97: 0.9 | G97: 1.02 | H97: 1.13 | I97: 1.24 | J97: 1.35 | K97: 1.45 | L97: 1.54 | M97: 1.61 | N97: 1.68 | O97: 1.74 | P97: 1.79 | Q97: 1.82 | R97: 1.85 | S97: 1.88 | T97: 1.9 | U97: 1.92 | V97: 1.93 | W97: 1.93 | X97: 1.94 | Y97: 1.95 | Z97: 1.95 | AA97: 1.95 | AB97: 1.95 | AC97: 1.95 | AD97: 1.94 | AE97: 1.94 | AF97: 1.94 | AG97: 1.94 | AH97: 1.94 | AI97: 1.93 | AJ97: 1.93 | AK97: 1.93 | AL97: 1.93 | AM97: 1.93 | AN97: 1.93 | AO97: 1.92 | AP97: 1.92 | AQ97: 1.92 | AR97: 1.91 | AS97: 1.91 | AT97: 1.91 | AU97: 1.91 | AV97: 1.9 | AW97: 1.9 | AX97: 1.9 | AY97: 1.9 | BB97: 1.37
A98: 2022-06-30 | B98: 0.52 | C98: 0.6 | D98: 0.69 | E98: 0.79 | F98: 0.9 | G98: 1.02 | H98: 1.13 | I98: 1.24 | J98: 1.35 | K98: 1.44 | L98: 1.53 | M98: 1.61 | N98: 1.68 | O98: 1.73 | P98: 1.78 | Q98: 1.82 | R98: 1.85 | S98: 1.87 | T98: 1.9 | U98: 1.92 | V98: 1.92 | W98: 1.93 | X98: 1.94 | Y98: 1.94 | Z98: 1.95 | AA98: 1.94 | AB98: 1.94 | AC98: 1.94 | AD98: 1.94 | AE98: 1.94 | AF98: 1.93 | AG98: 1.93 | AH98: 1.93 | AI98: 1.93 | AJ98: 1.92 | AK98: 1.92 | AL98: 1.92 | AM98: 1.92 | AN98: 1.92 | AO98: 1.92 | AP98: 1.91 | AQ98: 1.91 | AR98: 1.9 | AS98: 1.9 | AT98: 1.9 | AU98: 1.9 | AV98: 1.89 | AW98: 1.89 | AX98: 1.89 | AY98: 1.89 | BB98: 1.38
A99: 2022-07-31 | B99: 0.52 | C99: 0.6 | D99: 0.69 | E99: 0.79 | F99: 0.9 | G99: 1.02 | H99: 1.13 | I99: 1.24 | J99: 1.34 | K99: 1.44 | L99: 1.53 | M99: 1.6 | N99: 1.67 | O99: 1.73 | P99: 1.78 | Q99: 1.81 | R99: 1.84 | S99: 1.86 | T99: 1.89 | U99: 1.91 | V99: 1.91 | W99: 1.92 | X99: 1.93 | Y99: 1.93 | Z99: 1.93 | AA99: 1.93 | AB99: 1.93 | AC99: 1.93 | AD99: 1.93 | AE99: 1.93 | AF99: 1.92 | AG99: 1.92 | AH99: 1.92 | AI99: 1.91 | AJ99: 1.91 | AK99: 1.91 | AL99: 1.91 | AM99: 1.9 | AN99: 1.9 | AO99: 1.9 | AP99: 1.9 | AQ99: 1.89 | AR99: 1.89 | AS99: 1.89 | AT99: 1.88 | AU99: 1.88 | AV99: 1.88 | AW99: 1.87 | AX99: 1.87 | AY99: 1.87 | BB99: 1.38
A100: 2022-08-31 | B100: 0.53 | C100: 0.61 | D100: 0.69 | E100: 0.8 | F100: 0.91 | G100: 1.02 | H100: 1.13 | I100: 1.24 | J100: 1.34 | K100: 1.44 | L100: 1.53 | M100: 1.6 | N100: 1.67 | O100: 1.72 | P100: 1.77 | Q100: 1.81 | R100: 1.84 | S100: 1.86 | T100: 1.88 | U100: 1.9 | V100: 1.91 | W100: 1.92 | X100: 1.92 | Y100: 1.93 | Z100: 1.93 | AA100: 1.93 | AB100: 1.92 | AC100: 1.92 | AD100: 1.92 | AE100: 1.92 | AF100: 1.92 | AG100: 1.91 | AH100: 1.91 | AI100: 1.91 | AJ100: 1.9 | AK100: 1.9 | AL100: 1.9 | AM100: 1.9 | AN100: 1.89 | AO100: 1.89 | AP100: 1.89 | AQ100: 1.88 | AR100: 1.88 | AS100: 1.88 | AT100: 1.87 | AU100: 1.87 | AV100: 1.87 | AW100: 1.86 | AX100: 1.86 | AY100: 1.86 | BB100: 1.38
A101: 2022-09-30 | B101: 0.54 | C101: 0.62 | D101: 0.71 | E101: 0.81 | F101: 0.92 | G101: 1.03 | H101: 1.14 | I101: 1.25 | J101: 1.35 | K101: 1.45 | L101: 1.53 | M101: 1.61 | N101: 1.67 | O101: 1.73 | P101: 1.78 | Q101: 1.81 | R101: 1.84 | S101: 1.86 | T101: 1.88 | U101: 1.9 | V101: 1.91 | W101: 1.91 | X101: 1.92 | Y101: 1.92 | Z101: 1.93 | AA101: 1.92 | AB101: 1.92 | AC101: 1.92 | AD101: 1.92 | AE101: 1.91 | AF101: 1.91 | AG101: 1.91 | AH101: 1.9 | AI101: 1.9 | AJ101: 1.9 | AK101: 1.89 | AL101: 1.89 | AM101: 1.89 | AN101: 1.89 | AO101: 1.88 | AP101: 1.88 | AQ101: 1.87 | AR101: 1.87 | AS101: 1.87 | AT101: 1.86 | AU101: 1.86 | AV101: 1.85 | AW101: 1.85 | AX101: 1.85 | AY101: 1.84
A102: 2022-10-31 | B102: 0.56 | C102: 0.64 | D102: 0.73 | E102: 0.83 | F102: 0.93 | G102: 1.04 | H102: 1.15 | I102: 1.26 | J102: 1.36 | K102: 1.45 | L102: 1.54 | M102: 1.61 | N102: 1.68 | O102: 1.73 | P102: 1.78 | Q102: 1.81 | R102: 1.84 | S102: 1.86 | T102: 1.88 | U102: 1.9 | V102: 1.91 | W102: 1.91 | X102: 1.92 | Y102: 1.92 | Z102: 1.92 | AA102: 1.92 | AB102: 1.92 | AC102: 1.91 | AD102: 1.91 | AE102: 1.91 | AF102: 1.91 | AG102: 1.9 | AH102: 1.9 | AI102: 1.89 | AJ102: 1.89 | AK102: 1.89 | AL102: 1.88 | AM102: 1.88 | AN102: 1.88 | AO102: 1.88 | AP102: 1.87 | AQ102: 1.87 | AR102: 1.86 | AS102: 1.86 | AT102: 1.85 | AU102: 1.85 | AV102: 1.84 | AW102: 1.84 | AX102: 1.84 | AY102: 1.83
A103: 2022-11-30 | B103: 0.57 | C103: 0.66 | D103: 0.74 | E103: 0.84 | F103: 0.94 | G103: 1.05 | H103: 1.16 | I103: 1.26 | J103: 1.36 | K103: 1.46 | L103: 1.54 | M103: 1.61 | N103: 1.68 | O103: 1.73 | P103: 1.78 | Q103: 1.81 | R103: 1.84 | S103: 1.86 | T103: 1.88 | U103: 1.9 | V103: 1.91 | W103: 1.91 | X103: 1.91 | Y103: 1.92 | Z103: 1.92 | AA103: 1.91 | AB103: 1.91 | AC103: 1.91 | AD103: 1.9 | AE103: 1.9 | AF103: 1.9 | AG103: 1.89 | AH103: 1.89 | AI103: 1.88 | AJ103: 1.88 | AK103: 1.88 | AL103: 1.87 | AM103: 1.87 | AN103: 1.87 | AO103: 1.87 | AP103: 1.86 | AQ103: 1.85 | AR103: 1.85 | AS103: 1.84 | AT103: 1.84 | AU103: 1.84 | AV103: 1.83 | AW103: 1.83 | AX103: 1.82 | AY103: 1.82
A104: 2022-12-31 | B104: 0.59 | C104: 0.68 | D104: 0.76 | E104: 0.86 | F104: 0.96 | G104: 1.07 | H104: 1.17 | I104: 1.27 | J104: 1.37 | K104: 1.47 | L104: 1.55 | M104: 1.62 | N104: 1.68 | O104: 1.74 | P104: 1.78 | Q104: 1.81 | R104: 1.84 | S104: 1.86 | T104: 1.88 | U104: 1.9 | V104: 1.91 | W104: 1.91 | X104: 1.91 | Y104: 1.91 | Z104: 1.92 | AA104: 1.91 | AB104: 1.91 | AC104: 1.9 | AD104: 1.9 | AE104: 1.9 | AF104: 1.89 | AG104: 1.89 | AH104: 1.88 | AI104: 1.88 | AJ104: 1.87 | AK104: 1.87 | AL104: 1.87 | AM104: 1.86 | AN104: 1.86 | AO104: 1.86 | AP104: 1.85 | AQ104: 1.85 | AR104: 1.84 | AS104: 1.84 | AT104: 1.83 | AU104: 1.83 | AV104: 1.82 | AW104: 1.82 | AX104: 1.81 | AY104: 1.81
A105: 2023-01-31 | B105: 0.62 | C105: 0.7 | D105: 0.77 | E105: 0.87 | F105: 0.97 | G105: 1.08 | H105: 1.18 | I105: 1.28 | J105: 1.38 | K105: 1.47 | L105: 1.55 | M105: 1.62 | N105: 1.69 | O105: 1.74 | P105: 1.78 | Q105: 1.81 | R105: 1.84 | S105: 1.86 | T105: 1.88 | U105: 1.9 | V105: 1.9 | W105: 1.91 | X105: 1.91 | Y105: 1.91 | Z105: 1.91 | AA105: 1.91 | AB105: 1.9 | AC105: 1.9 | AD105: 1.9 | AE105: 1.89 | AF105: 1.89 | AG105: 1.88 | AH105: 1.88 | AI105: 1.87 | AJ105: 1.87 | AK105: 1.86 | AL105: 1.86 | AM105: 1.86 | AN105: 1.85 | AO105: 1.85 | AP105: 1.84 | AQ105: 1.84 | AR105: 1.83 | AS105: 1.83 | AT105: 1.82 | AU105: 1.82 | AV105: 1.81 | AW105: 1.81 | AX105: 1.8 | AY105: 1.8
A106: 2023-02-28 | B106: 0.64 | C106: 0.72 | D106: 0.8 | E106: 0.89 | F106: 0.99 | G106: 1.09 | H106: 1.19 | I106: 1.29 | J106: 1.39 | K106: 1.48 | L106: 1.56 | M106: 1.63 | N106: 1.69 | O106: 1.74 | P106: 1.79 | Q106: 1.82 | R106: 1.84 | S106: 1.86 | T106: 1.88 | U106: 1.9 | V106: 1.9 | W106: 1.91 | X106: 1.91 | Y106: 1.91 | Z106: 1.91 | AA106: 1.91 | AB106: 1.9 | AC106: 1.9 | AD106: 1.89 | AE106: 1.89 | AF106: 1.88 | AG106: 1.88 | AH106: 1.87 | AI106: 1.87 | AJ106: 1.86 | AK106: 1.86 | AL106: 1.85 | AM106: 1.85 | AN106: 1.85 | AO106: 1.84 | AP106: 1.84 | AQ106: 1.83 | AR106: 1.82 | AS106: 1.82 | AT106: 1.81 | AU106: 1.81 | AV106: 1.8 | AW106: 1.8 | AX106: 1.79 | AY106: 1.79
A107: 2023-03-31 | B107: 0.66 | C107: 0.74 | D107: 0.82 | E107: 0.91 | F107: 1 | G107: 1.11 | H107: 1.2 | I107: 1.3 | J107: 1.4 | K107: 1.49 | L107: 1.57 | M107: 1.64 | N107: 1.7 | O107: 1.75 | P107: 1.79 | Q107: 1.82 | R107: 1.84 | S107: 1.86 | T107: 1.88 | U107: 1.9 | V107: 1.9 | W107: 1.91 | X107: 1.91 | Y107: 1.91 | Z107: 1.91 | AA107: 1.9 | AB107: 1.9 | AC107: 1.89 | AD107: 1.89 | AE107: 1.89 | AF107: 1.88 | AG107: 1.87 | AH107: 1.87 | AI107: 1.86 | AJ107: 1.86 | AK107: 1.85 | AL107: 1.85 | AM107: 1.85 | AN107: 1.84 | AO107: 1.84 | AP107: 1.83 | AQ107: 1.82 | AR107: 1.82 | AS107: 1.81 | AT107: 1.81 | AU107: 1.8 | AV107: 1.8 | AW107: 1.79 | AX107: 1.79 | AY107: 1.78
A108: 2023-04-30 | B108: 0.69 | C108: 0.76 | D108: 0.84 | E108: 0.92 | F108: 1.02 | G108: 1.12 | H108: 1.22 | I108: 1.31 | J108: 1.41 | K108: 1.5 | L108: 1.58 | M108: 1.64 | N108: 1.7 | O108: 1.75 | P108: 1.8 | Q108: 1.82 | R108: 1.85 | S108: 1.87 | T108: 1.89 | U108: 1.9 | V108: 1.91 | W108: 1.91 | X108: 1.91 | Y108: 1.91 | Z108: 1.91 | AA108: 1.9 | AB108: 1.9 | AC108: 1.89 | AD108: 1.89 | AE108: 1.89 | AF108: 1.88 | AG108: 1.87 | AH108: 1.87 | AI108: 1.86 | AJ108: 1.86 | AK108: 1.85 | AL108: 1.85 | AM108: 1.84 | AN108: 1.84 | AO108: 1.83 | AP108: 1.83 | AQ108: 1.82 | AR108: 1.81 | AS108: 1.81 | AT108: 1.8 | AU108: 1.8 | AV108: 1.79 | AW108: 1.79 | AX108: 1.78 | AY108: 1.78
A109: 2023-05-31 | B109: 0.72 | C109: 0.79 | D109: 0.86 | E109: 0.94 | F109: 1.03 | G109: 1.13 | H109: 1.23 | I109: 1.32 | J109: 1.41 | K109: 1.5 | L109: 1.58 | M109: 1.65 | N109: 1.71 | O109: 1.76 | P109: 1.8 | Q109: 1.83 | R109: 1.85 | S109: 1.87 | T109: 1.89 | U109: 1.9 | V109: 1.91 | W109: 1.91 | X109: 1.91 | Y109: 1.91 | Z109: 1.91 | AA109: 1.9 | AB109: 1.9 | AC109: 1.89 | AD109: 1.89 | AE109: 1.88 | AF109: 1.88 | AG109: 1.87 | AH109: 1.86 | AI109: 1.86 | AJ109: 1.85 | AK109: 1.85 | AL109: 1.84 | AM109: 1.84 | AN109: 1.83 | AO109: 1.83 | AP109: 1.82 | AQ109: 1.81 | AR109: 1.81 | AS109: 1.8 | AT109: 1.8 | AU109: 1.79 | AV109: 1.78 | AW109: 1.78 | AX109: 1.77 | AY109: 1.77
A110: 2023-06-30 | B110: 0.74 | C110: 0.81 | D110: 0.88 | E110: 0.96 | F110: 1.05 | G110: 1.14 | H110: 1.24 | I110: 1.33 | J110: 1.42 | K110: 1.51 | L110: 1.59 | M110: 1.65 | N110: 1.71 | O110: 1.76 | P110: 1.8 | Q110: 1.83 | R110: 1.85 | S110: 1.87 | T110: 1.89 | U110: 1.9 | V110: 1.9 | W110: 1.91 | X110: 1.91 | Y110: 1.91 | Z110: 1.91 | AA110: 1.9 | AB110: 1.9 | AC110: 1.89 | AD110: 1.88 | AE110: 1.88 | AF110: 1.87 | AG110: 1.87 | AH110: 1.86 | AI110: 1.85 | AJ110: 1.85 | AK110: 1.84 | AL110: 1.84 | AM110: 1.83 | AN110: 1.83 | AO110: 1.82 | AP110: 1.82 | AQ110: 1.81 | AR110: 1.8 | AS110: 1.79 | AT110: 1.79 | AU110: 1.78 | AV110: 1.78 | AW110: 1.77 | AX110: 1.77 | AY110: 1.76
A111: 2023-07-31 | B111: 0.77 | C111: 0.84 | D111: 0.90 | E111: 0.98 | F111: 1.06 | G111: 1.16 | H111: 1.25 | I111: 1.34 | J111: 1.43 | K111: 1.51 | L111: 1.59 | M111: 1.66 | N111: 1.71 | O111: 1.76 | P111: 1.81 | Q111: 1.83 | R111: 1.85 | S111: 1.87 | T111: 1.89 | U111: 1.90 | V111: 1.90 | W111: 1.90 | X111: 1.91 | Y111: 1.91 | Z111: 1.91 | AA111: 1.90 | AB111: 1.89 | AC111: 1.89 | AD111: 1.88 | AE111: 1.88 | AF111: 1.87 | AG111: 1.86 | AH111: 1.86 | AI111: 1.85 | AJ111: 1.84 | AK111: 1.84 | AL111: 1.83 | AM111: 1.83 | AN111: 1.82 | AO111: 1.82 | AP111: 1.81 | AQ111: 1.80 | AR111: 1.80 | AS111: 1.79 | AT111: 1.78 | AU111: 1.78 | AV111: 1.77 | AW111: 1.76 | AX111: 1.76 | AY111: 1.75
A112: 2023-08-31 | B112: 0.8 | C112: 0.86 | D112: 0.92 | E112: 0.99 | F112: 1.08 | G112: 1.17 | H112: 1.26 | I112: 1.35 | J112: 1.44 | K112: 1.52 | L112: 1.6 | M112: 1.66 | N112: 1.72 | O112: 1.77 | P112: 1.81 | Q112: 1.83 | R112: 1.85 | S112: 1.87 | T112: 1.89 | U112: 1.9 | V112: 1.9 | W112: 1.9 | X112: 1.9 | Y112: 1.9 | Z112: 1.9 | AA112: 1.9 | AB112: 1.89 | AC112: 1.89 | AD112: 1.88 | AE112: 1.87 | AF112: 1.87 | AG112: 1.86 | AH112: 1.85 | AI112: 1.85 | AJ112: 1.84 | AK112: 1.83 | AL112: 1.83 | AM112: 1.82 | AN112: 1.82 | AO112: 1.81 | AP112: 1.81 | AQ112: 1.8 | AR112: 1.79 | AS112: 1.78 | AT112: 1.78 | AU112: 1.77 | AV112: 1.76 | AW112: 1.76 | AX112: 1.75 | AY112: 1.75
A113: 2023-09-30 | B113: 0.83 | C113: 0.89 | D113: 0.94 | E113: 1.01 | F113: 1.09 | G113: 1.18 | H113: 1.27 | I113: 1.36 | J113: 1.45 | K113: 1.53 | L113: 1.61 | M113: 1.67 | N113: 1.72 | O113: 1.77 | P113: 1.81 | Q113: 1.84 | R113: 1.86 | S113: 1.88 | T113: 1.89 | U113: 1.91 | V113: 1.91 | W113: 1.91 | X113: 1.91 | Y113: 1.91 | Z113: 1.91 | AA113: 1.9 | AB113: 1.89 | AC113: 1.89 | AD113: 1.88 | AE113: 1.88 | AF113: 1.87 | AG113: 1.86 | AH113: 1.85 | AI113: 1.85 | AJ113: 1.84 | AK113: 1.83 | AL113: 1.83 | AM113: 1.82 | AN113: 1.82 | AO113: 1.81 | AP113: 1.8 | AQ113: 1.8 | AR113: 1.79 | AS113: 1.78 | AT113: 1.77 | AU113: 1.77 | AV113: 1.76 | AW113: 1.76 | AX113: 1.75 | AY113: 1.74
A114: 2023-10-31 | B114: 0.86 | C114: 0.91 | D114: 0.96 | E114: 1.03 | F114: 1.11 | G114: 1.2 | H114: 1.28 | I114: 1.37 | J114: 1.46 | K114: 1.54 | L114: 1.62 | M114: 1.68 | N114: 1.73 | O114: 1.78 | P114: 1.82 | Q114: 1.84 | R114: 1.86 | S114: 1.88 | T114: 1.9 | U114: 1.91 | V114: 1.91 | W114: 1.91 | X114: 1.91 | Y114: 1.91 | Z114: 1.91 | AA114: 1.9 | AB114: 1.9 | AC114: 1.89 | AD114: 1.88 | AE114: 1.88 | AF114: 1.87 | AG114: 1.86 | AH114: 1.85 | AI114: 1.85 | AJ114: 1.84 | AK114: 1.83 | AL114: 1.83 | AM114: 1.82 | AN114: 1.82 | AO114: 1.81 | AP114: 1.8 | AQ114: 1.8 | AR114: 1.79 | AS114: 1.78 | AT114: 1.77 | AU114: 1.77 | AV114: 1.76 | AW114: 1.75 | AX114: 1.75 | AY114: 1.74
A115: 2023-11-30 | B115: 0.89 | C115: 0.93 | D115: 0.98 | E115: 1.05 | F115: 1.12 | G115: 1.21 | H115: 1.29 | I115: 1.38 | J115: 1.46 | K115: 1.55 | L115: 1.62 | M115: 1.68 | N115: 1.74 | O115: 1.78 | P115: 1.82 | Q115: 1.85 | R115: 1.87 | S115: 1.88 | T115: 1.9 | U115: 1.91 | V115: 1.91 | W115: 1.91 | X115: 1.91 | Y115: 1.91 | Z115: 1.91 | AA115: 1.9 | AB115: 1.9 | AC115: 1.89 | AD115: 1.88 | AE115: 1.88 | AF115: 1.87 | AG115: 1.86 | AH115: 1.85 | AI115: 1.85 | AJ115: 1.84 | AK115: 1.83 | AL115: 1.83 | AM115: 1.82 | AN115: 1.82 | AO115: 1.81 | AP115: 1.8 | AQ115: 1.79 | AR115: 1.78 | AS115: 1.78 | AT115: 1.77 | AU115: 1.76 | AV115: 1.76 | AW115: 1.75 | AX115: 1.74 | AY115: 1.74
A116: 2023-12-31 | B116: 0.91 | C116: 0.95 | D116: 0.99 | E116: 1.06 | F116: 1.13 | G116: 1.22 | H116: 1.30 | I116: 1.39 | J116: 1.47 | K116: 1.55 | L116: 1.62 | M116: 1.68 | N116: 1.74 | O116: 1.78 | P116: 1.82 | Q116: 1.84 | R116: 1.86 | S116: 1.88 | T116: 1.90 | U116: 1.91 | V116: 1.91 | W116: 1.91 | X116: 1.91 | Y116: 1.91 | Z116: 1.91 | AA116: 1.90 | AB116: 1.89 | AC116: 1.88 | AD116: 1.88 | AE116: 1.87 | AF116: 1.86 | AG116: 1.85 | AH116: 1.85 | AI116: 1.84 | AJ116: 1.83 | AK116: 1.83 | AL116: 1.82 | AM116: 1.81 | AN116: 1.81 | AO116: 1.80 | AP116: 1.79 | AQ116: 1.79 | AR116: 1.78 | AS116: 1.77 | AT116: 1.76 | AU116: 1.75 | AV116: 1.75 | AW116: 1.74 | AX116: 1.73 | AY116: 1.73
A117: 2024-01-31 | B117: 0.94 | C117: 0.97 | D117: 1.01 | E117: 1.07 | F117: 1.14 | G117: 1.23 | H117: 1.31 | I117: 1.39 | J117: 1.47 | K117: 1.55 | L117: 1.62 | M117: 1.68 | N117: 1.74 | O117: 1.78 | P117: 1.82 | Q117: 1.84 | R117: 1.86 | S117: 1.88 | T117: 1.89 | U117: 1.91 | V117: 1.91 | W117: 1.91 | X117: 1.9 | Y117: 1.9 | Z117: 1.9 | AA117: 1.89 | AB117: 1.89 | AC117: 1.88 | AD117: 1.87 | AE117: 1.87 | AF117: 1.86 | AG117: 1.85 | AH117: 1.84 | AI117: 1.84 | AJ117: 1.83 | AK117: 1.82 | AL117: 1.82 | AM117: 1.81 | AN117: 1.8 | AO117: 1.8 | AP117: 1.79 | AQ117: 1.78 | AR117: 1.77 | AS117: 1.76 | AT117: 1.76 | AU117: 1.75 | AV117: 1.74 | AW117: 1.73 | AX117: 1.73 | AY117: 1.72
A118: 2024-02-29 | B118: 0.96 | C118: 0.99 | D118: 1.03 | E118: 1.09 | F118: 1.16 | G118: 1.24 | H118: 1.32 | I118: 1.40 | J118: 1.48 | K118: 1.56 | L118: 1.63 | M118: 1.69 | N118: 1.74 | O118: 1.79 | P118: 1.82 | Q118: 1.85 | R118: 1.86 | S118: 1.88 | T118: 1.89 | U118: 1.91 | V118: 1.91 | W118: 1.91 | X118: 1.90 | Y118: 1.90 | Z118: 1.90 | AA118: 1.89 | AB118: 1.89 | AC118: 1.88 | AD118: 1.87 | AE118: 1.86 | AF118: 1.86 | AG118: 1.85 | AH118: 1.84 | AI118: 1.83 | AJ118: 1.82 | AK118: 1.82 | AL118: 1.81 | AM118: 1.81 | AN118: 1.80 | AO118: 1.79 | AP118: 1.78 | AQ118: 1.78 | AR118: 1.77 | AS118: 1.76 | AT118: 1.75 | AU118: 1.74 | AV118: 1.74 | AW118: 1.73 | AX118: 1.72 | AY118: 1.72

Sheet Lebenserwartung_M (hidden)
